Workbook

Sheet Contents
C1: Go to Charts by Pressing Shift and Enter on Menu Item
C3: Sheet Tab | D3: Description | E3: Author
B4: 1 | C4: Contents
B5: 2 | C5: Assumptions
B6: 3 | C6: Animal Balances
B7: 4 | C7: Margin Analysis
B8: 5 | C8: Periodic Financial Model
B9: 6 | C9: Data from Neves
B10: 7 | C10: Correspondence
B11: 8 | C11: Commodity Prices
B12: 9 | C12: Back-up from Prior Model
B13: 10 | C13: Questions&Answers
B14: 11 | C14: Over Production of Beef
B15: 12 | C15: Notes
B17: File Name: | D17: =File_name() -> C:\Users\edwar\Documents\Courses\Chapter 1. Models and Analysis\B. Project Finance Models and Exercises\A. Featured Project Finance Models\Other Examples\Abbatoir Project Inputs_Grupo Lider.xlsm
B19: Last Save Date | D19: =lastsaved() -> 10/6/2018 5:02:55 PM
B20: Last Save By | D20: =last_save_by() -> Monika Lewenski
B22: Colour Codes

Sheet Summary
B2: Operating Assumptions | H2: Sources and Uses of Funds | L2: ='Periodic Financial Model'!F307 -> 2021-10-01 | N2: Graph Item
C3: Price Assumptions per kg | I3: Capital Expenditures
D4: Price of Beef per kg | E4: =Assumptions!F120 -> 8.46 | J4: Abbatoir | L4: ='Periodic Financial Model'!G310 -> 2710000
D5: Price of Lamb per kg | E5: =Assumptions!F121 -> 6.51 | J5: Purchased Animals | L5: ='Periodic Financial Model'!G311 -> 4864400
D6: Price of Goats per kg | E6: =Assumptions!F122 -> 5.22 | J6: Existing Animals | L6: ='Periodic Financial Model'!G312 -> 3581000
D7: Price of Pork per kg | E7: =Assumptions!F123 -> 4.95 | J7: Funding of Losses | L7: ='Periodic Financial Model'!G313 -> 1566074.593
D8: Price of Chicken per kg | E8: =Assumptions!F124 -> 2.55 | J8: Interest and Fees | L8: ='Periodic Financial Model'!G314 -> 1092693.153
J9: DSRA Account | L9: ='Periodic Financial Model'!G315 -> 200000
C10: Daily Ration Assumptions per kg | K10: Total Uses of Funds | L10: ='Periodic Financial Model'!G316 -> 14014167.75
D11: Daily Ration for Beef | E11: =Assumptions!F72 -> 9.73
D12: Daily Ration for Lamb | E12: =Assumptions!F73 -> 0.75 | J12: Debt Funding | L12: ='Periodic Financial Model'!G318 -> 7000000
D13: Daily Ration for Goats | E13: =Assumptions!F74 -> 0.75 | J13: Contributed Equity | L13: ='Periodic Financial Model'!G319 -> 3581000
D14: Daily Ration for Pigs | E14: =Assumptions!F75 -> 2.0172 | J14: Cash Equity | L14: ='Periodic Financial Model'!G320 -> 2000000
D15: Daily Ration for Chicken | E15: =Assumptions!F76 -> 0.03 | J15: Positive Cash Earnings | L15: ='Periodic Financial Model'!G321 -> 1199732.509
J16: Balance | L16: ='Periodic Financial Model'!G322 -> 233435.2368
C17: IRR's | K17: Total Sources | L17: =SUM(L12:L16) -> 14014167.75
D18: Project IRR Pre-tax | E18: ='Periodic Financial Model'!F139 -> 0.2571433485
D19: Project IRR After-tax | E19: ='Periodic Financial Model'!F176 -> 0.2041998088
D20: Equity IRR | E20: ='Periodic Financial Model'!F285 -> 0.2834764421 | H20: Check | L20: ='Periodic Financial Model'!G253 -> FALSE
D21: Debt IRR

Sheet Assumptions
A1: Contents
A2: Assumptions
B3: Start Date of Model | F3: 2019-01-01
B4: Start of Abattoir Consturction | F4: =Assumptions!F3 -> 2019-01-01
B5: Construction Months | F5: 8
B6: Start Date of Abbatoir Operation | F6: =EDATE(F4,F5) -> 2019-09-01
B8: Assumptions for Animal Stocks
C9: Starting Balance | F9: Total | G9: Maternal Breed | H9: Termination
D10: Cows | E10: Number | F10: 2300 | G10: 540 | H10: =F10-G10 -> 1760
D11: Sheep | E11: Number | F11: 400 | G11: =Assumptions!F11 -> 400 | H11: =F11-G11 -> 0
D12: Goats | E12: Number | F12: 900 | G12: ='Animal Balances'!F148 -> 900 | H12: =F12-G12 -> 0
D13: Pigs | E13: Number | F13: 200 | G13: ='Animal Balances'!F210 -> 200 | H13: =F13-G13 -> 0
D14: Chicken | E14: Number | F14: 0 | G14: ='Animal Balances'!F267 -> 0 | H14: =F14-G14 -> 0
C16: Acquisiton of Animals in Capital Expenditure | F16: Total | G16: Maternal Breed | H16: Termination
D17: Cows | E17: Number | F17: 4000 | G17: =Assumptions!F17 -> 4000 | H17: =G17-F17 -> 0
D18: Sheep | E18: Number | F18: 2000 | G18: ='Animal Balances'!F96 -> 360 | H18: =F18-G18 -> 1640
D19: Goats | E19: Number | F19: 4000 | G19: ='Animal Balances'!F153 -> 620 | H19: =F19-G19 -> 3380
D20: Pigs | E20: Number | F20: 10000 | G20: ='Animal Balances'!F215 -> 370 | H20: =F20-G20 -> 9630
D21: Chicken | E21: Number | F21: 100000 | G21: ='Animal Balances'!F272 -> 2714.285714 | H21: =F21-G21 -> 97285.71429
C23: Pregnancy Period
D24: Cows | E24: Months | F24: ='Data from Neves'!F11 -> 9
D25: Sheep | E25: Months | F25: ='Data from Neves'!F12 -> 3
D26: Goats | E26: Months | F26: ='Data from Neves'!F13 -> 3
D27: Pigs | E27: Months | F27: ='Data from Neves'!F14 -> 4
D28: Chicken | E28: Months | F28: ='Data from Neves'!F15 -> 1
C31: Holding/Gestion Period Before Slaughter
D32: Cows | E32: Months | F32: ='Animal Balances'!F16 -> 23
D33: Sheep | E33: Months | F33: ='Data from Neves'!F4 -> 6
D34: Goats | E34: Months | F34: ='Data from Neves'!F5 -> 6
D35: Pigs | E35: Months | F35: ='Data from Neves'!F6 -> 6
D36: Chicken | E36: Months | F36: ='Data from Neves'!F7 -> 5
C38: New Births per Year per Animal
D39: Cows | E39: Number | F39: ='Data from Neves'!F19 -> 1
D40: Sheep | E40: Number | F40: ='Data from Neves'!F20 -> 3
D41: Goats | E41: Number | F41: ='Data from Neves'!F21 -> 3
D42: Pigs | E42: Number | F42: ='Data from Neves'!F22 -> 20
D43: Chicken | E43: Number | F43: ='Data from Neves'!F23 -> 42
C45: Maximum Slaughter (Capacity) | F45: per Day | G45: per Month | H45: per Year
D46: Cows | E46: Number | F46: 12.5 | G46: =F46*30.4*$G$52 -> 380 | H46: =G46*12 -> 4560
D47: Sheep | E47: Number | F47: 6.25 | G47: =F47*30.4*$G$52 -> 190 | H47: =G47*12 -> 2280
D48: Goats | E48: Number | F48: 12.5 | G48: =F48*30.4*$G$52 -> 380 | H48: =G48*12 -> 4560
D49: Pigs | E49: Number | F49: 31.25 | G49: =F49*30.4*$G$52 -> 950 | H49: =G49*12 -> 11400
D50: Chicken | E50: Number | F50: 312.5 | G50: =F50*30.4*$G$52 -> 9500 | H50: =G50*12 -> 114000
D52: Sensitivity Factor | G52: 1
C54: Year by Year Slaughters | F54: 2019 | G54: 2021
D55: Cows | E55: Number | F55: 1000 | G55: =Assumptions!H46 -> 4560
D56: Sheep | E56: Number | F56: 1000 | G56: =Assumptions!H47 -> 2280
D57: Goats | E57: Number | F57: 2000 | G57: =Assumptions!H48 -> 4560
D58: Pigs | E58: Number | F58: 2000 | G58: =Assumptions!H49 -> 11400
D59: Chicken | E59: Number | F59: 100000 | G59: =Assumptions!H50 -> 114000
C61: Total Annual Corn for Animal Feed | E61: Tons | F61: 120000
A63: Operating Cost Assumptions
B64: Weight of Animals at Slaughter
C65: Steer | E65: kg | F65: ='Data from Neves'!D74 -> 544.3104
C66: Sheep | E66: kg | F66: ='Data from Neves'!E64 -> 45
C67: Goats | E67: kg | F67: ='Data from Neves'!E65 -> 45
C68: Pigs | E68: kg | F68: ='Data from Neves'!E66 -> 99.5
C69: Chicken | E69: kg | F69: ='Data from Neves'!E67 -> 5
B71: Daily Ration of Anaimial Fee in kg | J71: Ration Sensitivity
C72: Steer | E72: kg | F72: =H72*I72 -> 9.73 | H72: 7 | I72: =J72/100 -> 1.39 | J72: 139
C73: Sheep | E73: kg | F73: =H73*I73 -> 0.75 | G73: =F66/$F$65*$H$72 -> 0.5787139103 | H73: 0.75 | I73: =J73/100 -> 1 | J73: 100
C74: Goats | E74: kg | F74: =H74*I74 -> 0.75 | G74: =F67/$F$65*$F$72 -> 0.8044123353 | H74: =Assumptions!H73 -> 0.75 | I74: 1 | J74: 100
C75: Pigs | E75: kg | F75: =H75*I75 -> 2.0172 | G75: =F68/$F$65*$F$72 -> 1.778645053 | H75: ='Data from Neves'!D38 -> 2.0172 | I75: 1 | J75: 100
C76: Chicken | E76: kg | F76: =H76*I76 -> 0.03 | G76: =F69/$F$65*$F$72 -> 0.08937914837 | H76: 0.03 | I76: 1 | J76: 100
B78: Daily Ration Corn Percent
C79: Cows | E79: % | F79: ='Data from Neves'!H35 -> 0.8378378378
C80: Sheep | E80: % | F80: ='Data from Neves'!H36 -> 0.2
C81: Goats | E81: % | F81: ='Data from Neves'!H37 -> 0.2
C82: Pigs | E82: % | F82: 0.5
C83: Chicken | E83: % | F83: 0
B85: Daily Ration Soy Percent
C86: Cows | E86: % | F86: ='Data from Neves'!I35 -> 0.1081081081
C87: Sheep | E87: % | F87: ='Data from Neves'!I36 -> 0.1333333333
C88: Goats | E88: % | F88: ='Data from Neves'!I37 -> 0.1333333333
C89: Pigs | E89: % | F89: 0
C90: Chicken | E90: % | F90: 1
B92: Daily Ration Hay Percent
C93: Cows | E93: % | F93: ='Data from Neves'!J35 -> 0.05405405405
C94: Sheep | E94: % | F94: ='Data from Neves'!J36 -> 0.6666666667
C95: Goats | E95: % | F95: ='Data from Neves'!J37 -> 0.6666666667
C96: Pigs | E96: % | F96: 0.5
C97: Chicken | E97: % | F97: ='Data from Neves'!J39 -> 0
B99: Cost of Feed without Inflation
C100: Corn | E100: USD/kg | F100: ='Data from Neves'!F113 -> 0.2763862498
C101: Soy | E101: USD/kg | F101: ='Data from Neves'!F114 -> 0.4744787447
C102: Hay | E102: USD/kg | F102: ='Data from Neves'!F115 -> 0.1974187498
A104: Pricing Assumptions
B105: Gross Weight of Animals at Slaughter
C106: Cows | E106: kg | F106: =F65 -> 544.3104
C107: Sheep | E107: kg | F107: =F66 -> 45
C108: Goats | E108: kg | F108: =F67 -> 45
C109: Pigs | E109: kg | F109: =F68 -> 99.5
C110: Chicken | E110: kg | F110: =F69 -> 5
B112: Percent Yiels Caracas Weight for Selling kg
C113: Cows | E113: % | F113: 0.9
C114: Sheep | E114: % | F114: 0.9
C115: Goats | E115: % | F115: 0.9
C116: Pigs | E116: % | F116: 0.9
C117: Chicken | E117: % | F117: 0.9
B119: Price Realised for Animals | G119: International | H119: Price Sensitivity | I119: Base Price | J119: Price Sensitivity
C120: Steer | E120: USD/kg | F120: =H120*I120 -> 8.46 | G120: 3.97 | H120: =J120/100 -> 0.94 | I120: 9 | J120: 94
C121: Sheep | E121: USD/kg | F121: =H121*I121 -> 6.51 | G121: 5.6 | H121: =J121/100 -> 0.93 | I121: 7 | J121: 93
C122: Goats | E122: USD/kg | F122: 5.22 | G122: =G121*0.67 -> 3.752 | H122: 0.87 | I122: 6 | J122: 87
C123: Pigs | E123: USD/kg | F123: 4.95 | G123: 5 | H123: 0.99 | I123: 5 | J123: 99
C124: Chicken | E124: USD/kg | F124: 2.55 | G124: 2.55 | H124: 1 | I124: 2.55 | J124: 100
A126: Other Operating Cost Assumptions and Working Capital
B128: Employee Cost | G128: 2019 | H128: =G128+3 -> 2022
C129: Number of Employees | E129: Number | G129: 150 | H129: 225
C130: Average Annual Salary | E130: USD | G130: ='Back-up from Prior Model'!G44 -> 8643.25338
B132: Other Costs - Fuel, Materials Equipment
C133: Percent of Employee Cost | E133: % | G133: 0.25
B135: Operating Cost of Abbatoir
G136: Days | H136: % of Month
B137: Days Receivables Outstanding | E137: Days | G137: 0 | H137: =G137/31 -> 0
B138: Inventory Days Outstainding | E138: Days | G138: 30 | H138: =G138/30 -> 1
B139: Days Payables - Feed | E139: Days | G139: 20 | H139: =G139/31 -> 0.6451612903
B140: Days Payables - Other | E140: Days | G140: 20 | H140: =G140/31 -> 0.6451612903
A143: Capital Expenditures for Abattoir
B144: Toal Capital Expenditure | E144: USD | F144: =SUM(F146:F151) -> 6000000 | J144: Cost | K144: Cost | N144: Cost per
G145: Purchases | H145: Maternal | I145: Termination | J145: Maternal | K145: Termination | N145: Animal of
C146: Total Slaughter Physical Facility | E146: USD | F146: 2710000 | N146: Purchase
C147: Purchase of Steer | E147: USD | F147: =G147*J147 -> 2000000 | G147: =Assumptions!F17 -> 4000 | H147: =Assumptions!G17 -> 4000 | I147: =G147-H147 -> 0 | J147: 500 | K147: =J147 -> 500 | M147: 1. Cow - $1500 | N147: 1222.578175
C148: Purchase of Sheep | E148: USD | F148: =J148*G148 -> 240000 | G148: =Assumptions!F18 -> 2000 | H148: =Assumptions!G18 -> 360 | I148: =G148-H148 -> 1640 | J148: 120 | K148: =J148 -> 120 | M148: 2. Beef Cow- $500 | N148: 203.7630291
C149: Purchase of Goats | E149: USD | F149: =J149*G149 -> 320000 | G149: =Assumptions!F19 -> 4000 | H149: =Assumptions!G19 -> 620 | I149: =G149-H149 -> 3380 | J149: 80 | K149: =J149 -> 80 | M149: 3. Sheep - $120 | N149: 244.5156349
C150: Purchase of Pigs | E150: USD | F150: =J150*G150 -> 550000 | G150: =Assumptions!F20 -> 10000 | H150: =Assumptions!G20 -> 370 | I150: =G150-H150 -> 9630 | J150: 55 | K150: =J150 -> 55 | M150: 4. Goat - $80 | N150: 163.0104233
C151: Purchase of Chicken | E151: USD | F151: =J151*G151 -> 180000 | G151: =Assumptions!F21 -> 100000 | H151: =Assumptions!G21 -> 2714.285714 | I151: =G151-H151 -> 97285.71429 | J151: 1.8 | K151: =J151 -> 1.8 | M151: 5. Pig - $55
B153: Value of Existing Animals | J153: Value | K153: Value
F154: Value | G154: Number | H154: Maternal | I154: Termination | J154: Maternal | K154: Termination
C155: Value of Steer | E155: USD | F155: =G155*J155 -> 3450000 | G155: =F10 -> 2300 | H155: =G155 -> 2300 | I155: =G155-H155 -> 0 | J155: 1500 | K155: 500
C156: Value of Sheep | E156: USD | F156: =G156*J156 -> 48000 | G156: =F11 -> 400 | H156: =G156 -> 400 | I156: =G156-H156 -> 0 | J156: 120 | K156: 120
C157: Value of Goats | E157: USD | F157: =G157*J157 -> 72000 | G157: =F12 -> 900 | H157: =G157 -> 900 | I157: =G157-H157 -> 0 | J157: 80 | K157: 80
C158: Value of Pigs | E158: USD | F158: =G158*J158 -> 11000 | G158: =F13 -> 200 | H158: =G158 -> 200 | I158: =G158-H158 -> 0 | J158: 55 | K158: 55
C159: Value of Chicken | E159: USD | F159: =G159*J159 -> 0 | G159: =F14 -> 0 | H159: =G159 -> 0 | I159: =G159-H159 -> 0 | J159: 1.8 | K159: 1.8
E160: USD
C161: Contingency
C163: Total Capital Expendtures
B165: Months to Construct | E165: Months | F165: 8
A167: Financing Assumptions
B168: Interest Rate | E168: % | F168: 0.08
B169: Commitment Fee | E169: % | F169: 0.02
B170: Interest Income Rate | E170: % | F170: 0.005
B172: Total Debt Commitment | E172: USD | F172: =G172*10000 -> 7000000 | G172: 700
B173: Total Equity Commitment | E173: USD | F173: =G173*10000 -> 2000000 | G173: 200
B174: Debt Service Reserve Account | E174: USD | F174: 200000
B176: Inflation Rate in Price | E176: % p.a. | F176: 0.005
B177: Inflation Rate in Cost | E177: % p.a. | F177: 0.02
A179: Depreciation and Taxes | G179: Annual Rate | H179: Monthly
B180: Depreciation Life Abbatoir | E180: Yrs | F180: 20 | G180: =1/F180 -> 0.05 | H180: =G180/12 -> 0.004166666667
B181: Depreciation Life Acquired Animals | E181: Yrs | F181: 5 | G181: =1/F181 -> 0.2 | H181: =G181/12 -> 0.01666666667
B182: Depreciation Life Existing Animals | E182: Yrs | F182: 5 | G182: =1/F182 -> 0.2 | H182: =G182/12 -> 0.01666666667
B184: Income Tax Rate | E184: % | F184: 0.2

Sheet Animal Balances
A1: Contents | B1: Animal Balances
I2: 1 | J2: 2 | K2: 3 | L2: 4 | M2: 5 | N2: 6 | O2: 7 | P2: 8 | Q2: 9 | R2: 10 | S2: 11 | T2: 12 | U2: 13 | V2: 14 | W2: 15 | X2: 16 | Y2: 17 | Z2: 18 | AA2: 19 | AB2: 20 | AC2: 21 | AD2: 22 | AE2: 23 | AF2: 24 | AG2: 25 | AH2: 26 | AI2: 27 | AJ2: 28 | AK2: 29 | AL2: 30 | AM2: 31 | AN2: 32 | AO2: 33 | AP2: 34 | AQ2: 35 | AR2: 36 | AS2: 37 | AT2: 38 | AU2: 39 | AV2: 40 | AW2: 41 | AX2: 42 | AY2: 43 | AZ2: 44 | BA2: 45 | BB2: 46 | BC2: 47 | BD2: 48 | BE2: 49 | BF2: 50 | BG2: 51 | BH2: 52 | BI2: 53 | BJ2: 54 | BK2: 55 | BL2: 56 | BM2: 57 | BN2: 58 | BO2: 59 | BP2: 60 | BQ2: 61 | BR2: 62 | BS2: 63 | BT2: 64 | BU2: 65 | BV2: 66 | BW2: 67 | BX2: 68 | BY2: 69 | BZ2: 70 | CA2: 71 | CB2: 72 | CC2: 73 | CD2: 74 | CE2: 75 | CF2: 76 | CG2: 77 | CH2: 78 | CI2: 79 | CJ2: 80 | CK2: 81 | CL2: 82 | CM2: 83 | CN2: 84 | CO2: 85 | CP2: 86 | CQ2: 87 | CR2: 88 | CS2: 89 | CT2: 90 | CU2: 91 | CV2: 92 | CW2: 93 | CX2: 94 | CY2: 95 | CZ2: 96 | DA2: 97 | DB2: 98 | DC2: 99 | DD2: 100 | DE2: 101 | DF2: 102 | DG2: 103 | DH2: 104 | DI2: 105 | DJ2: 106 | DK2: 107 | DL2: 108 | DM2: 109 | DN2: 110 | DO2: 111 | DP2: 112 | DQ2: 113 | DR2: 114 | DS2: 115 | DT2: 116 | DU2: 116 | DV2: 116 | DW2: 116 | DX2: 116 | DY2: 116 | DZ2: 116 | EA2: 116 | EB2: 116 | EC2: 116 | ED2: 116 | EE2: 116 | EF2: 116 | EG2: 116 | EH2: 116 | EI2: 116 | EJ2: 116 | EK2: 116 | EL2: 116 | EM2: 116 | EN2: 116 | EO2: 116 | EP2: 116 | EQ2: 116 | ER2: 116 | ES2: 116 | ET2: 116 | EU2: 116 | EV2: 116 | EW2: 116 | EX2: 116 | EY2: 116 | EZ2: 116 | FA2: 116 | FB2: 116 | FC2: 116 | FD2: 116 | FE2: 116 | FF2: 116 | FG2: 116 | FH2: 116 | FI2: 116 | FJ2: 116 | FK2: 116 | FL2: 116 | FM2: 116 | FN2: 116 | FO2: 116 | FP2: 116 | FQ2: 116 | FR2: 116 | FS2: 116 | FT2: 116 | FU2: 116 | FV2: 116 | FW2: 116 | FX2: 116 | FY2: 116 | FZ2: 116 | GA2: 116 | GB2: 116 | GC2: 116 | GD2: 116 | GE2: 116 | GF2: 116 | GG2: 116 | GH2: 116 | GI2: 116 | GJ2: 116 | GK2: 116 | GL2: 116 | GM2: 116 | GN2: 116 | GO2: 116 | GP2: 116 | GQ2: 116 | GR2: 116 | GS2: 116 | GT2: 116 | GU2: 116 | GV2: 116 | GW2: 116 | GX2: 116 | GY2: 116 | GZ2: 116 | HA2: 116 | HB2: 116 | HC2: 116 | HD2: 116 | HE2: 116 | HF2: 116 | HG2: 116 | HH2: 116 | HI2: 116 | HJ2: 116 | HK2: 116 | HL2: 116 | HM2: 116 | HN2: 116 | HO2: 116 | HP2: 116 | HQ2: 116 | HR2: 116 | HS2: 116 | HT2: 116 | HU2: 116 | HV2: 116 | HW2: 116 | HX2: 116 | HY2: 116 | HZ2: 116 | IA2: 116 | IB2: 116 | IC2: 116 | ID2: 116 | IE2: 116 | IF2: 116 | IG2: 116 | IH2: 116 | II2: 116 | IJ2: 116 | IK2: 116 | IL2: 116 | IM2: 116 | IN2: 116 | IO2: 116 | IP2: 116 | IQ2: 116 | IR2: 116 | IS2: 116 | IT2: 116 | IU2: 116 | IV2: 116 | IW2: 116 | IX2: 116 | IY2: 116 | IZ2: 116 | JA2: 116 | JB2: 116 | JC2: 116 | JD2: 116 | JE2: 116 | JF2: 116 | JG2: 116 | JH2: 116 | JI2: 116 | JJ2: 116 | JK2: 116 | JL2: 116 | JM2: 116 | JN2: 116 | JO2: 116 | JP2: 116 | JQ2: 116 | JR2: 116 | JS2: 116 | JT2: 116 | JU2: 116 | JV2: 116 | JW2: 116 | JX2: 116 | JY2: 116 | JZ2: 116 | KA2: 116 | KB2: 116 | KC2: 116 | KD2: 116 | KE2: 116 | KF2: 116 | KG2: 116 | KH2: 116 | KI2: 116 | KJ2: 116 | KK2: 116 | KL2: 116 | KM2: 116 | KN2: 116 | KO2: 116 | KP2: 116 | KQ2: 116 | KR2: 116 | KS2: 116
H3: =Assumptions!F3 -> 2019-01-01 | I3: =Assumptions!F6 -> 2019-09-01 | J3: =EDATE(I3,1) -> 2019-10-01 | K3: =EDATE(J3,1) -> 2019-11-01 | L3: 2019-12-01 | M3: 2020-01-01 | N3: 2020-02-01 | O3: 2020-03-01 | P3: 2020-04-01 | Q3: 2020-05-01 | R3: 2020-06-01 | S3: 2020-07-01 | T3: 2020-08-01 | U3: 2020-09-01 | V3: 2020-10-01 | W3: 2020-11-01 | X3: 2020-12-01 | Y3: 2021-01-01 | Z3: 2021-02-01 | AA3: 2021-03-01 | AB3: 2021-04-01 | AC3: 2021-05-01 | AD3: 2021-06-01 | AE3: 2021-07-01 | AF3: 2021-08-01 | AG3: 2021-09-01 | AH3: 2021-10-01 | AI3: 2021-11-01 | AJ3: 2021-12-01 | AK3: 2022-01-01 | AL3: 2022-02-01 | AM3: 2022-03-01 | AN3: 2022-04-01 | AO3: 2022-05-01 | AP3: 2022-06-01 | AQ3: 2022-07-01 | AR3: 2022-08-01 | AS3: 2022-09-01 | AT3: 2022-10-01 | AU3: 2022-11-01 | AV3: 2022-12-01 | AW3: 2023-01-01 | AX3: 2023-02-01 | AY3: 2023-03-01 | AZ3: 2023-04-01 | BA3: 2023-05-01 | BB3: 2023-06-01 | BC3: 2023-07-01 | BD3: 2023-08-01 | BE3: 2023-09-01 | BF3: 2023-10-01 | BG3: 2023-11-01 | BH3: 2023-12-01 | BI3: 2024-01-01 | BJ3: 2024-02-01 | BK3: 2024-03-01 | BL3: 2024-04-01 | BM3: 2024-05-01 | BN3: 2024-06-01 | BO3: 2024-07-01 | BP3: 2024-08-01 | BQ3: 2024-09-01 | BR3: 2024-10-01 | BS3: 2024-11-01 | BT3: 2024-12-01 | BU3: =EDATE(BT3,1) -> 2025-01-01 | BV3: 2025-02-01 | BW3: 2025-03-01 | BX3: 2025-04-01 | BY3: 2025-05-01 | BZ3: 2025-06-01 | CA3: 2025-07-01 | CB3: 2025-08-01 | CC3: 2025-09-01 | CD3: 2025-10-01 | CE3: 2025-11-01 | CF3: 2025-12-01 | CG3: 2026-01-01 | CH3: 2026-02-01 | CI3: 2026-03-01 | CJ3: 2026-04-01 | CK3: 2026-05-01 | CL3: 2026-06-01 | CM3: 2026-07-01 | CN3: 2026-08-01 | CO3: 2026-09-01 | CP3: 2026-10-01 | CQ3: 2026-11-01 | CR3: 2026-12-01 | CS3: 2027-01-01 | CT3: 2027-02-01 | CU3: 2027-03-01 | CV3: 2027-04-01 | CW3: 2027-05-01 | CX3: 2027-06-01 | CY3: 2027-07-01 | CZ3: 2027-08-01 | DA3: 2027-09-01 | DB3: 2027-10-01 | DC3: 2027-11-01 | DD3: 2027-12-01 | DE3: 2028-01-01 | DF3: 2028-02-01 | DG3: 2028-03-01 | DH3: 2028-04-01 | DI3: 2028-05-01 | DJ3: 2028-06-01 | DK3: 2028-07-01 | DL3: 2028-08-01 | DM3: 2028-09-01 | DN3: 2028-10-01 | DO3: 2028-11-01 | DP3: 2028-12-01 | DQ3: 2029-01-01 | DR3: 2029-02-01 | DS3: 2029-03-01 | DT3: 2029-04-01 | DU3: =EDATE(DT3,1) -> 2029-05-01 | DV3: 2029-06-01 | DW3: 2029-07-01 | DX3: 2029-08-01 | DY3: 2029-09-01 | DZ3: 2029-10-01 | EA3: 2029-11-01 | EB3: 2029-12-01 | EC3: 2030-01-01 | ED3: 2030-02-01 | EE3: 2030-03-01 | EF3: 2030-04-01 | EG3: 2030-05-01 | EH3: 2030-06-01 | EI3: 2030-07-01 | EJ3: 2030-08-01 | EK3: 2030-09-01 | EL3: 2030-10-01 | EM3: 2030-11-01 | EN3: 2030-12-01 | EO3: 2031-01-01 | EP3: 2031-02-01 | EQ3: 2031-03-01 | ER3: 2031-04-01 | ES3: 2031-05-01 | ET3: 2031-06-01 | EU3: 2031-07-01 | EV3: 2031-08-01 | EW3: 2031-09-01 | EX3: 2031-10-01 | EY3: 2031-11-01 | EZ3: 2031-12-01 | FA3: =EDATE(EZ3,1) -> 2032-01-01 | FB3: 2032-02-01 | FC3: 2032-03-01 | FD3: 2032-04-01 | FE3: 2032-05-01 | FF3: 2032-06-01 | FG3: 2032-07-01 | FH3: 2032-08-01 | FI3: 2032-09-01 | FJ3: 2032-10-01 | FK3: 2032-11-01 | FL3: 2032-12-01 | FM3: 2033-01-01 | FN3: 2033-02-01 | FO3: 2033-03-01 | FP3: 2033-04-01 | FQ3: 2033-05-01 | FR3: 2033-06-01 | FS3: 2033-07-01 | FT3: 2033-08-01 | FU3: 2033-09-01 | FV3: 2033-10-01 | FW3: 2033-11-01 | FX3: 2033-12-01 | FY3: 2034-01-01 | FZ3: 2034-02-01 | GA3: 2034-03-01 | GB3: 2034-04-01 | GC3: 2034-05-01 | GD3: 2034-06-01 | GE3: 2034-07-01 | GF3: 2034-08-01 | GG3: =EDATE(GF3,1) -> 2034-09-01 | GH3: 2034-10-01 | GI3: 2034-11-01 | GJ3: 2034-12-01 | GK3: 2035-01-01 | GL3: 2035-02-01 | GM3: 2035-03-01 | GN3: 2035-04-01 | GO3: 2035-05-01 | GP3: 2035-06-01 | GQ3: 2035-07-01 | GR3: 2035-08-01 | GS3: 2035-09-01 | GT3: 2035-10-01 | GU3: 2035-11-01 | GV3: 2035-12-01 | GW3: 2036-01-01 | GX3: 2036-02-01 | GY3: 2036-03-01 | GZ3: 2036-04-01 | HA3: 2036-05-01 | HB3: 2036-06-01 | HC3: 2036-07-01 | HD3: 2036-08-01 | HE3: 2036-09-01 | HF3: 2036-10-01 | HG3: 2036-11-01 | HH3: 2036-12-01 | HI3: 2037-01-01 | HJ3: 2037-02-01 | HK3: 2037-03-01 | HL3: 2037-04-01 | HM3: =EDATE(HL3,1) -> 2037-05-01 | HN3: 2037-06-01 | HO3: 2037-07-01 | HP3: 2037-08-01 | HQ3: 2037-09-01 | HR3: 2037-10-01 | HS3: 2037-11-01 | HT3: 2037-12-01 | HU3: 2038-01-01 | HV3: 2038-02-01 | HW3: 2038-03-01 | HX3: 2038-04-01 | HY3: 2038-05-01 | HZ3: 2038-06-01 | IA3: 2038-07-01 | IB3: 2038-08-01 | IC3: 2038-09-01 | ID3: 2038-10-01 | IE3: 2038-11-01 | IF3: 2038-12-01 | IG3: 2039-01-01 | IH3: 2039-02-01 | II3: 2039-03-01 | IJ3: 2039-04-01 | IK3: 2039-05-01 | IL3: 2039-06-01 | IM3: 2039-07-01 | IN3: 2039-08-01 | IO3: 2039-09-01 | IP3: 2039-10-01 | IQ3: 2039-11-01 | IR3: 2039-12-01 | IS3: =EDATE(IR3,1) -> 2040-01-01 | IT3: 2040-02-01 | IU3: 2040-03-01 | IV3: 2040-04-01 | IW3: 2040-05-01 | IX3: 2040-06-01 | IY3: 2040-07-01 | IZ3: 2040-08-01 | JA3: 2040-09-01 | JB3: 2040-10-01 | JC3: 2040-11-01 | JD3: 2040-12-01 | JE3: 2041-01-01 | JF3: 2041-02-01 | JG3: 2041-03-01 | JH3: 2041-04-01 | JI3: 2041-05-01 | JJ3: 2041-06-01 | JK3: 2041-07-01 | JL3: 2041-08-01 | JM3: 2041-09-01 | JN3: 2041-10-01 | JO3: 2041-11-01 | JP3: 2041-12-01 | JQ3: 2042-01-01 | JR3: 2042-02-01 | JS3: 2042-03-01 | JT3: 2042-04-01 | JU3: 2042-05-01 | JV3: 2042-06-01 | JW3: 2042-07-01 | JX3: 2042-08-01 | JY3: =EDATE(JX3,1) -> 2042-09-01 | JZ3: 2042-10-01 | KA3: 2042-11-01 | KB3: 2042-12-01 | KC3: 2043-01-01 | KD3: 2043-02-01 | KE3: 2043-03-01 | KF3: 2043-04-01 | KG3: 2043-05-01 | KH3: 2043-06-01 | KI3: 2043-07-01 | KJ3: 2043-08-01 | KK3: 2043-09-01 | KL3: 2043-10-01 | KM3: 2043-11-01 | KN3: 2043-12-01 | KO3: 2044-01-01 | KP3: 2044-02-01 | KQ3: 2044-03-01 | KR3: 2044-04-01 | KS3: 2044-05-01
I4: =MONTH(I3) -> 9 | J4: =MONTH(J3) -> 10 | K4: 11 | L4: 12 | M4: 1 | N4: 2 | O4: 3 | P4: 4 | Q4: 5 | R4: 6 | S4: 7 | T4: 8 | U4: 9 | V4: 10 | W4: 11 | X4: 12 | Y4: 1 | Z4: 2 | AA4: 3 | AB4: 4 | AC4: 5 | AD4: 6 | AE4: 7 | AF4: 8 | AG4: 9 | AH4: 10 | AI4: 11 | AJ4: 12 | AK4: 1 | AL4: 2 | AM4: 3 | AN4: 4 | AO4: 5 | AP4: 6 | AQ4: 7 | AR4: 8 | AS4: 9 | AT4: 10 | AU4: 11 | AV4: 12 | AW4: 1 | AX4: 2 | AY4: 3 | AZ4: 4 | BA4: 5 | BB4: 6 | BC4: 7 | BD4: 8 | BE4: 9 | BF4: 10 | BG4: 11 | BH4: 12 | BI4: 1 | BJ4: 2 | BK4: 3 | BL4: 4 | BM4: 5 | BN4: 6 | BO4: 7 | BP4: 8 | BQ4: 9 | BR4: 10 | BS4: 11 | BT4: 12 | BU4: 1 | BV4: =MONTH(BV3) -> 2 | BW4: 3 | BX4: 4 | BY4: 5 | BZ4: 6 | CA4: 7 | CB4: 8 | CC4: 9 | CD4: 10 | CE4: 11 | CF4: 12 | CG4: 1 | CH4: 2 | CI4: 3 | CJ4: 4 | CK4: 5 | CL4: 6 | CM4: 7 | CN4: 8 | CO4: 9 | CP4: 10 | CQ4: 11 | CR4: 12 | CS4: 1 | CT4: 2 | CU4: 3 | CV4: 4 | CW4: 5 | CX4: 6 | CY4: 7 | CZ4: 8 | DA4: 9 | DB4: 10 | DC4: 11 | DD4: 12 | DE4: 1 | DF4: 2 | DG4: 3 | DH4: 4 | DI4: 5 | DJ4: 6 | DK4: 7 | DL4: 8 | DM4: 9 | DN4: 10 | DO4: 11 | DP4: 12 | DQ4: 1 | DR4: 2 | DS4: 3 | DT4: 4 | DU4: =MONTH(DU3) -> 5 | DV4: 6 | DW4: 7 | DX4: 8 | DY4: 9 | DZ4: 10 | EA4: 11 | EB4: 12 | EC4: 1 | ED4: 2 | EE4: 3 | EF4: 4 | EG4: 5 | EH4: 6 | EI4: 7 | EJ4: 8 | EK4: 9 | EL4: 10 | EM4: 11 | EN4: 12 | EO4: 1 | EP4: 2 | EQ4: 3 | ER4: 4 | ES4: 5 | ET4: 6 | EU4: 7 | EV4: 8 | EW4: 9 | EX4: 10 | EY4: 11 | EZ4: 12 | FA4: 1 | FB4: 2 | FC4: 3 | FD4: 4 | FE4: 5 | FF4: 6 | FG4: 7 | FH4: 8 | FI4: 9 | FJ4: 10 | FK4: 11 | FL4: 12 | FM4: 1 | FN4: 2 | FO4: 3 | FP4: 4 | FQ4: 5 | FR4: 6 | FS4: 7 | FT4: 8 | FU4: 9 | FV4: 10 | FW4: 11 | FX4: 12 | FY4: 1 | FZ4: 2 | GA4: 3 | GB4: 4 | GC4: 5 | GD4: 6 | GE4: 7 | GF4: 8 | GG4: =MONTH(GG3) -> 9 | GH4: 10 | GI4: 11 | GJ4: 12 | GK4: 1 | GL4: 2 | GM4: 3 | GN4: 4 | GO4: 5 | GP4: 6 | GQ4: 7 | GR4: 8 | GS4: 9 | GT4: 10 | GU4: 11 | GV4: 12 | GW4: 1 | GX4: 2 | GY4: 3 | GZ4: 4 | HA4: 5 | HB4: 6 | HC4: 7 | HD4: 8 | HE4: 9 | HF4: 10 | HG4: 11 | HH4: 12 | HI4: 1 | HJ4: 2 | HK4: 3 | HL4: 4 | HM4: 5 | HN4: 6 | HO4: 7 | HP4: 8 | HQ4: 9 | HR4: 10 | HS4: 11 | HT4: 12 | HU4: 1 | HV4: 2 | HW4: 3 | HX4: 4 | HY4: 5 | HZ4: 6 | IA4: 7 | IB4: 8 | IC4: 9 | ID4: 10 | IE4: 11 | IF4: 12 | IG4: 1 | IH4: 2 | II4: 3 | IJ4: 4 | IK4: 5 | IL4: 6 | IM4: 7 | IN4: 8 | IO4: 9 | IP4: 10 | IQ4: 11 | IR4: 12 | IS4: =MONTH(IS3) -> 1 | IT4: 2 | IU4: 3 | IV4: 4 | IW4: 5 | IX4: 6 | IY4: 7 | IZ4: 8 | JA4: 9 | JB4: 10 | JC4: 11 | JD4: 12 | JE4: 1 | JF4: 2 | JG4: 3 | JH4: 4 | JI4: 5 | JJ4: 6 | JK4: 7 | JL4: 8 | JM4: 9 | JN4: 10 | JO4: 11 | JP4: 12 | JQ4: 1 | JR4: 2 | JS4: 3 | JT4: 4 | JU4: 5 | JV4: 6 | JW4: 7 | JX4: 8 | JY4: 9 | JZ4: 10 | KA4: 11 | KB4: 12 | KC4: 1 | KD4: 2 | KE4: 3 | KF4: 4 | KG4: 5 | KH4: 6 | KI4: 7 | KJ4: 8 | KK4: 9 | KL4: 10 | KM4: 11 | KN4: 12 | KO4: 1 | KP4: 2 | KQ4: 3 | KR4: 4 | KS4: 5
A5: Beef Analysis
C6: Insemination Month 1 | E6: Month | F6: ='Data from Neves'!D26 -> 3
C7: Insemination Month 2 | E7: Month | F7: ='Data from Neves'!E26 -> 6
C8: Insemination Month 3
C9: Insemination Month 4
D10: Total Months of Insemination | E10: Count | F10: =COUNT(F6:F9) -> 2
C12: Number of Calfs per Insemination | E12: Number | F12: 1
C13: Percent of Impregnations in Insemiation Month | E13: % | F13: =F12/F10 -> 0.5
C15: Pregancy Period | E15: Month | F15: ='Data from Neves'!F11 -> 9
C16: Birth until Slaughter for Termination Steer | E16: Month | F16: ='Data from Neves'!F3 -> 23
C18: Capacity of Abbitoir - Cows | E18: Number/Year | F18: =Assumptions!H46 -> 4560
C20: Total Number of Existing Beef | E20: Number | F20: =Assumptions!F10 -> 2300
C21: Existing Cows for Maternal Breeding | E21: Number | F21: =Assumptions!G10 -> 540
C22: Existing Cows for Termination | E22: Number | F22: =F20-F21 -> 1760
C23: Timing of Existing Cows for Termination | E23: Month | F23: 24
C25: Maternal Breeds Balance (Heard to Cows to Produce Calfs)
C26: Birthing transferred to Slaughter
C28: Maternal Breed Balance
D29: Opening Balance | I29: ='Animal Balances'!H34 -> 0 | J29: ='Animal Balances'!I34 -> 4540 | K29: ='Animal Balances'!J34 -> 4540 | L29: ='Animal Balances'!K34 -> 4540 | M29: ='Animal Balances'!L34 -> 4540 | N29: ='Animal Balances'!M34 -> 4540 | O29: ='Animal Balances'!N34 -> 4540 | P29: ='Animal Balances'!O34 -> 4540 | Q29: ='Animal Balances'!P34 -> 4540 | R29: ='Animal Balances'!Q34 -> 4540 | S29: ='Animal Balances'!R34 -> 4540 | T29: ='Animal Balances'!S34 -> 4540 | U29: ='Animal Balances'!T34 -> 4540 | V29: ='Animal Balances'!U34 -> 4540 | W29: ='Animal Balances'!V34 -> 4540 | X29: ='Animal Balances'!W34 -> 4540 | Y29: ='Animal Balances'!X34 -> 4540 | Z29: ='Animal Balances'!Y34 -> 4540 | AA29: ='Animal Balances'!Z34 -> 4540 | AB29: ='Animal Balances'!AA34 -> 4540 | AC29: ='Animal Balances'!AB34 -> 4540 | AD29: ='Animal Balances'!AC34 -> 4540 | AE29: ='Animal Balances'!AD34 -> 4540 | AF29: ='Animal Balances'!AE34 -> 4540 | AG29: ='Animal Balances'!AF34 -> 4540 | AH29: ='Animal Balances'!AG34 -> 4540 | AI29: ='Animal Balances'!AH34 -> 4540 | AJ29: ='Animal Balances'!AI34 -> 4540 | AK29: ='Animal Balances'!AJ34 -> 4540 | AL29: ='Animal Balances'!AK34 -> 4540 | AM29: ='Animal Balances'!AL34 -> 4540 | AN29: ='Animal Balances'!AM34 -> 4540 | AO29: ='Animal Balances'!AN34 -> 4540 | AP29: ='Animal Balances'!AO34 -> 4540 | AQ29: ='Animal Balances'!AP34 -> 4540 | AR29: ='Animal Balances'!AQ34 -> 4540 | AS29: ='Animal Balances'!AR34 -> 4540 | AT29: ='Animal Balances'!AS34 -> 4540 | AU29: ='Animal Balances'!AT34 -> 4540 | AV29: ='Animal Balances'!AU34 -> 4540 | AW29: ='Animal Balances'!AV34 -> 4540 | AX29: ='Animal Balances'!AW34 -> 4540 | AY29: ='Animal Balances'!AX34 -> 4540 | AZ29: ='Animal Balances'!AY34 -> 4540 | BA29: ='Animal Balances'!AZ34 -> 4540 | BB29: ='Animal Balances'!BA34 -> 4540 | BC29: ='Animal Balances'!BB34 -> 4540 | BD29: ='Animal Balances'!BC34 -> 4540 | BE29: ='Animal Balances'!BD34 -> 4540 | BF29: ='Animal Balances'!BE34 -> 4540 | BG29: ='Animal Balances'!BF34 -> 4540 | BH29: ='Animal Balances'!BG34 -> 4540 | BI29: ='Animal Balances'!BH34 -> 4540 | BJ29: ='Animal Balances'!BI34 -> 4540 | BK29: ='Animal Balances'!BJ34 -> 4540 | BL29: ='Animal Balances'!BK34 -> 4540 | BM29: ='Animal Balances'!BL34 -> 4540 | BN29: ='Animal Balances'!BM34 -> 4540 | BO29: ='Animal Balances'!BN34 -> 4540 | BP29: ='Animal Balances'!BO34 -> 4540 | BQ29: ='Animal Balances'!BP34 -> 4540 | BR29: ='Animal Balances'!BQ34 -> 4540 | BS29: ='Animal Balances'!BR34 -> 4540 | BT29: ='Animal Balances'!BS34 -> 4540 | BU29: ='Animal Balances'!BT34 -> 4540 | BV29: ='Animal Balances'!BU34 -> 4540 | BW29: ='Animal Balances'!BV34 -> 4540 | BX29: ='Animal Balances'!BW34 -> 4540 | BY29: ='Animal Balances'!BX34 -> 4540 | BZ29: ='Animal Balances'!BY34 -> 4540 | CA29: ='Animal Balances'!BZ34 -> 4540 | CB29: ='Animal Balances'!CA34 -> 4540 | CC29: ='Animal Balances'!CB34 -> 4540 | CD29: ='Animal Balances'!CC34 -> 4540 | CE29: ='Animal Balances'!CD34 -> 4540 | CF29: ='Animal Balances'!CE34 -> 4540 | CG29: ='Animal Balances'!CF34 -> 4540 | CH29: ='Animal Balances'!CG34 -> 4540 | CI29: ='Animal Balances'!CH34 -> 4540 | CJ29: ='Animal Balances'!CI34 -> 4540 | CK29: ='Animal Balances'!CJ34 -> 4540 | CL29: ='Animal Balances'!CK34 -> 4540 | CM29: ='Animal Balances'!CL34 -> 4540 | CN29: ='Animal Balances'!CM34 -> 4540 | CO29: ='Animal Balances'!CN34 -> 4540 | CP29: ='Animal Balances'!CO34 -> 4540 | CQ29: ='Animal Balances'!CP34 -> 4540 | CR29: ='Animal Balances'!CQ34 -> 4540 | CS29: ='Animal Balances'!CR34 -> 4540 | CT29: ='Animal Balances'!CS34 -> 4540 | CU29: ='Animal Balances'!CT34 -> 4540 | CV29: ='Animal Balances'!CU34 -> 4540 | CW29: ='Animal Balances'!CV34 -> 4540 | CX29: ='Animal Balances'!CW34 -> 4540 | CY29: ='Animal Balances'!CX34 -> 4540 | CZ29: ='Animal Balances'!CY34 -> 4540 | DA29: ='Animal Balances'!CZ34 -> 4540 | DB29: ='Animal Balances'!DA34 -> 4540 | DC29: ='Animal Balances'!DB34 -> 4540 | DD29: ='Animal Balances'!DC34 -> 4540 | DE29: ='Animal Balances'!DD34 -> 4540 | DF29: ='Animal Balances'!DE34 -> 4540 | DG29: ='Animal Balances'!DF34 -> 4540 | DH29: ='Animal Balances'!DG34 -> 4540 | DI29: ='Animal Balances'!DH34 -> 4540 | DJ29: ='Animal Balances'!DI34 -> 4540 | DK29: ='Animal Balances'!DJ34 -> 4540 | DL29: ='Animal Balances'!DK34 -> 4540 | DM29: ='Animal Balances'!DL34 -> 4540 | DN29: ='Animal Balances'!DM34 -> 4540 | DO29: ='Animal Balances'!DN34 -> 4540 | DP29: ='Animal Balances'!DO34 -> 4540 | DQ29: ='Animal Balances'!DP34 -> 4540 | DR29: ='Animal Balances'!DQ34 -> 4540 | DS29: ='Animal Balances'!DR34 -> 4540 | DT29: ='Animal Balances'!DS34 -> 4540 | DU29: ='Animal Balances'!DT34 -> 4540 | DV29: ='Animal Balances'!DU34 -> 4540 | DW29: ='Animal Balances'!DV34 -> 4540 | DX29: ='Animal Balances'!DW34 -> 4540 | DY29: ='Animal Balances'!DX34 -> 4540 | DZ29: ='Animal Balances'!DY34 -> 4540 | EA29: ='Animal Balances'!DZ34 -> 4540 | EB29: ='Animal Balances'!EA34 -> 4540 | EC29: ='Animal Balances'!EB34 -> 4540 | ED29: ='Animal Balances'!EC34 -> 4540 | EE29: ='Animal Balances'!ED34 -> 4540 | EF29: ='Animal Balances'!EE34 -> 4540 | EG29: ='Animal Balances'!EF34 -> 4540 | EH29: ='Animal Balances'!EG34 -> 4540 | EI29: ='Animal Balances'!EH34 -> 4540 | EJ29: ='Animal Balances'!EI34 -> 4540 | EK29: ='Animal Balances'!EJ34 -> 4540 | EL29: ='Animal Balances'!EK34 -> 4540 | EM29: ='Animal Balances'!EL34 -> 4540 | EN29: ='Animal Balances'!EM34 -> 4540 | EO29: ='Animal Balances'!EN34 -> 4540 | EP29: ='Animal Balances'!EO34 -> 4540 | EQ29: ='Animal Balances'!EP34 -> 4540 | ER29: ='Animal Balances'!EQ34 -> 4540 | ES29: ='Animal Balances'!ER34 -> 4540 | ET29: ='Animal Balances'!ES34 -> 4540 | EU29: ='Animal Balances'!ET34 -> 4540 | EV29: ='Animal Balances'!EU34 -> 4540 | EW29: ='Animal Balances'!EV34 -> 4540 | EX29: ='Animal Balances'!EW34 -> 4540 | EY29: ='Animal Balances'!EX34 -> 4540 | EZ29: ='Animal Balances'!EY34 -> 4540 | FA29: ='Animal Balances'!EZ34 -> 4540 | FB29: ='Animal Balances'!FA34 -> 4540 | FC29: ='Animal Balances'!FB34 -> 4540 | FD29: ='Animal Balances'!FC34 -> 4540 | FE29: ='Animal Balances'!FD34 -> 4540 | FF29: ='Animal Balances'!FE34 -> 4540 | FG29: ='Animal Balances'!FF34 -> 4540 | FH29: ='Animal Balances'!FG34 -> 4540 | FI29: ='Animal Balances'!FH34 -> 4540 | FJ29: ='Animal Balances'!FI34 -> 4540 | FK29: ='Animal Balances'!FJ34 -> 4540 | FL29: ='Animal Balances'!FK34 -> 4540 | FM29: ='Animal Balances'!FL34 -> 4540 | FN29: ='Animal Balances'!FM34 -> 4540 | FO29: ='Animal Balances'!FN34 -> 4540 | FP29: ='Animal Balances'!FO34 -> 4540 | FQ29: ='Animal Balances'!FP34 -> 4540 | FR29: ='Animal Balances'!FQ34 -> 4540 | FS29: ='Animal Balances'!FR34 -> 4540 | FT29: ='Animal Balances'!FS34 -> 4540 | FU29: ='Animal Balances'!FT34 -> 4540 | FV29: ='Animal Balances'!FU34 -> 4540 | FW29: ='Animal Balances'!FV34 -> 4540 | FX29: ='Animal Balances'!FW34 -> 4540 | FY29: ='Animal Balances'!FX34 -> 4540 | FZ29: ='Animal Balances'!FY34 -> 4540 | GA29: ='Animal Balances'!FZ34 -> 4540 | GB29: ='Animal Balances'!GA34 -> 4540 | GC29: ='Animal Balances'!GB34 -> 4540 | GD29: ='Animal Balances'!GC34 -> 4540 | GE29: ='Animal Balances'!GD34 -> 4540 | GF29: ='Animal Balances'!GE34 -> 4540 | GG29: ='Animal Balances'!GF34 -> 4540 | GH29: ='Animal Balances'!GG34 -> 4540 | GI29: ='Animal Balances'!GH34 -> 4540 | GJ29: ='Animal Balances'!GI34 -> 4540 | GK29: ='Animal Balances'!GJ34 -> 4540 | GL29: ='Animal Balances'!GK34 -> 4540 | GM29: ='Animal Balances'!GL34 -> 4540 | GN29: ='Animal Balances'!GM34 -> 4540 | GO29: ='Animal Balances'!GN34 -> 4540 | GP29: ='Animal Balances'!GO34 -> 4540 | GQ29: ='Animal Balances'!GP34 -> 4540 | GR29: ='Animal Balances'!GQ34 -> 4540 | GS29: ='Animal Balances'!GR34 -> 4540 | GT29: =GS34 -> 4540 | GU29: 4540 | GV29: 4540 | GW29: 4540 | GX29: 4540 | GY29: 4540 | GZ29: 4540 | HA29: 4540 | HB29: 4540 | HC29: 4540 | HD29: 4540 | HE29: 4540 | HF29: 4540 | HG29: 4540 | HH29: 4540 | HI29: 4540 | HJ29: 4540 | HK29: 4540 | HL29: 4540 | HM29: =HL34 -> 4540 | HN29: 4540 | HO29: 4540 | HP29: 4540 | HQ29: 4540 | HR29: 4540 | HS29: 4540 | HT29: 4540 | HU29: 4540 | HV29: 4540 | HW29: 4540 | HX29: 4540 | HY29: 4540 | HZ29: 4540 | IA29: 4540 | IB29: 4540 | IC29: 4540 | ID29: 4540 | IE29: 4540 | IF29: 4540 | IG29: 4540 | IH29: 4540 | II29: 4540 | IJ29: 4540 | IK29: 4540 | IL29: 4540 | IM29: 4540 | IN29: 4540 | IO29: 4540 | IP29: 4540 | IQ29: 4540 | IR29: 4540 | IS29: =IR34 -> 4540 | IT29: 4540 | IU29: 4540 | IV29: 4540 | IW29: 4540 | IX29: 4540 | IY29: 4540 | IZ29: 4540 | JA29: 4540 | JB29: 4540 | JC29: 4540 | JD29: 4540 | JE29: 4540 | JF29: 4540 | JG29: 4540 | JH29: 4540 | JI29: 4540 | JJ29: 4540 | JK29: 4540 | JL29: 4540 | JM29: 4540 | JN29: 4540 | JO29: 4540 | JP29: 4540 | JQ29: 4540 | JR29: 4540 | JS29: 4540 | JT29: 4540 | JU29: 4540 | JV29: 4540 | JW29: 4540 | JX29: 4540 | JY29: =JX34 -> 4540 | JZ29: 4540 | KA29: 4540 | KB29: 4540 | KC29: 4540 | KD29: 4540 | KE29: 4540 | KF29: 4540 | KG29: 4540 | KH29: 4540 | KI29: 4540 | KJ29: 4540 | KK29: 4540 | KL29: 4540 | KM29: 4540 | KN29: 4540 | KO29: 4540 | KP29: 4540 | KQ29: 4540 | KR29: 4540 | KS29: 4540
D30: Add: Maternal Cows from Existing Herd | I30: ='Animal Balances'!F21 -> 540
D31: Add: Maternal Cows from Acquisitions | I31: 4000
D32: Add: Cows Replaced from New Calfs
D33: Less: Maternal Cows Slaughtered
D34: Closing Balance to Feed | I34: =I29+I30+I31+I32-I33 -> 4540 | J34: =J29+J30+J31+J32-J33 -> 4540 | K34: 4540 | L34: 4540 | M34: 4540 | N34: 4540 | O34: 4540 | P34: 4540 | Q34: 4540 | R34: 4540 | S34: 4540 | T34: 4540 | U34: 4540 | V34: 4540 | W34: 4540 | X34: 4540 | Y34: 4540 | Z34: 4540 | AA34: 4540 | AB34: 4540 | AC34: 4540 | AD34: 4540 | AE34: 4540 | AF34: 4540 | AG34: 4540 | AH34: 4540 | AI34: 4540 | AJ34: 4540 | AK34: 4540 | AL34: 4540 | AM34: 4540 | AN34: 4540 | AO34: 4540 | AP34: 4540 | AQ34: 4540 | AR34: 4540 | AS34: 4540 | AT34: 4540 | AU34: 4540 | AV34: 4540 | AW34: 4540 | AX34: 4540 | AY34: 4540 | AZ34: 4540 | BA34: 4540 | BB34: 4540 | BC34: 4540 | BD34: 4540 | BE34: 4540 | BF34: 4540 | BG34: 4540 | BH34: 4540 | BI34: 4540 | BJ34: 4540 | BK34: 4540 | BL34: 4540 | BM34: 4540 | BN34: 4540 | BO34: 4540 | BP34: 4540 | BQ34: 4540 | BR34: 4540 | BS34: 4540 | BT34: 4540 | BU34: 4540 | BV34: =BV29+BV30+BV31+BV32-BV33 -> 4540 | BW34: 4540 | BX34: 4540 | BY34: 4540 | BZ34: 4540 | CA34: 4540 | CB34: 4540 | CC34: 4540 | CD34: 4540 | CE34: 4540 | CF34: 4540 | CG34: 4540 | CH34: 4540 | CI34: 4540 | CJ34: 4540 | CK34: 4540 | CL34: 4540 | CM34: 4540 | CN34: 4540 | CO34: 4540 | CP34: 4540 | CQ34: 4540 | CR34: 4540 | CS34: 4540 | CT34: 4540 | CU34: 4540 | CV34: 4540 | CW34: 4540 | CX34: 4540 | CY34: 4540 | CZ34: 4540 | DA34: 4540 | DB34: 4540 | DC34: 4540 | DD34: 4540 | DE34: 4540 | DF34: 4540 | DG34: 4540 | DH34: 4540 | DI34: 4540 | DJ34: 4540 | DK34: 4540 | DL34: 4540 | DM34: 4540 | DN34: 4540 | DO34: 4540 | DP34: 4540 | DQ34: 4540 | DR34: 4540 | DS34: 4540 | DT34: 4540 | DU34: =DU29+DU30+DU31+DU32-DU33 -> 4540 | DV34: 4540 | DW34: 4540 | DX34: 4540 | DY34: 4540 | DZ34: 4540 | EA34: 4540 | EB34: 4540 | EC34: 4540 | ED34: 4540 | EE34: 4540 | EF34: 4540 | EG34: 4540 | EH34: 4540 | EI34: 4540 | EJ34: 4540 | EK34: 4540 | EL34: 4540 | EM34: 4540 | EN34: 4540 | EO34: 4540 | EP34: 4540 | EQ34: 4540 | ER34: 4540 | ES34: 4540 | ET34: 4540 | EU34: 4540 | EV34: 4540 | EW34: 4540 | EX34: 4540 | EY34: 4540 | EZ34: 4540 | FA34: 4540 | FB34: 4540 | FC34: 4540 | FD34: 4540 | FE34: 4540 | FF34: 4540 | FG34: 4540 | FH34: 4540 | FI34: 4540 | FJ34: 4540 | FK34: 4540 | FL34: 4540 | FM34: 4540 | FN34: 4540 | FO34: 4540 | FP34: 4540 | FQ34: 4540 | FR34: 4540 | FS34: 4540 | FT34: 4540 | FU34: 4540 | FV34: 4540 | FW34: 4540 | FX34: 4540 | FY34: 4540 | FZ34: 4540 | GA34: 4540 | GB34: 4540 | GC34: 4540 | GD34: 4540 | GE34: 4540 | GF34: 4540 | GG34: =GG29+GG30+GG31+GG32-GG33 -> 4540 | GH34: 4540 | GI34: 4540 | GJ34: 4540 | GK34: 4540 | GL34: 4540 | GM34: 4540 | GN34: 4540 | GO34: 4540 | GP34: 4540 | GQ34: 4540 | GR34: 4540 | GS34: 4540 | GT34: 4540 | GU34: 4540 | GV34: 4540 | GW34: 4540 | GX34: 4540 | GY34: 4540 | GZ34: 4540 | HA34: 4540 | HB34: 4540 | HC34: 4540 | HD34: 4540 | HE34: 4540 | HF34: 4540 | HG34: 4540 | HH34: 4540 | HI34: 4540 | HJ34: 4540 | HK34: 4540 | HL34: 4540 | HM34: 4540 | HN34: 4540 | HO34: 4540 | HP34: 4540 | HQ34: 4540 | HR34: 4540 | HS34: 4540 | HT34: 4540 | HU34: 4540 | HV34: 4540 | HW34: 4540 | HX34: 4540 | HY34: 4540 | HZ34: 4540 | IA34: 4540 | IB34: 4540 | IC34: 4540 | ID34: 4540 | IE34: 4540 | IF34: 4540 | IG34: 4540 | IH34: 4540 | II34: 4540 | IJ34: 4540 | IK34: 4540 | IL34: 4540 | IM34: 4540 | IN34: 4540 | IO34: 4540 | IP34: 4540 | IQ34: 4540 | IR34: 4540 | IS34: =IS29+IS30+IS31+IS32-IS33 -> 4540 | IT34: 4540 | IU34: 4540 | IV34: 4540 | IW34: 4540 | IX34: 4540 | IY34: 4540 | IZ34: 4540 | JA34: 4540 | JB34: 4540 | JC34: 4540 | JD34: 4540 | JE34: 4540 | JF34: 4540 | JG34: 4540 | JH34: 4540 | JI34: 4540 | JJ34: 4540 | JK34: 4540 | JL34: 4540 | JM34: 4540 | JN34: 4540 | JO34: 4540 | JP34: 4540 | JQ34: 4540 | JR34: 4540 | JS34: 4540 | JT34: 4540 | JU34: 4540 | JV34: 4540 | JW34: 4540 | JX34: 4540 | JY34: 4540 | JZ34: 4540 | KA34: 4540 | KB34: 4540 | KC34: 4540 | KD34: 4540 | KE34: 4540 | KF34: 4540 | KG34: 4540 | KH34: 4540 | KI34: 4540 | KJ34: 4540 | KK34: 4540 | KL34: 4540 | KM34: 4540 | KN34: 4540 | KO34: 4540 | KP34: 4540 | KQ34: 4540 | KR34: 4540 | KS34: 4540
D36: Cows Inseminated Flag | E36: ='Animal Balances'!F6 -> 3 | F36: ='Animal Balances'!F7 -> 6 | I36: =OR(I4=$E$36,I4=$F$36) -> FALSE | J36: FALSE | K36: FALSE | L36: FALSE | M36: FALSE | N36: FALSE | O36: TRUE | P36: FALSE | Q36: FALSE | R36: TRUE | S36: FALSE | T36: FALSE | U36: FALSE | V36: FALSE | W36: FALSE | X36: FALSE | Y36: FALSE | Z36: FALSE | AA36: TRUE | AB36: FALSE | AC36: FALSE | AD36: TRUE | AE36: FALSE | AF36: FALSE | AG36: FALSE | AH36: FALSE | AI36: FALSE | AJ36: FALSE | AK36: FALSE | AL36: FALSE | AM36: TRUE | AN36: FALSE | AO36: =OR(AO4=$E$36,AO4=$F$36) -> FALSE | AP36: TRUE | AQ36: FALSE | AR36: FALSE | AS36: FALSE | AT36: FALSE | AU36: FALSE | AV36: FALSE | AW36: FALSE | AX36: FALSE | AY36: TRUE | AZ36: FALSE | BA36: FALSE | BB36: TRUE | BC36: FALSE | BD36: FALSE | BE36: FALSE | BF36: FALSE | BG36: FALSE | BH36: FALSE | BI36: FALSE | BJ36: FALSE | BK36: TRUE | BL36: FALSE | BM36: FALSE | BN36: TRUE | BO36: FALSE | BP36: FALSE | BQ36: FALSE | BR36: FALSE | BS36: FALSE | BT36: FALSE | BU36: =OR(BU4=$E$36,BU4=$F$36) -> FALSE | BV36: FALSE | BW36: TRUE | BX36: FALSE | BY36: FALSE | BZ36: TRUE | CA36: FALSE | CB36: FALSE | CC36: FALSE | CD36: FALSE | CE36: FALSE | CF36: FALSE | CG36: FALSE | CH36: FALSE | CI36: TRUE | CJ36: FALSE | CK36: FALSE | CL36: TRUE | CM36: FALSE | CN36: FALSE | CO36: FALSE | CP36: FALSE | CQ36: FALSE | CR36: FALSE | CS36: FALSE | CT36: FALSE | CU36: TRUE | CV36: FALSE | CW36: FALSE | CX36: TRUE | CY36: FALSE | CZ36: FALSE | DA36: =OR(DA4=$E$36,DA4=$F$36) -> FALSE | DB36: FALSE | DC36: FALSE | DD36: FALSE | DE36: FALSE | DF36: FALSE | DG36: TRUE | DH36: FALSE | DI36: FALSE | DJ36: TRUE | DK36: FALSE | DL36: FALSE | DM36: FALSE | DN36: FALSE | DO36: FALSE | DP36: FALSE | DQ36: FALSE | DR36: FALSE | DS36: TRUE | DT36: FALSE | DU36: =OR(DU4=$E$36,DU4=$F$36) -> FALSE | DV36: TRUE | DW36: FALSE | DX36: FALSE | DY36: FALSE | DZ36: FALSE | EA36: FALSE | EB36: FALSE | EC36: FALSE | ED36: FALSE | EE36: TRUE | EF36: FALSE | EG36: FALSE | EH36: TRUE | EI36: FALSE | EJ36: FALSE | EK36: FALSE | EL36: FALSE | EM36: FALSE | EN36: FALSE | EO36: FALSE | EP36: FALSE | EQ36: TRUE | ER36: FALSE | ES36: FALSE | ET36: TRUE | EU36: FALSE | EV36: FALSE | EW36: FALSE | EX36: FALSE | EY36: FALSE | EZ36: FALSE | FA36: FALSE | FB36: FALSE | FC36: TRUE | FD36: FALSE | FE36: FALSE | FF36: TRUE | FG36: FALSE | FH36: FALSE | FI36: FALSE | FJ36: FALSE | FK36: FALSE | FL36: FALSE | FM36: FALSE | FN36: FALSE | FO36: TRUE | FP36: FALSE | FQ36: FALSE | FR36: TRUE | FS36: FALSE | FT36: FALSE | FU36: FALSE | FV36: FALSE | FW36: FALSE | FX36: FALSE | FY36: FALSE | FZ36: FALSE | GA36: TRUE | GB36: FALSE | GC36: FALSE | GD36: TRUE | GE36: FALSE | GF36: FALSE | GG36: =OR(GG4=$E$36,GG4=$F$36) -> FALSE | GH36: FALSE | GI36: FALSE | GJ36: FALSE | GK36: FALSE | GL36: FALSE | GM36: TRUE | GN36: FALSE | GO36: FALSE | GP36: TRUE | GQ36: FALSE | GR36: FALSE | GS36: FALSE | GT36: FALSE | GU36: FALSE | GV36: FALSE | GW36: FALSE | GX36: FALSE | GY36: TRUE | GZ36: FALSE | HA36: FALSE | HB36: TRUE | HC36: FALSE | HD36: FALSE | HE36: FALSE | HF36: FALSE | HG36: FALSE | HH36: FALSE | HI36: FALSE | HJ36: FALSE | HK36: TRUE | HL36: FALSE | HM36: FALSE | HN36: TRUE | HO36: FALSE | HP36: FALSE | HQ36: FALSE | HR36: FALSE | HS36: FALSE | HT36: FALSE | HU36: FALSE | HV36: FALSE | HW36: TRUE | HX36: FALSE | HY36: FALSE | HZ36: TRUE | IA36: FALSE | IB36: FALSE | IC36: FALSE | ID36: FALSE | IE36: FALSE | IF36: FALSE | IG36: FALSE | IH36: FALSE | II36: TRUE | IJ36: FALSE | IK36: FALSE | IL36: TRUE | IM36: FALSE | IN36: FALSE | IO36: FALSE | IP36: FALSE | IQ36: FALSE | IR36: FALSE | IS36: =OR(IS4=$E$36,IS4=$F$36) -> FALSE | IT36: FALSE | IU36: TRUE | IV36: FALSE | IW36: FALSE | IX36: TRUE | IY36: FALSE | IZ36: FALSE | JA36: FALSE | JB36: FALSE | JC36: FALSE | JD36: FALSE | JE36: FALSE | JF36: FALSE | JG36: TRUE | JH36: FALSE | JI36: FALSE | JJ36: TRUE | JK36: FALSE | JL36: FALSE | JM36: FALSE | JN36: FALSE | JO36: FALSE | JP36: FALSE | JQ36: FALSE | JR36: FALSE | JS36: TRUE | JT36: FALSE | JU36: FALSE | JV36: TRUE | JW36: FALSE | JX36: FALSE | JY36: FALSE | JZ36: FALSE | KA36: FALSE | KB36: FALSE | KC36: FALSE | KD36: FALSE | KE36: TRUE | KF36: FALSE | KG36: FALSE | KH36: TRUE | KI36: FALSE | KJ36: FALSE | KK36: FALSE | KL36: FALSE | KM36: FALSE | KN36: FALSE | KO36: FALSE | KP36: FALSE | KQ36: TRUE | KR36: FALSE | KS36: FALSE
D37: Cows Made Pregnant | F37: ='Animal Balances'!F13 -> 0.5 | I37: =I29*I36*$F$37 -> 0 | J37: =J29*J36*$F$37 -> 0 | K37: 0 | L37: 0 | M37: 0 | N37: 0 | O37: 2270 | P37: 0 | Q37: 0 | R37: 2270 | S37: 0 | T37: 0 | U37: 0 | V37: 0 | W37: 0 | X37: 0 | Y37: 0 | Z37: 0 | AA37: 2270 | AB37: 0 | AC37: 0 | AD37: 2270 | AE37: 0 | AF37: 0 | AG37: 0 | AH37: 0 | AI37: 0 | AJ37: 0 | AK37: 0 | AL37: 0 | AM37: 2270 | AN37: 0 | AO37: 0 | AP37: 2270 | AQ37: 0 | AR37: 0 | AS37: 0 | AT37: 0 | AU37: 0 | AV37: 0 | AW37: 0 | AX37: 0 | AY37: 2270 | AZ37: 0 | BA37: 0 | BB37: 2270 | BC37: 0 | BD37: 0 | BE37: 0 | BF37: 0 | BG37: 0 | BH37: 0 | BI37: 0 | BJ37: 0 | BK37: 2270 | BL37: 0 | BM37: 0 | BN37: 2270 | BO37: 0 | BP37: 0 | BQ37: 0 | BR37: 0 | BS37: 0 | BT37: 0 | BU37: 0 | BV37: =BV29*BV36*$F$37 -> 0 | BW37: 2270 | BX37: 0 | BY37: 0 | BZ37: 2270 | CA37: 0 | CB37: 0 | CC37: 0 | CD37: 0 | CE37: 0 | CF37: 0 | CG37: 0 | CH37: 0 | CI37: 2270 | CJ37: 0 | CK37: 0 | CL37: 2270 | CM37: 0 | CN37: 0 | CO37: 0 | CP37: 0 | CQ37: 0 | CR37: 0 | CS37: 0 | CT37: 0 | CU37: 2270 | CV37: 0 | CW37: 0 | CX37: 2270 | CY37: 0 | CZ37: 0 | DA37: 0 | DB37: 0 | DC37: 0 | DD37: 0 | DE37: 0 | DF37: 0 | DG37: 2270 | DH37: 0 | DI37: 0 | DJ37: 2270 | DK37: 0 | DL37: 0 | DM37: 0 | DN37: 0 | DO37: 0 | DP37: 0 | DQ37: 0 | DR37: 0 | DS37: 2270 | DT37: 0 | DU37: =DU29*DU36*$F$37 -> 0 | DV37: 2270 | DW37: 0 | DX37: 0 | DY37: 0 | DZ37: 0 | EA37: 0 | EB37: 0 | EC37: 0 | ED37: 0 | EE37: 2270 | EF37: 0 | EG37: 0 | EH37: 2270 | EI37: 0 | EJ37: 0 | EK37: 0 | EL37: 0 | EM37: 0 | EN37: 0 | EO37: 0 | EP37: 0 | EQ37: 2270 | ER37: 0 | ES37: 0 | ET37: 2270 | EU37: 0 | EV37: 0 | EW37: 0 | EX37: 0 | EY37: 0 | EZ37: 0 | FA37: 0 | FB37: 0 | FC37: 2270 | FD37: 0 | FE37: 0 | FF37: 2270 | FG37: 0 | FH37: 0 | FI37: 0 | FJ37: 0 | FK37: 0 | FL37: 0 | FM37: 0 | FN37: 0 | FO37: 2270 | FP37: 0 | FQ37: 0 | FR37: 2270 | FS37: 0 | FT37: 0 | FU37: 0 | FV37: 0 | FW37: 0 | FX37: 0 | FY37: 0 | FZ37: 0 | GA37: 2270 | GB37: 0 | GC37: 0 | GD37: 2270 | GE37: 0 | GF37: 0 | GG37: =GG29*GG36*$F$37 -> 0 | GH37: 0 | GI37: 0 | GJ37: 0 | GK37: 0 | GL37: 0 | GM37: 2270 | GN37: 0 | GO37: 0 | GP37: 2270 | GQ37: 0 | GR37: 0 | GS37: 0 | GT37: 0 | GU37: 0 | GV37: 0 | GW37: 0 | GX37: 0 | GY37: 2270 | GZ37: 0 | HA37: 0 | HB37: 2270 | HC37: 0 | HD37: 0 | HE37: 0 | HF37: 0 | HG37: 0 | HH37: 0 | HI37: 0 | HJ37: 0 | HK37: 2270 | HL37: 0 | HM37: 0 | HN37: 2270 | HO37: 0 | HP37: 0 | HQ37: 0 | HR37: 0 | HS37: 0 | HT37: 0 | HU37: 0 | HV37: 0 | HW37: 2270 | HX37: 0 | HY37: 0 | HZ37: 2270 | IA37: 0 | IB37: 0 | IC37: 0 | ID37: 0 | IE37: 0 | IF37: 0 | IG37: 0 | IH37: 0 | II37: 2270 | IJ37: 0 | IK37: 0 | IL37: 2270 | IM37: 0 | IN37: 0 | IO37: 0 | IP37: 0 | IQ37: 0 | IR37: 0 | IS37: =IS29*IS36*$F$37 -> 0 | IT37: 0 | IU37: 2270 | IV37: 0 | IW37: 0 | IX37: 2270 | IY37: 0 | IZ37: 0 | JA37: 0 | JB37: 0 | JC37: 0 | JD37: 0 | JE37: 0 | JF37: 0 | JG37: 2270 | JH37: 0 | JI37: 0 | JJ37: 2270 | JK37: 0 | JL37: 0 | JM37: 0 | JN37: 0 | JO37: 0 | JP37: 0 | JQ37: 0 | JR37: 0 | JS37: 2270 | JT37: 0 | JU37: 0 | JV37: 2270 | JW37: 0 | JX37: 0 | JY37: 0 | JZ37: 0 | KA37: 0 | KB37: 0 | KC37: 0 | KD37: 0 | KE37: 2270 | KF37: 0 | KG37: 0 | KH37: 2270 | KI37: 0 | KJ37: 0 | KK37: 0 | KL37: 0 | KM37: 0 | KN37: 0 | KO37: 0 | KP37: 0 | KQ37: 2270 | KR37: 0 | KS37: 0
C39: Terminal Breeds Balance
D40: Opening Balance | I40: ='Animal Balances'!H46 -> 0 | J40: ='Animal Balances'!I46 -> 0 | K40: ='Animal Balances'!J46 -> 0 | L40: ='Animal Balances'!K46 -> 0 | M40: ='Animal Balances'!L46 -> 0 | N40: ='Animal Balances'!M46 -> 0 | O40: ='Animal Balances'!N46 -> 0 | P40: ='Animal Balances'!O46 -> 0 | Q40: ='Animal Balances'!P46 -> 0 | R40: ='Animal Balances'!Q46 -> 0 | S40: ='Animal Balances'!R46 -> 0 | T40: ='Animal Balances'!S46 -> 0 | U40: ='Animal Balances'!T46 -> 0 | V40: ='Animal Balances'!U46 -> 0 | W40: ='Animal Balances'!V46 -> 0 | X40: ='Animal Balances'!W46 -> 0 | Y40: ='Animal Balances'!X46 -> 2270 | Z40: ='Animal Balances'!Y46 -> 2270 | AA40: ='Animal Balances'!Z46 -> 2270 | AB40: ='Animal Balances'!AA46 -> 4540 | AC40: ='Animal Balances'!AB46 -> 4540 | AD40: ='Animal Balances'!AC46 -> 4540 | AE40: ='Animal Balances'!AD46 -> 4540 | AF40: ='Animal Balances'!AE46 -> 4540 | AG40: ='Animal Balances'!AF46 -> 4540 | AH40: ='Animal Balances'!AG46 -> 4540 | AI40: ='Animal Balances'!AH46 -> 4540 | AJ40: ='Animal Balances'!AI46 -> 4540 | AK40: ='Animal Balances'!AJ46 -> 6810 | AL40: ='Animal Balances'!AK46 -> 6810 | AM40: ='Animal Balances'!AL46 -> 6810 | AN40: ='Animal Balances'!AM46 -> 9080 | AO40: ='Animal Balances'!AN46 -> 9080 | AP40: ='Animal Balances'!AO46 -> 9080 | AQ40: ='Animal Balances'!AP46 -> 9080 | AR40: ='Animal Balances'!AQ46 -> 9080 | AS40: ='Animal Balances'!AR46 -> 9080 | AT40: ='Animal Balances'!AS46 -> 9080 | AU40: ='Animal Balances'!AT46 -> 9080 | AV40: ='Animal Balances'!AU46 -> 6810 | AW40: ='Animal Balances'!AV46 -> 9080 | AX40: ='Animal Balances'!AW46 -> 9080 | AY40: ='Animal Balances'!AX46 -> 6810 | AZ40: ='Animal Balances'!AY46 -> 9080 | BA40: ='Animal Balances'!AZ46 -> 9080 | BB40: ='Animal Balances'!BA46 -> 9080 | BC40: ='Animal Balances'!BB46 -> 9080 | BD40: ='Animal Balances'!BC46 -> 9080 | BE40: ='Animal Balances'!BD46 -> 9080 | BF40: ='Animal Balances'!BE46 -> 9080 | BG40: ='Animal Balances'!BF46 -> 9080 | BH40: ='Animal Balances'!BG46 -> 6810 | BI40: ='Animal Balances'!BH46 -> 9080 | BJ40: ='Animal Balances'!BI46 -> 9080 | BK40: ='Animal Balances'!BJ46 -> 6810 | BL40: ='Animal Balances'!BK46 -> 9080 | BM40: ='Animal Balances'!BL46 -> 9080 | BN40: ='Animal Balances'!BM46 -> 9080 | BO40: ='Animal Balances'!BN46 -> 9080 | BP40: ='Animal Balances'!BO46 -> 9080 | BQ40: ='Animal Balances'!BP46 -> 9080 | BR40: ='Animal Balances'!BQ46 -> 9080 | BS40: ='Animal Balances'!BR46 -> 9080 | BT40: ='Animal Balances'!BS46 -> 6810 | BU40: ='Animal Balances'!BT46 -> 9080 | BV40: ='Animal Balances'!BU46 -> 9080 | BW40: ='Animal Balances'!BV46 -> 6810 | BX40: ='Animal Balances'!BW46 -> 9080 | BY40: ='Animal Balances'!BX46 -> 9080 | BZ40: ='Animal Balances'!BY46 -> 9080 | CA40: ='Animal Balances'!BZ46 -> 9080 | CB40: ='Animal Balances'!CA46 -> 9080 | CC40: ='Animal Balances'!CB46 -> 9080 | CD40: ='Animal Balances'!CC46 -> 9080 | CE40: ='Animal Balances'!CD46 -> 9080 | CF40: ='Animal Balances'!CE46 -> 6810 | CG40: ='Animal Balances'!CF46 -> 9080 | CH40: ='Animal Balances'!CG46 -> 9080 | CI40: ='Animal Balances'!CH46 -> 6810 | CJ40: ='Animal Balances'!CI46 -> 9080 | CK40: ='Animal Balances'!CJ46 -> 9080 | CL40: ='Animal Balances'!CK46 -> 9080 | CM40: ='Animal Balances'!CL46 -> 9080 | CN40: ='Animal Balances'!CM46 -> 9080 | CO40: ='Animal Balances'!CN46 -> 9080 | CP40: ='Animal Balances'!CO46 -> 9080 | CQ40: ='Animal Balances'!CP46 -> 9080 | CR40: ='Animal Balances'!CQ46 -> 6810 | CS40: ='Animal Balances'!CR46 -> 9080 | CT40: ='Animal Balances'!CS46 -> 9080 | CU40: ='Animal Balances'!CT46 -> 6810 | CV40: ='Animal Balances'!CU46 -> 9080 | CW40: ='Animal Balances'!CV46 -> 9080 | CX40: ='Animal Balances'!CW46 -> 9080 | CY40: ='Animal Balances'!CX46 -> 9080 | CZ40: ='Animal Balances'!CY46 -> 9080 | DA40: ='Animal Balances'!CZ46 -> 9080 | DB40: ='Animal Balances'!DA46 -> 9080 | DC40: ='Animal Balances'!DB46 -> 9080 | DD40: ='Animal Balances'!DC46 -> 6810 | DE40: ='Animal Balances'!DD46 -> 9080 | DF40: ='Animal Balances'!DE46 -> 9080 | DG40: ='Animal Balances'!DF46 -> 6810 | DH40: ='Animal Balances'!DG46 -> 9080 | DI40: ='Animal Balances'!DH46 -> 9080 | DJ40: ='Animal Balances'!DI46 -> 9080 | DK40: ='Animal Balances'!DJ46 -> 9080 | DL40: ='Animal Balances'!DK46 -> 9080 | DM40: ='Animal Balances'!DL46 -> 9080 | DN40: ='Animal Balances'!DM46 -> 9080 | DO40: ='Animal Balances'!DN46 -> 9080 | DP40: ='Animal Balances'!DO46 -> 6810 | DQ40: ='Animal Balances'!DP46 -> 9080 | DR40: ='Animal Balances'!DQ46 -> 9080 | DS40: ='Animal Balances'!DR46 -> 6810 | DT40: ='Animal Balances'!DS46 -> 9080 | DU40: ='Animal Balances'!DT46 -> 9080 | DV40: ='Animal Balances'!DU46 -> 9080 | DW40: ='Animal Balances'!DV46 -> 9080 | DX40: ='Animal Balances'!DW46 -> 9080 | DY40: ='Animal Balances'!DX46 -> 9080 | DZ40: ='Animal Balances'!DY46 -> 9080 | EA40: ='Animal Balances'!DZ46 -> 9080 | EB40: ='Animal Balances'!EA46 -> 6810 | EC40: ='Animal Balances'!EB46 -> 9080 | ED40: ='Animal Balances'!EC46 -> 9080 | EE40: ='Animal Balances'!ED46 -> 6810 | EF40: ='Animal Balances'!EE46 -> 9080 | EG40: ='Animal Balances'!EF46 -> 9080 | EH40: ='Animal Balances'!EG46 -> 9080 | EI40: ='Animal Balances'!EH46 -> 9080 | EJ40: ='Animal Balances'!EI46 -> 9080 | EK40: ='Animal Balances'!EJ46 -> 9080 | EL40: ='Animal Balances'!EK46 -> 9080 | EM40: ='Animal Balances'!EL46 -> 9080 | EN40: ='Animal Balances'!EM46 -> 6810 | EO40: ='Animal Balances'!EN46 -> 9080 | EP40: ='Animal Balances'!EO46 -> 9080 | EQ40: ='Animal Balances'!EP46 -> 6810 | ER40: ='Animal Balances'!EQ46 -> 9080 | ES40: ='Animal Balances'!ER46 -> 9080 | ET40: ='Animal Balances'!ES46 -> 9080 | EU40: ='Animal Balances'!ET46 -> 9080 | EV40: ='Animal Balances'!EU46 -> 9080 | EW40: ='Animal Balances'!EV46 -> 9080 | EX40: ='Animal Balances'!EW46 -> 9080 | EY40: ='Animal Balances'!EX46 -> 9080 | EZ40: ='Animal Balances'!EY46 -> 6810 | FA40: ='Animal Balances'!EZ46 -> 9080 | FB40: ='Animal Balances'!FA46 -> 9080 | FC40: ='Animal Balances'!FB46 -> 6810 | FD40: ='Animal Balances'!FC46 -> 9080 | FE40: ='Animal Balances'!FD46 -> 9080 | FF40: ='Animal Balances'!FE46 -> 9080 | FG40: ='Animal Balances'!FF46 -> 9080 | FH40: ='Animal Balances'!FG46 -> 9080 | FI40: ='Animal Balances'!FH46 -> 9080 | FJ40: ='Animal Balances'!FI46 -> 9080 | FK40: ='Animal Balances'!FJ46 -> 9080 | FL40: ='Animal Balances'!FK46 -> 6810 | FM40: ='Animal Balances'!FL46 -> 9080 | FN40: ='Animal Balances'!FM46 -> 9080 | FO40: ='Animal Balances'!FN46 -> 6810 | FP40: ='Animal Balances'!FO46 -> 9080 | FQ40: ='Animal Balances'!FP46 -> 9080 | FR40: ='Animal Balances'!FQ46 -> 9080 | FS40: ='Animal Balances'!FR46 -> 9080 | FT40: ='Animal Balances'!FS46 -> 9080 | FU40: ='Animal Balances'!FT46 -> 9080 | FV40: ='Animal Balances'!FU46 -> 9080 | FW40: ='Animal Balances'!FV46 -> 9080 | FX40: ='Animal Balances'!FW46 -> 6810 | FY40: ='Animal Balances'!FX46 -> 9080 | FZ40: ='Animal Balances'!FY46 -> 9080 | GA40: ='Animal Balances'!FZ46 -> 6810 | GB40: ='Animal Balances'!GA46 -> 9080 | GC40: ='Animal Balances'!GB46 -> 9080 | GD40: ='Animal Balances'!GC46 -> 9080 | GE40: ='Animal Balances'!GD46 -> 9080 | GF40: ='Animal Balances'!GE46 -> 9080 | GG40: ='Animal Balances'!GF46 -> 9080 | GH40: ='Animal Balances'!GG46 -> 9080 | GI40: ='Animal Balances'!GH46 -> 9080 | GJ40: ='Animal Balances'!GI46 -> 6810 | GK40: ='Animal Balances'!GJ46 -> 9080 | GL40: ='Animal Balances'!GK46 -> 9080 | GM40: ='Animal Balances'!GL46 -> 6810 | GN40: ='Animal Balances'!GM46 -> 9080 | GO40: ='Animal Balances'!GN46 -> 9080 | GP40: ='Animal Balances'!GO46 -> 9080 | GQ40: ='Animal Balances'!GP46 -> 9080 | GR40: ='Animal Balances'!GQ46 -> 9080 | GS40: ='Animal Balances'!GR46 -> 9080 | GT40: =GS46 -> 9080 | GU40: 9080 | GV40: 6810 | GW40: 9080 | GX40: 9080 | GY40: 6810 | GZ40: 9080 | HA40: 9080 | HB40: 9080 | HC40: 9080 | HD40: 9080 | HE40: 9080 | HF40: 9080 | HG40: 9080 | HH40: 6810 | HI40: 9080 | HJ40: 9080 | HK40: 6810 | HL40: 9080 | HM40: =HL46 -> 9080 | HN40: 9080 | HO40: 9080 | HP40: 9080 | HQ40: 9080 | HR40: 9080 | HS40: 9080 | HT40: 6810 | HU40: 9080 | HV40: 9080 | HW40: 6810 | HX40: 9080 | HY40: 9080 | HZ40: 9080 | IA40: 9080 | IB40: 9080 | IC40: 9080 | ID40: 9080 | IE40: 9080 | IF40: 6810 | IG40: 9080 | IH40: 9080 | II40: 6810 | IJ40: 9080 | IK40: 9080 | IL40: 9080 | IM40: 9080 | IN40: 9080 | IO40: 9080 | IP40: 9080 | IQ40: 9080 | IR40: 6810 | IS40: =IR46 -> 9080 | IT40: 9080 | IU40: 6810 | IV40: 9080 | IW40: 9080 | IX40: 9080 | IY40: 9080 | IZ40: 9080 | JA40: 9080 | JB40: 9080 | JC40: 9080 | JD40: 6810 | JE40: 9080 | JF40: 9080 | JG40: 6810 | JH40: 9080 | JI40: 9080 | JJ40: 9080 | JK40: 9080 | JL40: 9080 | JM40: 9080 | JN40: 9080 | JO40: 9080 | JP40: 6810 | JQ40: 9080 | JR40: 9080 | JS40: 6810 | JT40: 9080 | JU40: 9080 | JV40: 9080 | JW40: 9080 | JX40: 9080 | JY40: =JX46 -> 9080 | JZ40: 9080 | KA40: 9080 | KB40: 6810 | KC40: 9080 | KD40: 9080 | KE40: 6810 | KF40: 9080 | KG40: 9080 | KH40: 9080 | KI40: 9080 | KJ40: 9080 | KK40: 9080 | KL40: 9080 | KM40: 9080 | KN40: 6810 | KO40: 9080 | KP40: 9080 | KQ40: 6810 | KR40: 9080 | KS40: 9080
D41: Add: Exisiting Steer | E41: ='Animal Balances'!F22 -> 1760 | F41: ='Animal Balances'!F23 -> 24 | I41: =IF(I2<=$F$41,$E$41/$F$41,0) -> 73.33333333 | J41: 73.33333333 | K41: 73.33333333 | L41: 73.33333333 | M41: 73.33333333 | N41: 73.33333333 | O41: 73.33333333 | P41: 73.33333333 | Q41: 73.33333333 | R41: 73.33333333 | S41: 73.33333333 | T41: 73.33333333 | U41: 73.33333333 | V41: 73.33333333 | W41: 73.33333333 | X41: 73.33333333 | Y41: 73.33333333 | Z41: 73.33333333 | AA41: 73.33333333 | AB41: 73.33333333 | AC41: 73.33333333 | AD41: 73.33333333 | AE41: 73.33333333 | AF41: 73.33333333 | AG41: 0 | AH41: 0 | AI41: 0 | AJ41: 0 | AK41: 0 | AL41: 0 | AM41: 0 | AN41: 0 | AO41: =IF(AO2<=$F$41,$E$41/$F$41,0) -> 0 | AP41: 0 | AQ41: 0 | AR41: 0 | AS41: 0 | AT41: 0 | AU41: 0 | AV41: 0 | AW41: 0 | AX41: 0 | AY41: 0 | AZ41: 0 | BA41: 0 | BB41: 0 | BC41: 0 | BD41: 0 | BE41: 0 | BF41: 0 | BG41: 0 | BH41: 0 | BI41: 0 | BJ41: 0 | BK41: 0 | BL41: 0 | BM41: 0 | BN41: 0 | BO41: 0 | BP41: 0 | BQ41: 0 | BR41: 0 | BS41: 0 | BT41: 0 | BU41: =IF(BU2<=$F$41,$E$41/$F$41,0) -> 0 | BV41: 0 | BW41: 0 | BX41: 0 | BY41: 0 | BZ41: 0 | CA41: 0 | CB41: 0 | CC41: 0 | CD41: 0 | CE41: 0 | CF41: 0 | CG41: 0 | CH41: 0 | CI41: 0 | CJ41: 0 | CK41: 0 | CL41: 0 | CM41: 0 | CN41: 0 | CO41: 0 | CP41: 0 | CQ41: 0 | CR41: 0 | CS41: 0 | CT41: 0 | CU41: 0 | CV41: 0 | CW41: 0 | CX41: 0 | CY41: 0 | CZ41: 0 | DA41: =IF(DA2<=$F$41,$E$41/$F$41,0) -> 0 | DB41: 0 | DC41: 0 | DD41: 0 | DE41: 0 | DF41: 0 | DG41: 0 | DH41: 0 | DI41: 0 | DJ41: 0 | DK41: 0 | DL41: 0 | DM41: 0 | DN41: 0 | DO41: 0 | DP41: 0 | DQ41: 0 | DR41: 0 | DS41: 0 | DT41: 0 | DU41: =IF(DU2<=$F$41,$E$41/$F$41,0) -> 0 | DV41: 0 | DW41: 0 | DX41: 0 | DY41: 0 | DZ41: 0 | EA41: 0 | EB41: 0 | EC41: 0 | ED41: 0 | EE41: 0 | EF41: 0 | EG41: 0 | EH41: 0 | EI41: 0 | EJ41: 0 | EK41: 0 | EL41: 0 | EM41: 0 | EN41: 0 | EO41: 0 | EP41: 0 | EQ41: 0 | ER41: 0 | ES41: 0 | ET41: 0 | EU41: 0 | EV41: 0 | EW41: 0 | EX41: 0 | EY41: 0 | EZ41: 0 | FA41: 0 | FB41: 0 | FC41: 0 | FD41: 0 | FE41: 0 | FF41: 0 | FG41: 0 | FH41: 0 | FI41: 0 | FJ41: 0 | FK41: 0 | FL41: 0 | FM41: 0 | FN41: 0 | FO41: 0 | FP41: 0 | FQ41: 0 | FR41: 0 | FS41: 0 | FT41: 0 | FU41: 0 | FV41: 0 | FW41: 0 | FX41: 0 | FY41: 0 | FZ41: 0 | GA41: 0 | GB41: 0 | GC41: 0 | GD41: 0 | GE41: 0 | GF41: 0 | GG41: =IF(GG2<=$F$41,$E$41/$F$41,0) -> 0 | GH41: 0 | GI41: 0 | GJ41: 0 | GK41: 0 | GL41: 0 | GM41: 0 | GN41: 0 | GO41: 0 | GP41: 0 | GQ41: 0 | GR41: 0 | GS41: 0 | GT41: 0 | GU41: 0 | GV41: 0 | GW41: 0 | GX41: 0 | GY41: 0 | GZ41: 0 | HA41: 0 | HB41: 0 | HC41: 0 | HD41: 0 | HE41: 0 | HF41: 0 | HG41: 0 | HH41: 0 | HI41: 0 | HJ41: 0 | HK41: 0 | HL41: 0 | HM41: 0 | HN41: 0 | HO41: 0 | HP41: 0 | HQ41: 0 | HR41: 0 | HS41: 0 | HT41: 0 | HU41: 0 | HV41: 0 | HW41: 0 | HX41: 0 | HY41: 0 | HZ41: 0 | IA41: 0 | IB41: 0 | IC41: 0 | ID41: 0 | IE41: 0 | IF41: 0 | IG41: 0 | IH41: 0 | II41: 0 | IJ41: 0 | IK41: 0 | IL41: 0 | IM41: 0 | IN41: 0 | IO41: 0 | IP41: 0 | IQ41: 0 | IR41: 0 | IS41: =IF(IS2<=$F$41,$E$41/$F$41,0) -> 0 | IT41: 0 | IU41: 0 | IV41: 0 | IW41: 0 | IX41: 0 | IY41: 0 | IZ41: 0 | JA41: 0 | JB41: 0 | JC41: 0 | JD41: 0 | JE41: 0 | JF41: 0 | JG41: 0 | JH41: 0 | JI41: 0 | JJ41: 0 | JK41: 0 | JL41: 0 | JM41: 0 | JN41: 0 | JO41: 0 | JP41: 0 | JQ41: 0 | JR41: 0 | JS41: 0 | JT41: 0 | JU41: 0 | JV41: 0 | JW41: 0 | JX41: 0 | JY41: 0 | JZ41: 0 | KA41: 0 | KB41: 0 | KC41: 0 | KD41: 0 | KE41: 0 | KF41: 0 | KG41: 0 | KH41: 0 | KI41: 0 | KJ41: 0 | KK41: 0 | KL41: 0 | KM41: 0 | KN41: 0 | KO41: 0 | KP41: 0 | KQ41: 0 | KR41: 0 | KS41: 0
D42: Add: New Acquisitions
D43: Add: Births | F43: ='Animal Balances'!F15 -> 9 | I43: =IF(I2>=$F$43,OFFSET(I37,0,-$F$43))*1 -> 0 | J43: 0 | K43: 0 | L43: 0 | M43: 0 | N43: 0 | O43: 0 | P43: 0 | Q43: 0 | R43: 0 | S43: 0 | T43: 0 | U43: 0 | V43: 0 | W43: 0 | X43: 2270 | Y43: 0 | Z43: 0 | AA43: 2270 | AB43: 0 | AC43: 0 | AD43: 0 | AE43: 0 | AF43: 0 | AG43: 0 | AH43: 0 | AI43: 0 | AJ43: 2270 | AK43: 0 | AL43: 0 | AM43: 2270 | AN43: 0 | AO43: =IF(AO2>=$F$43,OFFSET(AO37,0,-$F$43))*1 -> 0 | AP43: 0 | AQ43: 0 | AR43: 0 | AS43: 0 | AT43: 0 | AU43: 0 | AV43: 2270 | AW43: 0 | AX43: 0 | AY43: 2270 | AZ43: 0 | BA43: 0 | BB43: 0 | BC43: 0 | BD43: 0 | BE43: 0 | BF43: 0 | BG43: 0 | BH43: 2270 | BI43: 0 | BJ43: 0 | BK43: 2270 | BL43: 0 | BM43: 0 | BN43: 0 | BO43: 0 | BP43: 0 | BQ43: 0 | BR43: 0 | BS43: 0 | BT43: 2270 | BU43: =IF(BU2>=$F$43,OFFSET(BU37,0,-$F$43))*1 -> 0 | BV43: 0 | BW43: 2270 | BX43: 0 | BY43: 0 | BZ43: 0 | CA43: 0 | CB43: 0 | CC43: 0 | CD43: 0 | CE43: 0 | CF43: 2270 | CG43: 0 | CH43: 0 | CI43: 2270 | CJ43: 0 | CK43: 0 | CL43: 0 | CM43: 0 | CN43: 0 | CO43: 0 | CP43: 0 | CQ43: 0 | CR43: 2270 | CS43: 0 | CT43: 0 | CU43: 2270 | CV43: 0 | CW43: 0 | CX43: 0 | CY43: 0 | CZ43: 0 | DA43: =IF(DA2>=$F$43,OFFSET(DA37,0,-$F$43))*1 -> 0 | DB43: 0 | DC43: 0 | DD43: 2270 | DE43: 0 | DF43: 0 | DG43: 2270 | DH43: 0 | DI43: 0 | DJ43: 0 | DK43: 0 | DL43: 0 | DM43: 0 | DN43: 0 | DO43: 0 | DP43: 2270 | DQ43: 0 | DR43: 0 | DS43: 2270 | DT43: 0 | DU43: =IF(DU2>=$F$43,OFFSET(DU37,0,-$F$43))*1 -> 0 | DV43: 0 | DW43: 0 | DX43: 0 | DY43: 0 | DZ43: 0 | EA43: 0 | EB43: 2270 | EC43: 0 | ED43: 0 | EE43: 2270 | EF43: 0 | EG43: 0 | EH43: 0 | EI43: 0 | EJ43: 0 | EK43: 0 | EL43: 0 | EM43: 0 | EN43: 2270 | EO43: 0 | EP43: 0 | EQ43: 2270 | ER43: 0 | ES43: 0 | ET43: 0 | EU43: 0 | EV43: 0 | EW43: 0 | EX43: 0 | EY43: 0 | EZ43: 2270 | FA43: 0 | FB43: 0 | FC43: 2270 | FD43: 0 | FE43: 0 | FF43: 0 | FG43: 0 | FH43: 0 | FI43: 0 | FJ43: 0 | FK43: 0 | FL43: 2270 | FM43: 0 | FN43: 0 | FO43: 2270 | FP43: 0 | FQ43: 0 | FR43: 0 | FS43: 0 | FT43: 0 | FU43: 0 | FV43: 0 | FW43: 0 | FX43: 2270 | FY43: 0 | FZ43: 0 | GA43: 2270 | GB43: 0 | GC43: 0 | GD43: 0 | GE43: 0 | GF43: 0 | GG43: =IF(GG2>=$F$43,OFFSET(GG37,0,-$F$43))*1 -> 0 | GH43: 0 | GI43: 0 | GJ43: 2270 | GK43: 0 | GL43: 0 | GM43: 2270 | GN43: 0 | GO43: 0 | GP43: 0 | GQ43: 0 | GR43: 0 | GS43: 0 | GT43: 0 | GU43: 0 | GV43: 2270 | GW43: 0 | GX43: 0 | GY43: 2270 | GZ43: 0 | HA43: 0 | HB43: 0 | HC43: 0 | HD43: 0 | HE43: 0 | HF43: 0 | HG43: 0 | HH43: 2270 | HI43: 0 | HJ43: 0 | HK43: 2270 | HL43: 0 | HM43: 0 | HN43: 0 | HO43: 0 | HP43: 0 | HQ43: 0 | HR43: 0 | HS43: 0 | HT43: 2270 | HU43: 0 | HV43: 0 | HW43: 2270 | HX43: 0 | HY43: 0 | HZ43: 0 | IA43: 0 | IB43: 0 | IC43: 0 | ID43: 0 | IE43: 0 | IF43: 2270 | IG43: 0 | IH43: 0 | II43: 2270 | IJ43: 0 | IK43: 0 | IL43: 0 | IM43: 0 | IN43: 0 | IO43: 0 | IP43: 0 | IQ43: 0 | IR43: 2270 | IS43: =IF(IS2>=$F$43,OFFSET(IS37,0,-$F$43))*1 -> 0 | IT43: 0 | IU43: 2270 | IV43: 0 | IW43: 0 | IX43: 0 | IY43: 0 | IZ43: 0 | JA43: 0 | JB43: 0 | JC43: 0 | JD43: 2270 | JE43: 0 | JF43: 0 | JG43: 2270 | JH43: 0 | JI43: 0 | JJ43: 0 | JK43: 0 | JL43: 0 | JM43: 0 | JN43: 0 | JO43: 0 | JP43: 2270 | JQ43: 0 | JR43: 0 | JS43: 2270 | JT43: 0 | JU43: 0 | JV43: 0 | JW43: 0 | JX43: 0 | JY43: 0 | JZ43: 0 | KA43: 0 | KB43: 2270 | KC43: 0 | KD43: 0 | KE43: 2270 | KF43: 0 | KG43: 0 | KH43: 0 | KI43: 0 | KJ43: 0 | KK43: 0 | KL43: 0 | KM43: 0 | KN43: 2270 | KO43: 0 | KP43: 0 | KQ43: 2270 | KR43: 0 | KS43: 0
D44: Less: Slaughters | F44: ='Animal Balances'!F16 -> 23 | I44: =IF(I2>$F$44,OFFSET(I43,0,-$F$44))+I41 -> 73.33333333 | J44: 73.33333333 | K44: 73.33333333 | L44: 73.33333333 | M44: 73.33333333 | N44: 73.33333333 | O44: 73.33333333 | P44: 73.33333333 | Q44: 73.33333333 | R44: 73.33333333 | S44: 73.33333333 | T44: 73.33333333 | U44: 73.33333333 | V44: 73.33333333 | W44: 73.33333333 | X44: 73.33333333 | Y44: 73.33333333 | Z44: 73.33333333 | AA44: 73.33333333 | AB44: 73.33333333 | AC44: 73.33333333 | AD44: 73.33333333 | AE44: 73.33333333 | AF44: 73.33333333 | AG44: 0 | AH44: 0 | AI44: 0 | AJ44: 0 | AK44: 0 | AL44: 0 | AM44: 0 | AN44: 0 | AO44: =IF(AO2>$F$44,OFFSET(AO43,0,-$F$44))+AO41 -> 0 | AP44: 0 | AQ44: 0 | AR44: 0 | AS44: 0 | AT44: 0 | AU44: 2270 | AV44: 0 | AW44: 0 | AX44: 2270 | AY44: 0 | AZ44: 0 | BA44: 0 | BB44: 0 | BC44: 0 | BD44: 0 | BE44: 0 | BF44: 0 | BG44: 2270 | BH44: 0 | BI44: 0 | BJ44: 2270 | BK44: 0 | BL44: 0 | BM44: 0 | BN44: 0 | BO44: 0 | BP44: 0 | BQ44: 0 | BR44: 0 | BS44: 2270 | BT44: 0 | BU44: =IF(BU2>$F$44,OFFSET(BU43,0,-$F$44))+BU41 -> 0 | BV44: 2270 | BW44: 0 | BX44: 0 | BY44: 0 | BZ44: 0 | CA44: 0 | CB44: 0 | CC44: 0 | CD44: 0 | CE44: 2270 | CF44: 0 | CG44: 0 | CH44: 2270 | CI44: 0 | CJ44: 0 | CK44: 0 | CL44: 0 | CM44: 0 | CN44: 0 | CO44: 0 | CP44: 0 | CQ44: 2270 | CR44: 0 | CS44: 0 | CT44: 2270 | CU44: 0 | CV44: 0 | CW44: 0 | CX44: 0 | CY44: 0 | CZ44: 0 | DA44: =IF(DA2>$F$44,OFFSET(DA43,0,-$F$44))+DA41 -> 0 | DB44: 0 | DC44: 2270 | DD44: 0 | DE44: 0 | DF44: 2270 | DG44: 0 | DH44: 0 | DI44: 0 | DJ44: 0 | DK44: 0 | DL44: 0 | DM44: 0 | DN44: 0 | DO44: 2270 | DP44: 0 | DQ44: 0 | DR44: 2270 | DS44: 0 | DT44: 0 | DU44: =IF(DU2>$F$44,OFFSET(DU43,0,-$F$44))+DU41 -> 0 | DV44: 0 | DW44: 0 | DX44: 0 | DY44: 0 | DZ44: 0 | EA44: 2270 | EB44: 0 | EC44: 0 | ED44: 2270 | EE44: 0 | EF44: 0 | EG44: 0 | EH44: 0 | EI44: 0 | EJ44: 0 | EK44: 0 | EL44: 0 | EM44: 2270 | EN44: 0 | EO44: 0 | EP44: 2270 | EQ44: 0 | ER44: 0 | ES44: 0 | ET44: 0 | EU44: 0 | EV44: 0 | EW44: 0 | EX44: 0 | EY44: 2270 | EZ44: 0 | FA44: 0 | FB44: 2270 | FC44: 0 | FD44: 0 | FE44: 0 | FF44: 0 | FG44: 0 | FH44: 0 | FI44: 0 | FJ44: 0 | FK44: 2270 | FL44: 0 | FM44: 0 | FN44: 2270 | FO44: 0 | FP44: 0 | FQ44: 0 | FR44: 0 | FS44: 0 | FT44: 0 | FU44: 0 | FV44: 0 | FW44: 2270 | FX44: 0 | FY44: 0 | FZ44: 2270 | GA44: 0 | GB44: 0 | GC44: 0 | GD44: 0 | GE44: 0 | GF44: 0 | GG44: =IF(GG2>$F$44,OFFSET(GG43,0,-$F$44))+GG41 -> 0 | GH44: 0 | GI44: 2270 | GJ44: 0 | GK44: 0 | GL44: 2270 | GM44: 0 | GN44: 0 | GO44: 0 | GP44: 0 | GQ44: 0 | GR44: 0 | GS44: 0 | GT44: 0 | GU44: 2270 | GV44: 0 | GW44: 0 | GX44: 2270 | GY44: 0 | GZ44: 0 | HA44: 0 | HB44: 0 | HC44: 0 | HD44: 0 | HE44: 0 | HF44: 0 | HG44: 2270 | HH44: 0 | HI44: 0 | HJ44: 2270 | HK44: 0 | HL44: 0 | HM44: 0 | HN44: 0 | HO44: 0 | HP44: 0 | HQ44: 0 | HR44: 0 | HS44: 2270 | HT44: 0 | HU44: 0 | HV44: 2270 | HW44: 0 | HX44: 0 | HY44: 0 | HZ44: 0 | IA44: 0 | IB44: 0 | IC44: 0 | ID44: 0 | IE44: 2270 | IF44: 0 | IG44: 0 | IH44: 2270 | II44: 0 | IJ44: 0 | IK44: 0 | IL44: 0 | IM44: 0 | IN44: 0 | IO44: 0 | IP44: 0 | IQ44: 2270 | IR44: 0 | IS44: =IF(IS2>$F$44,OFFSET(IS43,0,-$F$44))+IS41 -> 0 | IT44: 2270 | IU44: 0 | IV44: 0 | IW44: 0 | IX44: 0 | IY44: 0 | IZ44: 0 | JA44: 0 | JB44: 0 | JC44: 2270 | JD44: 0 | JE44: 0 | JF44: 2270 | JG44: 0 | JH44: 0 | JI44: 0 | JJ44: 0 | JK44: 0 | JL44: 0 | JM44: 0 | JN44: 0 | JO44: 2270 | JP44: 0 | JQ44: 0 | JR44: 2270 | JS44: 0 | JT44: 0 | JU44: 0 | JV44: 0 | JW44: 0 | JX44: 0 | JY44: 0 | JZ44: 0 | KA44: 2270 | KB44: 0 | KC44: 0 | KD44: 2270 | KE44: 0 | KF44: 0 | KG44: 0 | KH44: 0 | KI44: 0 | KJ44: 0 | KK44: 0 | KL44: 0 | KM44: 2270 | KN44: 0 | KO44: 0 | KP44: 2270 | KQ44: 0 | KR44: 0 | KS44: 0
D45: Less: Transfer to Maternal
D46: Closing Balance | I46: =I40+I41+I42+I43-I44 -> 0 | J46: 0 | K46: 0 | L46: 0 | M46: 0 | N46: 0 | O46: 0 | P46: 0 | Q46: 0 | R46: 0 | S46: 0 | T46: 0 | U46: 0 | V46: 0 | W46: 0 | X46: 2270 | Y46: 2270 | Z46: 2270 | AA46: 4540 | AB46: 4540 | AC46: 4540 | AD46: 4540 | AE46: 4540 | AF46: 4540 | AG46: 4540 | AH46: 4540 | AI46: 4540 | AJ46: 6810 | AK46: 6810 | AL46: 6810 | AM46: 9080 | AN46: 9080 | AO46: =AO40+AO41+AO42+AO43-AO44 -> 9080 | AP46: 9080 | AQ46: 9080 | AR46: 9080 | AS46: 9080 | AT46: 9080 | AU46: 6810 | AV46: 9080 | AW46: 9080 | AX46: 6810 | AY46: 9080 | AZ46: 9080 | BA46: 9080 | BB46: 9080 | BC46: 9080 | BD46: 9080 | BE46: 9080 | BF46: 9080 | BG46: 6810 | BH46: 9080 | BI46: 9080 | BJ46: 6810 | BK46: 9080 | BL46: 9080 | BM46: 9080 | BN46: 9080 | BO46: 9080 | BP46: 9080 | BQ46: 9080 | BR46: 9080 | BS46: 6810 | BT46: 9080 | BU46: =BU40+BU41+BU42+BU43-BU44 -> 9080 | BV46: 6810 | BW46: 9080 | BX46: 9080 | BY46: 9080 | BZ46: 9080 | CA46: 9080 | CB46: 9080 | CC46: 9080 | CD46: 9080 | CE46: 6810 | CF46: 9080 | CG46: 9080 | CH46: 6810 | CI46: 9080 | CJ46: 9080 | CK46: 9080 | CL46: 9080 | CM46: 9080 | CN46: 9080 | CO46: 9080 | CP46: 9080 | CQ46: 6810 | CR46: 9080 | CS46: 9080 | CT46: 6810 | CU46: 9080 | CV46: 9080 | CW46: 9080 | CX46: 9080 | CY46: 9080 | CZ46: 9080 | DA46: =DA40+DA41+DA42+DA43-DA44 -> 9080 | DB46: 9080 | DC46: 6810 | DD46: 9080 | DE46: 9080 | DF46: 6810 | DG46: 9080 | DH46: 9080 | DI46: 9080 | DJ46: 9080 | DK46: 9080 | DL46: 9080 | DM46: 9080 | DN46: 9080 | DO46: 6810 | DP46: 9080 | DQ46: 9080 | DR46: 6810 | DS46: 9080 | DT46: 9080 | DU46: =DU40+DU41+DU42+DU43-DU44 -> 9080 | DV46: 9080 | DW46: 9080 | DX46: 9080 | DY46: 9080 | DZ46: 9080 | EA46: 6810 | EB46: 9080 | EC46: 9080 | ED46: 6810 | EE46: 9080 | EF46: 9080 | EG46: 9080 | EH46: 9080 | EI46: 9080 | EJ46: 9080 | EK46: 9080 | EL46: 9080 | EM46: 6810 | EN46: 9080 | EO46: 9080 | EP46: 6810 | EQ46: 9080 | ER46: 9080 | ES46: 9080 | ET46: 9080 | EU46: 9080 | EV46: 9080 | EW46: 9080 | EX46: 9080 | EY46: 6810 | EZ46: 9080 | FA46: 9080 | FB46: 6810 | FC46: 9080 | FD46: 9080 | FE46: 9080 | FF46: 9080 | FG46: 9080 | FH46: 9080 | FI46: 9080 | FJ46: 9080 | FK46: 6810 | FL46: 9080 | FM46: 9080 | FN46: 6810 | FO46: 9080 | FP46: 9080 | FQ46: 9080 | FR46: 9080 | FS46: 9080 | FT46: 9080 | FU46: 9080 | FV46: 9080 | FW46: 6810 | FX46: 9080 | FY46: 9080 | FZ46: 6810 | GA46: 9080 | GB46: 9080 | GC46: 9080 | GD46: 9080 | GE46: 9080 | GF46: 9080 | GG46: =GG40+GG41+GG42+GG43-GG44 -> 9080 | GH46: 9080 | GI46: 6810 | GJ46: 9080 | GK46: 9080 | GL46: 6810 | GM46: 9080 | GN46: 9080 | GO46: 9080 | GP46: 9080 | GQ46: 9080 | GR46: 9080 | GS46: 9080 | GT46: 9080 | GU46: 6810 | GV46: 9080 | GW46: 9080 | GX46: 6810 | GY46: 9080 | GZ46: 9080 | HA46: 9080 | HB46: 9080 | HC46: 9080 | HD46: 9080 | HE46: 9080 | HF46: 9080 | HG46: 6810 | HH46: 9080 | HI46: 9080 | HJ46: 6810 | HK46: 9080 | HL46: 9080 | HM46: 9080 | HN46: 9080 | HO46: 9080 | HP46: 9080 | HQ46: 9080 | HR46: 9080 | HS46: 6810 | HT46: 9080 | HU46: 9080 | HV46: 6810 | HW46: 9080 | HX46: 9080 | HY46: 9080 | HZ46: 9080 | IA46: 9080 | IB46: 9080 | IC46: 9080 | ID46: 9080 | IE46: 6810 | IF46: 9080 | IG46: 9080 | IH46: 6810 | II46: 9080 | IJ46: 9080 | IK46: 9080 | IL46: 9080 | IM46: 9080 | IN46: 9080 | IO46: 9080 | IP46: 9080 | IQ46: 6810 | IR46: 9080 | IS46: =IS40+IS41+IS42+IS43-IS44 -> 9080 | IT46: 6810 | IU46: 9080 | IV46: 9080 | IW46: 9080 | IX46: 9080 | IY46: 9080 | IZ46: 9080 | JA46: 9080 | JB46: 9080 | JC46: 6810 | JD46: 9080 | JE46: 9080 | JF46: 6810 | JG46: 9080 | JH46: 9080 | JI46: 9080 | JJ46: 9080 | JK46: 9080 | JL46: 9080 | JM46: 9080 | JN46: 9080 | JO46: 6810 | JP46: 9080 | JQ46: 9080 | JR46: 6810 | JS46: 9080 | JT46: 9080 | JU46: 9080 | JV46: 9080 | JW46: 9080 | JX46: 9080 | JY46: 9080 | JZ46: 9080 | KA46: 6810 | KB46: 9080 | KC46: 9080 | KD46: 6810 | KE46: 9080 | KF46: 9080 | KG46: 9080 | KH46: 9080 | KI46: 9080 | KJ46: 9080 | KK46: 9080 | KL46: 9080 | KM46: 6810 | KN46: 9080 | KO46: 9080 | KP46: 6810 | KQ46: 9080 | KR46: 9080 | KS46: 9080
C48: Slaughter Adjusted for Capacity
D49: Total Capacity of Abbitoir | E49: per Month | F49: =F18/12 -> 380 | I49: =$F$49 -> 380 | J49: =$F$49 -> 380 | K49: 380 | L49: 380 | M49: 380 | N49: 380 | O49: 380 | P49: 380 | Q49: 380 | R49: 380 | S49: 380 | T49: 380 | U49: 380 | V49: 380 | W49: 380 | X49: 380 | Y49: 380 | Z49: 380 | AA49: 380 | AB49: 380 | AC49: 380 | AD49: 380 | AE49: 380 | AF49: 380 | AG49: 380 | AH49: 380 | AI49: 380 | AJ49: 380 | AK49: 380 | AL49: 380 | AM49: 380 | AN49: 380 | AO49: 380 | AP49: 380 | AQ49: 380 | AR49: 380 | AS49: 380 | AT49: 380 | AU49: 380 | AV49: 380 | AW49: 380 | AX49: 380 | AY49: 380 | AZ49: 380 | BA49: 380 | BB49: 380 | BC49: 380 | BD49: 380 | BE49: 380 | BF49: 380 | BG49: 380 | BH49: 380 | BI49: 380 | BJ49: 380 | BK49: 380 | BL49: 380 | BM49: 380 | BN49: 380 | BO49: 380 | BP49: 380 | BQ49: 380 | BR49: 380 | BS49: 380 | BT49: 380 | BU49: 380 | BV49: =$F$49 -> 380 | BW49: 380 | BX49: 380 | BY49: 380 | BZ49: 380 | CA49: 380 | CB49: 380 | CC49: 380 | CD49: 380 | CE49: 380 | CF49: 380 | CG49: 380 | CH49: 380 | CI49: 380 | CJ49: 380 | CK49: 380 | CL49: 380 | CM49: 380 | CN49: 380 | CO49: 380 | CP49: 380 | CQ49: 380 | CR49: 380 | CS49: 380 | CT49: 380 | CU49: 380 | CV49: 380 | CW49: 380 | CX49: 380 | CY49: 380 | CZ49: 380 | DA49: 380 | DB49: 380 | DC49: 380 | DD49: 380 | DE49: 380 | DF49: 380 | DG49: 380 | DH49: 380 | DI49: 380 | DJ49: 380 | DK49: 380 | DL49: 380 | DM49: 380 | DN49: 380 | DO49: 380 | DP49: 380 | DQ49: 380 | DR49: 380 | DS49: 380 | DT49: 380 | DU49: 380 | DV49: 380 | DW49: 380 | DX49: 380 | DY49: 380 | DZ49: 380 | EA49: 380 | EB49: 380 | EC49: 380 | ED49: 380 | EE49: 380 | EF49: 380 | EG49: 380 | EH49: =$F$49 -> 380 | EI49: 380 | EJ49: 380 | EK49: 380 | EL49: 380 | EM49: 380 | EN49: 380 | EO49: 380 | EP49: 380 | EQ49: 380 | ER49: 380 | ES49: 380 | ET49: 380 | EU49: 380 | EV49: 380 | EW49: 380 | EX49: 380 | EY49: 380 | EZ49: 380 | FA49: 380 | FB49: 380 | FC49: 380 | FD49: 380 | FE49: 380 | FF49: 380 | FG49: 380 | FH49: 380 | FI49: 380 | FJ49: 380 | FK49: 380 | FL49: 380 | FM49: 380 | FN49: 380 | FO49: 380 | FP49: 380 | FQ49: 380 | FR49: 380 | FS49: 380 | FT49: 380 | FU49: 380 | FV49: 380 | FW49: 380 | FX49: 380 | FY49: 380 | FZ49: 380 | GA49: 380 | GB49: 380 | GC49: 380 | GD49: 380 | GE49: 380 | GF49: 380 | GG49: 380 | GH49: 380 | GI49: 380 | GJ49: 380 | GK49: 380 | GL49: 380 | GM49: 380 | GN49: 380 | GO49: 380 | GP49: 380 | GQ49: 380 | GR49: 380 | GS49: 380 | GT49: =$F$49 -> 380 | GU49: 380 | GV49: 380 | GW49: 380 | GX49: 380 | GY49: 380 | GZ49: 380 | HA49: 380 | HB49: 380 | HC49: 380 | HD49: 380 | HE49: 380 | HF49: 380 | HG49: 380 | HH49: 380 | HI49: 380 | HJ49: 380 | HK49: 380 | HL49: 380 | HM49: 380 | HN49: 380 | HO49: 380 | HP49: 380 | HQ49: 380 | HR49: 380 | HS49: 380 | HT49: 380 | HU49: 380 | HV49: 380 | HW49: 380 | HX49: 380 | HY49: 380 | HZ49: 380 | IA49: 380 | IB49: 380 | IC49: 380 | ID49: 380 | IE49: 380 | IF49: 380 | IG49: 380 | IH49: 380 | II49: 380 | IJ49: 380 | IK49: 380 | IL49: 380 | IM49: 380 | IN49: 380 | IO49: 380 | IP49: 380 | IQ49: 380 | IR49: 380 | IS49: 380 | IT49: 380 | IU49: 380 | IV49: 380 | IW49: 380 | IX49: 380 | IY49: 380 | IZ49: 380 | JA49: 380 | JB49: 380 | JC49: 380 | JD49: 380 | JE49: 380 | JF49: =$F$49 -> 380 | JG49: 380 | JH49: 380 | JI49: 380 | JJ49: 380 | JK49: 380 | JL49: 380 | JM49: 380 | JN49: 380 | JO49: 380 | JP49: 380 | JQ49: 380 | JR49: 380 | JS49: 380 | JT49: 380 | JU49: 380 | JV49: 380 | JW49: 380 | JX49: 380 | JY49: 380 | JZ49: 380 | KA49: 380 | KB49: 380 | KC49: 380 | KD49: 380 | KE49: 380 | KF49: 380 | KG49: 380 | KH49: 380 | KI49: 380 | KJ49: 380 | KK49: 380 | KL49: 380 | KM49: 380 | KN49: 380 | KO49: 380 | KP49: 380 | KQ49: 380 | KR49: 380 | KS49: 380
D50: Number Slaughtered (Min) | I50: =MIN(I49,I44) -> 73.33333333 | J50: 73.33333333 | K50: 73.33333333 | L50: 73.33333333 | M50: 73.33333333 | N50: 73.33333333 | O50: 73.33333333 | P50: 73.33333333 | Q50: 73.33333333 | R50: 73.33333333 | S50: 73.33333333 | T50: 73.33333333 | U50: 73.33333333 | V50: 73.33333333 | W50: 73.33333333 | X50: 73.33333333 | Y50: 73.33333333 | Z50: 73.33333333 | AA50: 73.33333333 | AB50: 73.33333333 | AC50: 73.33333333 | AD50: 73.33333333 | AE50: 73.33333333 | AF50: 73.33333333 | AG50: 0 | AH50: 0 | AI50: 0 | AJ50: 0 | AK50: 0 | AL50: 0 | AM50: 0 | AN50: 0 | AO50: =MIN(AO49,AO44) -> 0 | AP50: 0 | AQ50: 0 | AR50: 0 | AS50: 0 | AT50: 0 | AU50: 380 | AV50: 0 | AW50: 0 | AX50: 380 | AY50: 0 | AZ50: 0 | BA50: 0 | BB50: 0 | BC50: 0 | BD50: 0 | BE50: 0 | BF50: 0 | BG50: 380 | BH50: 0 | BI50: 0 | BJ50: 380 | BK50: 0 | BL50: 0 | BM50: 0 | BN50: 0 | BO50: 0 | BP50: 0 | BQ50: 0 | BR50: 0 | BS50: 380 | BT50: 0 | BU50: =MIN(BU49,BU44) -> 0 | BV50: 380 | BW50: 0 | BX50: 0 | BY50: 0 | BZ50: 0 | CA50: 0 | CB50: 0 | CC50: 0 | CD50: 0 | CE50: 380 | CF50: 0 | CG50: 0 | CH50: 380 | CI50: 0 | CJ50: 0 | CK50: 0 | CL50: 0 | CM50: 0 | CN50: 0 | CO50: 0 | CP50: 0 | CQ50: 380 | CR50: 0 | CS50: 0 | CT50: 380 | CU50: 0 | CV50: 0 | CW50: 0 | CX50: 0 | CY50: 0 | CZ50: 0 | DA50: =MIN(DA49,DA44) -> 0 | DB50: 0 | DC50: 380 | DD50: 0 | DE50: 0 | DF50: 380 | DG50: 0 | DH50: 0 | DI50: 0 | DJ50: 0 | DK50: 0 | DL50: 0 | DM50: 0 | DN50: 0 | DO50: 380 | DP50: 0 | DQ50: 0 | DR50: 380 | DS50: 0 | DT50: 0 | DU50: =MIN(DU49,DU44) -> 0 | DV50: 0 | DW50: 0 | DX50: 0 | DY50: 0 | DZ50: 0 | EA50: 380 | EB50: 0 | EC50: 0 | ED50: 380 | EE50: 0 | EF50: 0 | EG50: 0 | EH50: 0 | EI50: 0 | EJ50: 0 | EK50: 0 | EL50: 0 | EM50: 380 | EN50: 0 | EO50: 0 | EP50: 380 | EQ50: 0 | ER50: 0 | ES50: 0 | ET50: 0 | EU50: 0 | EV50: 0 | EW50: 0 | EX50: 0 | EY50: 380 | EZ50: 0 | FA50: =MIN(FA49,FA44) -> 0 | FB50: 380 | FC50: 0 | FD50: 0 | FE50: 0 | FF50: 0 | FG50: 0 | FH50: 0 | FI50: 0 | FJ50: 0 | FK50: 380 | FL50: 0 | FM50: 0 | FN50: 380 | FO50: 0 | FP50: 0 | FQ50: 0 | FR50: 0 | FS50: 0 | FT50: 0 | FU50: 0 | FV50: 0 | FW50: 380 | FX50: 0 | FY50: 0 | FZ50: 380 | GA50: 0 | GB50: 0 | GC50: 0 | GD50: 0 | GE50: 0 | GF50: 0 | GG50: =MIN(GG49,GG44) -> 0 | GH50: 0 | GI50: 380 | GJ50: 0 | GK50: 0 | GL50: 380 | GM50: 0 | GN50: 0 | GO50: 0 | GP50: 0 | GQ50: 0 | GR50: 0 | GS50: 0 | GT50: 0 | GU50: 380 | GV50: 0 | GW50: 0 | GX50: 380 | GY50: 0 | GZ50: 0 | HA50: 0 | HB50: 0 | HC50: 0 | HD50: 0 | HE50: 0 | HF50: 0 | HG50: 380 | HH50: 0 | HI50: 0 | HJ50: 380 | HK50: 0 | HL50: 0 | HM50: =MIN(HM49,HM44) -> 0 | HN50: 0 | HO50: 0 | HP50: 0 | HQ50: 0 | HR50: 0 | HS50: 380 | HT50: 0 | HU50: 0 | HV50: 380 | HW50: 0 | HX50: 0 | HY50: 0 | HZ50: 0 | IA50: 0 | IB50: 0 | IC50: 0 | ID50: 0 | IE50: 380 | IF50: 0 | IG50: 0 | IH50: 380 | II50: 0 | IJ50: 0 | IK50: 0 | IL50: 0 | IM50: 0 | IN50: 0 | IO50: 0 | IP50: 0 | IQ50: 380 | IR50: 0 | IS50: =MIN(IS49,IS44) -> 0 | IT50: 380 | IU50: 0 | IV50: 0 | IW50: 0 | IX50: 0 | IY50: 0 | IZ50: 0 | JA50: 0 | JB50: 0 | JC50: 380 | JD50: 0 | JE50: 0 | JF50: 380 | JG50: 0 | JH50: 0 | JI50: 0 | JJ50: 0 | JK50: 0 | JL50: 0 | JM50: 0 | JN50: 0 | JO50: 380 | JP50: 0 | JQ50: 0 | JR50: 380 | JS50: 0 | JT50: 0 | JU50: 0 | JV50: 0 | JW50: 0 | JX50: 0 | JY50: =MIN(JY49,JY44) -> 0 | JZ50: 0 | KA50: 380 | KB50: 0 | KC50: 0 | KD50: 380 | KE50: 0 | KF50: 0 | KG50: 0 | KH50: 0 | KI50: 0 | KJ50: 0 | KK50: 0 | KL50: 0 | KM50: 380 | KN50: 0 | KO50: 0 | KP50: 380 | KQ50: 0 | KR50: 0 | KS50: 0
D51: Availabile Capacity for Deferred | I51: =I49-I50 -> 306.6666667 | J51: =J49-J50 -> 306.6666667 | K51: 306.6666667 | L51: 306.6666667 | M51: 306.6666667 | N51: 306.6666667 | O51: 306.6666667 | P51: 306.6666667 | Q51: 306.6666667 | R51: 306.6666667 | S51: 306.6666667 | T51: 306.6666667 | U51: 306.6666667 | V51: 306.6666667 | W51: 306.6666667 | X51: 306.6666667 | Y51: 306.6666667 | Z51: 306.6666667 | AA51: 306.6666667 | AB51: 306.6666667 | AC51: 306.6666667 | AD51: 306.6666667 | AE51: 306.6666667 | AF51: 306.6666667 | AG51: 380 | AH51: 380 | AI51: 380 | AJ51: 380 | AK51: 380 | AL51: 380 | AM51: 380 | AN51: 380 | AO51: 380 | AP51: 380 | AQ51: 380 | AR51: 380 | AS51: 380 | AT51: 380 | AU51: 0 | AV51: 380 | AW51: 380 | AX51: 0 | AY51: 380 | AZ51: 380 | BA51: 380 | BB51: 380 | BC51: 380 | BD51: 380 | BE51: 380 | BF51: 380 | BG51: 0 | BH51: 380 | BI51: 380 | BJ51: 0 | BK51: 380 | BL51: 380 | BM51: 380 | BN51: 380 | BO51: 380 | BP51: 380 | BQ51: 380 | BR51: 380 | BS51: 0 | BT51: 380 | BU51: 380 | BV51: =BV49-BV50 -> 0 | BW51: 380 | BX51: 380 | BY51: 380 | BZ51: 380 | CA51: 380 | CB51: 380 | CC51: 380 | CD51: 380 | CE51: 0 | CF51: 380 | CG51: 380 | CH51: 0 | CI51: 380 | CJ51: 380 | CK51: 380 | CL51: 380 | CM51: 380 | CN51: 380 | CO51: 380 | CP51: 380 | CQ51: 0 | CR51: 380 | CS51: 380 | CT51: 0 | CU51: 380 | CV51: 380 | CW51: 380 | CX51: 380 | CY51: 380 | CZ51: 380 | DA51: 380 | DB51: 380 | DC51: 0 | DD51: 380 | DE51: 380 | DF51: 0 | DG51: 380 | DH51: 380 | DI51: 380 | DJ51: 380 | DK51: 380 | DL51: 380 | DM51: 380 | DN51: 380 | DO51: 0 | DP51: 380 | DQ51: 380 | DR51: 0 | DS51: 380 | DT51: 380 | DU51: =DU49-DU50 -> 380 | DV51: 380 | DW51: 380 | DX51: 380 | DY51: 380 | DZ51: 380 | EA51: 0 | EB51: 380 | EC51: 380 | ED51: 0 | EE51: 380 | EF51: 380 | EG51: 380 | EH51: 380 | EI51: 380 | EJ51: 380 | EK51: 380 | EL51: 380 | EM51: 0 | EN51: 380 | EO51: 380 | EP51: 0 | EQ51: 380 | ER51: 380 | ES51: 380 | ET51: 380 | EU51: 380 | EV51: 380 | EW51: 380 | EX51: 380 | EY51: 0 | EZ51: 380 | FA51: 380 | FB51: 0 | FC51: 380 | FD51: 380 | FE51: 380 | FF51: 380 | FG51: 380 | FH51: 380 | FI51: 380 | FJ51: 380 | FK51: 0 | FL51: 380 | FM51: 380 | FN51: 0 | FO51: 380 | FP51: 380 | FQ51: 380 | FR51: 380 | FS51: 380 | FT51: 380 | FU51: 380 | FV51: 380 | FW51: 0 | FX51: 380 | FY51: 380 | FZ51: 0 | GA51: 380 | GB51: 380 | GC51: 380 | GD51: 380 | GE51: 380 | GF51: 380 | GG51: =GG49-GG50 -> 380 | GH51: 380 | GI51: 0 | GJ51: 380 | GK51: 380 | GL51: 0 | GM51: 380 | GN51: 380 | GO51: 380 | GP51: 380 | GQ51: 380 | GR51: 380 | GS51: 380 | GT51: 380 | GU51: 0 | GV51: 380 | GW51: 380 | GX51: 0 | GY51: 380 | GZ51: 380 | HA51: 380 | HB51: 380 | HC51: 380 | HD51: 380 | HE51: 380 | HF51: 380 | HG51: 0 | HH51: 380 | HI51: 380 | HJ51: 0 | HK51: 380 | HL51: 380 | HM51: 380 | HN51: 380 | HO51: 380 | HP51: 380 | HQ51: 380 | HR51: 380 | HS51: 0 | HT51: 380 | HU51: 380 | HV51: 0 | HW51: 380 | HX51: 380 | HY51: 380 | HZ51: 380 | IA51: 380 | IB51: 380 | IC51: 380 | ID51: 380 | IE51: 0 | IF51: 380 | IG51: 380 | IH51: 0 | II51: 380 | IJ51: 380 | IK51: 380 | IL51: 380 | IM51: 380 | IN51: 380 | IO51: 380 | IP51: 380 | IQ51: 0 | IR51: 380 | IS51: =IS49-IS50 -> 380 | IT51: 0 | IU51: 380 | IV51: 380 | IW51: 380 | IX51: 380 | IY51: 380 | IZ51: 380 | JA51: 380 | JB51: 380 | JC51: 0 | JD51: 380 | JE51: 380 | JF51: 0 | JG51: 380 | JH51: 380 | JI51: 380 | JJ51: 380 | JK51: 380 | JL51: 380 | JM51: 380 | JN51: 380 | JO51: 0 | JP51: 380 | JQ51: 380 | JR51: 0 | JS51: 380 | JT51: 380 | JU51: 380 | JV51: 380 | JW51: 380 | JX51: 380 | JY51: 380 | JZ51: 380 | KA51: 0 | KB51: 380 | KC51: 380 | KD51: 0 | KE51: 380 | KF51: 380 | KG51: 380 | KH51: 380 | KI51: 380 | KJ51: 380 | KK51: 380 | KL51: 380 | KM51: 0 | KN51: 380 | KO51: 380 | KP51: 0 | KQ51: 380 | KR51: 380 | KS51: 380
D52: Number Deferred | I52: =MAX(I44-I49,0) -> 0 | J52: 0 | K52: 0 | L52: 0 | M52: 0 | N52: 0 | O52: 0 | P52: 0 | Q52: 0 | R52: 0 | S52: 0 | T52: 0 | U52: 0 | V52: 0 | W52: 0 | X52: 0 | Y52: 0 | Z52: 0 | AA52: 0 | AB52: 0 | AC52: 0 | AD52: 0 | AE52: 0 | AF52: 0 | AG52: 0 | AH52: 0 | AI52: 0 | AJ52: 0 | AK52: 0 | AL52: 0 | AM52: 0 | AN52: 0 | AO52: =MAX(AO44-AO49,0) -> 0 | AP52: 0 | AQ52: 0 | AR52: 0 | AS52: 0 | AT52: 0 | AU52: 1890 | AV52: 0 | AW52: 0 | AX52: 1890 | AY52: 0 | AZ52: 0 | BA52: 0 | BB52: 0 | BC52: 0 | BD52: 0 | BE52: 0 | BF52: 0 | BG52: 1890 | BH52: 0 | BI52: 0 | BJ52: 1890 | BK52: 0 | BL52: 0 | BM52: 0 | BN52: 0 | BO52: 0 | BP52: 0 | BQ52: 0 | BR52: 0 | BS52: 1890 | BT52: 0 | BU52: =MAX(BU44-BU49,0) -> 0 | BV52: 1890 | BW52: 0 | BX52: 0 | BY52: 0 | BZ52: 0 | CA52: 0 | CB52: 0 | CC52: 0 | CD52: 0 | CE52: 1890 | CF52: 0 | CG52: 0 | CH52: 1890 | CI52: 0 | CJ52: 0 | CK52: 0 | CL52: 0 | CM52: 0 | CN52: 0 | CO52: 0 | CP52: 0 | CQ52: 1890 | CR52: 0 | CS52: 0 | CT52: 1890 | CU52: 0 | CV52: 0 | CW52: 0 | CX52: 0 | CY52: 0 | CZ52: 0 | DA52: =MAX(DA44-DA49,0) -> 0 | DB52: 0 | DC52: 1890 | DD52: 0 | DE52: 0 | DF52: 1890 | DG52: 0 | DH52: 0 | DI52: 0 | DJ52: 0 | DK52: 0 | DL52: 0 | DM52: 0 | DN52: 0 | DO52: 1890 | DP52: 0 | DQ52: 0 | DR52: 1890 | DS52: 0 | DT52: 0 | DU52: =MAX(DU44-DU49,0) -> 0 | DV52: 0 | DW52: 0 | DX52: 0 | DY52: 0 | DZ52: 0 | EA52: 1890 | EB52: 0 | EC52: 0 | ED52: 1890 | EE52: 0 | EF52: 0 | EG52: 0 | EH52: 0 | EI52: 0 | EJ52: 0 | EK52: 0 | EL52: 0 | EM52: 1890 | EN52: 0 | EO52: 0 | EP52: 1890 | EQ52: 0 | ER52: 0 | ES52: 0 | ET52: 0 | EU52: 0 | EV52: 0 | EW52: 0 | EX52: 0 | EY52: 1890 | EZ52: 0 | FA52: 0 | FB52: 1890 | FC52: 0 | FD52: 0 | FE52: 0 | FF52: 0 | FG52: 0 | FH52: 0 | FI52: 0 | FJ52: 0 | FK52: 1890 | FL52: 0 | FM52: 0 | FN52: 1890 | FO52: 0 | FP52: 0 | FQ52: 0 | FR52: 0 | FS52: 0 | FT52: 0 | FU52: 0 | FV52: 0 | FW52: 1890 | FX52: 0 | FY52: 0 | FZ52: 1890 | GA52: 0 | GB52: 0 | GC52: 0 | GD52: 0 | GE52: 0 | GF52: 0 | GG52: =MAX(GG44-GG49,0) -> 0 | GH52: 0 | GI52: 1890 | GJ52: 0 | GK52: 0 | GL52: 1890 | GM52: 0 | GN52: 0 | GO52: 0 | GP52: 0 | GQ52: 0 | GR52: 0 | GS52: 0 | GT52: 0 | GU52: 1890 | GV52: 0 | GW52: 0 | GX52: 1890 | GY52: 0 | GZ52: 0 | HA52: 0 | HB52: 0 | HC52: 0 | HD52: 0 | HE52: 0 | HF52: 0 | HG52: 1890 | HH52: 0 | HI52: 0 | HJ52: 1890 | HK52: 0 | HL52: 0 | HM52: 0 | HN52: 0 | HO52: 0 | HP52: 0 | HQ52: 0 | HR52: 0 | HS52: 1890 | HT52: 0 | HU52: 0 | HV52: 1890 | HW52: 0 | HX52: 0 | HY52: 0 | HZ52: 0 | IA52: 0 | IB52: 0 | IC52: 0 | ID52: 0 | IE52: 1890 | IF52: 0 | IG52: 0 | IH52: 1890 | II52: 0 | IJ52: 0 | IK52: 0 | IL52: 0 | IM52: 0 | IN52: 0 | IO52: 0 | IP52: 0 | IQ52: 1890 | IR52: 0 | IS52: =MAX(IS44-IS49,0) -> 0 | IT52: 1890 | IU52: 0 | IV52: 0 | IW52: 0 | IX52: 0 | IY52: 0 | IZ52: 0 | JA52: 0 | JB52: 0 | JC52: 1890 | JD52: 0 | JE52: 0 | JF52: 1890 | JG52: 0 | JH52: 0 | JI52: 0 | JJ52: 0 | JK52: 0 | JL52: 0 | JM52: 0 | JN52: 0 | JO52: 1890 | JP52: 0 | JQ52: 0 | JR52: 1890 | JS52: 0 | JT52: 0 | JU52: 0 | JV52: 0 | JW52: 0 | JX52: 0 | JY52: 0 | JZ52: 0 | KA52: 1890 | KB52: 0 | KC52: 0 | KD52: 1890 | KE52: 0 | KF52: 0 | KG52: 0 | KH52: 0 | KI52: 0 | KJ52: 0 | KK52: 0 | KL52: 0 | KM52: 1890 | KN52: 0 | KO52: 0 | KP52: 1890 | KQ52: 0 | KR52: 0 | KS52: 0
D53: Deferred Slaughtered | I53: =MIN(I51,I56) -> 0 | J53: =MIN(J51,J56) -> 0 | K53: 0 | L53: 0 | M53: 0 | N53: 0 | O53: 0 | P53: 0 | Q53: 0 | R53: 0 | S53: 0 | T53: 0 | U53: 0 | V53: 0 | W53: 0 | X53: 0 | Y53: 0 | Z53: 0 | AA53: 0 | AB53: 0 | AC53: 0 | AD53: 0 | AE53: 0 | AF53: 0 | AG53: 0 | AH53: 0 | AI53: 0 | AJ53: 0 | AK53: 0 | AL53: 0 | AM53: 0 | AN53: 0 | AO53: 0 | AP53: 0 | AQ53: 0 | AR53: 0 | AS53: 0 | AT53: 0 | AU53: 0 | AV53: 380 | AW53: 380 | AX53: 0 | AY53: 380 | AZ53: 380 | BA53: 380 | BB53: 380 | BC53: 380 | BD53: 380 | BE53: 380 | BF53: 360 | BG53: 0 | BH53: 380 | BI53: 380 | BJ53: 0 | BK53: 380 | BL53: 380 | BM53: 380 | BN53: 380 | BO53: 380 | BP53: 380 | BQ53: 380 | BR53: 360 | BS53: 0 | BT53: 380 | BU53: 380 | BV53: =MIN(BV51,BV56) -> 0 | BW53: 380 | BX53: 380 | BY53: 380 | BZ53: 380 | CA53: 380 | CB53: 380 | CC53: 380 | CD53: 360 | CE53: 0 | CF53: 380 | CG53: 380 | CH53: 0 | CI53: 380 | CJ53: 380 | CK53: 380 | CL53: 380 | CM53: 380 | CN53: 380 | CO53: 380 | CP53: 360 | CQ53: 0 | CR53: 380 | CS53: 380 | CT53: 0 | CU53: 380 | CV53: 380 | CW53: 380 | CX53: 380 | CY53: 380 | CZ53: 380 | DA53: 380 | DB53: 360 | DC53: 0 | DD53: 380 | DE53: 380 | DF53: 0 | DG53: 380 | DH53: 380 | DI53: 380 | DJ53: 380 | DK53: 380 | DL53: 380 | DM53: 380 | DN53: 360 | DO53: 0 | DP53: 380 | DQ53: 380 | DR53: 0 | DS53: 380 | DT53: 380 | DU53: =MIN(DU51,DU56) -> 380 | DV53: 380 | DW53: 380 | DX53: 380 | DY53: 380 | DZ53: 360 | EA53: 0 | EB53: 380 | EC53: 380 | ED53: 0 | EE53: 380 | EF53: 380 | EG53: 380 | EH53: 380 | EI53: 380 | EJ53: 380 | EK53: 380 | EL53: 360 | EM53: 0 | EN53: 380 | EO53: 380 | EP53: 0 | EQ53: 380 | ER53: 380 | ES53: 380 | ET53: 380 | EU53: 380 | EV53: 380 | EW53: 380 | EX53: 360 | EY53: 0 | EZ53: 380 | FA53: 380 | FB53: 0 | FC53: 380 | FD53: 380 | FE53: 380 | FF53: 380 | FG53: 380 | FH53: 380 | FI53: 380 | FJ53: 360 | FK53: 0 | FL53: 380 | FM53: 380 | FN53: 0 | FO53: 380 | FP53: 380 | FQ53: 380 | FR53: 380 | FS53: 380 | FT53: 380 | FU53: 380 | FV53: 360 | FW53: 0 | FX53: 380 | FY53: 380 | FZ53: 0 | GA53: 380 | GB53: 380 | GC53: 380 | GD53: 380 | GE53: 380 | GF53: 380 | GG53: =MIN(GG51,GG56) -> 380 | GH53: 360 | GI53: 0 | GJ53: 380 | GK53: 380 | GL53: 0 | GM53: 380 | GN53: 380 | GO53: 380 | GP53: 380 | GQ53: 380 | GR53: 380 | GS53: 380 | GT53: 360 | GU53: 0 | GV53: 380 | GW53: 380 | GX53: 0 | GY53: 380 | GZ53: 380 | HA53: 380 | HB53: 380 | HC53: 380 | HD53: 380 | HE53: 380 | HF53: 360 | HG53: 0 | HH53: 380 | HI53: 380 | HJ53: 0 | HK53: 380 | HL53: 380 | HM53: 380 | HN53: 380 | HO53: 380 | HP53: 380 | HQ53: 380 | HR53: 360 | HS53: 0 | HT53: 380 | HU53: 380 | HV53: 0 | HW53: 380 | HX53: 380 | HY53: 380 | HZ53: 380 | IA53: 380 | IB53: 380 | IC53: 380 | ID53: 360 | IE53: 0 | IF53: 380 | IG53: 380 | IH53: 0 | II53: 380 | IJ53: 380 | IK53: 380 | IL53: 380 | IM53: 380 | IN53: 380 | IO53: 380 | IP53: 360 | IQ53: 0 | IR53: 380 | IS53: =MIN(IS51,IS56) -> 380 | IT53: 0 | IU53: 380 | IV53: 380 | IW53: 380 | IX53: 380 | IY53: 380 | IZ53: 380 | JA53: 380 | JB53: 360 | JC53: 0 | JD53: 380 | JE53: 380 | JF53: 0 | JG53: 380 | JH53: 380 | JI53: 380 | JJ53: 380 | JK53: 380 | JL53: 380 | JM53: 380 | JN53: 360 | JO53: 0 | JP53: 380 | JQ53: 380 | JR53: 0 | JS53: 380 | JT53: 380 | JU53: 380 | JV53: 380 | JW53: 380 | JX53: 380 | JY53: 380 | JZ53: 360 | KA53: 0 | KB53: 380 | KC53: 380 | KD53: 0 | KE53: 380 | KF53: 380 | KG53: 380 | KH53: 380 | KI53: 380 | KJ53: 380 | KK53: 380 | KL53: 360 | KM53: 0 | KN53: 380 | KO53: 380 | KP53: 0 | KQ53: 380 | KR53: 380 | KS53: 380
D55: Balance of Deferred
D56: Opening Balance | I56: ='Animal Balances'!H59 -> 0 | J56: ='Animal Balances'!I59 -> 0 | K56: ='Animal Balances'!J59 -> 0 | L56: ='Animal Balances'!K59 -> 0 | M56: ='Animal Balances'!L59 -> 0 | N56: ='Animal Balances'!M59 -> 0 | O56: ='Animal Balances'!N59 -> 0 | P56: ='Animal Balances'!O59 -> 0 | Q56: ='Animal Balances'!P59 -> 0 | R56: ='Animal Balances'!Q59 -> 0 | S56: ='Animal Balances'!R59 -> 0 | T56: ='Animal Balances'!S59 -> 0 | U56: ='Animal Balances'!T59 -> 0 | V56: ='Animal Balances'!U59 -> 0 | W56: ='Animal Balances'!V59 -> 0 | X56: ='Animal Balances'!W59 -> 0 | Y56: ='Animal Balances'!X59 -> 0 | Z56: ='Animal Balances'!Y59 -> 0 | AA56: ='Animal Balances'!Z59 -> 0 | AB56: ='Animal Balances'!AA59 -> 0 | AC56: ='Animal Balances'!AB59 -> 0 | AD56: ='Animal Balances'!AC59 -> 0 | AE56: ='Animal Balances'!AD59 -> 0 | AF56: ='Animal Balances'!AE59 -> 0 | AG56: ='Animal Balances'!AF59 -> 0 | AH56: ='Animal Balances'!AG59 -> 0 | AI56: ='Animal Balances'!AH59 -> 0 | AJ56: ='Animal Balances'!AI59 -> 0 | AK56: ='Animal Balances'!AJ59 -> 0 | AL56: ='Animal Balances'!AK59 -> 0 | AM56: ='Animal Balances'!AL59 -> 0 | AN56: ='Animal Balances'!AM59 -> 0 | AO56: ='Animal Balances'!AN59 -> 0 | AP56: ='Animal Balances'!AO59 -> 0 | AQ56: ='Animal Balances'!AP59 -> 0 | AR56: ='Animal Balances'!AQ59 -> 0 | AS56: ='Animal Balances'!AR59 -> 0 | AT56: ='Animal Balances'!AS59 -> 0 | AU56: ='Animal Balances'!AT59 -> 0 | AV56: ='Animal Balances'!AU59 -> 1890 | AW56: ='Animal Balances'!AV59 -> 1510 | AX56: ='Animal Balances'!AW59 -> 1130 | AY56: ='Animal Balances'!AX59 -> 3020 | AZ56: ='Animal Balances'!AY59 -> 2640 | BA56: ='Animal Balances'!AZ59 -> 2260 | BB56: ='Animal Balances'!BA59 -> 1880 | BC56: ='Animal Balances'!BB59 -> 1500 | BD56: ='Animal Balances'!BC59 -> 1120 | BE56: ='Animal Balances'!BD59 -> 740 | BF56: ='Animal Balances'!BE59 -> 360 | BG56: ='Animal Balances'!BF59 -> 0 | BH56: ='Animal Balances'!BG59 -> 1890 | BI56: ='Animal Balances'!BH59 -> 1510 | BJ56: ='Animal Balances'!BI59 -> 1130 | BK56: ='Animal Balances'!BJ59 -> 3020 | BL56: ='Animal Balances'!BK59 -> 2640 | BM56: ='Animal Balances'!BL59 -> 2260 | BN56: ='Animal Balances'!BM59 -> 1880 | BO56: ='Animal Balances'!BN59 -> 1500 | BP56: ='Animal Balances'!BO59 -> 1120 | BQ56: ='Animal Balances'!BP59 -> 740 | BR56: ='Animal Balances'!BQ59 -> 360 | BS56: ='Animal Balances'!BR59 -> 0 | BT56: ='Animal Balances'!BS59 -> 1890 | BU56: ='Animal Balances'!BT59 -> 1510 | BV56: ='Animal Balances'!BU59 -> 1130 | BW56: ='Animal Balances'!BV59 -> 3020 | BX56: ='Animal Balances'!BW59 -> 2640 | BY56: ='Animal Balances'!BX59 -> 2260 | BZ56: ='Animal Balances'!BY59 -> 1880 | CA56: ='Animal Balances'!BZ59 -> 1500 | CB56: ='Animal Balances'!CA59 -> 1120 | CC56: ='Animal Balances'!CB59 -> 740 | CD56: ='Animal Balances'!CC59 -> 360 | CE56: ='Animal Balances'!CD59 -> 0 | CF56: ='Animal Balances'!CE59 -> 1890 | CG56: ='Animal Balances'!CF59 -> 1510 | CH56: ='Animal Balances'!CG59 -> 1130 | CI56: ='Animal Balances'!CH59 -> 3020 | CJ56: ='Animal Balances'!CI59 -> 2640 | CK56: ='Animal Balances'!CJ59 -> 2260 | CL56: ='Animal Balances'!CK59 -> 1880 | CM56: ='Animal Balances'!CL59 -> 1500 | CN56: ='Animal Balances'!CM59 -> 1120 | CO56: ='Animal Balances'!CN59 -> 740 | CP56: ='Animal Balances'!CO59 -> 360 | CQ56: ='Animal Balances'!CP59 -> 0 | CR56: ='Animal Balances'!CQ59 -> 1890 | CS56: ='Animal Balances'!CR59 -> 1510 | CT56: ='Animal Balances'!CS59 -> 1130 | CU56: ='Animal Balances'!CT59 -> 3020 | CV56: ='Animal Balances'!CU59 -> 2640 | CW56: ='Animal Balances'!CV59 -> 2260 | CX56: ='Animal Balances'!CW59 -> 1880 | CY56: ='Animal Balances'!CX59 -> 1500 | CZ56: ='Animal Balances'!CY59 -> 1120 | DA56: ='Animal Balances'!CZ59 -> 740 | DB56: ='Animal Balances'!DA59 -> 360 | DC56: ='Animal Balances'!DB59 -> 0 | DD56: ='Animal Balances'!DC59 -> 1890 | DE56: ='Animal Balances'!DD59 -> 1510 | DF56: ='Animal Balances'!DE59 -> 1130 | DG56: ='Animal Balances'!DF59 -> 3020 | DH56: ='Animal Balances'!DG59 -> 2640 | DI56: ='Animal Balances'!DH59 -> 2260 | DJ56: ='Animal Balances'!DI59 -> 1880 | DK56: ='Animal Balances'!DJ59 -> 1500 | DL56: ='Animal Balances'!DK59 -> 1120 | DM56: ='Animal Balances'!DL59 -> 740 | DN56: ='Animal Balances'!DM59 -> 360 | DO56: ='Animal Balances'!DN59 -> 0 | DP56: ='Animal Balances'!DO59 -> 1890 | DQ56: ='Animal Balances'!DP59 -> 1510 | DR56: ='Animal Balances'!DQ59 -> 1130 | DS56: ='Animal Balances'!DR59 -> 3020 | DT56: ='Animal Balances'!DS59 -> 2640 | DU56: ='Animal Balances'!DT59 -> 2260 | DV56: ='Animal Balances'!DU59 -> 1880 | DW56: ='Animal Balances'!DV59 -> 1500 | DX56: ='Animal Balances'!DW59 -> 1120 | DY56: ='Animal Balances'!DX59 -> 740 | DZ56: ='Animal Balances'!DY59 -> 360 | EA56: ='Animal Balances'!DZ59 -> 0 | EB56: ='Animal Balances'!EA59 -> 1890 | EC56: ='Animal Balances'!EB59 -> 1510 | ED56: ='Animal Balances'!EC59 -> 1130 | EE56: ='Animal Balances'!ED59 -> 3020 | EF56: ='Animal Balances'!EE59 -> 2640 | EG56: ='Animal Balances'!EF59 -> 2260 | EH56: ='Animal Balances'!EG59 -> 1880 | EI56: ='Animal Balances'!EH59 -> 1500 | EJ56: ='Animal Balances'!EI59 -> 1120 | EK56: ='Animal Balances'!EJ59 -> 740 | EL56: ='Animal Balances'!EK59 -> 360 | EM56: ='Animal Balances'!EL59 -> 0 | EN56: ='Animal Balances'!EM59 -> 1890 | EO56: ='Animal Balances'!EN59 -> 1510 | EP56: ='Animal Balances'!EO59 -> 1130 | EQ56: ='Animal Balances'!EP59 -> 3020 | ER56: ='Animal Balances'!EQ59 -> 2640 | ES56: ='Animal Balances'!ER59 -> 2260 | ET56: ='Animal Balances'!ES59 -> 1880 | EU56: ='Animal Balances'!ET59 -> 1500 | EV56: ='Animal Balances'!EU59 -> 1120 | EW56: ='Animal Balances'!EV59 -> 740 | EX56: ='Animal Balances'!EW59 -> 360 | EY56: ='Animal Balances'!EX59 -> 0 | EZ56: ='Animal Balances'!EY59 -> 1890 | FA56: ='Animal Balances'!EZ59 -> 1510 | FB56: ='Animal Balances'!FA59 -> 1130 | FC56: ='Animal Balances'!FB59 -> 3020 | FD56: ='Animal Balances'!FC59 -> 2640 | FE56: ='Animal Balances'!FD59 -> 2260 | FF56: ='Animal Balances'!FE59 -> 1880 | FG56: ='Animal Balances'!FF59 -> 1500 | FH56: ='Animal Balances'!FG59 -> 1120 | FI56: ='Animal Balances'!FH59 -> 740 | FJ56: ='Animal Balances'!FI59 -> 360 | FK56: ='Animal Balances'!FJ59 -> 0 | FL56: ='Animal Balances'!FK59 -> 1890 | FM56: ='Animal Balances'!FL59 -> 1510 | FN56: ='Animal Balances'!FM59 -> 1130 | FO56: ='Animal Balances'!FN59 -> 3020 | FP56: ='Animal Balances'!FO59 -> 2640 | FQ56: ='Animal Balances'!FP59 -> 2260 | FR56: ='Animal Balances'!FQ59 -> 1880 | FS56: ='Animal Balances'!FR59 -> 1500 | FT56: ='Animal Balances'!FS59 -> 1120 | FU56: ='Animal Balances'!FT59 -> 740 | FV56: ='Animal Balances'!FU59 -> 360 | FW56: ='Animal Balances'!FV59 -> 0 | FX56: ='Animal Balances'!FW59 -> 1890 | FY56: ='Animal Balances'!FX59 -> 1510 | FZ56: ='Animal Balances'!FY59 -> 1130 | GA56: ='Animal Balances'!FZ59 -> 3020 | GB56: ='Animal Balances'!GA59 -> 2640 | GC56: ='Animal Balances'!GB59 -> 2260 | GD56: ='Animal Balances'!GC59 -> 1880 | GE56: ='Animal Balances'!GD59 -> 1500 | GF56: ='Animal Balances'!GE59 -> 1120 | GG56: ='Animal Balances'!GF59 -> 740 | GH56: ='Animal Balances'!GG59 -> 360 | GI56: ='Animal Balances'!GH59 -> 0 | GJ56: ='Animal Balances'!GI59 -> 1890 | GK56: ='Animal Balances'!GJ59 -> 1510 | GL56: ='Animal Balances'!GK59 -> 1130 | GM56: ='Animal Balances'!GL59 -> 3020 | GN56: ='Animal Balances'!GM59 -> 2640 | GO56: ='Animal Balances'!GN59 -> 2260 | GP56: ='Animal Balances'!GO59 -> 1880 | GQ56: ='Animal Balances'!GP59 -> 1500 | GR56: ='Animal Balances'!GQ59 -> 1120 | GS56: ='Animal Balances'!GR59 -> 740 | GT56: =GS59 -> 360 | GU56: 0 | GV56: 1890 | GW56: 1510 | GX56: 1130 | GY56: 3020 | GZ56: 2640 | HA56: 2260 | HB56: 1880 | HC56: 1500 | HD56: 1120 | HE56: 740 | HF56: 360 | HG56: 0 | HH56: 1890 | HI56: 1510 | HJ56: 1130 | HK56: 3020 | HL56: 2640 | HM56: =HL59 -> 2260 | HN56: 1880 | HO56: 1500 | HP56: 1120 | HQ56: 740 | HR56: 360 | HS56: 0 | HT56: 1890 | HU56: 1510 | HV56: 1130 | HW56: 3020 | HX56: 2640 | HY56: 2260 | HZ56: 1880 | IA56: 1500 | IB56: 1120 | IC56: 740 | ID56: 360 | IE56: 0 | IF56: 1890 | IG56: 1510 | IH56: 1130 | II56: 3020 | IJ56: 2640 | IK56: 2260 | IL56: 1880 | IM56: 1500 | IN56: 1120 | IO56: 740 | IP56: 360 | IQ56: 0 | IR56: 1890 | IS56: =IR59 -> 1510 | IT56: 1130 | IU56: 3020 | IV56: 2640 | IW56: 2260 | IX56: 1880 | IY56: 1500 | IZ56: 1120 | JA56: 740 | JB56: 360 | JC56: 0 | JD56: 1890 | JE56: 1510 | JF56: 1130 | JG56: 3020 | JH56: 2640 | JI56: 2260 | JJ56: 1880 | JK56: 1500 | JL56: 1120 | JM56: 740 | JN56: 360 | JO56: 0 | JP56: 1890 | JQ56: 1510 | JR56: 1130 | JS56: 3020 | JT56: 2640 | JU56: 2260 | JV56: 1880 | JW56: 1500 | JX56: 1120 | JY56: =JX59 -> 740 | JZ56: 360 | KA56: 0 | KB56: 1890 | KC56: 1510 | KD56: 1130 | KE56: 3020 | KF56: 2640 | KG56: 2260 | KH56: 1880 | KI56: 1500 | KJ56: 1120 | KK56: 740 | KL56: 360 | KM56: 0 | KN56: 1890 | KO56: 1510 | KP56: 1130 | KQ56: 3020 | KR56: 2640 | KS56: 2260
D57: Add: Deferred | I57: ='Animal Balances'!I52 -> 0 | J57: ='Animal Balances'!J52 -> 0 | K57: ='Animal Balances'!K52 -> 0 | L57: ='Animal Balances'!L52 -> 0 | M57: ='Animal Balances'!M52 -> 0 | N57: ='Animal Balances'!N52 -> 0 | O57: ='Animal Balances'!O52 -> 0 | P57: ='Animal Balances'!P52 -> 0 | Q57: ='Animal Balances'!Q52 -> 0 | R57: ='Animal Balances'!R52 -> 0 | S57: ='Animal Balances'!S52 -> 0 | T57: ='Animal Balances'!T52 -> 0 | U57: ='Animal Balances'!U52 -> 0 | V57: ='Animal Balances'!V52 -> 0 | W57: ='Animal Balances'!W52 -> 0 | X57: ='Animal Balances'!X52 -> 0 | Y57: ='Animal Balances'!Y52 -> 0 | Z57: ='Animal Balances'!Z52 -> 0 | AA57: ='Animal Balances'!AA52 -> 0 | AB57: ='Animal Balances'!AB52 -> 0 | AC57: ='Animal Balances'!AC52 -> 0 | AD57: ='Animal Balances'!AD52 -> 0 | AE57: ='Animal Balances'!AE52 -> 0 | AF57: ='Animal Balances'!AF52 -> 0 | AG57: ='Animal Balances'!AG52 -> 0 | AH57: ='Animal Balances'!AH52 -> 0 | AI57: ='Animal Balances'!AI52 -> 0 | AJ57: ='Animal Balances'!AJ52 -> 0 | AK57: ='Animal Balances'!AK52 -> 0 | AL57: ='Animal Balances'!AL52 -> 0 | AM57: ='Animal Balances'!AM52 -> 0 | AN57: ='Animal Balances'!AN52 -> 0 | AO57: ='Animal Balances'!AO52 -> 0 | AP57: ='Animal Balances'!AP52 -> 0 | AQ57: ='Animal Balances'!AQ52 -> 0 | AR57: ='Animal Balances'!AR52 -> 0 | AS57: ='Animal Balances'!AS52 -> 0 | AT57: ='Animal Balances'!AT52 -> 0 | AU57: ='Animal Balances'!AU52 -> 1890 | AV57: ='Animal Balances'!AV52 -> 0 | AW57: ='Animal Balances'!AW52 -> 0 | AX57: ='Animal Balances'!AX52 -> 1890 | AY57: ='Animal Balances'!AY52 -> 0 | AZ57: ='Animal Balances'!AZ52 -> 0 | BA57: ='Animal Balances'!BA52 -> 0 | BB57: ='Animal Balances'!BB52 -> 0 | BC57: ='Animal Balances'!BC52 -> 0 | BD57: ='Animal Balances'!BD52 -> 0 | BE57: ='Animal Balances'!BE52 -> 0 | BF57: ='Animal Balances'!BF52 -> 0 | BG57: ='Animal Balances'!BG52 -> 1890 | BH57: ='Animal Balances'!BH52 -> 0 | BI57: ='Animal Balances'!BI52 -> 0 | BJ57: ='Animal Balances'!BJ52 -> 1890 | BK57: ='Animal Balances'!BK52 -> 0 | BL57: ='Animal Balances'!BL52 -> 0 | BM57: ='Animal Balances'!BM52 -> 0 | BN57: ='Animal Balances'!BN52 -> 0 | BO57: ='Animal Balances'!BO52 -> 0 | BP57: ='Animal Balances'!BP52 -> 0 | BQ57: ='Animal Balances'!BQ52 -> 0 | BR57: ='Animal Balances'!BR52 -> 0 | BS57: ='Animal Balances'!BS52 -> 1890 | BT57: ='Animal Balances'!BT52 -> 0 | BU57: ='Animal Balances'!BU52 -> 0 | BV57: ='Animal Balances'!BV52 -> 1890 | BW57: ='Animal Balances'!BW52 -> 0 | BX57: ='Animal Balances'!BX52 -> 0 | BY57: ='Animal Balances'!BY52 -> 0 | BZ57: ='Animal Balances'!BZ52 -> 0 | CA57: ='Animal Balances'!CA52 -> 0 | CB57: ='Animal Balances'!CB52 -> 0 | CC57: ='Animal Balances'!CC52 -> 0 | CD57: ='Animal Balances'!CD52 -> 0 | CE57: ='Animal Balances'!CE52 -> 1890 | CF57: ='Animal Balances'!CF52 -> 0 | CG57: ='Animal Balances'!CG52 -> 0 | CH57: ='Animal Balances'!CH52 -> 1890 | CI57: ='Animal Balances'!CI52 -> 0 | CJ57: ='Animal Balances'!CJ52 -> 0 | CK57: ='Animal Balances'!CK52 -> 0 | CL57: ='Animal Balances'!CL52 -> 0 | CM57: ='Animal Balances'!CM52 -> 0 | CN57: ='Animal Balances'!CN52 -> 0 | CO57: ='Animal Balances'!CO52 -> 0 | CP57: ='Animal Balances'!CP52 -> 0 | CQ57: ='Animal Balances'!CQ52 -> 1890 | CR57: ='Animal Balances'!CR52 -> 0 | CS57: ='Animal Balances'!CS52 -> 0 | CT57: ='Animal Balances'!CT52 -> 1890 | CU57: ='Animal Balances'!CU52 -> 0 | CV57: ='Animal Balances'!CV52 -> 0 | CW57: ='Animal Balances'!CW52 -> 0 | CX57: ='Animal Balances'!CX52 -> 0 | CY57: ='Animal Balances'!CY52 -> 0 | CZ57: ='Animal Balances'!CZ52 -> 0 | DA57: ='Animal Balances'!DA52 -> 0 | DB57: ='Animal Balances'!DB52 -> 0 | DC57: ='Animal Balances'!DC52 -> 1890 | DD57: ='Animal Balances'!DD52 -> 0 | DE57: ='Animal Balances'!DE52 -> 0 | DF57: ='Animal Balances'!DF52 -> 1890 | DG57: ='Animal Balances'!DG52 -> 0 | DH57: ='Animal Balances'!DH52 -> 0 | DI57: ='Animal Balances'!DI52 -> 0 | DJ57: ='Animal Balances'!DJ52 -> 0 | DK57: ='Animal Balances'!DK52 -> 0 | DL57: ='Animal Balances'!DL52 -> 0 | DM57: ='Animal Balances'!DM52 -> 0 | DN57: ='Animal Balances'!DN52 -> 0 | DO57: ='Animal Balances'!DO52 -> 1890 | DP57: ='Animal Balances'!DP52 -> 0 | DQ57: ='Animal Balances'!DQ52 -> 0 | DR57: ='Animal Balances'!DR52 -> 1890 | DS57: ='Animal Balances'!DS52 -> 0 | DT57: ='Animal Balances'!DT52 -> 0 | DU57: ='Animal Balances'!DU52 -> 0 | DV57: ='Animal Balances'!DV52 -> 0 | DW57: ='Animal Balances'!DW52 -> 0 | DX57: ='Animal Balances'!DX52 -> 0 | DY57: ='Animal Balances'!DY52 -> 0 | DZ57: ='Animal Balances'!DZ52 -> 0 | EA57: ='Animal Balances'!EA52 -> 1890 | EB57: ='Animal Balances'!EB52 -> 0 | EC57: ='Animal Balances'!EC52 -> 0 | ED57: ='Animal Balances'!ED52 -> 1890 | EE57: ='Animal Balances'!EE52 -> 0 | EF57: ='Animal Balances'!EF52 -> 0 | EG57: ='Animal Balances'!EG52 -> 0 | EH57: ='Animal Balances'!EH52 -> 0 | EI57: ='Animal Balances'!EI52 -> 0 | EJ57: ='Animal Balances'!EJ52 -> 0 | EK57: ='Animal Balances'!EK52 -> 0 | EL57: ='Animal Balances'!EL52 -> 0 | EM57: ='Animal Balances'!EM52 -> 1890 | EN57: ='Animal Balances'!EN52 -> 0 | EO57: ='Animal Balances'!EO52 -> 0 | EP57: ='Animal Balances'!EP52 -> 1890 | EQ57: ='Animal Balances'!EQ52 -> 0 | ER57: ='Animal Balances'!ER52 -> 0 | ES57: ='Animal Balances'!ES52 -> 0 | ET57: ='Animal Balances'!ET52 -> 0 | EU57: ='Animal Balances'!EU52 -> 0 | EV57: ='Animal Balances'!EV52 -> 0 | EW57: ='Animal Balances'!EW52 -> 0 | EX57: ='Animal Balances'!EX52 -> 0 | EY57: ='Animal Balances'!EY52 -> 1890 | EZ57: ='Animal Balances'!EZ52 -> 0 | FA57: ='Animal Balances'!FA52 -> 0 | FB57: ='Animal Balances'!FB52 -> 1890 | FC57: ='Animal Balances'!FC52 -> 0 | FD57: ='Animal Balances'!FD52 -> 0 | FE57: ='Animal Balances'!FE52 -> 0 | FF57: ='Animal Balances'!FF52 -> 0 | FG57: ='Animal Balances'!FG52 -> 0 | FH57: ='Animal Balances'!FH52 -> 0 | FI57: ='Animal Balances'!FI52 -> 0 | FJ57: ='Animal Balances'!FJ52 -> 0 | FK57: ='Animal Balances'!FK52 -> 1890 | FL57: ='Animal Balances'!FL52 -> 0 | FM57: ='Animal Balances'!FM52 -> 0 | FN57: ='Animal Balances'!FN52 -> 1890 | FO57: ='Animal Balances'!FO52 -> 0 | FP57: ='Animal Balances'!FP52 -> 0 | FQ57: ='Animal Balances'!FQ52 -> 0 | FR57: ='Animal Balances'!FR52 -> 0 | FS57: ='Animal Balances'!FS52 -> 0 | FT57: ='Animal Balances'!FT52 -> 0 | FU57: ='Animal Balances'!FU52 -> 0 | FV57: ='Animal Balances'!FV52 -> 0 | FW57: ='Animal Balances'!FW52 -> 1890 | FX57: ='Animal Balances'!FX52 -> 0 | FY57: ='Animal Balances'!FY52 -> 0 | FZ57: ='Animal Balances'!FZ52 -> 1890 | GA57: ='Animal Balances'!GA52 -> 0 | GB57: ='Animal Balances'!GB52 -> 0 | GC57: ='Animal Balances'!GC52 -> 0 | GD57: ='Animal Balances'!GD52 -> 0 | GE57: ='Animal Balances'!GE52 -> 0 | GF57: ='Animal Balances'!GF52 -> 0 | GG57: ='Animal Balances'!GG52 -> 0 | GH57: ='Animal Balances'!GH52 -> 0 | GI57: ='Animal Balances'!GI52 -> 1890 | GJ57: ='Animal Balances'!GJ52 -> 0 | GK57: ='Animal Balances'!GK52 -> 0 | GL57: ='Animal Balances'!GL52 -> 1890 | GM57: ='Animal Balances'!GM52 -> 0 | GN57: ='Animal Balances'!GN52 -> 0 | GO57: ='Animal Balances'!GO52 -> 0 | GP57: ='Animal Balances'!GP52 -> 0 | GQ57: ='Animal Balances'!GQ52 -> 0 | GR57: ='Animal Balances'!GR52 -> 0 | GS57: ='Animal Balances'!GS52 -> 0 | GT57: =GT52 -> 0 | GU57: 1890 | GV57: 0 | GW57: 0 | GX57: 1890 | GY57: 0 | GZ57: 0 | HA57: 0 | HB57: 0 | HC57: 0 | HD57: 0 | HE57: 0 | HF57: 0 | HG57: 1890 | HH57: 0 | HI57: 0 | HJ57: 1890 | HK57: 0 | HL57: 0 | HM57: 0 | HN57: 0 | HO57: 0 | HP57: 0 | HQ57: 0 | HR57: 0 | HS57: 1890 | HT57: 0 | HU57: 0 | HV57: 1890 | HW57: 0 | HX57: 0 | HY57: 0 | HZ57: 0 | IA57: 0 | IB57: 0 | IC57: 0 | ID57: 0 | IE57: 1890 | IF57: 0 | IG57: 0 | IH57: 1890 | II57: 0 | IJ57: 0 | IK57: 0 | IL57: 0 | IM57: 0 | IN57: 0 | IO57: 0 | IP57: 0 | IQ57: 1890 | IR57: 0 | IS57: =IS52 -> 0 | IT57: 1890 | IU57: 0 | IV57: 0 | IW57: 0 | IX57: 0 | IY57: 0 | IZ57: 0 | JA57: 0 | JB57: 0 | JC57: 1890 | JD57: 0 | JE57: 0 | JF57: 1890 | JG57: 0 | JH57: 0 | JI57: 0 | JJ57: 0 | JK57: 0 | JL57: 0 | JM57: 0 | JN57: 0 | JO57: 1890 | JP57: 0 | JQ57: 0 | JR57: 1890 | JS57: 0 | JT57: 0 | JU57: 0 | JV57: 0 | JW57: 0 | JX57: 0 | JY57: 0 | JZ57: 0 | KA57: 1890 | KB57: 0 | KC57: 0 | KD57: 1890 | KE57: 0 | KF57: 0 | KG57: 0 | KH57: 0 | KI57: 0 | KJ57: 0 | KK57: 0 | KL57: 0 | KM57: 1890 | KN57: 0 | KO57: 0 | KP57: 1890 | KQ57: 0 | KR57: 0 | KS57: 0
D58: Less: Deferred Slaughtered | I58: ='Animal Balances'!I53 -> 0 | J58: ='Animal Balances'!J53 -> 0 | K58: ='Animal Balances'!K53 -> 0 | L58: ='Animal Balances'!L53 -> 0 | M58: ='Animal Balances'!M53 -> 0 | N58: ='Animal Balances'!N53 -> 0 | O58: ='Animal Balances'!O53 -> 0 | P58: ='Animal Balances'!P53 -> 0 | Q58: ='Animal Balances'!Q53 -> 0 | R58: ='Animal Balances'!R53 -> 0 | S58: ='Animal Balances'!S53 -> 0 | T58: ='Animal Balances'!T53 -> 0 | U58: ='Animal Balances'!U53 -> 0 | V58: ='Animal Balances'!V53 -> 0 | W58: ='Animal Balances'!W53 -> 0 | X58: ='Animal Balances'!X53 -> 0 | Y58: ='Animal Balances'!Y53 -> 0 | Z58: ='Animal Balances'!Z53 -> 0 | AA58: ='Animal Balances'!AA53 -> 0 | AB58: ='Animal Balances'!AB53 -> 0 | AC58: ='Animal Balances'!AC53 -> 0 | AD58: ='Animal Balances'!AD53 -> 0 | AE58: ='Animal Balances'!AE53 -> 0 | AF58: ='Animal Balances'!AF53 -> 0 | AG58: ='Animal Balances'!AG53 -> 0 | AH58: ='Animal Balances'!AH53 -> 0 | AI58: ='Animal Balances'!AI53 -> 0 | AJ58: ='Animal Balances'!AJ53 -> 0 | AK58: ='Animal Balances'!AK53 -> 0 | AL58: ='Animal Balances'!AL53 -> 0 | AM58: ='Animal Balances'!AM53 -> 0 | AN58: ='Animal Balances'!AN53 -> 0 | AO58: ='Animal Balances'!AO53 -> 0 | AP58: ='Animal Balances'!AP53 -> 0 | AQ58: ='Animal Balances'!AQ53 -> 0 | AR58: ='Animal Balances'!AR53 -> 0 | AS58: ='Animal Balances'!AS53 -> 0 | AT58: ='Animal Balances'!AT53 -> 0 | AU58: ='Animal Balances'!AU53 -> 0 | AV58: ='Animal Balances'!AV53 -> 380 | AW58: ='Animal Balances'!AW53 -> 380 | AX58: ='Animal Balances'!AX53 -> 0 | AY58: ='Animal Balances'!AY53 -> 380 | AZ58: ='Animal Balances'!AZ53 -> 380 | BA58: ='Animal Balances'!BA53 -> 380 | BB58: ='Animal Balances'!BB53 -> 380 | BC58: ='Animal Balances'!BC53 -> 380 | BD58: ='Animal Balances'!BD53 -> 380 | BE58: ='Animal Balances'!BE53 -> 380 | BF58: ='Animal Balances'!BF53 -> 360 | BG58: ='Animal Balances'!BG53 -> 0 | BH58: ='Animal Balances'!BH53 -> 380 | BI58: ='Animal Balances'!BI53 -> 380 | BJ58: ='Animal Balances'!BJ53 -> 0 | BK58: ='Animal Balances'!BK53 -> 380 | BL58: ='Animal Balances'!BL53 -> 380 | BM58: ='Animal Balances'!BM53 -> 380 | BN58: ='Animal Balances'!BN53 -> 380 | BO58: ='Animal Balances'!BO53 -> 380 | BP58: ='Animal Balances'!BP53 -> 380 | BQ58: ='Animal Balances'!BQ53 -> 380 | BR58: ='Animal Balances'!BR53 -> 360 | BS58: ='Animal Balances'!BS53 -> 0 | BT58: ='Animal Balances'!BT53 -> 380 | BU58: ='Animal Balances'!BU53 -> 380 | BV58: ='Animal Balances'!BV53 -> 0 | BW58: ='Animal Balances'!BW53 -> 380 | BX58: ='Animal Balances'!BX53 -> 380 | BY58: ='Animal Balances'!BY53 -> 380 | BZ58: ='Animal Balances'!BZ53 -> 380 | CA58: ='Animal Balances'!CA53 -> 380 | CB58: ='Animal Balances'!CB53 -> 380 | CC58: ='Animal Balances'!CC53 -> 380 | CD58: ='Animal Balances'!CD53 -> 360 | CE58: ='Animal Balances'!CE53 -> 0 | CF58: ='Animal Balances'!CF53 -> 380 | CG58: ='Animal Balances'!CG53 -> 380 | CH58: ='Animal Balances'!CH53 -> 0 | CI58: ='Animal Balances'!CI53 -> 380 | CJ58: ='Animal Balances'!CJ53 -> 380 | CK58: ='Animal Balances'!CK53 -> 380 | CL58: ='Animal Balances'!CL53 -> 380 | CM58: ='Animal Balances'!CM53 -> 380 | CN58: ='Animal Balances'!CN53 -> 380 | CO58: ='Animal Balances'!CO53 -> 380 | CP58: ='Animal Balances'!CP53 -> 360 | CQ58: ='Animal Balances'!CQ53 -> 0 | CR58: ='Animal Balances'!CR53 -> 380 | CS58: ='Animal Balances'!CS53 -> 380 | CT58: ='Animal Balances'!CT53 -> 0 | CU58: ='Animal Balances'!CU53 -> 380 | CV58: ='Animal Balances'!CV53 -> 380 | CW58: ='Animal Balances'!CW53 -> 380 | CX58: ='Animal Balances'!CX53 -> 380 | CY58: ='Animal Balances'!CY53 -> 380 | CZ58: ='Animal Balances'!CZ53 -> 380 | DA58: ='Animal Balances'!DA53 -> 380 | DB58: ='Animal Balances'!DB53 -> 360 | DC58: ='Animal Balances'!DC53 -> 0 | DD58: ='Animal Balances'!DD53 -> 380 | DE58: ='Animal Balances'!DE53 -> 380 | DF58: ='Animal Balances'!DF53 -> 0 | DG58: ='Animal Balances'!DG53 -> 380 | DH58: ='Animal Balances'!DH53 -> 380 | DI58: ='Animal Balances'!DI53 -> 380 | DJ58: ='Animal Balances'!DJ53 -> 380 | DK58: ='Animal Balances'!DK53 -> 380 | DL58: ='Animal Balances'!DL53 -> 380 | DM58: ='Animal Balances'!DM53 -> 380 | DN58: ='Animal Balances'!DN53 -> 360 | DO58: ='Animal Balances'!DO53 -> 0 | DP58: ='Animal Balances'!DP53 -> 380 | DQ58: ='Animal Balances'!DQ53 -> 380 | DR58: ='Animal Balances'!DR53 -> 0 | DS58: ='Animal Balances'!DS53 -> 380 | DT58: ='Animal Balances'!DT53 -> 380 | DU58: ='Animal Balances'!DU53 -> 380 | DV58: ='Animal Balances'!DV53 -> 380 | DW58: ='Animal Balances'!DW53 -> 380 | DX58: ='Animal Balances'!DX53 -> 380 | DY58: ='Animal Balances'!DY53 -> 380 | DZ58: ='Animal Balances'!DZ53 -> 360 | EA58: ='Animal Balances'!EA53 -> 0 | EB58: ='Animal Balances'!EB53 -> 380 | EC58: ='Animal Balances'!EC53 -> 380 | ED58: ='Animal Balances'!ED53 -> 0 | EE58: ='Animal Balances'!EE53 -> 380 | EF58: ='Animal Balances'!EF53 -> 380 | EG58: ='Animal Balances'!EG53 -> 380 | EH58: ='Animal Balances'!EH53 -> 380 | EI58: ='Animal Balances'!EI53 -> 380 | EJ58: ='Animal Balances'!EJ53 -> 380 | EK58: ='Animal Balances'!EK53 -> 380 | EL58: ='Animal Balances'!EL53 -> 360 | EM58: ='Animal Balances'!EM53 -> 0 | EN58: ='Animal Balances'!EN53 -> 380 | EO58: ='Animal Balances'!EO53 -> 380 | EP58: ='Animal Balances'!EP53 -> 0 | EQ58: ='Animal Balances'!EQ53 -> 380 | ER58: ='Animal Balances'!ER53 -> 380 | ES58: ='Animal Balances'!ES53 -> 380 | ET58: ='Animal Balances'!ET53 -> 380 | EU58: ='Animal Balances'!EU53 -> 380 | EV58: ='Animal Balances'!EV53 -> 380 | EW58: ='Animal Balances'!EW53 -> 380 | EX58: ='Animal Balances'!EX53 -> 360 | EY58: ='Animal Balances'!EY53 -> 0 | EZ58: ='Animal Balances'!EZ53 -> 380 | FA58: ='Animal Balances'!FA53 -> 380 | FB58: ='Animal Balances'!FB53 -> 0 | FC58: ='Animal Balances'!FC53 -> 380 | FD58: ='Animal Balances'!FD53 -> 380 | FE58: ='Animal Balances'!FE53 -> 380 | FF58: ='Animal Balances'!FF53 -> 380 | FG58: ='Animal Balances'!FG53 -> 380 | FH58: ='Animal Balances'!FH53 -> 380 | FI58: ='Animal Balances'!FI53 -> 380 | FJ58: ='Animal Balances'!FJ53 -> 360 | FK58: ='Animal Balances'!FK53 -> 0 | FL58: ='Animal Balances'!FL53 -> 380 | FM58: ='Animal Balances'!FM53 -> 380 | FN58: ='Animal Balances'!FN53 -> 0 | FO58: ='Animal Balances'!FO53 -> 380 | FP58: ='Animal Balances'!FP53 -> 380 | FQ58: ='Animal Balances'!FQ53 -> 380 | FR58: ='Animal Balances'!FR53 -> 380 | FS58: ='Animal Balances'!FS53 -> 380 | FT58: ='Animal Balances'!FT53 -> 380 | FU58: ='Animal Balances'!FU53 -> 380 | FV58: ='Animal Balances'!FV53 -> 360 | FW58: ='Animal Balances'!FW53 -> 0 | FX58: ='Animal Balances'!FX53 -> 380 | FY58: ='Animal Balances'!FY53 -> 380 | FZ58: ='Animal Balances'!FZ53 -> 0 | GA58: ='Animal Balances'!GA53 -> 380 | GB58: ='Animal Balances'!GB53 -> 380 | GC58: ='Animal Balances'!GC53 -> 380 | GD58: ='Animal Balances'!GD53 -> 380 | GE58: ='Animal Balances'!GE53 -> 380 | GF58: ='Animal Balances'!GF53 -> 380 | GG58: ='Animal Balances'!GG53 -> 380 | GH58: ='Animal Balances'!GH53 -> 360 | GI58: ='Animal Balances'!GI53 -> 0 | GJ58: ='Animal Balances'!GJ53 -> 380 | GK58: ='Animal Balances'!GK53 -> 380 | GL58: ='Animal Balances'!GL53 -> 0 | GM58: ='Animal Balances'!GM53 -> 380 | GN58: ='Animal Balances'!GN53 -> 380 | GO58: ='Animal Balances'!GO53 -> 380 | GP58: ='Animal Balances'!GP53 -> 380 | GQ58: ='Animal Balances'!GQ53 -> 380 | GR58: ='Animal Balances'!GR53 -> 380 | GS58: ='Animal Balances'!GS53 -> 380 | GT58: =GT53 -> 360 | GU58: 0 | GV58: 380 | GW58: 380 | GX58: 0 | GY58: 380 | GZ58: 380 | HA58: 380 | HB58: 380 | HC58: 380 | HD58: 380 | HE58: 380 | HF58: 360 | HG58: 0 | HH58: 380 | HI58: 380 | HJ58: 0 | HK58: 380 | HL58: 380 | HM58: 380 | HN58: 380 | HO58: 380 | HP58: 380 | HQ58: 380 | HR58: 360 | HS58: 0 | HT58: 380 | HU58: 380 | HV58: 0 | HW58: 380 | HX58: 380 | HY58: 380 | HZ58: 380 | IA58: 380 | IB58: 380 | IC58: 380 | ID58: 360 | IE58: 0 | IF58: 380 | IG58: 380 | IH58: 0 | II58: 380 | IJ58: 380 | IK58: 380 | IL58: 380 | IM58: 380 | IN58: 380 | IO58: 380 | IP58: 360 | IQ58: 0 | IR58: 380 | IS58: =IS53 -> 380 | IT58: 0 | IU58: 380 | IV58: 380 | IW58: 380 | IX58: 380 | IY58: 380 | IZ58: 380 | JA58: 380 | JB58: 360 | JC58: 0 | JD58: 380 | JE58: 380 | JF58: 0 | JG58: 380 | JH58: 380 | JI58: 380 | JJ58: 380 | JK58: 380 | JL58: 380 | JM58: 380 | JN58: 360 | JO58: 0 | JP58: 380 | JQ58: 380 | JR58: 0 | JS58: 380 | JT58: 380 | JU58: 380 | JV58: 380 | JW58: 380 | JX58: 380 | JY58: 380 | JZ58: 360 | KA58: 0 | KB58: 380 | KC58: 380 | KD58: 0 | KE58: 380 | KF58: 380 | KG58: 380 | KH58: 380 | KI58: 380 | KJ58: 380 | KK58: 380 | KL58: 360 | KM58: 0 | KN58: 380 | KO58: 380 | KP58: 0 | KQ58: 380 | KR58: 380 | KS58: 380
D59: Closing Balance | I59: =I56+I57-I58 -> 0 | J59: =J56+J57-J58 -> 0 | K59: 0 | L59: 0 | M59: 0 | N59: 0 | O59: 0 | P59: 0 | Q59: 0 | R59: 0 | S59: 0 | T59: 0 | U59: 0 | V59: 0 | W59: 0 | X59: 0 | Y59: 0 | Z59: 0 | AA59: 0 | AB59: 0 | AC59: 0 | AD59: 0 | AE59: 0 | AF59: 0 | AG59: 0 | AH59: 0 | AI59: 0 | AJ59: 0 | AK59: 0 | AL59: 0 | AM59: 0 | AN59: 0 | AO59: 0 | AP59: 0 | AQ59: 0 | AR59: 0 | AS59: 0 | AT59: 0 | AU59: 1890 | AV59: 1510 | AW59: 1130 | AX59: 3020 | AY59: 2640 | AZ59: 2260 | BA59: 1880 | BB59: 1500 | BC59: 1120 | BD59: 740 | BE59: 360 | BF59: 0 | BG59: 1890 | BH59: 1510 | BI59: 1130 | BJ59: 3020 | BK59: 2640 | BL59: 2260 | BM59: 1880 | BN59: 1500 | BO59: 1120 | BP59: 740 | BQ59: 360 | BR59: 0 | BS59: 1890 | BT59: 1510 | BU59: 1130 | BV59: =BV56+BV57-BV58 -> 3020 | BW59: 2640 | BX59: 2260 | BY59: 1880 | BZ59: 1500 | CA59: 1120 | CB59: 740 | CC59: 360 | CD59: 0 | CE59: 1890 | CF59: 1510 | CG59: 1130 | CH59: 3020 | CI59: 2640 | CJ59: 2260 | CK59: 1880 | CL59: 1500 | CM59: 1120 | CN59: 740 | CO59: 360 | CP59: 0 | CQ59: 1890 | CR59: 1510 | CS59: 1130 | CT59: 3020 | CU59: 2640 | CV59: 2260 | CW59: 1880 | CX59: 1500 | CY59: 1120 | CZ59: 740 | DA59: 360 | DB59: 0 | DC59: 1890 | DD59: 1510 | DE59: 1130 | DF59: 3020 | DG59: 2640 | DH59: 2260 | DI59: 1880 | DJ59: 1500 | DK59: 1120 | DL59: 740 | DM59: 360 | DN59: 0 | DO59: 1890 | DP59: 1510 | DQ59: 1130 | DR59: 3020 | DS59: 2640 | DT59: 2260 | DU59: =DU56+DU57-DU58 -> 1880 | DV59: 1500 | DW59: 1120 | DX59: 740 | DY59: 360 | DZ59: 0 | EA59: 1890 | EB59: 1510 | EC59: 1130 | ED59: 3020 | EE59: 2640 | EF59: 2260 | EG59: 1880 | EH59: 1500 | EI59: 1120 | EJ59: 740 | EK59: 360 | EL59: 0 | EM59: 1890 | EN59: 1510 | EO59: 1130 | EP59: 3020 | EQ59: 2640 | ER59: 2260 | ES59: 1880 | ET59: 1500 | EU59: 1120 | EV59: 740 | EW59: 360 | EX59: 0 | EY59: 1890 | EZ59: 1510 | FA59: 1130 | FB59: 3020 | FC59: 2640 | FD59: 2260 | FE59: 1880 | FF59: 1500 | FG59: 1120 | FH59: 740 | FI59: 360 | FJ59: 0 | FK59: 1890 | FL59: 1510 | FM59: 1130 | FN59: 3020 | FO59: 2640 | FP59: 2260 | FQ59: 1880 | FR59: 1500 | FS59: 1120 | FT59: 740 | FU59: 360 | FV59: 0 | FW59: 1890 | FX59: 1510 | FY59: 1130 | FZ59: 3020 | GA59: 2640 | GB59: 2260 | GC59: 1880 | GD59: 1500 | GE59: 1120 | GF59: 740 | GG59: =GG56+GG57-GG58 -> 360 | GH59: 0 | GI59: 1890 | GJ59: 1510 | GK59: 1130 | GL59: 3020 | GM59: 2640 | GN59: 2260 | GO59: 1880 | GP59: 1500 | GQ59: 1120 | GR59: 740 | GS59: 360 | GT59: 0 | GU59: 1890 | GV59: 1510 | GW59: 1130 | GX59: 3020 | GY59: 2640 | GZ59: 2260 | HA59: 1880 | HB59: 1500 | HC59: 1120 | HD59: 740 | HE59: 360 | HF59: 0 | HG59: 1890 | HH59: 1510 | HI59: 1130 | HJ59: 3020 | HK59: 2640 | HL59: 2260 | HM59: 1880 | HN59: 1500 | HO59: 1120 | HP59: 740 | HQ59: 360 | HR59: 0 | HS59: 1890 | HT59: 1510 | HU59: 1130 | HV59: 3020 | HW59: 2640 | HX59: 2260 | HY59: 1880 | HZ59: 1500 | IA59: 1120 | IB59: 740 | IC59: 360 | ID59: 0 | IE59: 1890 | IF59: 1510 | IG59: 1130 | IH59: 3020 | II59: 2640 | IJ59: 2260 | IK59: 1880 | IL59: 1500 | IM59: 1120 | IN59: 740 | IO59: 360 | IP59: 0 | IQ59: 1890 | IR59: 1510 | IS59: =IS56+IS57-IS58 -> 1130 | IT59: 3020 | IU59: 2640 | IV59: 2260 | IW59: 1880 | IX59: 1500 | IY59: 1120 | IZ59: 740 | JA59: 360 | JB59: 0 | JC59: 1890 | JD59: 1510 | JE59: 1130 | JF59: 3020 | JG59: 2640 | JH59: 2260 | JI59: 1880 | JJ59: 1500 | JK59: 1120 | JL59: 740 | JM59: 360 | JN59: 0 | JO59: 1890 | JP59: 1510 | JQ59: 1130 | JR59: 3020 | JS59: 2640 | JT59: 2260 | JU59: 1880 | JV59: 1500 | JW59: 1120 | JX59: 740 | JY59: 360 | JZ59: 0 | KA59: 1890 | KB59: 1510 | KC59: 1130 | KD59: 3020 | KE59: 2640 | KF59: 2260 | KG59: 1880 | KH59: 1500 | KI59: 1120 | KJ59: 740 | KK59: 360 | KL59: 0 | KM59: 1890 | KN59: 1510 | KO59: 1130 | KP59: 3020 | KQ59: 2640 | KR59: 2260 | KS59: 1880
I61: ='Animal Balances'!I3 -> 2019-09-01 | J61: ='Animal Balances'!J3 -> 2019-10-01 | K61: ='Animal Balances'!K3 -> 2019-11-01 | L61: ='Animal Balances'!L3 -> 2019-12-01 | M61: ='Animal Balances'!M3 -> 2020-01-01 | N61: ='Animal Balances'!N3 -> 2020-02-01 | O61: ='Animal Balances'!O3 -> 2020-03-01 | P61: ='Animal Balances'!P3 -> 2020-04-01 | Q61: ='Animal Balances'!Q3 -> 2020-05-01 | R61: ='Animal Balances'!R3 -> 2020-06-01 | S61: ='Animal Balances'!S3 -> 2020-07-01 | T61: ='Animal Balances'!T3 -> 2020-08-01 | U61: ='Animal Balances'!U3 -> 2020-09-01 | V61: ='Animal Balances'!V3 -> 2020-10-01 | W61: ='Animal Balances'!W3 -> 2020-11-01 | X61: ='Animal Balances'!X3 -> 2020-12-01 | Y61: ='Animal Balances'!Y3 -> 2021-01-01 | Z61: ='Animal Balances'!Z3 -> 2021-02-01 | AA61: ='Animal Balances'!AA3 -> 2021-03-01 | AB61: ='Animal Balances'!AB3 -> 2021-04-01 | AC61: ='Animal Balances'!AC3 -> 2021-05-01 | AD61: ='Animal Balances'!AD3 -> 2021-06-01 | AE61: ='Animal Balances'!AE3 -> 2021-07-01 | AF61: ='Animal Balances'!AF3 -> 2021-08-01 | AG61: ='Animal Balances'!AG3 -> 2021-09-01 | AH61: ='Animal Balances'!AH3 -> 2021-10-01 | AI61: ='Animal Balances'!AI3 -> 2021-11-01 | AJ61: ='Animal Balances'!AJ3 -> 2021-12-01 | AK61: ='Animal Balances'!AK3 -> 2022-01-01 | AL61: ='Animal Balances'!AL3 -> 2022-02-01 | AM61: ='Animal Balances'!AM3 -> 2022-03-01 | AN61: ='Animal Balances'!AN3 -> 2022-04-01 | AO61: ='Animal Balances'!AO3 -> 2022-05-01 | AP61: ='Animal Balances'!AP3 -> 2022-06-01 | AQ61: ='Animal Balances'!AQ3 -> 2022-07-01 | AR61: ='Animal Balances'!AR3 -> 2022-08-01 | AS61: ='Animal Balances'!AS3 -> 2022-09-01 | AT61: ='Animal Balances'!AT3 -> 2022-10-01 | AU61: ='Animal Balances'!AU3 -> 2022-11-01 | AV61: ='Animal Balances'!AV3 -> 2022-12-01 | AW61: ='Animal Balances'!AW3 -> 2023-01-01 | AX61: ='Animal Balances'!AX3 -> 2023-02-01 | AY61: ='Animal Balances'!AY3 -> 2023-03-01 | AZ61: ='Animal Balances'!AZ3 -> 2023-04-01 | BA61: ='Animal Balances'!BA3 -> 2023-05-01 | BB61: ='Animal Balances'!BB3 -> 2023-06-01 | BC61: ='Animal Balances'!BC3 -> 2023-07-01 | BD61: ='Animal Balances'!BD3 -> 2023-08-01 | BE61: ='Animal Balances'!BE3 -> 2023-09-01 | BF61: ='Animal Balances'!BF3 -> 2023-10-01 | BG61: ='Animal Balances'!BG3 -> 2023-11-01 | BH61: ='Animal Balances'!BH3 -> 2023-12-01 | BI61: ='Animal Balances'!BI3 -> 2024-01-01 | BJ61: ='Animal Balances'!BJ3 -> 2024-02-01 | BK61: ='Animal Balances'!BK3 -> 2024-03-01 | BL61: ='Animal Balances'!BL3 -> 2024-04-01 | BM61: ='Animal Balances'!BM3 -> 2024-05-01 | BN61: ='Animal Balances'!BN3 -> 2024-06-01 | BO61: ='Animal Balances'!BO3 -> 2024-07-01 | BP61: ='Animal Balances'!BP3 -> 2024-08-01 | BQ61: ='Animal Balances'!BQ3 -> 2024-09-01 | BR61: ='Animal Balances'!BR3 -> 2024-10-01 | BS61: ='Animal Balances'!BS3 -> 2024-11-01 | BT61: ='Animal Balances'!BT3 -> 2024-12-01 | BU61: ='Animal Balances'!BU3 -> 2025-01-01 | BV61: ='Animal Balances'!BV3 -> 2025-02-01 | BW61: ='Animal Balances'!BW3 -> 2025-03-01 | BX61: ='Animal Balances'!BX3 -> 2025-04-01 | BY61: ='Animal Balances'!BY3 -> 2025-05-01 | BZ61: ='Animal Balances'!BZ3 -> 2025-06-01 | CA61: ='Animal Balances'!CA3 -> 2025-07-01 | CB61: ='Animal Balances'!CB3 -> 2025-08-01 | CC61: ='Animal Balances'!CC3 -> 2025-09-01 | CD61: ='Animal Balances'!CD3 -> 2025-10-01 | CE61: ='Animal Balances'!CE3 -> 2025-11-01 | CF61: ='Animal Balances'!CF3 -> 2025-12-01 | CG61: ='Animal Balances'!CG3 -> 2026-01-01 | CH61: ='Animal Balances'!CH3 -> 2026-02-01 | CI61: ='Animal Balances'!CI3 -> 2026-03-01 | CJ61: ='Animal Balances'!CJ3 -> 2026-04-01 | CK61: ='Animal Balances'!CK3 -> 2026-05-01 | CL61: ='Animal Balances'!CL3 -> 2026-06-01 | CM61: ='Animal Balances'!CM3 -> 2026-07-01 | CN61: ='Animal Balances'!CN3 -> 2026-08-01 | CO61: ='Animal Balances'!CO3 -> 2026-09-01 | CP61: ='Animal Balances'!CP3 -> 2026-10-01 | CQ61: ='Animal Balances'!CQ3 -> 2026-11-01 | CR61: ='Animal Balances'!CR3 -> 2026-12-01 | CS61: ='Animal Balances'!CS3 -> 2027-01-01 | CT61: ='Animal Balances'!CT3 -> 2027-02-01 | CU61: ='Animal Balances'!CU3 -> 2027-03-01 | CV61: ='Animal Balances'!CV3 -> 2027-04-01 | CW61: ='Animal Balances'!CW3 -> 2027-05-01 | CX61: ='Animal Balances'!CX3 -> 2027-06-01 | CY61: ='Animal Balances'!CY3 -> 2027-07-01 | CZ61: ='Animal Balances'!CZ3 -> 2027-08-01 | DA61: ='Animal Balances'!DA3 -> 2027-09-01 | DB61: ='Animal Balances'!DB3 -> 2027-10-01 | DC61: ='Animal Balances'!DC3 -> 2027-11-01 | DD61: ='Animal Balances'!DD3 -> 2027-12-01 | DE61: ='Animal Balances'!DE3 -> 2028-01-01 | DF61: ='Animal Balances'!DF3 -> 2028-02-01 | DG61: ='Animal Balances'!DG3 -> 2028-03-01 | DH61: ='Animal Balances'!DH3 -> 2028-04-01 | DI61: ='Animal Balances'!DI3 -> 2028-05-01 | DJ61: ='Animal Balances'!DJ3 -> 2028-06-01 | DK61: ='Animal Balances'!DK3 -> 2028-07-01 | DL61: ='Animal Balances'!DL3 -> 2028-08-01 | DM61: ='Animal Balances'!DM3 -> 2028-09-01 | DN61: ='Animal Balances'!DN3 -> 2028-10-01 | DO61: ='Animal Balances'!DO3 -> 2028-11-01 | DP61: ='Animal Balances'!DP3 -> 2028-12-01 | DQ61: ='Animal Balances'!DQ3 -> 2029-01-01 | DR61: ='Animal Balances'!DR3 -> 2029-02-01 | DS61: ='Animal Balances'!DS3 -> 2029-03-01 | DT61: ='Animal Balances'!DT3 -> 2029-04-01 | DU61: ='Animal Balances'!DU3 -> 2029-05-01 | DV61: ='Animal Balances'!DV3 -> 2029-06-01 | DW61: ='Animal Balances'!DW3 -> 2029-07-01 | DX61: ='Animal Balances'!DX3 -> 2029-08-01 | DY61: ='Animal Balances'!DY3 -> 2029-09-01 | DZ61: ='Animal Balances'!DZ3 -> 2029-10-01 | EA61: ='Animal Balances'!EA3 -> 2029-11-01 | EB61: ='Animal Balances'!EB3 -> 2029-12-01 | EC61: ='Animal Balances'!EC3 -> 2030-01-01 | ED61: ='Animal Balances'!ED3 -> 2030-02-01 | EE61: ='Animal Balances'!EE3 -> 2030-03-01 | EF61: ='Animal Balances'!EF3 -> 2030-04-01 | EG61: ='Animal Balances'!EG3 -> 2030-05-01 | EH61: ='Animal Balances'!EH3 -> 2030-06-01 | EI61: ='Animal Balances'!EI3 -> 2030-07-01 | EJ61: ='Animal Balances'!EJ3 -> 2030-08-01 | EK61: ='Animal Balances'!EK3 -> 2030-09-01 | EL61: ='Animal Balances'!EL3 -> 2030-10-01 | EM61: ='Animal Balances'!EM3 -> 2030-11-01 | EN61: ='Animal Balances'!EN3 -> 2030-12-01 | EO61: ='Animal Balances'!EO3 -> 2031-01-01 | EP61: ='Animal Balances'!EP3 -> 2031-02-01 | EQ61: ='Animal Balances'!EQ3 -> 2031-03-01 | ER61: ='Animal Balances'!ER3 -> 2031-04-01 | ES61: ='Animal Balances'!ES3 -> 2031-05-01 | ET61: ='Animal Balances'!ET3 -> 2031-06-01 | EU61: ='Animal Balances'!EU3 -> 2031-07-01 | EV61: ='Animal Balances'!EV3 -> 2031-08-01 | EW61: ='Animal Balances'!EW3 -> 2031-09-01 | EX61: ='Animal Balances'!EX3 -> 2031-10-01 | EY61: ='Animal Balances'!EY3 -> 2031-11-01 | EZ61: ='Animal Balances'!EZ3 -> 2031-12-01 | FA61: ='Animal Balances'!FA3 -> 2032-01-01 | FB61: ='Animal Balances'!FB3 -> 2032-02-01 | FC61: ='Animal Balances'!FC3 -> 2032-03-01 | FD61: ='Animal Balances'!FD3 -> 2032-04-01 | FE61: ='Animal Balances'!FE3 -> 2032-05-01 | FF61: ='Animal Balances'!FF3 -> 2032-06-01 | FG61: ='Animal Balances'!FG3 -> 2032-07-01 | FH61: ='Animal Balances'!FH3 -> 2032-08-01 | FI61: ='Animal Balances'!FI3 -> 2032-09-01 | FJ61: ='Animal Balances'!FJ3 -> 2032-10-01 | FK61: ='Animal Balances'!FK3 -> 2032-11-01 | FL61: ='Animal Balances'!FL3 -> 2032-12-01 | FM61: ='Animal Balances'!FM3 -> 2033-01-01 | FN61: ='Animal Balances'!FN3 -> 2033-02-01 | FO61: ='Animal Balances'!FO3 -> 2033-03-01 | FP61: ='Animal Balances'!FP3 -> 2033-04-01 | FQ61: ='Animal Balances'!FQ3 -> 2033-05-01 | FR61: ='Animal Balances'!FR3 -> 2033-06-01 | FS61: ='Animal Balances'!FS3 -> 2033-07-01 | FT61: ='Animal Balances'!FT3 -> 2033-08-01 | FU61: ='Animal Balances'!FU3 -> 2033-09-01 | FV61: ='Animal Balances'!FV3 -> 2033-10-01 | FW61: ='Animal Balances'!FW3 -> 2033-11-01 | FX61: ='Animal Balances'!FX3 -> 2033-12-01 | FY61: ='Animal Balances'!FY3 -> 2034-01-01 | FZ61: ='Animal Balances'!FZ3 -> 2034-02-01 | GA61: ='Animal Balances'!GA3 -> 2034-03-01 | GB61: ='Animal Balances'!GB3 -> 2034-04-01 | GC61: ='Animal Balances'!GC3 -> 2034-05-01 | GD61: ='Animal Balances'!GD3 -> 2034-06-01 | GE61: ='Animal Balances'!GE3 -> 2034-07-01 | GF61: ='Animal Balances'!GF3 -> 2034-08-01 | GG61: ='Animal Balances'!GG3 -> 2034-09-01 | GH61: ='Animal Balances'!GH3 -> 2034-10-01 | GI61: ='Animal Balances'!GI3 -> 2034-11-01 | GJ61: ='Animal Balances'!GJ3 -> 2034-12-01 | GK61: ='Animal Balances'!GK3 -> 2035-01-01 | GL61: ='Animal Balances'!GL3 -> 2035-02-01 | GM61: ='Animal Balances'!GM3 -> 2035-03-01 | GN61: ='Animal Balances'!GN3 -> 2035-04-01 | GO61: ='Animal Balances'!GO3 -> 2035-05-01 | GP61: ='Animal Balances'!GP3 -> 2035-06-01 | GQ61: ='Animal Balances'!GQ3 -> 2035-07-01 | GR61: ='Animal Balances'!GR3 -> 2035-08-01 | GS61: ='Animal Balances'!GS3 -> 2035-09-01 | GT61: =GT3 -> 2035-10-01 | GU61: 2035-11-01 | GV61: 2035-12-01 | GW61: 2036-01-01 | GX61: 2036-02-01 | GY61: 2036-03-01 | GZ61: 2036-04-01 | HA61: 2036-05-01 | HB61: 2036-06-01 | HC61: 2036-07-01 | HD61: 2036-08-01 | HE61: 2036-09-01 | HF61: 2036-10-01 | HG61: 2036-11-01 | HH61: 2036-12-01 | HI61: 2037-01-01 | HJ61: 2037-02-01 | HK61: 2037-03-01 | HL61: 2037-04-01 | HM61: 2037-05-01 | HN61: 2037-06-01 | HO61: 2037-07-01 | HP61: 2037-08-01 | HQ61: 2037-09-01 | HR61: 2037-10-01 | HS61: 2037-11-01 | HT61: 2037-12-01 | HU61: 2038-01-01 | HV61: 2038-02-01 | HW61: 2038-03-01 | HX61: 2038-04-01 | HY61: 2038-05-01 | HZ61: 2038-06-01 | IA61: 2038-07-01 | IB61: 2038-08-01 | IC61: 2038-09-01 | ID61: 2038-10-01 | IE61: 2038-11-01 | IF61: 2038-12-01 | IG61: 2039-01-01 | IH61: 2039-02-01 | II61: 2039-03-01 | IJ61: 2039-04-01 | IK61: 2039-05-01 | IL61: 2039-06-01 | IM61: 2039-07-01 | IN61: 2039-08-01 | IO61: 2039-09-01 | IP61: 2039-10-01 | IQ61: 2039-11-01 | IR61: 2039-12-01 | IS61: =IS3 -> 2040-01-01 | IT61: 2040-02-01 | IU61: 2040-03-01 | IV61: 2040-04-01 | IW61: 2040-05-01 | IX61: 2040-06-01 | IY61: 2040-07-01 | IZ61: 2040-08-01 | JA61: 2040-09-01 | JB61: 2040-10-01 | JC61: 2040-11-01 | JD61: 2040-12-01 | JE61: 2041-01-01 | JF61: 2041-02-01 | JG61: 2041-03-01 | JH61: 2041-04-01 | JI61: 2041-05-01 | JJ61: 2041-06-01 | JK61: 2041-07-01 | JL61: 2041-08-01 | JM61: 2041-09-01 | JN61: 2041-10-01 | JO61: 2041-11-01 | JP61: 2041-12-01 | JQ61: 2042-01-01 | JR61: 2042-02-01 | JS61: 2042-03-01 | JT61: 2042-04-01 | JU61: 2042-05-01 | JV61: 2042-06-01 | JW61: 2042-07-01 | JX61: 2042-08-01 | JY61: 2042-09-01 | JZ61: 2042-10-01 | KA61: 2042-11-01 | KB61: 2042-12-01 | KC61: 2043-01-01 | KD61: 2043-02-01 | KE61: 2043-03-01 | KF61: 2043-04-01 | KG61: 2043-05-01 | KH61: 2043-06-01 | KI61: 2043-07-01 | KJ61: 2043-08-01 | KK61: 2043-09-01 | KL61: 2043-10-01 | KM61: 2043-11-01 | KN61: 2043-12-01 | KO61: 2044-01-01 | KP61: 2044-02-01 | KQ61: 2044-03-01 | KR61: 2044-04-01 | KS61: 2044-05-01
D62: Terminal Balance Adjusted for Deferred | I62: =I46+I59 -> 0 | J62: =J46+J59 -> 0 | K62: 0 | L62: 0 | M62: 0 | N62: 0 | O62: 0 | P62: 0 | Q62: 0 | R62: 0 | S62: 0 | T62: 0 | U62: 0 | V62: 0 | W62: 0 | X62: 2270 | Y62: 2270 | Z62: 2270 | AA62: 4540 | AB62: 4540 | AC62: 4540 | AD62: 4540 | AE62: 4540 | AF62: 4540 | AG62: 4540 | AH62: 4540 | AI62: 4540 | AJ62: 6810 | AK62: 6810 | AL62: 6810 | AM62: 9080 | AN62: 9080 | AO62: 9080 | AP62: 9080 | AQ62: 9080 | AR62: 9080 | AS62: 9080 | AT62: 9080 | AU62: 8700 | AV62: 10590 | AW62: 10210 | AX62: 9830 | AY62: 11720 | AZ62: 11340 | BA62: 10960 | BB62: 10580 | BC62: 10200 | BD62: 9820 | BE62: 9440 | BF62: 9080 | BG62: 8700 | BH62: 10590 | BI62: 10210 | BJ62: 9830 | BK62: 11720 | BL62: 11340 | BM62: 10960 | BN62: 10580 | BO62: 10200 | BP62: 9820 | BQ62: 9440 | BR62: 9080 | BS62: 8700 | BT62: 10590 | BU62: 10210 | BV62: =BV46+BV59 -> 9830 | BW62: 11720 | BX62: 11340 | BY62: 10960 | BZ62: 10580 | CA62: 10200 | CB62: 9820 | CC62: 9440 | CD62: 9080 | CE62: 8700 | CF62: 10590 | CG62: 10210 | CH62: 9830 | CI62: 11720 | CJ62: 11340 | CK62: 10960 | CL62: 10580 | CM62: 10200 | CN62: 9820 | CO62: 9440 | CP62: 9080 | CQ62: 8700 | CR62: 10590 | CS62: 10210 | CT62: 9830 | CU62: 11720 | CV62: 11340 | CW62: 10960 | CX62: 10580 | CY62: 10200 | CZ62: 9820 | DA62: 9440 | DB62: 9080 | DC62: 8700 | DD62: 10590 | DE62: 10210 | DF62: 9830 | DG62: 11720 | DH62: 11340 | DI62: 10960 | DJ62: 10580 | DK62: 10200 | DL62: 9820 | DM62: 9440 | DN62: 9080 | DO62: 8700 | DP62: 10590 | DQ62: 10210 | DR62: 9830 | DS62: 11720 | DT62: 11340 | DU62: 10960 | DV62: 10580 | DW62: 10200 | DX62: 9820 | DY62: 9440 | DZ62: 9080 | EA62: 8700 | EB62: 10590 | EC62: 10210 | ED62: 9830 | EE62: 11720 | EF62: 11340 | EG62: 10960 | EH62: =EH46+EH59 -> 10580 | EI62: 10200 | EJ62: 9820 | EK62: 9440 | EL62: 9080 | EM62: 8700 | EN62: 10590 | EO62: 10210 | EP62: 9830 | EQ62: 11720 | ER62: 11340 | ES62: 10960 | ET62: 10580 | EU62: 10200 | EV62: 9820 | EW62: 9440 | EX62: 9080 | EY62: 8700 | EZ62: 10590 | FA62: 10210 | FB62: 9830 | FC62: 11720 | FD62: 11340 | FE62: 10960 | FF62: 10580 | FG62: 10200 | FH62: 9820 | FI62: 9440 | FJ62: 9080 | FK62: 8700 | FL62: 10590 | FM62: 10210 | FN62: 9830 | FO62: 11720 | FP62: 11340 | FQ62: 10960 | FR62: 10580 | FS62: 10200 | FT62: 9820 | FU62: 9440 | FV62: 9080 | FW62: 8700 | FX62: 10590 | FY62: 10210 | FZ62: 9830 | GA62: 11720 | GB62: 11340 | GC62: 10960 | GD62: 10580 | GE62: 10200 | GF62: 9820 | GG62: 9440 | GH62: 9080 | GI62: 8700 | GJ62: 10590 | GK62: 10210 | GL62: 9830 | GM62: 11720 | GN62: 11340 | GO62: 10960 | GP62: 10580 | GQ62: 10200 | GR62: 9820 | GS62: 9440 | GT62: =GT46+GT59 -> 9080 | GU62: 8700 | GV62: 10590 | GW62: 10210 | GX62: 9830 | GY62: 11720 | GZ62: 11340 | HA62: 10960 | HB62: 10580 | HC62: 10200 | HD62: 9820 | HE62: 9440 | HF62: 9080 | HG62: 8700 | HH62: 10590 | HI62: 10210 | HJ62: 9830 | HK62: 11720 | HL62: 11340 | HM62: 10960 | HN62: 10580 | HO62: 10200 | HP62: 9820 | HQ62: 9440 | HR62: 9080 | HS62: 8700 | HT62: 10590 | HU62: 10210 | HV62: 9830 | HW62: 11720 | HX62: 11340 | HY62: 10960 | HZ62: 10580 | IA62: 10200 | IB62: 9820 | IC62: 9440 | ID62: 9080 | IE62: 8700 | IF62: 10590 | IG62: 10210 | IH62: 9830 | II62: 11720 | IJ62: 11340 | IK62: 10960 | IL62: 10580 | IM62: 10200 | IN62: 9820 | IO62: 9440 | IP62: 9080 | IQ62: 8700 | IR62: 10590 | IS62: 10210 | IT62: 9830 | IU62: 11720 | IV62: 11340 | IW62: 10960 | IX62: 10580 | IY62: 10200 | IZ62: 9820 | JA62: 9440 | JB62: 9080 | JC62: 8700 | JD62: 10590 | JE62: 10210 | JF62: =JF46+JF59 -> 9830 | JG62: 11720 | JH62: 11340 | JI62: 10960 | JJ62: 10580 | JK62: 10200 | JL62: 9820 | JM62: 9440 | JN62: 9080 | JO62: 8700 | JP62: 10590 | JQ62: 10210 | JR62: 9830 | JS62: 11720 | JT62: 11340 | JU62: 10960 | JV62: 10580 | JW62: 10200 | JX62: 9820 | JY62: 9440 | JZ62: 9080 | KA62: 8700 | KB62: 10590 | KC62: 10210 | KD62: 9830 | KE62: 11720 | KF62: 11340 | KG62: 10960 | KH62: 10580 | KI62: 10200 | KJ62: 9820 | KK62: 9440 | KL62: 9080 | KM62: 8700 | KN62: 10590 | KO62: 10210 | KP62: 9830 | KQ62: 11720 | KR62: 11340 | KS62: 10960
D63: Over Capacity of Cows and Bulls | I63: ='Animal Balances'!I59 -> 0 | J63: ='Animal Balances'!J59 -> 0 | K63: ='Animal Balances'!K59 -> 0 | L63: ='Animal Balances'!L59 -> 0 | M63: ='Animal Balances'!M59 -> 0 | N63: ='Animal Balances'!N59 -> 0 | O63: ='Animal Balances'!O59 -> 0 | P63: ='Animal Balances'!P59 -> 0 | Q63: ='Animal Balances'!Q59 -> 0 | R63: ='Animal Balances'!R59 -> 0 | S63: ='Animal Balances'!S59 -> 0 | T63: ='Animal Balances'!T59 -> 0 | U63: ='Animal Balances'!U59 -> 0 | V63: ='Animal Balances'!V59 -> 0 | W63: ='Animal Balances'!W59 -> 0 | X63: ='Animal Balances'!X59 -> 0 | Y63: ='Animal Balances'!Y59 -> 0 | Z63: ='Animal Balances'!Z59 -> 0 | AA63: ='Animal Balances'!AA59 -> 0 | AB63: ='Animal Balances'!AB59 -> 0 | AC63: ='Animal Balances'!AC59 -> 0 | AD63: ='Animal Balances'!AD59 -> 0 | AE63: ='Animal Balances'!AE59 -> 0 | AF63: ='Animal Balances'!AF59 -> 0 | AG63: ='Animal Balances'!AG59 -> 0 | AH63: ='Animal Balances'!AH59 -> 0 | AI63: ='Animal Balances'!AI59 -> 0 | AJ63: ='Animal Balances'!AJ59 -> 0 | AK63: ='Animal Balances'!AK59 -> 0 | AL63: ='Animal Balances'!AL59 -> 0 | AM63: ='Animal Balances'!AM59 -> 0 | AN63: ='Animal Balances'!AN59 -> 0 | AO63: ='Animal Balances'!AO59 -> 0 | AP63: ='Animal Balances'!AP59 -> 0 | AQ63: ='Animal Balances'!AQ59 -> 0 | AR63: ='Animal Balances'!AR59 -> 0 | AS63: ='Animal Balances'!AS59 -> 0 | AT63: ='Animal Balances'!AT59 -> 0 | AU63: ='Animal Balances'!AU59 -> 1890 | AV63: ='Animal Balances'!AV59 -> 1510 | AW63: ='Animal Balances'!AW59 -> 1130 | AX63: ='Animal Balances'!AX59 -> 3020 | AY63: ='Animal Balances'!AY59 -> 2640 | AZ63: ='Animal Balances'!AZ59 -> 2260 | BA63: ='Animal Balances'!BA59 -> 1880 | BB63: ='Animal Balances'!BB59 -> 1500 | BC63: ='Animal Balances'!BC59 -> 1120 | BD63: ='Animal Balances'!BD59 -> 740 | BE63: ='Animal Balances'!BE59 -> 360 | BF63: ='Animal Balances'!BF59 -> 0 | BG63: ='Animal Balances'!BG59 -> 1890 | BH63: ='Animal Balances'!BH59 -> 1510 | BI63: ='Animal Balances'!BI59 -> 1130 | BJ63: ='Animal Balances'!BJ59 -> 3020 | BK63: ='Animal Balances'!BK59 -> 2640 | BL63: ='Animal Balances'!BL59 -> 2260 | BM63: ='Animal Balances'!BM59 -> 1880 | BN63: ='Animal Balances'!BN59 -> 1500 | BO63: ='Animal Balances'!BO59 -> 1120 | BP63: ='Animal Balances'!BP59 -> 740 | BQ63: ='Animal Balances'!BQ59 -> 360 | BR63: ='Animal Balances'!BR59 -> 0 | BS63: ='Animal Balances'!BS59 -> 1890 | BT63: ='Animal Balances'!BT59 -> 1510 | BU63: ='Animal Balances'!BU59 -> 1130 | BV63: ='Animal Balances'!BV59 -> 3020 | BW63: ='Animal Balances'!BW59 -> 2640 | BX63: ='Animal Balances'!BX59 -> 2260 | BY63: ='Animal Balances'!BY59 -> 1880 | BZ63: ='Animal Balances'!BZ59 -> 1500 | CA63: ='Animal Balances'!CA59 -> 1120 | CB63: ='Animal Balances'!CB59 -> 740 | CC63: ='Animal Balances'!CC59 -> 360 | CD63: ='Animal Balances'!CD59 -> 0 | CE63: ='Animal Balances'!CE59 -> 1890 | CF63: ='Animal Balances'!CF59 -> 1510 | CG63: ='Animal Balances'!CG59 -> 1130 | CH63: ='Animal Balances'!CH59 -> 3020 | CI63: ='Animal Balances'!CI59 -> 2640 | CJ63: ='Animal Balances'!CJ59 -> 2260 | CK63: ='Animal Balances'!CK59 -> 1880 | CL63: ='Animal Balances'!CL59 -> 1500 | CM63: ='Animal Balances'!CM59 -> 1120 | CN63: ='Animal Balances'!CN59 -> 740 | CO63: ='Animal Balances'!CO59 -> 360 | CP63: ='Animal Balances'!CP59 -> 0 | CQ63: ='Animal Balances'!CQ59 -> 1890 | CR63: ='Animal Balances'!CR59 -> 1510 | CS63: ='Animal Balances'!CS59 -> 1130 | CT63: ='Animal Balances'!CT59 -> 3020 | CU63: ='Animal Balances'!CU59 -> 2640 | CV63: ='Animal Balances'!CV59 -> 2260 | CW63: ='Animal Balances'!CW59 -> 1880 | CX63: ='Animal Balances'!CX59 -> 1500 | CY63: ='Animal Balances'!CY59 -> 1120 | CZ63: ='Animal Balances'!CZ59 -> 740 | DA63: ='Animal Balances'!DA59 -> 360 | DB63: ='Animal Balances'!DB59 -> 0 | DC63: ='Animal Balances'!DC59 -> 1890 | DD63: ='Animal Balances'!DD59 -> 1510 | DE63: ='Animal Balances'!DE59 -> 1130 | DF63: ='Animal Balances'!DF59 -> 3020 | DG63: ='Animal Balances'!DG59 -> 2640 | DH63: ='Animal Balances'!DH59 -> 2260 | DI63: ='Animal Balances'!DI59 -> 1880 | DJ63: ='Animal Balances'!DJ59 -> 1500 | DK63: ='Animal Balances'!DK59 -> 1120 | DL63: ='Animal Balances'!DL59 -> 740 | DM63: ='Animal Balances'!DM59 -> 360 | DN63: ='Animal Balances'!DN59 -> 0 | DO63: ='Animal Balances'!DO59 -> 1890 | DP63: ='Animal Balances'!DP59 -> 1510 | DQ63: ='Animal Balances'!DQ59 -> 1130 | DR63: ='Animal Balances'!DR59 -> 3020 | DS63: ='Animal Balances'!DS59 -> 2640 | DT63: ='Animal Balances'!DT59 -> 2260 | DU63: ='Animal Balances'!DU59 -> 1880 | DV63: ='Animal Balances'!DV59 -> 1500 | DW63: ='Animal Balances'!DW59 -> 1120 | DX63: ='Animal Balances'!DX59 -> 740 | DY63: ='Animal Balances'!DY59 -> 360 | DZ63: ='Animal Balances'!DZ59 -> 0 | EA63: ='Animal Balances'!EA59 -> 1890 | EB63: ='Animal Balances'!EB59 -> 1510 | EC63: ='Animal Balances'!EC59 -> 1130 | ED63: ='Animal Balances'!ED59 -> 3020 | EE63: ='Animal Balances'!EE59 -> 2640 | EF63: ='Animal Balances'!EF59 -> 2260 | EG63: ='Animal Balances'!EG59 -> 1880 | EH63: ='Animal Balances'!EH59 -> 1500 | EI63: ='Animal Balances'!EI59 -> 1120 | EJ63: ='Animal Balances'!EJ59 -> 740 | EK63: ='Animal Balances'!EK59 -> 360 | EL63: ='Animal Balances'!EL59 -> 0 | EM63: ='Animal Balances'!EM59 -> 1890 | EN63: ='Animal Balances'!EN59 -> 1510 | EO63: ='Animal Balances'!EO59 -> 1130 | EP63: ='Animal Balances'!EP59 -> 3020 | EQ63: ='Animal Balances'!EQ59 -> 2640 | ER63: ='Animal Balances'!ER59 -> 2260 | ES63: ='Animal Balances'!ES59 -> 1880 | ET63: ='Animal Balances'!ET59 -> 1500 | EU63: ='Animal Balances'!EU59 -> 1120 | EV63: ='Animal Balances'!EV59 -> 740 | EW63: ='Animal Balances'!EW59 -> 360 | EX63: ='Animal Balances'!EX59 -> 0 | EY63: ='Animal Balances'!EY59 -> 1890 | EZ63: ='Animal Balances'!EZ59 -> 1510 | FA63: ='Animal Balances'!FA59 -> 1130 | FB63: ='Animal Balances'!FB59 -> 3020 | FC63: ='Animal Balances'!FC59 -> 2640 | FD63: ='Animal Balances'!FD59 -> 2260 | FE63: ='Animal Balances'!FE59 -> 1880 | FF63: ='Animal Balances'!FF59 -> 1500 | FG63: ='Animal Balances'!FG59 -> 1120 | FH63: ='Animal Balances'!FH59 -> 740 | FI63: ='Animal Balances'!FI59 -> 360 | FJ63: ='Animal Balances'!FJ59 -> 0 | FK63: ='Animal Balances'!FK59 -> 1890 | FL63: ='Animal Balances'!FL59 -> 1510 | FM63: ='Animal Balances'!FM59 -> 1130 | FN63: ='Animal Balances'!FN59 -> 3020 | FO63: ='Animal Balances'!FO59 -> 2640 | FP63: ='Animal Balances'!FP59 -> 2260 | FQ63: ='Animal Balances'!FQ59 -> 1880 | FR63: ='Animal Balances'!FR59 -> 1500 | FS63: ='Animal Balances'!FS59 -> 1120 | FT63: ='Animal Balances'!FT59 -> 740 | FU63: ='Animal Balances'!FU59 -> 360 | FV63: ='Animal Balances'!FV59 -> 0 | FW63: ='Animal Balances'!FW59 -> 1890 | FX63: ='Animal Balances'!FX59 -> 1510 | FY63: ='Animal Balances'!FY59 -> 1130 | FZ63: ='Animal Balances'!FZ59 -> 3020 | GA63: ='Animal Balances'!GA59 -> 2640 | GB63: ='Animal Balances'!GB59 -> 2260 | GC63: ='Animal Balances'!GC59 -> 1880 | GD63: ='Animal Balances'!GD59 -> 1500 | GE63: ='Animal Balances'!GE59 -> 1120 | GF63: ='Animal Balances'!GF59 -> 740 | GG63: ='Animal Balances'!GG59 -> 360 | GH63: ='Animal Balances'!GH59 -> 0 | GI63: ='Animal Balances'!GI59 -> 1890 | GJ63: ='Animal Balances'!GJ59 -> 1510 | GK63: ='Animal Balances'!GK59 -> 1130 | GL63: ='Animal Balances'!GL59 -> 3020 | GM63: ='Animal Balances'!GM59 -> 2640 | GN63: ='Animal Balances'!GN59 -> 2260 | GO63: ='Animal Balances'!GO59 -> 1880 | GP63: ='Animal Balances'!GP59 -> 1500 | GQ63: ='Animal Balances'!GQ59 -> 1120 | GR63: ='Animal Balances'!GR59 -> 740 | GS63: ='Animal Balances'!GS59 -> 360 | GT63: =GT59 -> 0 | GU63: 1890 | GV63: 1510 | GW63: 1130 | GX63: 3020 | GY63: 2640 | GZ63: 2260 | HA63: 1880 | HB63: 1500 | HC63: 1120 | HD63: 740 | HE63: 360 | HF63: 0 | HG63: 1890 | HH63: 1510 | HI63: 1130 | HJ63: 3020 | HK63: 2640 | HL63: 2260 | HM63: 1880 | HN63: 1500 | HO63: 1120 | HP63: 740 | HQ63: 360 | HR63: 0 | HS63: 1890 | HT63: 1510 | HU63: 1130 | HV63: 3020 | HW63: 2640 | HX63: 2260 | HY63: 1880 | HZ63: 1500 | IA63: 1120 | IB63: 740 | IC63: 360 | ID63: 0 | IE63: 1890 | IF63: 1510 | IG63: 1130 | IH63: 3020 | II63: 2640 | IJ63: 2260 | IK63: 1880 | IL63: 1500 | IM63: 1120 | IN63: 740 | IO63: 360 | IP63: 0 | IQ63: 1890 | IR63: 1510 | IS63: =IS59 -> 1130 | IT63: 3020 | IU63: 2640 | IV63: 2260 | IW63: 1880 | IX63: 1500 | IY63: 1120 | IZ63: 740 | JA63: 360 | JB63: 0 | JC63: 1890 | JD63: 1510 | JE63: 1130 | JF63: 3020 | JG63: 2640 | JH63: 2260 | JI63: 1880 | JJ63: 1500 | JK63: 1120 | JL63: 740 | JM63: 360 | JN63: 0 | JO63: 1890 | JP63: 1510 | JQ63: 1130 | JR63: 3020 | JS63: 2640 | JT63: 2260 | JU63: 1880 | JV63: 1500 | JW63: 1120 | JX63: 740 | JY63: 360 | JZ63: 0 | KA63: 1890 | KB63: 1510 | KC63: 1130 | KD63: 3020 | KE63: 2640 | KF63: 2260 | KG63: 1880 | KH63: 1500 | KI63: 1120 | KJ63: 740 | KK63: 360 | KL63: 0 | KM63: 1890 | KN63: 1510 | KO63: 1130 | KP63: 3020 | KQ63: 2640 | KR63: 2260 | KS63: 1880
D64: Final Beef Slaughtered | I64: =I44-I57+I58 -> 73.33333333 | J64: 73.33333333 | K64: 73.33333333 | L64: 73.33333333 | M64: 73.33333333 | N64: 73.33333333 | O64: 73.33333333 | P64: 73.33333333 | Q64: 73.33333333 | R64: 73.33333333 | S64: 73.33333333 | T64: 73.33333333 | U64: 73.33333333 | V64: 73.33333333 | W64: 73.33333333 | X64: 73.33333333 | Y64: 73.33333333 | Z64: 73.33333333 | AA64: 73.33333333 | AB64: 73.33333333 | AC64: 73.33333333 | AD64: 73.33333333 | AE64: 73.33333333 | AF64: 73.33333333 | AG64: 0 | AH64: 0 | AI64: 0 | AJ64: 0 | AK64: 0 | AL64: 0 | AM64: 0 | AN64: 0 | AO64: =AO44-AO57+AO58 -> 0 | AP64: 0 | AQ64: 0 | AR64: 0 | AS64: 0 | AT64: 0 | AU64: 380 | AV64: 380 | AW64: 380 | AX64: 380 | AY64: 380 | AZ64: 380 | BA64: 380 | BB64: 380 | BC64: 380 | BD64: 380 | BE64: 380 | BF64: 360 | BG64: 380 | BH64: 380 | BI64: 380 | BJ64: 380 | BK64: 380 | BL64: 380 | BM64: 380 | BN64: 380 | BO64: 380 | BP64: 380 | BQ64: 380 | BR64: 360 | BS64: 380 | BT64: 380 | BU64: =BU44-BU57+BU58 -> 380 | BV64: 380 | BW64: 380 | BX64: 380 | BY64: 380 | BZ64: 380 | CA64: 380 | CB64: 380 | CC64: 380 | CD64: 360 | CE64: 380 | CF64: 380 | CG64: 380 | CH64: 380 | CI64: 380 | CJ64: 380 | CK64: 380 | CL64: 380 | CM64: 380 | CN64: 380 | CO64: 380 | CP64: 360 | CQ64: 380 | CR64: 380 | CS64: 380 | CT64: 380 | CU64: 380 | CV64: 380 | CW64: 380 | CX64: 380 | CY64: 380 | CZ64: 380 | DA64: =DA44-DA57+DA58 -> 380 | DB64: 360 | DC64: 380 | DD64: 380 | DE64: 380 | DF64: 380 | DG64: 380 | DH64: 380 | DI64: 380 | DJ64: 380 | DK64: 380 | DL64: 380 | DM64: 380 | DN64: 360 | DO64: 380 | DP64: 380 | DQ64: 380 | DR64: 380 | DS64: 380 | DT64: 380 | DU64: =DU44-DU57+DU58 -> 380 | DV64: 380 | DW64: 380 | DX64: 380 | DY64: 380 | DZ64: 360 | EA64: 380 | EB64: 380 | EC64: 380 | ED64: 380 | EE64: 380 | EF64: 380 | EG64: 380 | EH64: 380 | EI64: 380 | EJ64: 380 | EK64: 380 | EL64: 360 | EM64: 380 | EN64: 380 | EO64: 380 | EP64: 380 | EQ64: 380 | ER64: 380 | ES64: 380 | ET64: 380 | EU64: 380 | EV64: 380 | EW64: 380 | EX64: 360 | EY64: 380 | EZ64: 380 | FA64: 380 | FB64: 380 | FC64: 380 | FD64: 380 | FE64: 380 | FF64: 380 | FG64: 380 | FH64: 380 | FI64: 380 | FJ64: 360 | FK64: 380 | FL64: 380 | FM64: 380 | FN64: 380 | FO64: 380 | FP64: 380 | FQ64: 380 | FR64: 380 | FS64: 380 | FT64: 380 | FU64: 380 | FV64: 360 | FW64: 380 | FX64: 380 | FY64: 380 | FZ64: 380 | GA64: 380 | GB64: 380 | GC64: 380 | GD64: 380 | GE64: 380 | GF64: 380 | GG64: =GG44-GG57+GG58 -> 380 | GH64: 360 | GI64: 380 | GJ64: 380 | GK64: 380 | GL64: 380 | GM64: 380 | GN64: 380 | GO64: 380 | GP64: 380 | GQ64: 380 | GR64: 380 | GS64: 380 | GT64: 360 | GU64: 380 | GV64: 380 | GW64: 380 | GX64: 380 | GY64: 380 | GZ64: 380 | HA64: 380 | HB64: 380 | HC64: 380 | HD64: 380 | HE64: 380 | HF64: 360 | HG64: 380 | HH64: 380 | HI64: 380 | HJ64: 380 | HK64: 380 | HL64: 380 | HM64: 380 | HN64: 380 | HO64: 380 | HP64: 380 | HQ64: 380 | HR64: 360 | HS64: 380 | HT64: 380 | HU64: 380 | HV64: 380 | HW64: 380 | HX64: 380 | HY64: 380 | HZ64: 380 | IA64: 380 | IB64: 380 | IC64: 380 | ID64: 360 | IE64: 380 | IF64: 380 | IG64: 380 | IH64: 380 | II64: 380 | IJ64: 380 | IK64: 380 | IL64: 380 | IM64: 380 | IN64: 380 | IO64: 380 | IP64: 360 | IQ64: 380 | IR64: 380 | IS64: =IS44-IS57+IS58 -> 380 | IT64: 380 | IU64: 380 | IV64: 380 | IW64: 380 | IX64: 380 | IY64: 380 | IZ64: 380 | JA64: 380 | JB64: 360 | JC64: 380 | JD64: 380 | JE64: 380 | JF64: 380 | JG64: 380 | JH64: 380 | JI64: 380 | JJ64: 380 | JK64: 380 | JL64: 380 | JM64: 380 | JN64: 360 | JO64: 380 | JP64: 380 | JQ64: 380 | JR64: 380 | JS64: 380 | JT64: 380 | JU64: 380 | JV64: 380 | JW64: 380 | JX64: 380 | JY64: 380 | JZ64: 360 | KA64: 380 | KB64: 380 | KC64: 380 | KD64: 380 | KE64: 380 | KF64: 380 | KG64: 380 | KH64: 380 | KI64: 380 | KJ64: 380 | KK64: 380 | KL64: 360 | KM64: 380 | KN64: 380 | KO64: 380 | KP64: 380 | KQ64: 380 | KR64: 380 | KS64: 380
A66: Sheep
C67: Insemination Month 1 | E67: Month | F67: 1
C68: Insemination Month 2 | E68: Month | F68: 5
C69: Insemination Month 3 | E69: Month | F69: 9
C70: Insemination Month 4
D71: Total Months of Insemination | E71: Count | F71: =COUNT(F67:F70) -> 3
C73: Number of Sheep per Insemination | E73: Number | F73: 1
C74: Percent of Impregnations in Insemiation Month | E74: % | F74: 1
C76: Pregancy Period | E76: Month | F76: =Assumptions!F25 -> 3
C77: Birth until Slaughter for Termination Steer | E77: Month | F77: =Assumptions!F33 -> 6
C78: Births per Sheep per Year | E78: Number | F78: ='Data from Neves'!F20 -> 3
C80: Capacity of Abbitoir - Sheep | E80: Number/Year | F80: =Assumptions!H47 -> 2280
C81: Required Maternal Sheep | E81: Number | F81: =F80/F78 -> 760
C83: Total Number of Existing Sheep | E83: Number | F83: =Assumptions!F11 -> 400
C84: Existing Sheep for Maternal Breeding | E84: Number | F84: ='Animal Balances'!F83 -> 400
C85: Existing Cows for Termination | E85: Number | F85: =F83-F84 -> 0
C86: Timing of Existing Cows for Termination | E86: Month | F86: 24
C88: Total Sheep Purchased | E88: Number | F88: =Assumptions!F18 -> 2000
C89: Maternal Sheep Purchased | E89: Number | F89: =F81-F84 -> 360
C90: Sheep Purchased for Termination | E90: Number | F90: =F88-F89 -> 1640
C93: Maternal Breed Balance
D94: Opening Balance | I94: ='Animal Balances'!H99 -> 0 | J94: ='Animal Balances'!I99 -> 760 | K94: ='Animal Balances'!J99 -> 760 | L94: ='Animal Balances'!K99 -> 760 | M94: ='Animal Balances'!L99 -> 760 | N94: ='Animal Balances'!M99 -> 760 | O94: ='Animal Balances'!N99 -> 760 | P94: ='Animal Balances'!O99 -> 760 | Q94: ='Animal Balances'!P99 -> 760 | R94: ='Animal Balances'!Q99 -> 760 | S94: ='Animal Balances'!R99 -> 760 | T94: ='Animal Balances'!S99 -> 760 | U94: ='Animal Balances'!T99 -> 760 | V94: ='Animal Balances'!U99 -> 760 | W94: ='Animal Balances'!V99 -> 760 | X94: ='Animal Balances'!W99 -> 760 | Y94: ='Animal Balances'!X99 -> 760 | Z94: ='Animal Balances'!Y99 -> 760 | AA94: ='Animal Balances'!Z99 -> 760 | AB94: ='Animal Balances'!AA99 -> 760 | AC94: ='Animal Balances'!AB99 -> 760 | AD94: ='Animal Balances'!AC99 -> 760 | AE94: ='Animal Balances'!AD99 -> 760 | AF94: ='Animal Balances'!AE99 -> 760 | AG94: ='Animal Balances'!AF99 -> 760 | AH94: ='Animal Balances'!AG99 -> 760 | AI94: ='Animal Balances'!AH99 -> 760 | AJ94: ='Animal Balances'!AI99 -> 760 | AK94: ='Animal Balances'!AJ99 -> 760 | AL94: ='Animal Balances'!AK99 -> 760 | AM94: ='Animal Balances'!AL99 -> 760 | AN94: ='Animal Balances'!AM99 -> 760 | AO94: ='Animal Balances'!AN99 -> 760 | AP94: ='Animal Balances'!AO99 -> 760 | AQ94: ='Animal Balances'!AP99 -> 760 | AR94: ='Animal Balances'!AQ99 -> 760 | AS94: ='Animal Balances'!AR99 -> 760 | AT94: ='Animal Balances'!AS99 -> 760 | AU94: ='Animal Balances'!AT99 -> 760 | AV94: ='Animal Balances'!AU99 -> 760 | AW94: ='Animal Balances'!AV99 -> 760 | AX94: ='Animal Balances'!AW99 -> 760 | AY94: ='Animal Balances'!AX99 -> 760 | AZ94: ='Animal Balances'!AY99 -> 760 | BA94: ='Animal Balances'!AZ99 -> 760 | BB94: ='Animal Balances'!BA99 -> 760 | BC94: ='Animal Balances'!BB99 -> 760 | BD94: ='Animal Balances'!BC99 -> 760 | BE94: ='Animal Balances'!BD99 -> 760 | BF94: ='Animal Balances'!BE99 -> 760 | BG94: ='Animal Balances'!BF99 -> 760 | BH94: ='Animal Balances'!BG99 -> 760 | BI94: ='Animal Balances'!BH99 -> 760 | BJ94: ='Animal Balances'!BI99 -> 760 | BK94: ='Animal Balances'!BJ99 -> 760 | BL94: ='Animal Balances'!BK99 -> 760 | BM94: ='Animal Balances'!BL99 -> 760 | BN94: ='Animal Balances'!BM99 -> 760 | BO94: ='Animal Balances'!BN99 -> 760 | BP94: ='Animal Balances'!BO99 -> 760 | BQ94: ='Animal Balances'!BP99 -> 760 | BR94: ='Animal Balances'!BQ99 -> 760 | BS94: ='Animal Balances'!BR99 -> 760 | BT94: ='Animal Balances'!BS99 -> 760 | BU94: ='Animal Balances'!BT99 -> 760 | BV94: ='Animal Balances'!BU99 -> 760 | BW94: ='Animal Balances'!BV99 -> 760 | BX94: ='Animal Balances'!BW99 -> 760 | BY94: ='Animal Balances'!BX99 -> 760 | BZ94: ='Animal Balances'!BY99 -> 760 | CA94: ='Animal Balances'!BZ99 -> 760 | CB94: ='Animal Balances'!CA99 -> 760 | CC94: ='Animal Balances'!CB99 -> 760 | CD94: ='Animal Balances'!CC99 -> 760 | CE94: ='Animal Balances'!CD99 -> 760 | CF94: ='Animal Balances'!CE99 -> 760 | CG94: ='Animal Balances'!CF99 -> 760 | CH94: ='Animal Balances'!CG99 -> 760 | CI94: ='Animal Balances'!CH99 -> 760 | CJ94: ='Animal Balances'!CI99 -> 760 | CK94: ='Animal Balances'!CJ99 -> 760 | CL94: ='Animal Balances'!CK99 -> 760 | CM94: ='Animal Balances'!CL99 -> 760 | CN94: ='Animal Balances'!CM99 -> 760 | CO94: ='Animal Balances'!CN99 -> 760 | CP94: ='Animal Balances'!CO99 -> 760 | CQ94: ='Animal Balances'!CP99 -> 760 | CR94: ='Animal Balances'!CQ99 -> 760 | CS94: ='Animal Balances'!CR99 -> 760 | CT94: ='Animal Balances'!CS99 -> 760 | CU94: ='Animal Balances'!CT99 -> 760 | CV94: ='Animal Balances'!CU99 -> 760 | CW94: ='Animal Balances'!CV99 -> 760 | CX94: ='Animal Balances'!CW99 -> 760 | CY94: ='Animal Balances'!CX99 -> 760 | CZ94: ='Animal Balances'!CY99 -> 760 | DA94: ='Animal Balances'!CZ99 -> 760 | DB94: ='Animal Balances'!DA99 -> 760 | DC94: ='Animal Balances'!DB99 -> 760 | DD94: ='Animal Balances'!DC99 -> 760 | DE94: ='Animal Balances'!DD99 -> 760 | DF94: ='Animal Balances'!DE99 -> 760 | DG94: ='Animal Balances'!DF99 -> 760 | DH94: ='Animal Balances'!DG99 -> 760 | DI94: ='Animal Balances'!DH99 -> 760 | DJ94: ='Animal Balances'!DI99 -> 760 | DK94: ='Animal Balances'!DJ99 -> 760 | DL94: ='Animal Balances'!DK99 -> 760 | DM94: ='Animal Balances'!DL99 -> 760 | DN94: ='Animal Balances'!DM99 -> 760 | DO94: ='Animal Balances'!DN99 -> 760 | DP94: ='Animal Balances'!DO99 -> 760 | DQ94: ='Animal Balances'!DP99 -> 760 | DR94: ='Animal Balances'!DQ99 -> 760 | DS94: ='Animal Balances'!DR99 -> 760 | DT94: ='Animal Balances'!DS99 -> 760 | DU94: ='Animal Balances'!DT99 -> 760 | DV94: ='Animal Balances'!DU99 -> 760 | DW94: ='Animal Balances'!DV99 -> 760 | DX94: ='Animal Balances'!DW99 -> 760 | DY94: ='Animal Balances'!DX99 -> 760 | DZ94: ='Animal Balances'!DY99 -> 760 | EA94: ='Animal Balances'!DZ99 -> 760 | EB94: ='Animal Balances'!EA99 -> 760 | EC94: ='Animal Balances'!EB99 -> 760 | ED94: ='Animal Balances'!EC99 -> 760 | EE94: ='Animal Balances'!ED99 -> 760 | EF94: ='Animal Balances'!EE99 -> 760 | EG94: ='Animal Balances'!EF99 -> 760 | EH94: ='Animal Balances'!EG99 -> 760 | EI94: ='Animal Balances'!EH99 -> 760 | EJ94: ='Animal Balances'!EI99 -> 760 | EK94: ='Animal Balances'!EJ99 -> 760 | EL94: ='Animal Balances'!EK99 -> 760 | EM94: ='Animal Balances'!EL99 -> 760 | EN94: ='Animal Balances'!EM99 -> 760 | EO94: ='Animal Balances'!EN99 -> 760 | EP94: ='Animal Balances'!EO99 -> 760 | EQ94: ='Animal Balances'!EP99 -> 760 | ER94: ='Animal Balances'!EQ99 -> 760 | ES94: ='Animal Balances'!ER99 -> 760 | ET94: ='Animal Balances'!ES99 -> 760 | EU94: ='Animal Balances'!ET99 -> 760 | EV94: ='Animal Balances'!EU99 -> 760 | EW94: ='Animal Balances'!EV99 -> 760 | EX94: ='Animal Balances'!EW99 -> 760 | EY94: ='Animal Balances'!EX99 -> 760 | EZ94: ='Animal Balances'!EY99 -> 760 | FA94: ='Animal Balances'!EZ99 -> 760 | FB94: ='Animal Balances'!FA99 -> 760 | FC94: ='Animal Balances'!FB99 -> 760 | FD94: ='Animal Balances'!FC99 -> 760 | FE94: ='Animal Balances'!FD99 -> 760 | FF94: ='Animal Balances'!FE99 -> 760 | FG94: ='Animal Balances'!FF99 -> 760 | FH94: ='Animal Balances'!FG99 -> 760 | FI94: ='Animal Balances'!FH99 -> 760 | FJ94: ='Animal Balances'!FI99 -> 760 | FK94: ='Animal Balances'!FJ99 -> 760 | FL94: ='Animal Balances'!FK99 -> 760 | FM94: ='Animal Balances'!FL99 -> 760 | FN94: ='Animal Balances'!FM99 -> 760 | FO94: ='Animal Balances'!FN99 -> 760 | FP94: ='Animal Balances'!FO99 -> 760 | FQ94: ='Animal Balances'!FP99 -> 760 | FR94: ='Animal Balances'!FQ99 -> 760 | FS94: ='Animal Balances'!FR99 -> 760 | FT94: ='Animal Balances'!FS99 -> 760 | FU94: ='Animal Balances'!FT99 -> 760 | FV94: ='Animal Balances'!FU99 -> 760 | FW94: ='Animal Balances'!FV99 -> 760 | FX94: ='Animal Balances'!FW99 -> 760 | FY94: ='Animal Balances'!FX99 -> 760 | FZ94: ='Animal Balances'!FY99 -> 760 | GA94: ='Animal Balances'!FZ99 -> 760 | GB94: ='Animal Balances'!GA99 -> 760 | GC94: ='Animal Balances'!GB99 -> 760 | GD94: ='Animal Balances'!GC99 -> 760 | GE94: ='Animal Balances'!GD99 -> 760 | GF94: ='Animal Balances'!GE99 -> 760 | GG94: ='Animal Balances'!GF99 -> 760 | GH94: ='Animal Balances'!GG99 -> 760 | GI94: ='Animal Balances'!GH99 -> 760 | GJ94: ='Animal Balances'!GI99 -> 760 | GK94: ='Animal Balances'!GJ99 -> 760 | GL94: ='Animal Balances'!GK99 -> 760 | GM94: ='Animal Balances'!GL99 -> 760 | GN94: ='Animal Balances'!GM99 -> 760 | GO94: ='Animal Balances'!GN99 -> 760 | GP94: ='Animal Balances'!GO99 -> 760 | GQ94: ='Animal Balances'!GP99 -> 760 | GR94: ='Animal Balances'!GQ99 -> 760 | GS94: ='Animal Balances'!GR99 -> 760 | GT94: =GS99 -> 760 | GU94: 760 | GV94: 760 | GW94: 760 | GX94: 760 | GY94: 760 | GZ94: 760 | HA94: 760 | HB94: 760 | HC94: 760 | HD94: 760 | HE94: 760 | HF94: 760 | HG94: 760 | HH94: 760 | HI94: 760 | HJ94: 760 | HK94: 760 | HL94: 760 | HM94: 760 | HN94: 760 | HO94: 760 | HP94: 760 | HQ94: 760 | HR94: 760 | HS94: 760 | HT94: 760 | HU94: 760 | HV94: 760 | HW94: 760 | HX94: 760 | HY94: 760 | HZ94: 760 | IA94: 760 | IB94: 760 | IC94: 760 | ID94: 760 | IE94: 760 | IF94: 760 | IG94: 760 | IH94: 760 | II94: 760 | IJ94: 760 | IK94: 760 | IL94: 760 | IM94: 760 | IN94: 760 | IO94: 760 | IP94: 760 | IQ94: 760 | IR94: 760 | IS94: 760 | IT94: 760 | IU94: 760 | IV94: 760 | IW94: 760 | IX94: 760 | IY94: 760 | IZ94: 760 | JA94: 760 | JB94: 760 | JC94: 760 | JD94: 760 | JE94: 760 | JF94: =JE99 -> 760 | JG94: 760 | JH94: 760 | JI94: 760 | JJ94: 760 | JK94: 760 | JL94: 760 | JM94: 760 | JN94: 760 | JO94: 760 | JP94: 760 | JQ94: 760 | JR94: 760 | JS94: 760 | JT94: 760 | JU94: 760 | JV94: 760 | JW94: 760 | JX94: 760 | JY94: 760 | JZ94: 760 | KA94: 760 | KB94: 760 | KC94: 760 | KD94: 760 | KE94: 760 | KF94: 760 | KG94: 760 | KH94: 760 | KI94: 760 | KJ94: 760 | KK94: 760 | KL94: 760 | KM94: 760 | KN94: 760 | KO94: 760 | KP94: 760 | KQ94: 760 | KR94: 760 | KS94: 760
D95: Add: Maternal Sheep from Existing Herd | F95: ='Animal Balances'!F84 -> 400 | I95: ='Animal Balances'!F95 -> 400
D96: Add: Maternal Sheep from Acquisitions | F96: ='Animal Balances'!F89 -> 360 | I96: ='Animal Balances'!F96 -> 360
D97: Add: Cows Replaced from New Sheep
D98: Less: Maternal Sheep Slaughtered
D99: Closing Balance | I99: =I94+I95+I96+I97-I98 -> 760 | J99: =J94+J95+J96+J97-J98 -> 760 | K99: 760 | L99: 760 | M99: 760 | N99: 760 | O99: 760 | P99: 760 | Q99: 760 | R99: 760 | S99: 760 | T99: 760 | U99: 760 | V99: 760 | W99: 760 | X99: 760 | Y99: 760 | Z99: 760 | AA99: 760 | AB99: 760 | AC99: 760 | AD99: 760 | AE99: 760 | AF99: 760 | AG99: 760 | AH99: 760 | AI99: 760 | AJ99: 760 | AK99: 760 | AL99: 760 | AM99: 760 | AN99: 760 | AO99: 760 | AP99: 760 | AQ99: 760 | AR99: 760 | AS99: 760 | AT99: 760 | AU99: 760 | AV99: 760 | AW99: 760 | AX99: 760 | AY99: 760 | AZ99: 760 | BA99: 760 | BB99: 760 | BC99: 760 | BD99: 760 | BE99: 760 | BF99: 760 | BG99: 760 | BH99: 760 | BI99: 760 | BJ99: 760 | BK99: 760 | BL99: 760 | BM99: 760 | BN99: 760 | BO99: 760 | BP99: 760 | BQ99: 760 | BR99: 760 | BS99: 760 | BT99: 760 | BU99: 760 | BV99: =BV94+BV95+BV96+BV97-BV98 -> 760 | BW99: 760 | BX99: 760 | BY99: 760 | BZ99: 760 | CA99: 760 | CB99: 760 | CC99: 760 | CD99: 760 | CE99: 760 | CF99: 760 | CG99: 760 | CH99: 760 | CI99: 760 | CJ99: 760 | CK99: 760 | CL99: 760 | CM99: 760 | CN99: 760 | CO99: 760 | CP99: 760 | CQ99: 760 | CR99: 760 | CS99: 760 | CT99: 760 | CU99: 760 | CV99: 760 | CW99: 760 | CX99: 760 | CY99: 760 | CZ99: 760 | DA99: 760 | DB99: 760 | DC99: 760 | DD99: 760 | DE99: 760 | DF99: 760 | DG99: 760 | DH99: 760 | DI99: 760 | DJ99: 760 | DK99: 760 | DL99: 760 | DM99: 760 | DN99: 760 | DO99: 760 | DP99: 760 | DQ99: 760 | DR99: 760 | DS99: 760 | DT99: 760 | DU99: 760 | DV99: 760 | DW99: 760 | DX99: 760 | DY99: 760 | DZ99: 760 | EA99: 760 | EB99: 760 | EC99: 760 | ED99: 760 | EE99: 760 | EF99: 760 | EG99: 760 | EH99: =EH94+EH95+EH96+EH97-EH98 -> 760 | EI99: 760 | EJ99: 760 | EK99: 760 | EL99: 760 | EM99: 760 | EN99: 760 | EO99: 760 | EP99: 760 | EQ99: 760 | ER99: 760 | ES99: 760 | ET99: 760 | EU99: 760 | EV99: 760 | EW99: 760 | EX99: 760 | EY99: 760 | EZ99: 760 | FA99: 760 | FB99: 760 | FC99: 760 | FD99: 760 | FE99: 760 | FF99: 760 | FG99: 760 | FH99: 760 | FI99: 760 | FJ99: 760 | FK99: 760 | FL99: 760 | FM99: 760 | FN99: 760 | FO99: 760 | FP99: 760 | FQ99: 760 | FR99: 760 | FS99: 760 | FT99: 760 | FU99: 760 | FV99: 760 | FW99: 760 | FX99: 760 | FY99: 760 | FZ99: 760 | GA99: 760 | GB99: 760 | GC99: 760 | GD99: 760 | GE99: 760 | GF99: 760 | GG99: 760 | GH99: 760 | GI99: 760 | GJ99: 760 | GK99: 760 | GL99: 760 | GM99: 760 | GN99: 760 | GO99: 760 | GP99: 760 | GQ99: 760 | GR99: 760 | GS99: 760 | GT99: =GT94+GT95+GT96+GT97-GT98 -> 760 | GU99: 760 | GV99: 760 | GW99: 760 | GX99: 760 | GY99: 760 | GZ99: 760 | HA99: 760 | HB99: 760 | HC99: 760 | HD99: 760 | HE99: 760 | HF99: 760 | HG99: 760 | HH99: 760 | HI99: 760 | HJ99: 760 | HK99: 760 | HL99: 760 | HM99: 760 | HN99: 760 | HO99: 760 | HP99: 760 | HQ99: 760 | HR99: 760 | HS99: 760 | HT99: 760 | HU99: 760 | HV99: 760 | HW99: 760 | HX99: 760 | HY99: 760 | HZ99: 760 | IA99: 760 | IB99: 760 | IC99: 760 | ID99: 760 | IE99: 760 | IF99: 760 | IG99: 760 | IH99: 760 | II99: 760 | IJ99: 760 | IK99: 760 | IL99: 760 | IM99: 760 | IN99: 760 | IO99: 760 | IP99: 760 | IQ99: 760 | IR99: 760 | IS99: 760 | IT99: 760 | IU99: 760 | IV99: 760 | IW99: 760 | IX99: 760 | IY99: 760 | IZ99: 760 | JA99: 760 | JB99: 760 | JC99: 760 | JD99: 760 | JE99: 760 | JF99: =JF94+JF95+JF96+JF97-JF98 -> 760 | JG99: 760 | JH99: 760 | JI99: 760 | JJ99: 760 | JK99: 760 | JL99: 760 | JM99: 760 | JN99: 760 | JO99: 760 | JP99: 760 | JQ99: 760 | JR99: 760 | JS99: 760 | JT99: 760 | JU99: 760 | JV99: 760 | JW99: 760 | JX99: 760 | JY99: 760 | JZ99: 760 | KA99: 760 | KB99: 760 | KC99: 760 | KD99: 760 | KE99: 760 | KF99: 760 | KG99: 760 | KH99: 760 | KI99: 760 | KJ99: 760 | KK99: 760 | KL99: 760 | KM99: 760 | KN99: 760 | KO99: 760 | KP99: 760 | KQ99: 760 | KR99: 760 | KS99: 760
D101: Sheep Inseminated Flag | E101: ='Animal Balances'!F67 -> 1 | F101: ='Animal Balances'!F68 -> 5 | G101: ='Animal Balances'!F69 -> 9 | I101: =OR(I4=$E$101,I4=$F$101,I4=$G$101) -> TRUE | J101: =OR(J4=$E$101,J4=$F$101,J4=$G$101) -> FALSE | K101: FALSE | L101: FALSE | M101: TRUE | N101: FALSE | O101: FALSE | P101: FALSE | Q101: TRUE | R101: FALSE | S101: FALSE | T101: FALSE | U101: TRUE | V101: FALSE | W101: FALSE | X101: FALSE | Y101: TRUE | Z101: FALSE | AA101: FALSE | AB101: FALSE | AC101: TRUE | AD101: FALSE | AE101: FALSE | AF101: FALSE | AG101: TRUE | AH101: FALSE | AI101: FALSE | AJ101: FALSE | AK101: TRUE | AL101: FALSE | AM101: FALSE | AN101: FALSE | AO101: TRUE | AP101: FALSE | AQ101: FALSE | AR101: FALSE | AS101: TRUE | AT101: FALSE | AU101: FALSE | AV101: FALSE | AW101: TRUE | AX101: FALSE | AY101: FALSE | AZ101: FALSE | BA101: TRUE | BB101: FALSE | BC101: FALSE | BD101: FALSE | BE101: TRUE | BF101: FALSE | BG101: FALSE | BH101: FALSE | BI101: TRUE | BJ101: FALSE | BK101: FALSE | BL101: FALSE | BM101: TRUE | BN101: FALSE | BO101: FALSE | BP101: FALSE | BQ101: TRUE | BR101: FALSE | BS101: FALSE | BT101: FALSE | BU101: TRUE | BV101: =OR(BV4=$E$101,BV4=$F$101,BV4=$G$101) -> FALSE | BW101: FALSE | BX101: FALSE | BY101: TRUE | BZ101: FALSE | CA101: FALSE | CB101: FALSE | CC101: TRUE | CD101: FALSE | CE101: FALSE | CF101: FALSE | CG101: TRUE | CH101: FALSE | CI101: FALSE | CJ101: FALSE | CK101: TRUE | CL101: FALSE | CM101: FALSE | CN101: FALSE | CO101: TRUE | CP101: FALSE | CQ101: FALSE | CR101: FALSE | CS101: TRUE | CT101: FALSE | CU101: FALSE | CV101: FALSE | CW101: TRUE | CX101: FALSE | CY101: FALSE | CZ101: FALSE | DA101: TRUE | DB101: FALSE | DC101: FALSE | DD101: FALSE | DE101: TRUE | DF101: FALSE | DG101: FALSE | DH101: FALSE | DI101: TRUE | DJ101: FALSE | DK101: FALSE | DL101: FALSE | DM101: TRUE | DN101: FALSE | DO101: FALSE | DP101: FALSE | DQ101: TRUE | DR101: FALSE | DS101: FALSE | DT101: FALSE | DU101: TRUE | DV101: FALSE | DW101: FALSE | DX101: FALSE | DY101: TRUE | DZ101: FALSE | EA101: FALSE | EB101: FALSE | EC101: TRUE | ED101: FALSE | EE101: FALSE | EF101: FALSE | EG101: TRUE | EH101: =OR(EH4=$E$101,EH4=$F$101,EH4=$G$101) -> FALSE | EI101: FALSE | EJ101: FALSE | EK101: TRUE | EL101: FALSE | EM101: FALSE | EN101: FALSE | EO101: TRUE | EP101: FALSE | EQ101: FALSE | ER101: FALSE | ES101: TRUE | ET101: FALSE | EU101: FALSE | EV101: FALSE | EW101: TRUE | EX101: FALSE | EY101: FALSE | EZ101: FALSE | FA101: TRUE | FB101: FALSE | FC101: FALSE | FD101: FALSE | FE101: TRUE | FF101: FALSE | FG101: FALSE | FH101: FALSE | FI101: TRUE | FJ101: FALSE | FK101: FALSE | FL101: FALSE | FM101: TRUE | FN101: FALSE | FO101: FALSE | FP101: FALSE | FQ101: TRUE | FR101: FALSE | FS101: FALSE | FT101: FALSE | FU101: TRUE | FV101: FALSE | FW101: FALSE | FX101: FALSE | FY101: TRUE | FZ101: FALSE | GA101: FALSE | GB101: FALSE | GC101: TRUE | GD101: FALSE | GE101: FALSE | GF101: FALSE | GG101: TRUE | GH101: FALSE | GI101: FALSE | GJ101: FALSE | GK101: TRUE | GL101: FALSE | GM101: FALSE | GN101: FALSE | GO101: TRUE | GP101: FALSE | GQ101: FALSE | GR101: FALSE | GS101: TRUE | GT101: =OR(GT4=$E$101,GT4=$F$101,GT4=$G$101) -> FALSE | GU101: FALSE | GV101: FALSE | GW101: TRUE | GX101: FALSE | GY101: FALSE | GZ101: FALSE | HA101: TRUE | HB101: FALSE | HC101: FALSE | HD101: FALSE | HE101: TRUE | HF101: FALSE | HG101: FALSE | HH101: FALSE | HI101: TRUE | HJ101: FALSE | HK101: FALSE | HL101: FALSE | HM101: TRUE | HN101: FALSE | HO101: FALSE | HP101: FALSE | HQ101: TRUE | HR101: FALSE | HS101: FALSE | HT101: FALSE | HU101: TRUE | HV101: FALSE | HW101: FALSE | HX101: FALSE | HY101: TRUE | HZ101: FALSE | IA101: FALSE | IB101: FALSE | IC101: TRUE | ID101: FALSE | IE101: FALSE | IF101: FALSE | IG101: TRUE | IH101: FALSE | II101: FALSE | IJ101: FALSE | IK101: TRUE | IL101: FALSE | IM101: FALSE | IN101: FALSE | IO101: TRUE | IP101: FALSE | IQ101: FALSE | IR101: FALSE | IS101: TRUE | IT101: FALSE | IU101: FALSE | IV101: FALSE | IW101: TRUE | IX101: FALSE | IY101: FALSE | IZ101: FALSE | JA101: TRUE | JB101: FALSE | JC101: FALSE | JD101: FALSE | JE101: TRUE | JF101: =OR(JF4=$E$101,JF4=$F$101,JF4=$G$101) -> FALSE | JG101: FALSE | JH101: FALSE | JI101: TRUE | JJ101: FALSE | JK101: FALSE | JL101: FALSE | JM101: TRUE | JN101: FALSE | JO101: FALSE | JP101: FALSE | JQ101: TRUE | JR101: FALSE | JS101: FALSE | JT101: FALSE | JU101: TRUE | JV101: FALSE | JW101: FALSE | JX101: FALSE | JY101: TRUE | JZ101: FALSE | KA101: FALSE | KB101: FALSE | KC101: TRUE | KD101: FALSE | KE101: FALSE | KF101: FALSE | KG101: TRUE | KH101: FALSE | KI101: FALSE | KJ101: FALSE | KK101: TRUE | KL101: FALSE | KM101: FALSE | KN101: FALSE | KO101: TRUE | KP101: FALSE | KQ101: FALSE | KR101: FALSE | KS101: TRUE
D102: Sheep Made Pregnant
C104: Terminal Breeds Balance
D105: Opening Balance | I105: ='Animal Balances'!H111 -> 0 | J105: ='Animal Balances'!I111 -> 0 | K105: ='Animal Balances'!J111 -> 0 | L105: ='Animal Balances'!K111 -> 0 | M105: ='Animal Balances'!L111 -> 0 | N105: ='Animal Balances'!M111 -> 760 | O105: ='Animal Balances'!N111 -> 760 | P105: ='Animal Balances'!O111 -> 760 | Q105: ='Animal Balances'!P111 -> 760 | R105: ='Animal Balances'!Q111 -> 1520 | S105: ='Animal Balances'!R111 -> 1520 | T105: ='Animal Balances'!S111 -> 1520 | U105: ='Animal Balances'!T111 -> 760 | V105: ='Animal Balances'!U111 -> 1520 | W105: ='Animal Balances'!V111 -> 1520 | X105: ='Animal Balances'!W111 -> 1520 | Y105: ='Animal Balances'!X111 -> 760 | Z105: ='Animal Balances'!Y111 -> 1520 | AA105: ='Animal Balances'!Z111 -> 1520 | AB105: ='Animal Balances'!AA111 -> 1520 | AC105: ='Animal Balances'!AB111 -> 760 | AD105: ='Animal Balances'!AC111 -> 1520 | AE105: ='Animal Balances'!AD111 -> 1520 | AF105: ='Animal Balances'!AE111 -> 1520 | AG105: ='Animal Balances'!AF111 -> 760 | AH105: ='Animal Balances'!AG111 -> 1520 | AI105: ='Animal Balances'!AH111 -> 1520 | AJ105: ='Animal Balances'!AI111 -> 1520 | AK105: ='Animal Balances'!AJ111 -> 760 | AL105: ='Animal Balances'!AK111 -> 1520 | AM105: ='Animal Balances'!AL111 -> 1520 | AN105: ='Animal Balances'!AM111 -> 1520 | AO105: ='Animal Balances'!AN111 -> 760 | AP105: ='Animal Balances'!AO111 -> 1520 | AQ105: ='Animal Balances'!AP111 -> 1520 | AR105: ='Animal Balances'!AQ111 -> 1520 | AS105: ='Animal Balances'!AR111 -> 760 | AT105: ='Animal Balances'!AS111 -> 1520 | AU105: ='Animal Balances'!AT111 -> 1520 | AV105: ='Animal Balances'!AU111 -> 1520 | AW105: ='Animal Balances'!AV111 -> 760 | AX105: ='Animal Balances'!AW111 -> 1520 | AY105: ='Animal Balances'!AX111 -> 1520 | AZ105: ='Animal Balances'!AY111 -> 1520 | BA105: ='Animal Balances'!AZ111 -> 760 | BB105: ='Animal Balances'!BA111 -> 1520 | BC105: ='Animal Balances'!BB111 -> 1520 | BD105: ='Animal Balances'!BC111 -> 1520 | BE105: ='Animal Balances'!BD111 -> 760 | BF105: ='Animal Balances'!BE111 -> 1520 | BG105: ='Animal Balances'!BF111 -> 1520 | BH105: ='Animal Balances'!BG111 -> 1520 | BI105: ='Animal Balances'!BH111 -> 760 | BJ105: ='Animal Balances'!BI111 -> 1520 | BK105: ='Animal Balances'!BJ111 -> 1520 | BL105: ='Animal Balances'!BK111 -> 1520 | BM105: ='Animal Balances'!BL111 -> 760 | BN105: ='Animal Balances'!BM111 -> 1520 | BO105: ='Animal Balances'!BN111 -> 1520 | BP105: ='Animal Balances'!BO111 -> 1520 | BQ105: ='Animal Balances'!BP111 -> 760 | BR105: ='Animal Balances'!BQ111 -> 1520 | BS105: ='Animal Balances'!BR111 -> 1520 | BT105: ='Animal Balances'!BS111 -> 1520 | BU105: ='Animal Balances'!BT111 -> 760 | BV105: ='Animal Balances'!BU111 -> 1520 | BW105: ='Animal Balances'!BV111 -> 1520 | BX105: ='Animal Balances'!BW111 -> 1520 | BY105: ='Animal Balances'!BX111 -> 760 | BZ105: ='Animal Balances'!BY111 -> 1520 | CA105: ='Animal Balances'!BZ111 -> 1520 | CB105: ='Animal Balances'!CA111 -> 1520 | CC105: ='Animal Balances'!CB111 -> 760 | CD105: ='Animal Balances'!CC111 -> 1520 | CE105: ='Animal Balances'!CD111 -> 1520 | CF105: ='Animal Balances'!CE111 -> 1520 | CG105: ='Animal Balances'!CF111 -> 760 | CH105: ='Animal Balances'!CG111 -> 1520 | CI105: ='Animal Balances'!CH111 -> 1520 | CJ105: ='Animal Balances'!CI111 -> 1520 | CK105: ='Animal Balances'!CJ111 -> 760 | CL105: ='Animal Balances'!CK111 -> 1520 | CM105: ='Animal Balances'!CL111 -> 1520 | CN105: ='Animal Balances'!CM111 -> 1520 | CO105: ='Animal Balances'!CN111 -> 760 | CP105: ='Animal Balances'!CO111 -> 1520 | CQ105: ='Animal Balances'!CP111 -> 1520 | CR105: ='Animal Balances'!CQ111 -> 1520 | CS105: ='Animal Balances'!CR111 -> 760 | CT105: ='Animal Balances'!CS111 -> 1520 | CU105: ='Animal Balances'!CT111 -> 1520 | CV105: ='Animal Balances'!CU111 -> 1520 | CW105: ='Animal Balances'!CV111 -> 760 | CX105: ='Animal Balances'!CW111 -> 1520 | CY105: ='Animal Balances'!CX111 -> 1520 | CZ105: ='Animal Balances'!CY111 -> 1520 | DA105: ='Animal Balances'!CZ111 -> 760 | DB105: ='Animal Balances'!DA111 -> 1520 | DC105: ='Animal Balances'!DB111 -> 1520 | DD105: ='Animal Balances'!DC111 -> 1520 | DE105: ='Animal Balances'!DD111 -> 760 | DF105: ='Animal Balances'!DE111 -> 1520 | DG105: ='Animal Balances'!DF111 -> 1520 | DH105: ='Animal Balances'!DG111 -> 1520 | DI105: ='Animal Balances'!DH111 -> 760 | DJ105: ='Animal Balances'!DI111 -> 1520 | DK105: ='Animal Balances'!DJ111 -> 1520 | DL105: ='Animal Balances'!DK111 -> 1520 | DM105: ='Animal Balances'!DL111 -> 760 | DN105: ='Animal Balances'!DM111 -> 1520 | DO105: ='Animal Balances'!DN111 -> 1520 | DP105: ='Animal Balances'!DO111 -> 1520 | DQ105: ='Animal Balances'!DP111 -> 760 | DR105: ='Animal Balances'!DQ111 -> 1520 | DS105: ='Animal Balances'!DR111 -> 1520 | DT105: ='Animal Balances'!DS111 -> 1520 | DU105: ='Animal Balances'!DT111 -> 760 | DV105: ='Animal Balances'!DU111 -> 1520 | DW105: ='Animal Balances'!DV111 -> 1520 | DX105: ='Animal Balances'!DW111 -> 1520 | DY105: ='Animal Balances'!DX111 -> 760 | DZ105: ='Animal Balances'!DY111 -> 1520 | EA105: ='Animal Balances'!DZ111 -> 1520 | EB105: ='Animal Balances'!EA111 -> 1520 | EC105: ='Animal Balances'!EB111 -> 760 | ED105: ='Animal Balances'!EC111 -> 1520 | EE105: ='Animal Balances'!ED111 -> 1520 | EF105: ='Animal Balances'!EE111 -> 1520 | EG105: ='Animal Balances'!EF111 -> 760 | EH105: ='Animal Balances'!EG111 -> 1520 | EI105: ='Animal Balances'!EH111 -> 1520 | EJ105: ='Animal Balances'!EI111 -> 1520 | EK105: ='Animal Balances'!EJ111 -> 760 | EL105: ='Animal Balances'!EK111 -> 1520 | EM105: ='Animal Balances'!EL111 -> 1520 | EN105: ='Animal Balances'!EM111 -> 1520 | EO105: ='Animal Balances'!EN111 -> 760 | EP105: ='Animal Balances'!EO111 -> 1520 | EQ105: ='Animal Balances'!EP111 -> 1520 | ER105: ='Animal Balances'!EQ111 -> 1520 | ES105: ='Animal Balances'!ER111 -> 760 | ET105: ='Animal Balances'!ES111 -> 1520 | EU105: ='Animal Balances'!ET111 -> 1520 | EV105: ='Animal Balances'!EU111 -> 1520 | EW105: ='Animal Balances'!EV111 -> 760 | EX105: ='Animal Balances'!EW111 -> 1520 | EY105: ='Animal Balances'!EX111 -> 1520 | EZ105: ='Animal Balances'!EY111 -> 1520 | FA105: ='Animal Balances'!EZ111 -> 760 | FB105: ='Animal Balances'!FA111 -> 1520 | FC105: ='Animal Balances'!FB111 -> 1520 | FD105: ='Animal Balances'!FC111 -> 1520 | FE105: ='Animal Balances'!FD111 -> 760 | FF105: ='Animal Balances'!FE111 -> 1520 | FG105: ='Animal Balances'!FF111 -> 1520 | FH105: ='Animal Balances'!FG111 -> 1520 | FI105: ='Animal Balances'!FH111 -> 760 | FJ105: ='Animal Balances'!FI111 -> 1520 | FK105: ='Animal Balances'!FJ111 -> 1520 | FL105: ='Animal Balances'!FK111 -> 1520 | FM105: ='Animal Balances'!FL111 -> 760 | FN105: ='Animal Balances'!FM111 -> 1520 | FO105: ='Animal Balances'!FN111 -> 1520 | FP105: ='Animal Balances'!FO111 -> 1520 | FQ105: ='Animal Balances'!FP111 -> 760 | FR105: ='Animal Balances'!FQ111 -> 1520 | FS105: ='Animal Balances'!FR111 -> 1520 | FT105: ='Animal Balances'!FS111 -> 1520 | FU105: ='Animal Balances'!FT111 -> 760 | FV105: ='Animal Balances'!FU111 -> 1520 | FW105: ='Animal Balances'!FV111 -> 1520 | FX105: ='Animal Balances'!FW111 -> 1520 | FY105: ='Animal Balances'!FX111 -> 760 | FZ105: ='Animal Balances'!FY111 -> 1520 | GA105: ='Animal Balances'!FZ111 -> 1520 | GB105: ='Animal Balances'!GA111 -> 1520 | GC105: ='Animal Balances'!GB111 -> 760 | GD105: ='Animal Balances'!GC111 -> 1520 | GE105: ='Animal Balances'!GD111 -> 1520 | GF105: ='Animal Balances'!GE111 -> 1520 | GG105: ='Animal Balances'!GF111 -> 760 | GH105: ='Animal Balances'!GG111 -> 1520 | GI105: ='Animal Balances'!GH111 -> 1520 | GJ105: ='Animal Balances'!GI111 -> 1520 | GK105: ='Animal Balances'!GJ111 -> 760 | GL105: ='Animal Balances'!GK111 -> 1520 | GM105: ='Animal Balances'!GL111 -> 1520 | GN105: ='Animal Balances'!GM111 -> 1520 | GO105: ='Animal Balances'!GN111 -> 760 | GP105: ='Animal Balances'!GO111 -> 1520 | GQ105: ='Animal Balances'!GP111 -> 1520 | GR105: ='Animal Balances'!GQ111 -> 1520 | GS105: ='Animal Balances'!GR111 -> 760 | GT105: =GS111 -> 1520 | GU105: 1520 | GV105: 1520 | GW105: 760 | GX105: 1520 | GY105: 1520 | GZ105: 1520 | HA105: 760 | HB105: 1520 | HC105: 1520 | HD105: 1520 | HE105: 760 | HF105: 1520 | HG105: 1520 | HH105: 1520 | HI105: 760 | HJ105: 1520 | HK105: 1520 | HL105: 1520 | HM105: 760 | HN105: 1520 | HO105: 1520 | HP105: 1520 | HQ105: 760 | HR105: 1520 | HS105: 1520 | HT105: 1520 | HU105: 760 | HV105: 1520 | HW105: 1520 | HX105: 1520 | HY105: 760 | HZ105: 1520 | IA105: 1520 | IB105: 1520 | IC105: 760 | ID105: 1520 | IE105: 1520 | IF105: 1520 | IG105: 760 | IH105: 1520 | II105: 1520 | IJ105: 1520 | IK105: 760 | IL105: 1520 | IM105: 1520 | IN105: 1520 | IO105: 760 | IP105: 1520 | IQ105: 1520 | IR105: 1520 | IS105: 760 | IT105: 1520 | IU105: 1520 | IV105: 1520 | IW105: 760 | IX105: 1520 | IY105: 1520 | IZ105: 1520 | JA105: 760 | JB105: 1520 | JC105: 1520 | JD105: 1520 | JE105: 760 | JF105: =JE111 -> 1520 | JG105: 1520 | JH105: 1520 | JI105: 760 | JJ105: 1520 | JK105: 1520 | JL105: 1520 | JM105: 760 | JN105: 1520 | JO105: 1520 | JP105: 1520 | JQ105: 760 | JR105: 1520 | JS105: 1520 | JT105: 1520 | JU105: 760 | JV105: 1520 | JW105: 1520 | JX105: 1520 | JY105: 760 | JZ105: 1520 | KA105: 1520 | KB105: 1520 | KC105: 760 | KD105: 1520 | KE105: 1520 | KF105: 1520 | KG105: 760 | KH105: 1520 | KI105: 1520 | KJ105: 1520 | KK105: 760 | KL105: 1520 | KM105: 1520 | KN105: 1520 | KO105: 760 | KP105: 1520 | KQ105: 1520 | KR105: 1520 | KS105: 760
D106: Add: Exisiting Sheep
D107: Add: New Acquisitions | F107: ='Animal Balances'!F90 -> 1640 | G107: ='Animal Balances'!F86 -> 24 | H107: =SUM(I107:KS107) -> 1640 | I107: =IF(I2<=$G$107,$F$107/$G$107,0)*1 -> 68.33333333 | J107: =IF(J2<=$G$107,$F$107/$G$107,0)*1 -> 68.33333333 | K107: 68.33333333 | L107: 68.33333333 | M107: 68.33333333 | N107: 68.33333333 | O107: 68.33333333 | P107: 68.33333333 | Q107: 68.33333333 | R107: 68.33333333 | S107: 68.33333333 | T107: 68.33333333 | U107: 68.33333333 | V107: 68.33333333 | W107: 68.33333333 | X107: 68.33333333 | Y107: 68.33333333 | Z107: 68.33333333 | AA107: 68.33333333 | AB107: 68.33333333 | AC107: 68.33333333 | AD107: 68.33333333 | AE107: 68.33333333 | AF107: 68.33333333 | AG107: 0 | AH107: 0 | AI107: 0 | AJ107: 0 | AK107: 0 | AL107: 0 | AM107: 0 | AN107: 0 | AO107: 0 | AP107: 0 | AQ107: 0 | AR107: 0 | AS107: 0 | AT107: 0 | AU107: 0 | AV107: 0 | AW107: 0 | AX107: 0 | AY107: 0 | AZ107: 0 | BA107: 0 | BB107: 0 | BC107: 0 | BD107: 0 | BE107: 0 | BF107: 0 | BG107: 0 | BH107: 0 | BI107: 0 | BJ107: 0 | BK107: 0 | BL107: 0 | BM107: 0 | BN107: 0 | BO107: 0 | BP107: 0 | BQ107: 0 | BR107: 0 | BS107: 0 | BT107: 0 | BU107: 0 | BV107: =IF(BV2<=$G$107,$F$107/$G$107,0)*1 -> 0 | BW107: 0 | BX107: 0 | BY107: 0 | BZ107: 0 | CA107: 0 | CB107: 0 | CC107: 0 | CD107: 0 | CE107: 0 | CF107: 0 | CG107: 0 | CH107: 0 | CI107: 0 | CJ107: 0 | CK107: 0 | CL107: 0 | CM107: 0 | CN107: 0 | CO107: 0 | CP107: 0 | CQ107: 0 | CR107: 0 | CS107: 0 | CT107: 0 | CU107: 0 | CV107: 0 | CW107: 0 | CX107: 0 | CY107: 0 | CZ107: 0 | DA107: 0 | DB107: 0 | DC107: 0 | DD107: 0 | DE107: 0 | DF107: 0 | DG107: 0 | DH107: 0 | DI107: 0 | DJ107: 0 | DK107: 0 | DL107: 0 | DM107: 0 | DN107: 0 | DO107: 0 | DP107: 0 | DQ107: 0 | DR107: 0 | DS107: 0 | DT107: 0 | DU107: 0 | DV107: 0 | DW107: 0 | DX107: 0 | DY107: 0 | DZ107: 0 | EA107: 0 | EB107: 0 | EC107: 0 | ED107: 0 | EE107: 0 | EF107: 0 | EG107: 0 | EH107: =IF(EH2<=$G$107,$F$107/$G$107,0)*1 -> 0 | EI107: 0 | EJ107: 0 | EK107: 0 | EL107: 0 | EM107: 0 | EN107: 0 | EO107: 0 | EP107: 0 | EQ107: 0 | ER107: 0 | ES107: 0 | ET107: 0 | EU107: 0 | EV107: 0 | EW107: 0 | EX107: 0 | EY107: 0 | EZ107: 0 | FA107: 0 | FB107: 0 | FC107: 0 | FD107: 0 | FE107: 0 | FF107: 0 | FG107: 0 | FH107: 0 | FI107: 0 | FJ107: 0 | FK107: 0 | FL107: 0 | FM107: 0 | FN107: 0 | FO107: 0 | FP107: 0 | FQ107: 0 | FR107: 0 | FS107: 0 | FT107: 0 | FU107: 0 | FV107: 0 | FW107: 0 | FX107: 0 | FY107: 0 | FZ107: 0 | GA107: 0 | GB107: 0 | GC107: 0 | GD107: 0 | GE107: 0 | GF107: 0 | GG107: 0 | GH107: 0 | GI107: 0 | GJ107: 0 | GK107: 0 | GL107: 0 | GM107: 0 | GN107: 0 | GO107: 0 | GP107: 0 | GQ107: 0 | GR107: 0 | GS107: 0 | GT107: =IF(GT2<=$G$107,$F$107/$G$107,0)*1 -> 0 | GU107: 0 | GV107: 0 | GW107: 0 | GX107: 0 | GY107: 0 | GZ107: 0 | HA107: 0 | HB107: 0 | HC107: 0 | HD107: 0 | HE107: 0 | HF107: 0 | HG107: 0 | HH107: 0 | HI107: 0 | HJ107: 0 | HK107: 0 | HL107: 0 | HM107: 0 | HN107: 0 | HO107: 0 | HP107: 0 | HQ107: 0 | HR107: 0 | HS107: 0 | HT107: 0 | HU107: 0 | HV107: 0 | HW107: 0 | HX107: 0 | HY107: 0 | HZ107: 0 | IA107: 0 | IB107: 0 | IC107: 0 | ID107: 0 | IE107: 0 | IF107: 0 | IG107: 0 | IH107: 0 | II107: 0 | IJ107: 0 | IK107: 0 | IL107: 0 | IM107: 0 | IN107: 0 | IO107: 0 | IP107: 0 | IQ107: 0 | IR107: 0 | IS107: 0 | IT107: 0 | IU107: 0 | IV107: 0 | IW107: 0 | IX107: 0 | IY107: 0 | IZ107: 0 | JA107: 0 | JB107: 0 | JC107: 0 | JD107: 0 | JE107: 0 | JF107: =IF(JF2<=$G$107,$F$107/$G$107,0)*1 -> 0 | JG107: 0 | JH107: 0 | JI107: 0 | JJ107: 0 | JK107: 0 | JL107: 0 | JM107: 0 | JN107: 0 | JO107: 0 | JP107: 0 | JQ107: 0 | JR107: 0 | JS107: 0 | JT107: 0 | JU107: 0 | JV107: 0 | JW107: 0 | JX107: 0 | JY107: 0 | JZ107: 0 | KA107: 0 | KB107: 0 | KC107: 0 | KD107: 0 | KE107: 0 | KF107: 0 | KG107: 0 | KH107: 0 | KI107: 0 | KJ107: 0 | KK107: 0 | KL107: 0 | KM107: 0 | KN107: 0 | KO107: 0 | KP107: 0 | KQ107: 0 | KR107: 0 | KS107: 0
D108: Add: Births | F108: ='Animal Balances'!F76 -> 3 | I108: =OFFSET(I99,0,-$F$108)*I101 -> 0 | J108: =OFFSET(J99,0,-$F$108)*J101 -> 0 | K108: 0 | L108: 0 | M108: 760 | N108: 0 | O108: 0 | P108: 0 | Q108: 760 | R108: 0 | S108: 0 | T108: 0 | U108: 760 | V108: 0 | W108: 0 | X108: 0 | Y108: 760 | Z108: 0 | AA108: 0 | AB108: 0 | AC108: 760 | AD108: 0 | AE108: 0 | AF108: 0 | AG108: 760 | AH108: 0 | AI108: 0 | AJ108: 0 | AK108: 760 | AL108: 0 | AM108: 0 | AN108: 0 | AO108: 760 | AP108: 0 | AQ108: 0 | AR108: 0 | AS108: 760 | AT108: 0 | AU108: 0 | AV108: 0 | AW108: 760 | AX108: 0 | AY108: 0 | AZ108: 0 | BA108: 760 | BB108: 0 | BC108: 0 | BD108: 0 | BE108: 760 | BF108: 0 | BG108: 0 | BH108: 0 | BI108: 760 | BJ108: 0 | BK108: 0 | BL108: 0 | BM108: 760 | BN108: 0 | BO108: 0 | BP108: 0 | BQ108: 760 | BR108: 0 | BS108: 0 | BT108: 0 | BU108: 760 | BV108: =OFFSET(BV99,0,-$F$108)*BV101 -> 0 | BW108: 0 | BX108: 0 | BY108: 760 | BZ108: 0 | CA108: 0 | CB108: 0 | CC108: 760 | CD108: 0 | CE108: 0 | CF108: 0 | CG108: 760 | CH108: 0 | CI108: 0 | CJ108: 0 | CK108: 760 | CL108: 0 | CM108: 0 | CN108: 0 | CO108: 760 | CP108: 0 | CQ108: 0 | CR108: 0 | CS108: 760 | CT108: 0 | CU108: 0 | CV108: 0 | CW108: 760 | CX108: 0 | CY108: 0 | CZ108: 0 | DA108: 760 | DB108: 0 | DC108: 0 | DD108: 0 | DE108: 760 | DF108: 0 | DG108: 0 | DH108: 0 | DI108: 760 | DJ108: 0 | DK108: 0 | DL108: 0 | DM108: 760 | DN108: 0 | DO108: 0 | DP108: 0 | DQ108: 760 | DR108: 0 | DS108: 0 | DT108: 0 | DU108: 760 | DV108: 0 | DW108: 0 | DX108: 0 | DY108: 760 | DZ108: 0 | EA108: 0 | EB108: 0 | EC108: 760 | ED108: 0 | EE108: 0 | EF108: 0 | EG108: 760 | EH108: =OFFSET(EH99,0,-$F$108)*EH101 -> 0 | EI108: 0 | EJ108: 0 | EK108: 760 | EL108: 0 | EM108: 0 | EN108: 0 | EO108: 760 | EP108: 0 | EQ108: 0 | ER108: 0 | ES108: 760 | ET108: 0 | EU108: 0 | EV108: 0 | EW108: 760 | EX108: 0 | EY108: 0 | EZ108: 0 | FA108: 760 | FB108: 0 | FC108: 0 | FD108: 0 | FE108: 760 | FF108: 0 | FG108: 0 | FH108: 0 | FI108: 760 | FJ108: 0 | FK108: 0 | FL108: 0 | FM108: 760 | FN108: 0 | FO108: 0 | FP108: 0 | FQ108: 760 | FR108: 0 | FS108: 0 | FT108: 0 | FU108: 760 | FV108: 0 | FW108: 0 | FX108: 0 | FY108: 760 | FZ108: 0 | GA108: 0 | GB108: 0 | GC108: 760 | GD108: 0 | GE108: 0 | GF108: 0 | GG108: 760 | GH108: 0 | GI108: 0 | GJ108: 0 | GK108: 760 | GL108: 0 | GM108: 0 | GN108: 0 | GO108: 760 | GP108: 0 | GQ108: 0 | GR108: 0 | GS108: 760 | GT108: =OFFSET(GT99,0,-$F$108)*GT101 -> 0 | GU108: 0 | GV108: 0 | GW108: 760 | GX108: 0 | GY108: 0 | GZ108: 0 | HA108: 760 | HB108: 0 | HC108: 0 | HD108: 0 | HE108: 760 | HF108: 0 | HG108: 0 | HH108: 0 | HI108: 760 | HJ108: 0 | HK108: 0 | HL108: 0 | HM108: 760 | HN108: 0 | HO108: 0 | HP108: 0 | HQ108: 760 | HR108: 0 | HS108: 0 | HT108: 0 | HU108: 760 | HV108: 0 | HW108: 0 | HX108: 0 | HY108: 760 | HZ108: 0 | IA108: 0 | IB108: 0 | IC108: 760 | ID108: 0 | IE108: 0 | IF108: 0 | IG108: 760 | IH108: 0 | II108: 0 | IJ108: 0 | IK108: 760 | IL108: 0 | IM108: 0 | IN108: 0 | IO108: 760 | IP108: 0 | IQ108: 0 | IR108: 0 | IS108: 760 | IT108: 0 | IU108: 0 | IV108: 0 | IW108: 760 | IX108: 0 | IY108: 0 | IZ108: 0 | JA108: 760 | JB108: 0 | JC108: 0 | JD108: 0 | JE108: 760 | JF108: =OFFSET(JF99,0,-$F$108)*JF101 -> 0 | JG108: 0 | JH108: 0 | JI108: 760 | JJ108: 0 | JK108: 0 | JL108: 0 | JM108: 760 | JN108: 0 | JO108: 0 | JP108: 0 | JQ108: 760 | JR108: 0 | JS108: 0 | JT108: 0 | JU108: 760 | JV108: 0 | JW108: 0 | JX108: 0 | JY108: 760 | JZ108: 0 | KA108: 0 | KB108: 0 | KC108: 760 | KD108: 0 | KE108: 0 | KF108: 0 | KG108: 760 | KH108: 0 | KI108: 0 | KJ108: 0 | KK108: 760 | KL108: 0 | KM108: 0 | KN108: 0 | KO108: 760 | KP108: 0 | KQ108: 0 | KR108: 0 | KS108: 760
D109: Less: Slaughters | F109: =F77+1 -> 7 | I109: =IF(I2>$F$109,OFFSET(I108,0,-$F$109))*1+I107 -> 68.33333333 | J109: =IF(J2>$F$109,OFFSET(J108,0,-$F$109))*1+J107 -> 68.33333333 | K109: 68.33333333 | L109: 68.33333333 | M109: 68.33333333 | N109: 68.33333333 | O109: 68.33333333 | P109: 68.33333333 | Q109: 68.33333333 | R109: 68.33333333 | S109: 68.33333333 | T109: 828.3333333 | U109: 68.33333333 | V109: 68.33333333 | W109: 68.33333333 | X109: 828.3333333 | Y109: 68.33333333 | Z109: 68.33333333 | AA109: 68.33333333 | AB109: 828.3333333 | AC109: 68.33333333 | AD109: 68.33333333 | AE109: 68.33333333 | AF109: 828.3333333 | AG109: 0 | AH109: 0 | AI109: 0 | AJ109: 760 | AK109: 0 | AL109: 0 | AM109: 0 | AN109: 760 | AO109: 0 | AP109: 0 | AQ109: 0 | AR109: 760 | AS109: 0 | AT109: 0 | AU109: 0 | AV109: 760 | AW109: 0 | AX109: 0 | AY109: 0 | AZ109: 760 | BA109: 0 | BB109: 0 | BC109: 0 | BD109: 760 | BE109: 0 | BF109: 0 | BG109: 0 | BH109: 760 | BI109: 0 | BJ109: 0 | BK109: 0 | BL109: 760 | BM109: 0 | BN109: 0 | BO109: 0 | BP109: 760 | BQ109: 0 | BR109: 0 | BS109: 0 | BT109: 760 | BU109: 0 | BV109: =IF(BV2>$F$109,OFFSET(BV108,0,-$F$109))*1+BV107 -> 0 | BW109: 0 | BX109: 760 | BY109: 0 | BZ109: 0 | CA109: 0 | CB109: 760 | CC109: 0 | CD109: 0 | CE109: 0 | CF109: 760 | CG109: 0 | CH109: 0 | CI109: 0 | CJ109: 760 | CK109: 0 | CL109: 0 | CM109: 0 | CN109: 760 | CO109: 0 | CP109: 0 | CQ109: 0 | CR109: 760 | CS109: 0 | CT109: 0 | CU109: 0 | CV109: 760 | CW109: 0 | CX109: 0 | CY109: 0 | CZ109: 760 | DA109: 0 | DB109: 0 | DC109: 0 | DD109: 760 | DE109: 0 | DF109: 0 | DG109: 0 | DH109: 760 | DI109: 0 | DJ109: 0 | DK109: 0 | DL109: 760 | DM109: 0 | DN109: 0 | DO109: 0 | DP109: 760 | DQ109: 0 | DR109: 0 | DS109: 0 | DT109: 760 | DU109: 0 | DV109: 0 | DW109: 0 | DX109: 760 | DY109: 0 | DZ109: 0 | EA109: 0 | EB109: 760 | EC109: 0 | ED109: 0 | EE109: 0 | EF109: 760 | EG109: 0 | EH109: =IF(EH2>$F$109,OFFSET(EH108,0,-$F$109))*1+EH107 -> 0 | EI109: 0 | EJ109: 760 | EK109: 0 | EL109: 0 | EM109: 0 | EN109: 760 | EO109: 0 | EP109: 0 | EQ109: 0 | ER109: 760 | ES109: 0 | ET109: 0 | EU109: 0 | EV109: 760 | EW109: 0 | EX109: 0 | EY109: 0 | EZ109: 760 | FA109: 0 | FB109: 0 | FC109: 0 | FD109: 760 | FE109: 0 | FF109: 0 | FG109: 0 | FH109: 760 | FI109: 0 | FJ109: 0 | FK109: 0 | FL109: 760 | FM109: 0 | FN109: 0 | FO109: 0 | FP109: 760 | FQ109: 0 | FR109: 0 | FS109: 0 | FT109: 760 | FU109: 0 | FV109: 0 | FW109: 0 | FX109: 760 | FY109: 0 | FZ109: 0 | GA109: 0 | GB109: 760 | GC109: 0 | GD109: 0 | GE109: 0 | GF109: 760 | GG109: 0 | GH109: 0 | GI109: 0 | GJ109: 760 | GK109: 0 | GL109: 0 | GM109: 0 | GN109: 760 | GO109: 0 | GP109: 0 | GQ109: 0 | GR109: 760 | GS109: 0 | GT109: =IF(GT2>$F$109,OFFSET(GT108,0,-$F$109))*1+GT107 -> 0 | GU109: 0 | GV109: 760 | GW109: 0 | GX109: 0 | GY109: 0 | GZ109: 760 | HA109: 0 | HB109: 0 | HC109: 0 | HD109: 760 | HE109: 0 | HF109: 0 | HG109: 0 | HH109: 760 | HI109: 0 | HJ109: 0 | HK109: 0 | HL109: 760 | HM109: 0 | HN109: 0 | HO109: 0 | HP109: 760 | HQ109: 0 | HR109: 0 | HS109: 0 | HT109: 760 | HU109: 0 | HV109: 0 | HW109: 0 | HX109: 760 | HY109: 0 | HZ109: 0 | IA109: 0 | IB109: 760 | IC109: 0 | ID109: 0 | IE109: 0 | IF109: 760 | IG109: 0 | IH109: 0 | II109: 0 | IJ109: 760 | IK109: 0 | IL109: 0 | IM109: 0 | IN109: 760 | IO109: 0 | IP109: 0 | IQ109: 0 | IR109: 760 | IS109: 0 | IT109: 0 | IU109: 0 | IV109: 760 | IW109: 0 | IX109: 0 | IY109: 0 | IZ109: 760 | JA109: 0 | JB109: 0 | JC109: 0 | JD109: 760 | JE109: 0 | JF109: =IF(JF2>$F$109,OFFSET(JF108,0,-$F$109))*1+JF107 -> 0 | JG109: 0 | JH109: 760 | JI109: 0 | JJ109: 0 | JK109: 0 | JL109: 760 | JM109: 0 | JN109: 0 | JO109: 0 | JP109: 760 | JQ109: 0 | JR109: 0 | JS109: 0 | JT109: 760 | JU109: 0 | JV109: 0 | JW109: 0 | JX109: 760 | JY109: 0 | JZ109: 0 | KA109: 0 | KB109: 760 | KC109: 0 | KD109: 0 | KE109: 0 | KF109: 760 | KG109: 0 | KH109: 0 | KI109: 0 | KJ109: 760 | KK109: 0 | KL109: 0 | KM109: 0 | KN109: 760 | KO109: 0 | KP109: 0 | KQ109: 0 | KR109: 760 | KS109: 0
D110: Less: Transfer to Maternal
D111: Closing Balance | I111: =I105+I106+I107+I108-I109-I110 -> 0 | J111: =J105+J106+J107+J108-J109-J110 -> 0 | K111: 0 | L111: 0 | M111: 760 | N111: 760 | O111: 760 | P111: 760 | Q111: 1520 | R111: 1520 | S111: 1520 | T111: 760 | U111: 1520 | V111: 1520 | W111: 1520 | X111: 760 | Y111: 1520 | Z111: 1520 | AA111: =AA105+AA106+AA107+AA108-AA109-AA110 -> 1520 | AB111: 760 | AC111: 1520 | AD111: 1520 | AE111: 1520 | AF111: 760 | AG111: 1520 | AH111: 1520 | AI111: 1520 | AJ111: 760 | AK111: 1520 | AL111: 1520 | AM111: 1520 | AN111: 760 | AO111: 1520 | AP111: 1520 | AQ111: 1520 | AR111: 760 | AS111: 1520 | AT111: 1520 | AU111: 1520 | AV111: 760 | AW111: 1520 | AX111: 1520 | AY111: 1520 | AZ111: 760 | BA111: 1520 | BB111: 1520 | BC111: 1520 | BD111: 760 | BE111: 1520 | BF111: 1520 | BG111: 1520 | BH111: 760 | BI111: 1520 | BJ111: 1520 | BK111: 1520 | BL111: 760 | BM111: 1520 | BN111: 1520 | BO111: 1520 | BP111: 760 | BQ111: 1520 | BR111: 1520 | BS111: 1520 | BT111: 760 | BU111: 1520 | BV111: =BV105+BV106+BV107+BV108-BV109-BV110 -> 1520 | BW111: 1520 | BX111: 760 | BY111: 1520 | BZ111: 1520 | CA111: 1520 | CB111: 760 | CC111: 1520 | CD111: 1520 | CE111: 1520 | CF111: 760 | CG111: 1520 | CH111: 1520 | CI111: 1520 | CJ111: 760 | CK111: 1520 | CL111: 1520 | CM111: 1520 | CN111: 760 | CO111: 1520 | CP111: 1520 | CQ111: 1520 | CR111: 760 | CS111: 1520 | CT111: 1520 | CU111: 1520 | CV111: 760 | CW111: 1520 | CX111: 1520 | CY111: 1520 | CZ111: 760 | DA111: 1520 | DB111: 1520 | DC111: 1520 | DD111: 760 | DE111: 1520 | DF111: 1520 | DG111: 1520 | DH111: 760 | DI111: 1520 | DJ111: 1520 | DK111: 1520 | DL111: 760 | DM111: 1520 | DN111: 1520 | DO111: 1520 | DP111: 760 | DQ111: 1520 | DR111: 1520 | DS111: 1520 | DT111: 760 | DU111: 1520 | DV111: 1520 | DW111: 1520 | DX111: 760 | DY111: 1520 | DZ111: 1520 | EA111: 1520 | EB111: 760 | EC111: 1520 | ED111: 1520 | EE111: 1520 | EF111: 760 | EG111: 1520 | EH111: =EH105+EH106+EH107+EH108-EH109-EH110 -> 1520 | EI111: 1520 | EJ111: 760 | EK111: 1520 | EL111: 1520 | EM111: 1520 | EN111: 760 | EO111: 1520 | EP111: 1520 | EQ111: 1520 | ER111: 760 | ES111: 1520 | ET111: 1520 | EU111: 1520 | EV111: 760 | EW111: 1520 | EX111: 1520 | EY111: 1520 | EZ111: 760 | FA111: 1520 | FB111: 1520 | FC111: 1520 | FD111: 760 | FE111: 1520 | FF111: 1520 | FG111: 1520 | FH111: 760 | FI111: 1520 | FJ111: 1520 | FK111: 1520 | FL111: 760 | FM111: 1520 | FN111: 1520 | FO111: 1520 | FP111: 760 | FQ111: 1520 | FR111: 1520 | FS111: 1520 | FT111: 760 | FU111: 1520 | FV111: 1520 | FW111: 1520 | FX111: 760 | FY111: 1520 | FZ111: 1520 | GA111: 1520 | GB111: 760 | GC111: 1520 | GD111: 1520 | GE111: 1520 | GF111: 760 | GG111: 1520 | GH111: 1520 | GI111: 1520 | GJ111: 760 | GK111: 1520 | GL111: 1520 | GM111: 1520 | GN111: 760 | GO111: 1520 | GP111: 1520 | GQ111: 1520 | GR111: 760 | GS111: 1520 | GT111: =GT105+GT106+GT107+GT108-GT109-GT110 -> 1520 | GU111: 1520 | GV111: 760 | GW111: 1520 | GX111: 1520 | GY111: 1520 | GZ111: 760 | HA111: 1520 | HB111: 1520 | HC111: 1520 | HD111: 760 | HE111: 1520 | HF111: 1520 | HG111: 1520 | HH111: 760 | HI111: 1520 | HJ111: 1520 | HK111: 1520 | HL111: 760 | HM111: 1520 | HN111: 1520 | HO111: 1520 | HP111: 760 | HQ111: 1520 | HR111: 1520 | HS111: 1520 | HT111: 760 | HU111: 1520 | HV111: 1520 | HW111: 1520 | HX111: 760 | HY111: 1520 | HZ111: 1520 | IA111: 1520 | IB111: 760 | IC111: 1520 | ID111: 1520 | IE111: 1520 | IF111: 760 | IG111: 1520 | IH111: 1520 | II111: 1520 | IJ111: 760 | IK111: 1520 | IL111: 1520 | IM111: 1520 | IN111: 760 | IO111: 1520 | IP111: 1520 | IQ111: 1520 | IR111: 760 | IS111: 1520 | IT111: 1520 | IU111: 1520 | IV111: 760 | IW111: 1520 | IX111: 1520 | IY111: 1520 | IZ111: 760 | JA111: 1520 | JB111: 1520 | JC111: 1520 | JD111: 760 | JE111: 1520 | JF111: =JF105+JF106+JF107+JF108-JF109-JF110 -> 1520 | JG111: 1520 | JH111: 760 | JI111: 1520 | JJ111: 1520 | JK111: 1520 | JL111: 760 | JM111: 1520 | JN111: 1520 | JO111: 1520 | JP111: 760 | JQ111: 1520 | JR111: 1520 | JS111: 1520 | JT111: 760 | JU111: 1520 | JV111: 1520 | JW111: 1520 | JX111: 760 | JY111: 1520 | JZ111: 1520 | KA111: 1520 | KB111: 760 | KC111: 1520 | KD111: 1520 | KE111: 1520 | KF111: 760 | KG111: 1520 | KH111: 1520 | KI111: 1520 | KJ111: 760 | KK111: 1520 | KL111: 1520 | KM111: 1520 | KN111: 760 | KO111: 1520 | KP111: 1520 | KQ111: 1520 | KR111: 760 | KS111: 1520
C113: Slaughter Adjusted for Capacity
D114: Total Capacity of Abbitoir for Sheep | F114: =F80/12 -> 190 | I114: =$F$114 -> 190 | J114: =$F$114 -> 190 | K114: 190 | L114: 190 | M114: 190 | N114: 190 | O114: 190 | P114: 190 | Q114: 190 | R114: 190 | S114: 190 | T114: 190 | U114: 190 | V114: 190 | W114: 190 | X114: 190 | Y114: 190 | Z114: 190 | AA114: 190 | AB114: 190 | AC114: 190 | AD114: 190 | AE114: 190 | AF114: 190 | AG114: 190 | AH114: 190 | AI114: 190 | AJ114: 190 | AK114: 190 | AL114: 190 | AM114: 190 | AN114: 190 | AO114: 190 | AP114: 190 | AQ114: 190 | AR114: 190 | AS114: 190 | AT114: 190 | AU114: 190 | AV114: 190 | AW114: 190 | AX114: 190 | AY114: 190 | AZ114: 190 | BA114: 190 | BB114: 190 | BC114: 190 | BD114: 190 | BE114: 190 | BF114: 190 | BG114: 190 | BH114: 190 | BI114: 190 | BJ114: 190 | BK114: 190 | BL114: 190 | BM114: 190 | BN114: 190 | BO114: 190 | BP114: 190 | BQ114: 190 | BR114: 190 | BS114: 190 | BT114: 190 | BU114: 190 | BV114: =$F$114 -> 190 | BW114: 190 | BX114: 190 | BY114: 190 | BZ114: 190 | CA114: 190 | CB114: 190 | CC114: 190 | CD114: 190 | CE114: 190 | CF114: 190 | CG114: 190 | CH114: 190 | CI114: 190 | CJ114: 190 | CK114: 190 | CL114: 190 | CM114: 190 | CN114: 190 | CO114: 190 | CP114: 190 | CQ114: 190 | CR114: 190 | CS114: 190 | CT114: 190 | CU114: 190 | CV114: 190 | CW114: 190 | CX114: 190 | CY114: 190 | CZ114: 190 | DA114: 190 | DB114: 190 | DC114: 190 | DD114: 190 | DE114: 190 | DF114: 190 | DG114: 190 | DH114: 190 | DI114: 190 | DJ114: 190 | DK114: 190 | DL114: 190 | DM114: 190 | DN114: 190 | DO114: 190 | DP114: 190 | DQ114: 190 | DR114: 190 | DS114: 190 | DT114: 190 | DU114: 190 | DV114: 190 | DW114: 190 | DX114: 190 | DY114: 190 | DZ114: 190 | EA114: 190 | EB114: 190 | EC114: 190 | ED114: 190 | EE114: 190 | EF114: 190 | EG114: 190 | EH114: =$F$114 -> 190 | EI114: 190 | EJ114: 190 | EK114: 190 | EL114: 190 | EM114: 190 | EN114: 190 | EO114: 190 | EP114: 190 | EQ114: 190 | ER114: 190 | ES114: 190 | ET114: 190 | EU114: 190 | EV114: 190 | EW114: 190 | EX114: 190 | EY114: 190 | EZ114: 190 | FA114: 190 | FB114: 190 | FC114: 190 | FD114: 190 | FE114: 190 | FF114: 190 | FG114: 190 | FH114: 190 | FI114: 190 | FJ114: 190 | FK114: 190 | FL114: 190 | FM114: 190 | FN114: 190 | FO114: 190 | FP114: 190 | FQ114: 190 | FR114: 190 | FS114: 190 | FT114: 190 | FU114: 190 | FV114: 190 | FW114: 190 | FX114: 190 | FY114: 190 | FZ114: 190 | GA114: 190 | GB114: 190 | GC114: 190 | GD114: 190 | GE114: 190 | GF114: 190 | GG114: 190 | GH114: 190 | GI114: 190 | GJ114: 190 | GK114: 190 | GL114: 190 | GM114: 190 | GN114: 190 | GO114: 190 | GP114: 190 | GQ114: 190 | GR114: 190 | GS114: 190 | GT114: =$F$114 -> 190 | GU114: 190 | GV114: 190 | GW114: 190 | GX114: 190 | GY114: 190 | GZ114: 190 | HA114: 190 | HB114: 190 | HC114: 190 | HD114: 190 | HE114: 190 | HF114: 190 | HG114: 190 | HH114: 190 | HI114: 190 | HJ114: 190 | HK114: 190 | HL114: 190 | HM114: 190 | HN114: 190 | HO114: 190 | HP114: 190 | HQ114: 190 | HR114: 190 | HS114: 190 | HT114: 190 | HU114: 190 | HV114: 190 | HW114: 190 | HX114: 190 | HY114: 190 | HZ114: 190 | IA114: 190 | IB114: 190 | IC114: 190 | ID114: 190 | IE114: 190 | IF114: 190 | IG114: 190 | IH114: 190 | II114: 190 | IJ114: 190 | IK114: 190 | IL114: 190 | IM114: 190 | IN114: 190 | IO114: 190 | IP114: 190 | IQ114: 190 | IR114: 190 | IS114: 190 | IT114: 190 | IU114: 190 | IV114: 190 | IW114: 190 | IX114: 190 | IY114: 190 | IZ114: 190 | JA114: 190 | JB114: 190 | JC114: 190 | JD114: 190 | JE114: 190 | JF114: =$F$114 -> 190 | JG114: 190 | JH114: 190 | JI114: 190 | JJ114: 190 | JK114: 190 | JL114: 190 | JM114: 190 | JN114: 190 | JO114: 190 | JP114: 190 | JQ114: 190 | JR114: 190 | JS114: 190 | JT114: 190 | JU114: 190 | JV114: 190 | JW114: 190 | JX114: 190 | JY114: 190 | JZ114: 190 | KA114: 190 | KB114: 190 | KC114: 190 | KD114: 190 | KE114: 190 | KF114: 190 | KG114: 190 | KH114: 190 | KI114: 190 | KJ114: 190 | KK114: 190 | KL114: 190 | KM114: 190 | KN114: 190 | KO114: 190 | KP114: 190 | KQ114: 190 | KR114: 190 | KS114: 190
D115: Number Slaughtered (Min) | I115: =MIN(I114,I109) -> 68.33333333 | J115: =MIN(J114,J109) -> 68.33333333 | K115: 68.33333333 | L115: 68.33333333 | M115: 68.33333333 | N115: 68.33333333 | O115: 68.33333333 | P115: 68.33333333 | Q115: 68.33333333 | R115: 68.33333333 | S115: 68.33333333 | T115: 190 | U115: 68.33333333 | V115: 68.33333333 | W115: 68.33333333 | X115: 190 | Y115: 68.33333333 | Z115: 68.33333333 | AA115: 68.33333333 | AB115: 190 | AC115: 68.33333333 | AD115: 68.33333333 | AE115: 68.33333333 | AF115: 190 | AG115: 0 | AH115: 0 | AI115: 0 | AJ115: 190 | AK115: 0 | AL115: 0 | AM115: 0 | AN115: 190 | AO115: 0 | AP115: 0 | AQ115: 0 | AR115: 190 | AS115: 0 | AT115: 0 | AU115: 0 | AV115: 190 | AW115: 0 | AX115: 0 | AY115: 0 | AZ115: 190 | BA115: 0 | BB115: 0 | BC115: 0 | BD115: 190 | BE115: 0 | BF115: 0 | BG115: 0 | BH115: 190 | BI115: 0 | BJ115: 0 | BK115: 0 | BL115: 190 | BM115: 0 | BN115: 0 | BO115: 0 | BP115: 190 | BQ115: 0 | BR115: 0 | BS115: 0 | BT115: 190 | BU115: 0 | BV115: =MIN(BV114,BV109) -> 0 | BW115: 0 | BX115: 190 | BY115: 0 | BZ115: 0 | CA115: 0 | CB115: 190 | CC115: 0 | CD115: 0 | CE115: 0 | CF115: 190 | CG115: 0 | CH115: 0 | CI115: 0 | CJ115: 190 | CK115: 0 | CL115: 0 | CM115: 0 | CN115: 190 | CO115: 0 | CP115: 0 | CQ115: 0 | CR115: 190 | CS115: 0 | CT115: 0 | CU115: 0 | CV115: 190 | CW115: 0 | CX115: 0 | CY115: 0 | CZ115: 190 | DA115: 0 | DB115: 0 | DC115: 0 | DD115: 190 | DE115: 0 | DF115: 0 | DG115: 0 | DH115: 190 | DI115: 0 | DJ115: 0 | DK115: 0 | DL115: 190 | DM115: 0 | DN115: 0 | DO115: 0 | DP115: 190 | DQ115: 0 | DR115: 0 | DS115: 0 | DT115: 190 | DU115: 0 | DV115: 0 | DW115: 0 | DX115: 190 | DY115: 0 | DZ115: 0 | EA115: 0 | EB115: 190 | EC115: 0 | ED115: 0 | EE115: 0 | EF115: 190 | EG115: 0 | EH115: =MIN(EH114,EH109) -> 0 | EI115: 0 | EJ115: 190 | EK115: 0 | EL115: 0 | EM115: 0 | EN115: 190 | EO115: 0 | EP115: 0 | EQ115: 0 | ER115: 190 | ES115: 0 | ET115: 0 | EU115: 0 | EV115: 190 | EW115: 0 | EX115: 0 | EY115: 0 | EZ115: 190 | FA115: 0 | FB115: 0 | FC115: 0 | FD115: 190 | FE115: 0 | FF115: 0 | FG115: 0 | FH115: 190 | FI115: 0 | FJ115: 0 | FK115: 0 | FL115: 190 | FM115: 0 | FN115: 0 | FO115: 0 | FP115: 190 | FQ115: 0 | FR115: 0 | FS115: 0 | FT115: 190 | FU115: 0 | FV115: 0 | FW115: 0 | FX115: 190 | FY115: 0 | FZ115: 0 | GA115: 0 | GB115: 190 | GC115: 0 | GD115: 0 | GE115: 0 | GF115: 190 | GG115: 0 | GH115: 0 | GI115: 0 | GJ115: 190 | GK115: 0 | GL115: 0 | GM115: 0 | GN115: 190 | GO115: 0 | GP115: 0 | GQ115: 0 | GR115: 190 | GS115: 0 | GT115: =MIN(GT114,GT109) -> 0 | GU115: 0 | GV115: 190 | GW115: 0 | GX115: 0 | GY115: 0 | GZ115: 190 | HA115: 0 | HB115: 0 | HC115: 0 | HD115: 190 | HE115: 0 | HF115: 0 | HG115: 0 | HH115: 190 | HI115: 0 | HJ115: 0 | HK115: 0 | HL115: 190 | HM115: 0 | HN115: 0 | HO115: 0 | HP115: 190 | HQ115: 0 | HR115: 0 | HS115: 0 | HT115: 190 | HU115: 0 | HV115: 0 | HW115: 0 | HX115: 190 | HY115: 0 | HZ115: 0 | IA115: 0 | IB115: 190 | IC115: 0 | ID115: 0 | IE115: 0 | IF115: 190 | IG115: 0 | IH115: 0 | II115: 0 | IJ115: 190 | IK115: 0 | IL115: 0 | IM115: 0 | IN115: 190 | IO115: 0 | IP115: 0 | IQ115: 0 | IR115: 190 | IS115: 0 | IT115: 0 | IU115: 0 | IV115: 190 | IW115: 0 | IX115: 0 | IY115: 0 | IZ115: 190 | JA115: 0 | JB115: 0 | JC115: 0 | JD115: 190 | JE115: 0 | JF115: =MIN(JF114,JF109) -> 0 | JG115: 0 | JH115: 190 | JI115: 0 | JJ115: 0 | JK115: 0 | JL115: 190 | JM115: 0 | JN115: 0 | JO115: 0 | JP115: 190 | JQ115: 0 | JR115: 0 | JS115: 0 | JT115: 190 | JU115: 0 | JV115: 0 | JW115: 0 | JX115: 190 | JY115: 0 | JZ115: 0 | KA115: 0 | KB115: 190 | KC115: 0 | KD115: 0 | KE115: 0 | KF115: 190 | KG115: 0 | KH115: 0 | KI115: 0 | KJ115: 190 | KK115: 0 | KL115: 0 | KM115: 0 | KN115: 190 | KO115: 0 | KP115: 0 | KQ115: 0 | KR115: 190 | KS115: 0
D116: Availabile Capacity for Deferred | I116: =I114-I115 -> 121.6666667 | J116: =J114-J115 -> 121.6666667 | K116: 121.6666667 | L116: 121.6666667 | M116: 121.6666667 | N116: 121.6666667 | O116: 121.6666667 | P116: 121.6666667 | Q116: 121.6666667 | R116: 121.6666667 | S116: 121.6666667 | T116: 0 | U116: 121.6666667 | V116: 121.6666667 | W116: 121.6666667 | X116: 0 | Y116: 121.6666667 | Z116: 121.6666667 | AA116: 121.6666667 | AB116: 0 | AC116: 121.6666667 | AD116: 121.6666667 | AE116: 121.6666667 | AF116: 0 | AG116: 190 | AH116: 190 | AI116: 190 | AJ116: 0 | AK116: 190 | AL116: 190 | AM116: 190 | AN116: 0 | AO116: 190 | AP116: 190 | AQ116: 190 | AR116: 0 | AS116: 190 | AT116: 190 | AU116: 190 | AV116: 0 | AW116: 190 | AX116: 190 | AY116: 190 | AZ116: 0 | BA116: 190 | BB116: 190 | BC116: 190 | BD116: 0 | BE116: 190 | BF116: 190 | BG116: 190 | BH116: 0 | BI116: 190 | BJ116: 190 | BK116: 190 | BL116: 0 | BM116: 190 | BN116: 190 | BO116: 190 | BP116: 0 | BQ116: 190 | BR116: 190 | BS116: 190 | BT116: 0 | BU116: 190 | BV116: =BV114-BV115 -> 190 | BW116: 190 | BX116: 0 | BY116: 190 | BZ116: 190 | CA116: 190 | CB116: 0 | CC116: 190 | CD116: 190 | CE116: 190 | CF116: 0 | CG116: 190 | CH116: 190 | CI116: 190 | CJ116: 0 | CK116: 190 | CL116: 190 | CM116: 190 | CN116: 0 | CO116: 190 | CP116: 190 | CQ116: 190 | CR116: 0 | CS116: 190 | CT116: 190 | CU116: 190 | CV116: 0 | CW116: 190 | CX116: 190 | CY116: 190 | CZ116: 0 | DA116: 190 | DB116: 190 | DC116: 190 | DD116: 0 | DE116: 190 | DF116: 190 | DG116: 190 | DH116: 0 | DI116: 190 | DJ116: 190 | DK116: 190 | DL116: 0 | DM116: 190 | DN116: 190 | DO116: 190 | DP116: 0 | DQ116: 190 | DR116: 190 | DS116: 190 | DT116: 0 | DU116: 190 | DV116: 190 | DW116: 190 | DX116: 0 | DY116: 190 | DZ116: 190 | EA116: 190 | EB116: 0 | EC116: 190 | ED116: 190 | EE116: 190 | EF116: 0 | EG116: 190 | EH116: =EH114-EH115 -> 190 | EI116: 190 | EJ116: 0 | EK116: 190 | EL116: 190 | EM116: 190 | EN116: 0 | EO116: 190 | EP116: 190 | EQ116: 190 | ER116: 0 | ES116: 190 | ET116: 190 | EU116: 190 | EV116: 0 | EW116: 190 | EX116: 190 | EY116: 190 | EZ116: 0 | FA116: 190 | FB116: 190 | FC116: 190 | FD116: 0 | FE116: 190 | FF116: 190 | FG116: 190 | FH116: 0 | FI116: 190 | FJ116: 190 | FK116: 190 | FL116: 0 | FM116: 190 | FN116: 190 | FO116: 190 | FP116: 0 | FQ116: 190 | FR116: 190 | FS116: 190 | FT116: 0 | FU116: 190 | FV116: 190 | FW116: 190 | FX116: 0 | FY116: 190 | FZ116: 190 | GA116: 190 | GB116: 0 | GC116: 190 | GD116: 190 | GE116: 190 | GF116: 0 | GG116: 190 | GH116: 190 | GI116: 190 | GJ116: 0 | GK116: 190 | GL116: 190 | GM116: 190 | GN116: 0 | GO116: 190 | GP116: 190 | GQ116: 190 | GR116: 0 | GS116: 190 | GT116: =GT114-GT115 -> 190 | GU116: 190 | GV116: 0 | GW116: 190 | GX116: 190 | GY116: 190 | GZ116: 0 | HA116: 190 | HB116: 190 | HC116: 190 | HD116: 0 | HE116: 190 | HF116: 190 | HG116: 190 | HH116: 0 | HI116: 190 | HJ116: 190 | HK116: 190 | HL116: 0 | HM116: 190 | HN116: 190 | HO116: 190 | HP116: 0 | HQ116: 190 | HR116: 190 | HS116: 190 | HT116: 0 | HU116: 190 | HV116: 190 | HW116: 190 | HX116: 0 | HY116: 190 | HZ116: 190 | IA116: 190 | IB116: 0 | IC116: 190 | ID116: 190 | IE116: 190 | IF116: 0 | IG116: 190 | IH116: 190 | II116: 190 | IJ116: 0 | IK116: 190 | IL116: 190 | IM116: 190 | IN116: 0 | IO116: 190 | IP116: 190 | IQ116: 190 | IR116: 0 | IS116: 190 | IT116: 190 | IU116: 190 | IV116: 0 | IW116: 190 | IX116: 190 | IY116: 190 | IZ116: 0 | JA116: 190 | JB116: 190 | JC116: 190 | JD116: 0 | JE116: 190 | JF116: =JF114-JF115 -> 190 | JG116: 190 | JH116: 0 | JI116: 190 | JJ116: 190 | JK116: 190 | JL116: 0 | JM116: 190 | JN116: 190 | JO116: 190 | JP116: 0 | JQ116: 190 | JR116: 190 | JS116: 190 | JT116: 0 | JU116: 190 | JV116: 190 | JW116: 190 | JX116: 0 | JY116: 190 | JZ116: 190 | KA116: 190 | KB116: 0 | KC116: 190 | KD116: 190 | KE116: 190 | KF116: 0 | KG116: 190 | KH116: 190 | KI116: 190 | KJ116: 0 | KK116: 190 | KL116: 190 | KM116: 190 | KN116: 0 | KO116: 190 | KP116: 190 | KQ116: 190 | KR116: 0 | KS116: 190
D117: Number Deferred | I117: =I109-I115 -> 0 | J117: =J109-J115 -> 0 | K117: 0 | L117: 0 | M117: 0 | N117: 0 | O117: 0 | P117: 0 | Q117: 0 | R117: 0 | S117: 0 | T117: 638.3333333 | U117: 0 | V117: 0 | W117: 0 | X117: 638.3333333 | Y117: 0 | Z117: 0 | AA117: 0 | AB117: 638.3333333 | AC117: 0 | AD117: 0 | AE117: 0 | AF117: 638.3333333 | AG117: 0 | AH117: 0 | AI117: 0 | AJ117: 570 | AK117: 0 | AL117: 0 | AM117: 0 | AN117: 570 | AO117: 0 | AP117: 0 | AQ117: 0 | AR117: 570 | AS117: 0 | AT117: 0 | AU117: 0 | AV117: 570 | AW117: 0 | AX117: 0 | AY117: 0 | AZ117: 570 | BA117: 0 | BB117: 0 | BC117: 0 | BD117: 570 | BE117: 0 | BF117: 0 | BG117: 0 | BH117: 570 | BI117: 0 | BJ117: 0 | BK117: 0 | BL117: 570 | BM117: 0 | BN117: 0 | BO117: 0 | BP117: 570 | BQ117: 0 | BR117: 0 | BS117: 0 | BT117: 570 | BU117: 0 | BV117: =BV109-BV115 -> 0 | BW117: 0 | BX117: 570 | BY117: 0 | BZ117: 0 | CA117: 0 | CB117: 570 | CC117: 0 | CD117: 0 | CE117: 0 | CF117: 570 | CG117: 0 | CH117: 0 | CI117: 0 | CJ117: 570 | CK117: 0 | CL117: 0 | CM117: 0 | CN117: 570 | CO117: 0 | CP117: 0 | CQ117: 0 | CR117: 570 | CS117: 0 | CT117: 0 | CU117: 0 | CV117: 570 | CW117: 0 | CX117: 0 | CY117: 0 | CZ117: 570 | DA117: 0 | DB117: 0 | DC117: 0 | DD117: 570 | DE117: 0 | DF117: 0 | DG117: 0 | DH117: 570 | DI117: 0 | DJ117: 0 | DK117: 0 | DL117: 570 | DM117: 0 | DN117: 0 | DO117: 0 | DP117: 570 | DQ117: 0 | DR117: 0 | DS117: 0 | DT117: 570 | DU117: 0 | DV117: 0 | DW117: 0 | DX117: 570 | DY117: 0 | DZ117: 0 | EA117: 0 | EB117: 570 | EC117: 0 | ED117: 0 | EE117: 0 | EF117: 570 | EG117: 0 | EH117: =EH109-EH115 -> 0 | EI117: 0 | EJ117: 570 | EK117: 0 | EL117: 0 | EM117: 0 | EN117: 570 | EO117: 0 | EP117: 0 | EQ117: 0 | ER117: 570 | ES117: 0 | ET117: 0 | EU117: 0 | EV117: 570 | EW117: 0 | EX117: 0 | EY117: 0 | EZ117: 570 | FA117: 0 | FB117: 0 | FC117: 0 | FD117: 570 | FE117: 0 | FF117: 0 | FG117: 0 | FH117: 570 | FI117: 0 | FJ117: 0 | FK117: 0 | FL117: 570 | FM117: 0 | FN117: 0 | FO117: 0 | FP117: 570 | FQ117: 0 | FR117: 0 | FS117: 0 | FT117: 570 | FU117: 0 | FV117: 0 | FW117: 0 | FX117: 570 | FY117: 0 | FZ117: 0 | GA117: 0 | GB117: 570 | GC117: 0 | GD117: 0 | GE117: 0 | GF117: 570 | GG117: 0 | GH117: 0 | GI117: 0 | GJ117: 570 | GK117: 0 | GL117: 0 | GM117: 0 | GN117: 570 | GO117: 0 | GP117: 0 | GQ117: 0 | GR117: 570 | GS117: 0 | GT117: =GT109-GT115 -> 0 | GU117: 0 | GV117: 570 | GW117: 0 | GX117: 0 | GY117: 0 | GZ117: 570 | HA117: 0 | HB117: 0 | HC117: 0 | HD117: 570 | HE117: 0 | HF117: 0 | HG117: 0 | HH117: 570 | HI117: 0 | HJ117: 0 | HK117: 0 | HL117: 570 | HM117: 0 | HN117: 0 | HO117: 0 | HP117: 570 | HQ117: 0 | HR117: 0 | HS117: 0 | HT117: 570 | HU117: 0 | HV117: 0 | HW117: 0 | HX117: 570 | HY117: 0 | HZ117: 0 | IA117: 0 | IB117: 570 | IC117: 0 | ID117: 0 | IE117: 0 | IF117: 570 | IG117: 0 | IH117: 0 | II117: 0 | IJ117: 570 | IK117: 0 | IL117: 0 | IM117: 0 | IN117: 570 | IO117: 0 | IP117: 0 | IQ117: 0 | IR117: 570 | IS117: 0 | IT117: 0 | IU117: 0 | IV117: 570 | IW117: 0 | IX117: 0 | IY117: 0 | IZ117: 570 | JA117: 0 | JB117: 0 | JC117: 0 | JD117: 570 | JE117: 0 | JF117: =JF109-JF115 -> 0 | JG117: 0 | JH117: 570 | JI117: 0 | JJ117: 0 | JK117: 0 | JL117: 570 | JM117: 0 | JN117: 0 | JO117: 0 | JP117: 570 | JQ117: 0 | JR117: 0 | JS117: 0 | JT117: 570 | JU117: 0 | JV117: 0 | JW117: 0 | JX117: 570 | JY117: 0 | JZ117: 0 | KA117: 0 | KB117: 570 | KC117: 0 | KD117: 0 | KE117: 0 | KF117: 570 | KG117: 0 | KH117: 0 | KI117: 0 | KJ117: 570 | KK117: 0 | KL117: 0 | KM117: 0 | KN117: 570 | KO117: 0 | KP117: 0 | KQ117: 0 | KR117: 570 | KS117: 0
C119: Balance of Deferred
D120: Opening Balance | I120: ='Animal Balances'!H123 -> 0 | J120: ='Animal Balances'!I123 -> 0 | K120: ='Animal Balances'!J123 -> 0 | L120: ='Animal Balances'!K123 -> 0 | M120: ='Animal Balances'!L123 -> 0 | N120: ='Animal Balances'!M123 -> 0 | O120: ='Animal Balances'!N123 -> 0 | P120: ='Animal Balances'!O123 -> 0 | Q120: ='Animal Balances'!P123 -> 0 | R120: ='Animal Balances'!Q123 -> 0 | S120: ='Animal Balances'!R123 -> 0 | T120: ='Animal Balances'!S123 -> 0 | U120: ='Animal Balances'!T123 -> 638.3333333 | V120: ='Animal Balances'!U123 -> 516.6666667 | W120: ='Animal Balances'!V123 -> 395 | X120: ='Animal Balances'!W123 -> 273.3333333 | Y120: ='Animal Balances'!X123 -> 911.6666667 | Z120: ='Animal Balances'!Y123 -> 790 | AA120: ='Animal Balances'!Z123 -> 668.3333333 | AB120: ='Animal Balances'!AA123 -> 546.6666667 | AC120: ='Animal Balances'!AB123 -> 1185 | AD120: ='Animal Balances'!AC123 -> 1063.333333 | AE120: ='Animal Balances'!AD123 -> 941.6666667 | AF120: ='Animal Balances'!AE123 -> 820 | AG120: ='Animal Balances'!AF123 -> 1458.333333 | AH120: ='Animal Balances'!AG123 -> 1268.333333 | AI120: ='Animal Balances'!AH123 -> 1078.333333 | AJ120: ='Animal Balances'!AI123 -> 888.3333333 | AK120: ='Animal Balances'!AJ123 -> 1458.333333 | AL120: ='Animal Balances'!AK123 -> 1268.333333 | AM120: ='Animal Balances'!AL123 -> 1078.333333 | AN120: ='Animal Balances'!AM123 -> 888.3333333 | AO120: ='Animal Balances'!AN123 -> 1458.333333 | AP120: ='Animal Balances'!AO123 -> 1268.333333 | AQ120: ='Animal Balances'!AP123 -> 1078.333333 | AR120: ='Animal Balances'!AQ123 -> 888.3333333 | AS120: ='Animal Balances'!AR123 -> 1458.333333 | AT120: ='Animal Balances'!AS123 -> 1268.333333 | AU120: ='Animal Balances'!AT123 -> 1078.333333 | AV120: ='Animal Balances'!AU123 -> 888.3333333 | AW120: ='Animal Balances'!AV123 -> 1458.333333 | AX120: ='Animal Balances'!AW123 -> 1268.333333 | AY120: ='Animal Balances'!AX123 -> 1078.333333 | AZ120: ='Animal Balances'!AY123 -> 888.3333333 | BA120: ='Animal Balances'!AZ123 -> 1458.333333 | BB120: ='Animal Balances'!BA123 -> 1268.333333 | BC120: ='Animal Balances'!BB123 -> 1078.333333 | BD120: ='Animal Balances'!BC123 -> 888.3333333 | BE120: ='Animal Balances'!BD123 -> 1458.333333 | BF120: ='Animal Balances'!BE123 -> 1268.333333 | BG120: ='Animal Balances'!BF123 -> 1078.333333 | BH120: ='Animal Balances'!BG123 -> 888.3333333 | BI120: ='Animal Balances'!BH123 -> 1458.333333 | BJ120: ='Animal Balances'!BI123 -> 1268.333333 | BK120: ='Animal Balances'!BJ123 -> 1078.333333 | BL120: ='Animal Balances'!BK123 -> 888.3333333 | BM120: ='Animal Balances'!BL123 -> 1458.333333 | BN120: ='Animal Balances'!BM123 -> 1268.333333 | BO120: ='Animal Balances'!BN123 -> 1078.333333 | BP120: ='Animal Balances'!BO123 -> 888.3333333 | BQ120: ='Animal Balances'!BP123 -> 1458.333333 | BR120: ='Animal Balances'!BQ123 -> 1268.333333 | BS120: ='Animal Balances'!BR123 -> 1078.333333 | BT120: ='Animal Balances'!BS123 -> 888.3333333 | BU120: ='Animal Balances'!BT123 -> 1458.333333 | BV120: ='Animal Balances'!BU123 -> 1268.333333 | BW120: ='Animal Balances'!BV123 -> 1078.333333 | BX120: ='Animal Balances'!BW123 -> 888.3333333 | BY120: ='Animal Balances'!BX123 -> 1458.333333 | BZ120: ='Animal Balances'!BY123 -> 1268.333333 | CA120: ='Animal Balances'!BZ123 -> 1078.333333 | CB120: ='Animal Balances'!CA123 -> 888.3333333 | CC120: ='Animal Balances'!CB123 -> 1458.333333 | CD120: ='Animal Balances'!CC123 -> 1268.333333 | CE120: ='Animal Balances'!CD123 -> 1078.333333 | CF120: ='Animal Balances'!CE123 -> 888.3333333 | CG120: ='Animal Balances'!CF123 -> 1458.333333 | CH120: ='Animal Balances'!CG123 -> 1268.333333 | CI120: ='Animal Balances'!CH123 -> 1078.333333 | CJ120: ='Animal Balances'!CI123 -> 888.3333333 | CK120: ='Animal Balances'!CJ123 -> 1458.333333 | CL120: ='Animal Balances'!CK123 -> 1268.333333 | CM120: ='Animal Balances'!CL123 -> 1078.333333 | CN120: ='Animal Balances'!CM123 -> 888.3333333 | CO120: ='Animal Balances'!CN123 -> 1458.333333 | CP120: ='Animal Balances'!CO123 -> 1268.333333 | CQ120: ='Animal Balances'!CP123 -> 1078.333333 | CR120: ='Animal Balances'!CQ123 -> 888.3333333 | CS120: ='Animal Balances'!CR123 -> 1458.333333 | CT120: ='Animal Balances'!CS123 -> 1268.333333 | CU120: ='Animal Balances'!CT123 -> 1078.333333 | CV120: ='Animal Balances'!CU123 -> 888.3333333 | CW120: ='Animal Balances'!CV123 -> 1458.333333 | CX120: ='Animal Balances'!CW123 -> 1268.333333 | CY120: ='Animal Balances'!CX123 -> 1078.333333 | CZ120: ='Animal Balances'!CY123 -> 888.3333333 | DA120: ='Animal Balances'!CZ123 -> 1458.333333 | DB120: ='Animal Balances'!DA123 -> 1268.333333 | DC120: ='Animal Balances'!DB123 -> 1078.333333 | DD120: ='Animal Balances'!DC123 -> 888.3333333 | DE120: ='Animal Balances'!DD123 -> 1458.333333 | DF120: ='Animal Balances'!DE123 -> 1268.333333 | DG120: ='Animal Balances'!DF123 -> 1078.333333 | DH120: ='Animal Balances'!DG123 -> 888.3333333 | DI120: ='Animal Balances'!DH123 -> 1458.333333 | DJ120: ='Animal Balances'!DI123 -> 1268.333333 | DK120: ='Animal Balances'!DJ123 -> 1078.333333 | DL120: ='Animal Balances'!DK123 -> 888.3333333 | DM120: ='Animal Balances'!DL123 -> 1458.333333 | DN120: ='Animal Balances'!DM123 -> 1268.333333 | DO120: ='Animal Balances'!DN123 -> 1078.333333 | DP120: ='Animal Balances'!DO123 -> 888.3333333 | DQ120: ='Animal Balances'!DP123 -> 1458.333333 | DR120: ='Animal Balances'!DQ123 -> 1268.333333 | DS120: ='Animal Balances'!DR123 -> 1078.333333 | DT120: ='Animal Balances'!DS123 -> 888.3333333 | DU120: ='Animal Balances'!DT123 -> 1458.333333 | DV120: ='Animal Balances'!DU123 -> 1268.333333 | DW120: ='Animal Balances'!DV123 -> 1078.333333 | DX120: ='Animal Balances'!DW123 -> 888.3333333 | DY120: ='Animal Balances'!DX123 -> 1458.333333 | DZ120: ='Animal Balances'!DY123 -> 1268.333333 | EA120: ='Animal Balances'!DZ123 -> 1078.333333 | EB120: ='Animal Balances'!EA123 -> 888.3333333 | EC120: ='Animal Balances'!EB123 -> 1458.333333 | ED120: ='Animal Balances'!EC123 -> 1268.333333 | EE120: ='Animal Balances'!ED123 -> 1078.333333 | EF120: ='Animal Balances'!EE123 -> 888.3333333 | EG120: ='Animal Balances'!EF123 -> 1458.333333 | EH120: ='Animal Balances'!EG123 -> 1268.333333 | EI120: ='Animal Balances'!EH123 -> 1078.333333 | EJ120: ='Animal Balances'!EI123 -> 888.3333333 | EK120: ='Animal Balances'!EJ123 -> 1458.333333 | EL120: ='Animal Balances'!EK123 -> 1268.333333 | EM120: ='Animal Balances'!EL123 -> 1078.333333 | EN120: ='Animal Balances'!EM123 -> 888.3333333 | EO120: ='Animal Balances'!EN123 -> 1458.333333 | EP120: ='Animal Balances'!EO123 -> 1268.333333 | EQ120: ='Animal Balances'!EP123 -> 1078.333333 | ER120: ='Animal Balances'!EQ123 -> 888.3333333 | ES120: ='Animal Balances'!ER123 -> 1458.333333 | ET120: ='Animal Balances'!ES123 -> 1268.333333 | EU120: ='Animal Balances'!ET123 -> 1078.333333 | EV120: ='Animal Balances'!EU123 -> 888.3333333 | EW120: ='Animal Balances'!EV123 -> 1458.333333 | EX120: ='Animal Balances'!EW123 -> 1268.333333 | EY120: ='Animal Balances'!EX123 -> 1078.333333 | EZ120: ='Animal Balances'!EY123 -> 888.3333333 | FA120: ='Animal Balances'!EZ123 -> 1458.333333 | FB120: ='Animal Balances'!FA123 -> 1268.333333 | FC120: ='Animal Balances'!FB123 -> 1078.333333 | FD120: ='Animal Balances'!FC123 -> 888.3333333 | FE120: ='Animal Balances'!FD123 -> 1458.333333 | FF120: ='Animal Balances'!FE123 -> 1268.333333 | FG120: ='Animal Balances'!FF123 -> 1078.333333 | FH120: ='Animal Balances'!FG123 -> 888.3333333 | FI120: ='Animal Balances'!FH123 -> 1458.333333 | FJ120: ='Animal Balances'!FI123 -> 1268.333333 | FK120: ='Animal Balances'!FJ123 -> 1078.333333 | FL120: ='Animal Balances'!FK123 -> 888.3333333 | FM120: ='Animal Balances'!FL123 -> 1458.333333 | FN120: ='Animal Balances'!FM123 -> 1268.333333 | FO120: ='Animal Balances'!FN123 -> 1078.333333 | FP120: ='Animal Balances'!FO123 -> 888.3333333 | FQ120: ='Animal Balances'!FP123 -> 1458.333333 | FR120: ='Animal Balances'!FQ123 -> 1268.333333 | FS120: ='Animal Balances'!FR123 -> 1078.333333 | FT120: ='Animal Balances'!FS123 -> 888.3333333 | FU120: ='Animal Balances'!FT123 -> 1458.333333 | FV120: ='Animal Balances'!FU123 -> 1268.333333 | FW120: ='Animal Balances'!FV123 -> 1078.333333 | FX120: ='Animal Balances'!FW123 -> 888.3333333 | FY120: ='Animal Balances'!FX123 -> 1458.333333 | FZ120: ='Animal Balances'!FY123 -> 1268.333333 | GA120: ='Animal Balances'!FZ123 -> 1078.333333 | GB120: ='Animal Balances'!GA123 -> 888.3333333 | GC120: ='Animal Balances'!GB123 -> 1458.333333 | GD120: ='Animal Balances'!GC123 -> 1268.333333 | GE120: ='Animal Balances'!GD123 -> 1078.333333 | GF120: ='Animal Balances'!GE123 -> 888.3333333 | GG120: ='Animal Balances'!GF123 -> 1458.333333 | GH120: ='Animal Balances'!GG123 -> 1268.333333 | GI120: ='Animal Balances'!GH123 -> 1078.333333 | GJ120: ='Animal Balances'!GI123 -> 888.3333333 | GK120: ='Animal Balances'!GJ123 -> 1458.333333 | GL120: ='Animal Balances'!GK123 -> 1268.333333 | GM120: ='Animal Balances'!GL123 -> 1078.333333 | GN120: ='Animal Balances'!GM123 -> 888.3333333 | GO120: ='Animal Balances'!GN123 -> 1458.333333 | GP120: ='Animal Balances'!GO123 -> 1268.333333 | GQ120: ='Animal Balances'!GP123 -> 1078.333333 | GR120: ='Animal Balances'!GQ123 -> 888.3333333 | GS120: ='Animal Balances'!GR123 -> 1458.333333 | GT120: =GS123 -> 1268.333333 | GU120: 1078.333333 | GV120: 888.3333333 | GW120: 1458.333333 | GX120: 1268.333333 | GY120: 1078.333333 | GZ120: 888.3333333 | HA120: 1458.333333 | HB120: 1268.333333 | HC120: 1078.333333 | HD120: 888.3333333 | HE120: 1458.333333 | HF120: 1268.333333 | HG120: 1078.333333 | HH120: 888.3333333 | HI120: 1458.333333 | HJ120: 1268.333333 | HK120: 1078.333333 | HL120: 888.3333333 | HM120: 1458.333333 | HN120: 1268.333333 | HO120: 1078.333333 | HP120: 888.3333333 | HQ120: 1458.333333 | HR120: 1268.333333 | HS120: 1078.333333 | HT120: 888.3333333 | HU120: 1458.333333 | HV120: 1268.333333 | HW120: 1078.333333 | HX120: 888.3333333 | HY120: 1458.333333 | HZ120: 1268.333333 | IA120: 1078.333333 | IB120: 888.3333333 | IC120: 1458.333333 | ID120: 1268.333333 | IE120: 1078.333333 | IF120: 888.3333333 | IG120: 1458.333333 | IH120: 1268.333333 | II120: 1078.333333 | IJ120: 888.3333333 | IK120: 1458.333333 | IL120: 1268.333333 | IM120: 1078.333333 | IN120: 888.3333333 | IO120: 1458.333333 | IP120: 1268.333333 | IQ120: 1078.333333 | IR120: 888.3333333 | IS120: 1458.333333 | IT120: 1268.333333 | IU120: 1078.333333 | IV120: 888.3333333 | IW120: 1458.333333 | IX120: 1268.333333 | IY120: 1078.333333 | IZ120: 888.3333333 | JA120: 1458.333333 | JB120: 1268.333333 | JC120: 1078.333333 | JD120: 888.3333333 | JE120: 1458.333333 | JF120: =JE123 -> 1268.333333 | JG120: 1078.333333 | JH120: 888.3333333 | JI120: 1458.333333 | JJ120: 1268.333333 | JK120: 1078.333333 | JL120: 888.3333333 | JM120: 1458.333333 | JN120: 1268.333333 | JO120: 1078.333333 | JP120: 888.3333333 | JQ120: 1458.333333 | JR120: 1268.333333 | JS120: 1078.333333 | JT120: 888.3333333 | JU120: 1458.333333 | JV120: 1268.333333 | JW120: 1078.333333 | JX120: 888.3333333 | JY120: 1458.333333 | JZ120: 1268.333333 | KA120: 1078.333333 | KB120: 888.3333333 | KC120: 1458.333333 | KD120: 1268.333333 | KE120: 1078.333333 | KF120: 888.3333333 | KG120: 1458.333333 | KH120: 1268.333333 | KI120: 1078.333333 | KJ120: 888.3333333 | KK120: 1458.333333 | KL120: 1268.333333 | KM120: 1078.333333 | KN120: 888.3333333 | KO120: 1458.333333 | KP120: 1268.333333 | KQ120: 1078.333333 | KR120: 888.3333333 | KS120: 1458.333333
D121: Add: Deferred | I121: ='Animal Balances'!I117 -> 0 | J121: ='Animal Balances'!J117 -> 0 | K121: ='Animal Balances'!K117 -> 0 | L121: ='Animal Balances'!L117 -> 0 | M121: ='Animal Balances'!M117 -> 0 | N121: ='Animal Balances'!N117 -> 0 | O121: ='Animal Balances'!O117 -> 0 | P121: ='Animal Balances'!P117 -> 0 | Q121: ='Animal Balances'!Q117 -> 0 | R121: ='Animal Balances'!R117 -> 0 | S121: ='Animal Balances'!S117 -> 0 | T121: ='Animal Balances'!T117 -> 638.3333333 | U121: ='Animal Balances'!U117 -> 0 | V121: ='Animal Balances'!V117 -> 0 | W121: ='Animal Balances'!W117 -> 0 | X121: ='Animal Balances'!X117 -> 638.3333333 | Y121: ='Animal Balances'!Y117 -> 0 | Z121: ='Animal Balances'!Z117 -> 0 | AA121: ='Animal Balances'!AA117 -> 0 | AB121: ='Animal Balances'!AB117 -> 638.3333333 | AC121: ='Animal Balances'!AC117 -> 0 | AD121: ='Animal Balances'!AD117 -> 0 | AE121: ='Animal Balances'!AE117 -> 0 | AF121: ='Animal Balances'!AF117 -> 638.3333333 | AG121: ='Animal Balances'!AG117 -> 0 | AH121: ='Animal Balances'!AH117 -> 0 | AI121: ='Animal Balances'!AI117 -> 0 | AJ121: ='Animal Balances'!AJ117 -> 570 | AK121: ='Animal Balances'!AK117 -> 0 | AL121: ='Animal Balances'!AL117 -> 0 | AM121: ='Animal Balances'!AM117 -> 0 | AN121: ='Animal Balances'!AN117 -> 570 | AO121: ='Animal Balances'!AO117 -> 0 | AP121: ='Animal Balances'!AP117 -> 0 | AQ121: ='Animal Balances'!AQ117 -> 0 | AR121: ='Animal Balances'!AR117 -> 570 | AS121: ='Animal Balances'!AS117 -> 0 | AT121: ='Animal Balances'!AT117 -> 0 | AU121: ='Animal Balances'!AU117 -> 0 | AV121: ='Animal Balances'!AV117 -> 570 | AW121: ='Animal Balances'!AW117 -> 0 | AX121: ='Animal Balances'!AX117 -> 0 | AY121: ='Animal Balances'!AY117 -> 0 | AZ121: ='Animal Balances'!AZ117 -> 570 | BA121: ='Animal Balances'!BA117 -> 0 | BB121: ='Animal Balances'!BB117 -> 0 | BC121: ='Animal Balances'!BC117 -> 0 | BD121: ='Animal Balances'!BD117 -> 570 | BE121: ='Animal Balances'!BE117 -> 0 | BF121: ='Animal Balances'!BF117 -> 0 | BG121: ='Animal Balances'!BG117 -> 0 | BH121: ='Animal Balances'!BH117 -> 570 | BI121: ='Animal Balances'!BI117 -> 0 | BJ121: ='Animal Balances'!BJ117 -> 0 | BK121: ='Animal Balances'!BK117 -> 0 | BL121: ='Animal Balances'!BL117 -> 570 | BM121: ='Animal Balances'!BM117 -> 0 | BN121: ='Animal Balances'!BN117 -> 0 | BO121: ='Animal Balances'!BO117 -> 0 | BP121: ='Animal Balances'!BP117 -> 570 | BQ121: ='Animal Balances'!BQ117 -> 0 | BR121: ='Animal Balances'!BR117 -> 0 | BS121: ='Animal Balances'!BS117 -> 0 | BT121: ='Animal Balances'!BT117 -> 570 | BU121: ='Animal Balances'!BU117 -> 0 | BV121: ='Animal Balances'!BV117 -> 0 | BW121: ='Animal Balances'!BW117 -> 0 | BX121: ='Animal Balances'!BX117 -> 570 | BY121: ='Animal Balances'!BY117 -> 0 | BZ121: ='Animal Balances'!BZ117 -> 0 | CA121: ='Animal Balances'!CA117 -> 0 | CB121: ='Animal Balances'!CB117 -> 570 | CC121: ='Animal Balances'!CC117 -> 0 | CD121: ='Animal Balances'!CD117 -> 0 | CE121: ='Animal Balances'!CE117 -> 0 | CF121: ='Animal Balances'!CF117 -> 570 | CG121: ='Animal Balances'!CG117 -> 0 | CH121: ='Animal Balances'!CH117 -> 0 | CI121: ='Animal Balances'!CI117 -> 0 | CJ121: ='Animal Balances'!CJ117 -> 570 | CK121: ='Animal Balances'!CK117 -> 0 | CL121: ='Animal Balances'!CL117 -> 0 | CM121: ='Animal Balances'!CM117 -> 0 | CN121: ='Animal Balances'!CN117 -> 570 | CO121: ='Animal Balances'!CO117 -> 0 | CP121: ='Animal Balances'!CP117 -> 0 | CQ121: ='Animal Balances'!CQ117 -> 0 | CR121: ='Animal Balances'!CR117 -> 570 | CS121: ='Animal Balances'!CS117 -> 0 | CT121: ='Animal Balances'!CT117 -> 0 | CU121: ='Animal Balances'!CU117 -> 0 | CV121: ='Animal Balances'!CV117 -> 570 | CW121: ='Animal Balances'!CW117 -> 0 | CX121: ='Animal Balances'!CX117 -> 0 | CY121: ='Animal Balances'!CY117 -> 0 | CZ121: ='Animal Balances'!CZ117 -> 570 | DA121: ='Animal Balances'!DA117 -> 0 | DB121: ='Animal Balances'!DB117 -> 0 | DC121: ='Animal Balances'!DC117 -> 0 | DD121: ='Animal Balances'!DD117 -> 570 | DE121: ='Animal Balances'!DE117 -> 0 | DF121: ='Animal Balances'!DF117 -> 0 | DG121: ='Animal Balances'!DG117 -> 0 | DH121: ='Animal Balances'!DH117 -> 570 | DI121: ='Animal Balances'!DI117 -> 0 | DJ121: ='Animal Balances'!DJ117 -> 0 | DK121: ='Animal Balances'!DK117 -> 0 | DL121: ='Animal Balances'!DL117 -> 570 | DM121: ='Animal Balances'!DM117 -> 0 | DN121: ='Animal Balances'!DN117 -> 0 | DO121: ='Animal Balances'!DO117 -> 0 | DP121: ='Animal Balances'!DP117 -> 570 | DQ121: ='Animal Balances'!DQ117 -> 0 | DR121: ='Animal Balances'!DR117 -> 0 | DS121: ='Animal Balances'!DS117 -> 0 | DT121: ='Animal Balances'!DT117 -> 570 | DU121: ='Animal Balances'!DU117 -> 0 | DV121: ='Animal Balances'!DV117 -> 0 | DW121: ='Animal Balances'!DW117 -> 0 | DX121: ='Animal Balances'!DX117 -> 570 | DY121: ='Animal Balances'!DY117 -> 0 | DZ121: ='Animal Balances'!DZ117 -> 0 | EA121: ='Animal Balances'!EA117 -> 0 | EB121: ='Animal Balances'!EB117 -> 570 | EC121: ='Animal Balances'!EC117 -> 0 | ED121: ='Animal Balances'!ED117 -> 0 | EE121: ='Animal Balances'!EE117 -> 0 | EF121: ='Animal Balances'!EF117 -> 570 | EG121: ='Animal Balances'!EG117 -> 0 | EH121: ='Animal Balances'!EH117 -> 0 | EI121: ='Animal Balances'!EI117 -> 0 | EJ121: ='Animal Balances'!EJ117 -> 570 | EK121: ='Animal Balances'!EK117 -> 0 | EL121: ='Animal Balances'!EL117 -> 0 | EM121: ='Animal Balances'!EM117 -> 0 | EN121: ='Animal Balances'!EN117 -> 570 | EO121: ='Animal Balances'!EO117 -> 0 | EP121: ='Animal Balances'!EP117 -> 0 | EQ121: ='Animal Balances'!EQ117 -> 0 | ER121: ='Animal Balances'!ER117 -> 570 | ES121: ='Animal Balances'!ES117 -> 0 | ET121: ='Animal Balances'!ET117 -> 0 | EU121: ='Animal Balances'!EU117 -> 0 | EV121: ='Animal Balances'!EV117 -> 570 | EW121: ='Animal Balances'!EW117 -> 0 | EX121: ='Animal Balances'!EX117 -> 0 | EY121: ='Animal Balances'!EY117 -> 0 | EZ121: ='Animal Balances'!EZ117 -> 570 | FA121: ='Animal Balances'!FA117 -> 0 | FB121: ='Animal Balances'!FB117 -> 0 | FC121: ='Animal Balances'!FC117 -> 0 | FD121: ='Animal Balances'!FD117 -> 570 | FE121: ='Animal Balances'!FE117 -> 0 | FF121: ='Animal Balances'!FF117 -> 0 | FG121: ='Animal Balances'!FG117 -> 0 | FH121: ='Animal Balances'!FH117 -> 570 | FI121: ='Animal Balances'!FI117 -> 0 | FJ121: ='Animal Balances'!FJ117 -> 0 | FK121: ='Animal Balances'!FK117 -> 0 | FL121: ='Animal Balances'!FL117 -> 570 | FM121: ='Animal Balances'!FM117 -> 0 | FN121: ='Animal Balances'!FN117 -> 0 | FO121: ='Animal Balances'!FO117 -> 0 | FP121: ='Animal Balances'!FP117 -> 570 | FQ121: ='Animal Balances'!FQ117 -> 0 | FR121: ='Animal Balances'!FR117 -> 0 | FS121: ='Animal Balances'!FS117 -> 0 | FT121: ='Animal Balances'!FT117 -> 570 | FU121: ='Animal Balances'!FU117 -> 0 | FV121: ='Animal Balances'!FV117 -> 0 | FW121: ='Animal Balances'!FW117 -> 0 | FX121: ='Animal Balances'!FX117 -> 570 | FY121: ='Animal Balances'!FY117 -> 0 | FZ121: ='Animal Balances'!FZ117 -> 0 | GA121: ='Animal Balances'!GA117 -> 0 | GB121: ='Animal Balances'!GB117 -> 570 | GC121: ='Animal Balances'!GC117 -> 0 | GD121: ='Animal Balances'!GD117 -> 0 | GE121: ='Animal Balances'!GE117 -> 0 | GF121: ='Animal Balances'!GF117 -> 570 | GG121: ='Animal Balances'!GG117 -> 0 | GH121: ='Animal Balances'!GH117 -> 0 | GI121: ='Animal Balances'!GI117 -> 0 | GJ121: ='Animal Balances'!GJ117 -> 570 | GK121: ='Animal Balances'!GK117 -> 0 | GL121: ='Animal Balances'!GL117 -> 0 | GM121: ='Animal Balances'!GM117 -> 0 | GN121: ='Animal Balances'!GN117 -> 570 | GO121: ='Animal Balances'!GO117 -> 0 | GP121: ='Animal Balances'!GP117 -> 0 | GQ121: ='Animal Balances'!GQ117 -> 0 | GR121: ='Animal Balances'!GR117 -> 570 | GS121: ='Animal Balances'!GS117 -> 0 | GT121: =GT117 -> 0 | GU121: 0 | GV121: 570 | GW121: 0 | GX121: 0 | GY121: 0 | GZ121: 570 | HA121: 0 | HB121: 0 | HC121: 0 | HD121: 570 | HE121: 0 | HF121: 0 | HG121: 0 | HH121: 570 | HI121: 0 | HJ121: 0 | HK121: 0 | HL121: 570 | HM121: 0 | HN121: 0 | HO121: 0 | HP121: 570 | HQ121: 0 | HR121: 0 | HS121: 0 | HT121: 570 | HU121: 0 | HV121: 0 | HW121: 0 | HX121: 570 | HY121: 0 | HZ121: 0 | IA121: 0 | IB121: 570 | IC121: 0 | ID121: 0 | IE121: 0 | IF121: 570 | IG121: 0 | IH121: 0 | II121: 0 | IJ121: 570 | IK121: 0 | IL121: 0 | IM121: 0 | IN121: 570 | IO121: 0 | IP121: 0 | IQ121: 0 | IR121: 570 | IS121: 0 | IT121: 0 | IU121: 0 | IV121: 570 | IW121: 0 | IX121: 0 | IY121: 0 | IZ121: 570 | JA121: 0 | JB121: 0 | JC121: 0 | JD121: 570 | JE121: 0 | JF121: =JF117 -> 0 | JG121: 0 | JH121: 570 | JI121: 0 | JJ121: 0 | JK121: 0 | JL121: 570 | JM121: 0 | JN121: 0 | JO121: 0 | JP121: 570 | JQ121: 0 | JR121: 0 | JS121: 0 | JT121: 570 | JU121: 0 | JV121: 0 | JW121: 0 | JX121: 570 | JY121: 0 | JZ121: 0 | KA121: 0 | KB121: 570 | KC121: 0 | KD121: 0 | KE121: 0 | KF121: 570 | KG121: 0 | KH121: 0 | KI121: 0 | KJ121: 570 | KK121: 0 | KL121: 0 | KM121: 0 | KN121: 570 | KO121: 0 | KP121: 0 | KQ121: 0 | KR121: 570 | KS121: 0
D122: Less: Deferred Slaughtered | I122: =MIN(I120,I116) -> 0 | J122: =MIN(J120,J116) -> 0 | K122: 0 | L122: 0 | M122: 0 | N122: 0 | O122: 0 | P122: 0 | Q122: 0 | R122: 0 | S122: 0 | T122: 0 | U122: =MIN(U120,U116) -> 121.6666667 | V122: 121.6666667 | W122: 121.6666667 | X122: 0 | Y122: 121.6666667 | Z122: 121.6666667 | AA122: 121.6666667 | AB122: 0 | AC122: 121.6666667 | AD122: 121.6666667 | AE122: 121.6666667 | AF122: 0 | AG122: 190 | AH122: 190 | AI122: 190 | AJ122: 0 | AK122: 190 | AL122: 190 | AM122: 190 | AN122: 0 | AO122: 190 | AP122: 190 | AQ122: 190 | AR122: 0 | AS122: 190 | AT122: 190 | AU122: 190 | AV122: 0 | AW122: 190 | AX122: 190 | AY122: 190 | AZ122: 0 | BA122: 190 | BB122: 190 | BC122: 190 | BD122: 0 | BE122: 190 | BF122: 190 | BG122: 190 | BH122: 0 | BI122: 190 | BJ122: 190 | BK122: 190 | BL122: 0 | BM122: 190 | BN122: 190 | BO122: 190 | BP122: 0 | BQ122: 190 | BR122: 190 | BS122: 190 | BT122: 0 | BU122: 190 | BV122: =MIN(BV120,BV116) -> 190 | BW122: 190 | BX122: 0 | BY122: 190 | BZ122: 190 | CA122: 190 | CB122: 0 | CC122: 190 | CD122: 190 | CE122: 190 | CF122: 0 | CG122: 190 | CH122: 190 | CI122: 190 | CJ122: 0 | CK122: 190 | CL122: 190 | CM122: 190 | CN122: 0 | CO122: 190 | CP122: 190 | CQ122: 190 | CR122: 0 | CS122: 190 | CT122: 190 | CU122: 190 | CV122: 0 | CW122: 190 | CX122: 190 | CY122: 190 | CZ122: 0 | DA122: 190 | DB122: 190 | DC122: 190 | DD122: 0 | DE122: 190 | DF122: 190 | DG122: 190 | DH122: 0 | DI122: 190 | DJ122: 190 | DK122: 190 | DL122: 0 | DM122: 190 | DN122: 190 | DO122: 190 | DP122: 0 | DQ122: 190 | DR122: 190 | DS122: 190 | DT122: 0 | DU122: 190 | DV122: 190 | DW122: 190 | DX122: 0 | DY122: 190 | DZ122: 190 | EA122: 190 | EB122: 0 | EC122: 190 | ED122: 190 | EE122: 190 | EF122: 0 | EG122: 190 | EH122: =MIN(EH120,EH116) -> 190 | EI122: 190 | EJ122: 0 | EK122: 190 | EL122: 190 | EM122: 190 | EN122: 0 | EO122: 190 | EP122: 190 | EQ122: 190 | ER122: 0 | ES122: 190 | ET122: 190 | EU122: 190 | EV122: 0 | EW122: 190 | EX122: 190 | EY122: 190 | EZ122: 0 | FA122: 190 | FB122: 190 | FC122: 190 | FD122: 0 | FE122: 190 | FF122: 190 | FG122: 190 | FH122: 0 | FI122: 190 | FJ122: 190 | FK122: 190 | FL122: 0 | FM122: 190 | FN122: 190 | FO122: 190 | FP122: 0 | FQ122: 190 | FR122: 190 | FS122: 190 | FT122: 0 | FU122: 190 | FV122: 190 | FW122: 190 | FX122: 0 | FY122: 190 | FZ122: 190 | GA122: 190 | GB122: 0 | GC122: 190 | GD122: 190 | GE122: 190 | GF122: 0 | GG122: 190 | GH122: 190 | GI122: 190 | GJ122: 0 | GK122: 190 | GL122: 190 | GM122: 190 | GN122: 0 | GO122: 190 | GP122: 190 | GQ122: 190 | GR122: 0 | GS122: 190 | GT122: =MIN(GT120,GT116) -> 190 | GU122: 190 | GV122: 0 | GW122: 190 | GX122: 190 | GY122: 190 | GZ122: 0 | HA122: 190 | HB122: 190 | HC122: 190 | HD122: 0 | HE122: 190 | HF122: 190 | HG122: 190 | HH122: 0 | HI122: 190 | HJ122: 190 | HK122: 190 | HL122: 0 | HM122: 190 | HN122: 190 | HO122: 190 | HP122: 0 | HQ122: 190 | HR122: 190 | HS122: 190 | HT122: 0 | HU122: 190 | HV122: 190 | HW122: 190 | HX122: 0 | HY122: 190 | HZ122: 190 | IA122: 190 | IB122: 0 | IC122: 190 | ID122: 190 | IE122: 190 | IF122: 0 | IG122: 190 | IH122: 190 | II122: 190 | IJ122: 0 | IK122: 190 | IL122: 190 | IM122: 190 | IN122: 0 | IO122: 190 | IP122: 190 | IQ122: 190 | IR122: 0 | IS122: 190 | IT122: 190 | IU122: 190 | IV122: 0 | IW122: 190 | IX122: 190 | IY122: 190 | IZ122: 0 | JA122: 190 | JB122: 190 | JC122: 190 | JD122: 0 | JE122: 190 | JF122: =MIN(JF120,JF116) -> 190 | JG122: 190 | JH122: 0 | JI122: 190 | JJ122: 190 | JK122: 190 | JL122: 0 | JM122: 190 | JN122: 190 | JO122: 190 | JP122: 0 | JQ122: 190 | JR122: 190 | JS122: 190 | JT122: 0 | JU122: 190 | JV122: 190 | JW122: 190 | JX122: 0 | JY122: 190 | JZ122: 190 | KA122: 190 | KB122: 0 | KC122: 190 | KD122: 190 | KE122: 190 | KF122: 0 | KG122: 190 | KH122: 190 | KI122: 190 | KJ122: 0 | KK122: 190 | KL122: 190 | KM122: 190 | KN122: 0 | KO122: 190 | KP122: 190 | KQ122: 190 | KR122: 0 | KS122: 190
D123: Closing Balance | I123: =I120+I121-I122 -> 0 | J123: =J120+J121-J122 -> 0 | K123: 0 | L123: 0 | M123: 0 | N123: 0 | O123: 0 | P123: 0 | Q123: 0 | R123: 0 | S123: 0 | T123: 638.3333333 | U123: 516.6666667 | V123: 395 | W123: 273.3333333 | X123: 911.6666667 | Y123: 790 | Z123: 668.3333333 | AA123: 546.6666667 | AB123: 1185 | AC123: 1063.333333 | AD123: 941.6666667 | AE123: 820 | AF123: 1458.333333 | AG123: 1268.333333 | AH123: 1078.333333 | AI123: 888.3333333 | AJ123: 1458.333333 | AK123: 1268.333333 | AL123: 1078.333333 | AM123: 888.3333333 | AN123: 1458.333333 | AO123: 1268.333333 | AP123: 1078.333333 | AQ123: 888.3333333 | AR123: 1458.333333 | AS123: 1268.333333 | AT123: 1078.333333 | AU123: 888.3333333 | AV123: 1458.333333 | AW123: 1268.333333 | AX123: 1078.333333 | AY123: 888.3333333 | AZ123: 1458.333333 | BA123: 1268.333333 | BB123: 1078.333333 | BC123: 888.3333333 | BD123: 1458.333333 | BE123: 1268.333333 | BF123: 1078.333333 | BG123: 888.3333333 | BH123: 1458.333333 | BI123: 1268.333333 | BJ123: 1078.333333 | BK123: 888.3333333 | BL123: 1458.333333 | BM123: 1268.333333 | BN123: 1078.333333 | BO123: 888.3333333 | BP123: 1458.333333 | BQ123: 1268.333333 | BR123: 1078.333333 | BS123: 888.3333333 | BT123: 1458.333333 | BU123: 1268.333333 | BV123: =BV120+BV121-BV122 -> 1078.333333 | BW123: 888.3333333 | BX123: 1458.333333 | BY123: 1268.333333 | BZ123: 1078.333333 | CA123: 888.3333333 | CB123: 1458.333333 | CC123: 1268.333333 | CD123: 1078.333333 | CE123: 888.3333333 | CF123: 1458.333333 | CG123: 1268.333333 | CH123: 1078.333333 | CI123: 888.3333333 | CJ123: 1458.333333 | CK123: 1268.333333 | CL123: 1078.333333 | CM123: 888.3333333 | CN123: 1458.333333 | CO123: 1268.333333 | CP123: 1078.333333 | CQ123: 888.3333333 | CR123: 1458.333333 | CS123: 1268.333333 | CT123: 1078.333333 | CU123: 888.3333333 | CV123: 1458.333333 | CW123: 1268.333333 | CX123: 1078.333333 | CY123: 888.3333333 | CZ123: 1458.333333 | DA123: 1268.333333 | DB123: 1078.333333 | DC123: 888.3333333 | DD123: 1458.333333 | DE123: 1268.333333 | DF123: 1078.333333 | DG123: 888.3333333 | DH123: 1458.333333 | DI123: 1268.333333 | DJ123: 1078.333333 | DK123: 888.3333333 | DL123: 1458.333333 | DM123: 1268.333333 | DN123: 1078.333333 | DO123: 888.3333333 | DP123: 1458.333333 | DQ123: 1268.333333 | DR123: 1078.333333 | DS123: 888.3333333 | DT123: 1458.333333 | DU123: 1268.333333 | DV123: 1078.333333 | DW123: 888.3333333 | DX123: 1458.333333 | DY123: 1268.333333 | DZ123: 1078.333333 | EA123: 888.3333333 | EB123: 1458.333333 | EC123: 1268.333333 | ED123: 1078.333333 | EE123: 888.3333333 | EF123: 1458.333333 | EG123: 1268.333333 | EH123: =EH120+EH121-EH122 -> 1078.333333 | EI123: 888.3333333 | EJ123: 1458.333333 | EK123: 1268.333333 | EL123: 1078.333333 | EM123: 888.3333333 | EN123: 1458.333333 | EO123: 1268.333333 | EP123: 1078.333333 | EQ123: 888.3333333 | ER123: 1458.333333 | ES123: 1268.333333 | ET123: 1078.333333 | EU123: 888.3333333 | EV123: 1458.333333 | EW123: 1268.333333 | EX123: 1078.333333 | EY123: 888.3333333 | EZ123: 1458.333333 | FA123: 1268.333333 | FB123: 1078.333333 | FC123: 888.3333333 | FD123: 1458.333333 | FE123: 1268.333333 | FF123: 1078.333333 | FG123: 888.3333333 | FH123: 1458.333333 | FI123: 1268.333333 | FJ123: 1078.333333 | FK123: 888.3333333 | FL123: 1458.333333 | FM123: 1268.333333 | FN123: 1078.333333 | FO123: 888.3333333 | FP123: 1458.333333 | FQ123: 1268.333333 | FR123: 1078.333333 | FS123: 888.3333333 | FT123: 1458.333333 | FU123: 1268.333333 | FV123: 1078.333333 | FW123: 888.3333333 | FX123: 1458.333333 | FY123: 1268.333333 | FZ123: 1078.333333 | GA123: 888.3333333 | GB123: 1458.333333 | GC123: 1268.333333 | GD123: 1078.333333 | GE123: 888.3333333 | GF123: 1458.333333 | GG123: 1268.333333 | GH123: 1078.333333 | GI123: 888.3333333 | GJ123: 1458.333333 | GK123: 1268.333333 | GL123: 1078.333333 | GM123: 888.3333333 | GN123: 1458.333333 | GO123: 1268.333333 | GP123: 1078.333333 | GQ123: 888.3333333 | GR123: 1458.333333 | GS123: 1268.333333 | GT123: =GT120+GT121-GT122 -> 1078.333333 | GU123: 888.3333333 | GV123: 1458.333333 | GW123: 1268.333333 | GX123: 1078.333333 | GY123: 888.3333333 | GZ123: 1458.333333 | HA123: 1268.333333 | HB123: 1078.333333 | HC123: 888.3333333 | HD123: 1458.333333 | HE123: 1268.333333 | HF123: 1078.333333 | HG123: 888.3333333 | HH123: 1458.333333 | HI123: 1268.333333 | HJ123: 1078.333333 | HK123: 888.3333333 | HL123: 1458.333333 | HM123: 1268.333333 | HN123: 1078.333333 | HO123: 888.3333333 | HP123: 1458.333333 | HQ123: 1268.333333 | HR123: 1078.333333 | HS123: 888.3333333 | HT123: 1458.333333 | HU123: 1268.333333 | HV123: 1078.333333 | HW123: 888.3333333 | HX123: 1458.333333 | HY123: 1268.333333 | HZ123: 1078.333333 | IA123: 888.3333333 | IB123: 1458.333333 | IC123: 1268.333333 | ID123: 1078.333333 | IE123: 888.3333333 | IF123: 1458.333333 | IG123: 1268.333333 | IH123: 1078.333333 | II123: 888.3333333 | IJ123: 1458.333333 | IK123: 1268.333333 | IL123: 1078.333333 | IM123: 888.3333333 | IN123: 1458.333333 | IO123: 1268.333333 | IP123: 1078.333333 | IQ123: 888.3333333 | IR123: 1458.333333 | IS123: 1268.333333 | IT123: 1078.333333 | IU123: 888.3333333 | IV123: 1458.333333 | IW123: 1268.333333 | IX123: 1078.333333 | IY123: 888.3333333 | IZ123: 1458.333333 | JA123: 1268.333333 | JB123: 1078.333333 | JC123: 888.3333333 | JD123: 1458.333333 | JE123: 1268.333333 | JF123: =JF120+JF121-JF122 -> 1078.333333 | JG123: 888.3333333 | JH123: 1458.333333 | JI123: 1268.333333 | JJ123: 1078.333333 | JK123: 888.3333333 | JL123: 1458.333333 | JM123: 1268.333333 | JN123: 1078.333333 | JO123: 888.3333333 | JP123: 1458.333333 | JQ123: 1268.333333 | JR123: 1078.333333 | JS123: 888.3333333 | JT123: 1458.333333 | JU123: 1268.333333 | JV123: 1078.333333 | JW123: 888.3333333 | JX123: 1458.333333 | JY123: 1268.333333 | JZ123: 1078.333333 | KA123: 888.3333333 | KB123: 1458.333333 | KC123: 1268.333333 | KD123: 1078.333333 | KE123: 888.3333333 | KF123: 1458.333333 | KG123: 1268.333333 | KH123: 1078.333333 | KI123: 888.3333333 | KJ123: 1458.333333 | KK123: 1268.333333 | KL123: 1078.333333 | KM123: 888.3333333 | KN123: 1458.333333 | KO123: 1268.333333 | KP123: 1078.333333 | KQ123: 888.3333333 | KR123: 1458.333333 | KS123: 1268.333333
D126: Terminal Balance of Sheep Adjusted for Deferred | I126: =I123+I111 -> 0 | J126: =J123+J111 -> 0 | K126: 0 | L126: 0 | M126: 760 | N126: 760 | O126: 760 | P126: 760 | Q126: 1520 | R126: 1520 | S126: 1520 | T126: 1398.333333 | U126: 2036.666667 | V126: 1915 | W126: 1793.333333 | X126: 1671.666667 | Y126: 2310 | Z126: 2188.333333 | AA126: 2066.666667 | AB126: 1945 | AC126: 2583.333333 | AD126: 2461.666667 | AE126: 2340 | AF126: 2218.333333 | AG126: 2788.333333 | AH126: 2598.333333 | AI126: 2408.333333 | AJ126: 2218.333333 | AK126: 2788.333333 | AL126: 2598.333333 | AM126: 2408.333333 | AN126: 2218.333333 | AO126: 2788.333333 | AP126: 2598.333333 | AQ126: 2408.333333 | AR126: 2218.333333 | AS126: 2788.333333 | AT126: 2598.333333 | AU126: 2408.333333 | AV126: 2218.333333 | AW126: 2788.333333 | AX126: 2598.333333 | AY126: 2408.333333 | AZ126: 2218.333333 | BA126: 2788.333333 | BB126: 2598.333333 | BC126: 2408.333333 | BD126: 2218.333333 | BE126: 2788.333333 | BF126: 2598.333333 | BG126: 2408.333333 | BH126: 2218.333333 | BI126: 2788.333333 | BJ126: 2598.333333 | BK126: 2408.333333 | BL126: 2218.333333 | BM126: 2788.333333 | BN126: 2598.333333 | BO126: 2408.333333 | BP126: 2218.333333 | BQ126: 2788.333333 | BR126: 2598.333333 | BS126: 2408.333333 | BT126: 2218.333333 | BU126: 2788.333333 | BV126: =BV123+BV111 -> 2598.333333 | BW126: 2408.333333 | BX126: 2218.333333 | BY126: 2788.333333 | BZ126: 2598.333333 | CA126: 2408.333333 | CB126: 2218.333333 | CC126: 2788.333333 | CD126: 2598.333333 | CE126: 2408.333333 | CF126: 2218.333333 | CG126: 2788.333333 | CH126: 2598.333333 | CI126: 2408.333333 | CJ126: 2218.333333 | CK126: 2788.333333 | CL126: 2598.333333 | CM126: 2408.333333 | CN126: 2218.333333 | CO126: 2788.333333 | CP126: 2598.333333 | CQ126: 2408.333333 | CR126: 2218.333333 | CS126: 2788.333333 | CT126: 2598.333333 | CU126: 2408.333333 | CV126: 2218.333333 | CW126: 2788.333333 | CX126: 2598.333333 | CY126: 2408.333333 | CZ126: 2218.333333 | DA126: 2788.333333 | DB126: 2598.333333 | DC126: 2408.333333 | DD126: 2218.333333 | DE126: 2788.333333 | DF126: 2598.333333 | DG126: 2408.333333 | DH126: 2218.333333 | DI126: 2788.333333 | DJ126: 2598.333333 | DK126: 2408.333333 | DL126: 2218.333333 | DM126: 2788.333333 | DN126: 2598.333333 | DO126: 2408.333333 | DP126: 2218.333333 | DQ126: 2788.333333 | DR126: 2598.333333 | DS126: 2408.333333 | DT126: 2218.333333 | DU126: 2788.333333 | DV126: 2598.333333 | DW126: 2408.333333 | DX126: 2218.333333 | DY126: 2788.333333 | DZ126: 2598.333333 | EA126: 2408.333333 | EB126: 2218.333333 | EC126: 2788.333333 | ED126: 2598.333333 | EE126: 2408.333333 | EF126: 2218.333333 | EG126: 2788.333333 | EH126: =EH123+EH111 -> 2598.333333 | EI126: 2408.333333 | EJ126: 2218.333333 | EK126: 2788.333333 | EL126: 2598.333333 | EM126: 2408.333333 | EN126: 2218.333333 | EO126: 2788.333333 | EP126: 2598.333333 | EQ126: 2408.333333 | ER126: 2218.333333 | ES126: 2788.333333 | ET126: 2598.333333 | EU126: 2408.333333 | EV126: 2218.333333 | EW126: 2788.333333 | EX126: 2598.333333 | EY126: 2408.333333 | EZ126: 2218.333333 | FA126: 2788.333333 | FB126: 2598.333333 | FC126: 2408.333333 | FD126: 2218.333333 | FE126: 2788.333333 | FF126: 2598.333333 | FG126: 2408.333333 | FH126: 2218.333333 | FI126: 2788.333333 | FJ126: 2598.333333 | FK126: 2408.333333 | FL126: 2218.333333 | FM126: 2788.333333 | FN126: 2598.333333 | FO126: 2408.333333 | FP126: 2218.333333 | FQ126: 2788.333333 | FR126: 2598.333333 | FS126: 2408.333333 | FT126: 2218.333333 | FU126: 2788.333333 | FV126: 2598.333333 | FW126: 2408.333333 | FX126: 2218.333333 | FY126: 2788.333333 | FZ126: 2598.333333 | GA126: 2408.333333 | GB126: 2218.333333 | GC126: 2788.333333 | GD126: 2598.333333 | GE126: 2408.333333 | GF126: 2218.333333 | GG126: 2788.333333 | GH126: 2598.333333 | GI126: 2408.333333 | GJ126: 2218.333333 | GK126: 2788.333333 | GL126: 2598.333333 | GM126: 2408.333333 | GN126: 2218.333333 | GO126: 2788.333333 | GP126: 2598.333333 | GQ126: 2408.333333 | GR126: 2218.333333 | GS126: 2788.333333 | GT126: =GT123+GT111 -> 2598.333333 | GU126: 2408.333333 | GV126: 2218.333333 | GW126: 2788.333333 | GX126: 2598.333333 | GY126: 2408.333333 | GZ126: 2218.333333 | HA126: 2788.333333 | HB126: 2598.333333 | HC126: 2408.333333 | HD126: 2218.333333 | HE126: 2788.333333 | HF126: 2598.333333 | HG126: 2408.333333 | HH126: 2218.333333 | HI126: 2788.333333 | HJ126: 2598.333333 | HK126: 2408.333333 | HL126: 2218.333333 | HM126: 2788.333333 | HN126: 2598.333333 | HO126: 2408.333333 | HP126: 2218.333333 | HQ126: 2788.333333 | HR126: 2598.333333 | HS126: 2408.333333 | HT126: 2218.333333 | HU126: 2788.333333 | HV126: 2598.333333 | HW126: 2408.333333 | HX126: 2218.333333 | HY126: 2788.333333 | HZ126: 2598.333333 | IA126: 2408.333333 | IB126: 2218.333333 | IC126: 2788.333333 | ID126: 2598.333333 | IE126: 2408.333333 | IF126: 2218.333333 | IG126: 2788.333333 | IH126: 2598.333333 | II126: 2408.333333 | IJ126: 2218.333333 | IK126: 2788.333333 | IL126: 2598.333333 | IM126: 2408.333333 | IN126: 2218.333333 | IO126: 2788.333333 | IP126: 2598.333333 | IQ126: 2408.333333 | IR126: 2218.333333 | IS126: 2788.333333 | IT126: 2598.333333 | IU126: 2408.333333 | IV126: 2218.333333 | IW126: 2788.333333 | IX126: 2598.333333 | IY126: 2408.333333 | IZ126: 2218.333333 | JA126: 2788.333333 | JB126: 2598.333333 | JC126: 2408.333333 | JD126: 2218.333333 | JE126: 2788.333333 | JF126: =JF123+JF111 -> 2598.333333 | JG126: 2408.333333 | JH126: 2218.333333 | JI126: 2788.333333 | JJ126: 2598.333333 | JK126: 2408.333333 | JL126: 2218.333333 | JM126: 2788.333333 | JN126: 2598.333333 | JO126: 2408.333333 | JP126: 2218.333333 | JQ126: 2788.333333 | JR126: 2598.333333 | JS126: 2408.333333 | JT126: 2218.333333 | JU126: 2788.333333 | JV126: 2598.333333 | JW126: 2408.333333 | JX126: 2218.333333 | JY126: 2788.333333 | JZ126: 2598.333333 | KA126: 2408.333333 | KB126: 2218.333333 | KC126: 2788.333333 | KD126: 2598.333333 | KE126: 2408.333333 | KF126: 2218.333333 | KG126: 2788.333333 | KH126: 2598.333333 | KI126: 2408.333333 | KJ126: 2218.333333 | KK126: 2788.333333 | KL126: 2598.333333 | KM126: 2408.333333 | KN126: 2218.333333 | KO126: 2788.333333 | KP126: 2598.333333 | KQ126: 2408.333333 | KR126: 2218.333333 | KS126: 2788.333333
D127: Over Capacity of Cows and Bulls | I127: ='Animal Balances'!I123 -> 0 | J127: ='Animal Balances'!J123 -> 0 | K127: ='Animal Balances'!K123 -> 0 | L127: ='Animal Balances'!L123 -> 0 | M127: ='Animal Balances'!M123 -> 0 | N127: ='Animal Balances'!N123 -> 0 | O127: ='Animal Balances'!O123 -> 0 | P127: ='Animal Balances'!P123 -> 0 | Q127: ='Animal Balances'!Q123 -> 0 | R127: ='Animal Balances'!R123 -> 0 | S127: ='Animal Balances'!S123 -> 0 | T127: ='Animal Balances'!T123 -> 638.3333333 | U127: ='Animal Balances'!U123 -> 516.6666667 | V127: ='Animal Balances'!V123 -> 395 | W127: ='Animal Balances'!W123 -> 273.3333333 | X127: ='Animal Balances'!X123 -> 911.6666667 | Y127: ='Animal Balances'!Y123 -> 790 | Z127: ='Animal Balances'!Z123 -> 668.3333333 | AA127: ='Animal Balances'!AA123 -> 546.6666667 | AB127: ='Animal Balances'!AB123 -> 1185 | AC127: ='Animal Balances'!AC123 -> 1063.333333 | AD127: ='Animal Balances'!AD123 -> 941.6666667 | AE127: ='Animal Balances'!AE123 -> 820 | AF127: ='Animal Balances'!AF123 -> 1458.333333 | AG127: ='Animal Balances'!AG123 -> 1268.333333 | AH127: ='Animal Balances'!AH123 -> 1078.333333 | AI127: ='Animal Balances'!AI123 -> 888.3333333 | AJ127: ='Animal Balances'!AJ123 -> 1458.333333 | AK127: ='Animal Balances'!AK123 -> 1268.333333 | AL127: ='Animal Balances'!AL123 -> 1078.333333 | AM127: ='Animal Balances'!AM123 -> 888.3333333 | AN127: ='Animal Balances'!AN123 -> 1458.333333 | AO127: ='Animal Balances'!AO123 -> 1268.333333 | AP127: ='Animal Balances'!AP123 -> 1078.333333 | AQ127: ='Animal Balances'!AQ123 -> 888.3333333 | AR127: ='Animal Balances'!AR123 -> 1458.333333 | AS127: ='Animal Balances'!AS123 -> 1268.333333 | AT127: ='Animal Balances'!AT123 -> 1078.333333 | AU127: ='Animal Balances'!AU123 -> 888.3333333 | AV127: ='Animal Balances'!AV123 -> 1458.333333 | AW127: ='Animal Balances'!AW123 -> 1268.333333 | AX127: ='Animal Balances'!AX123 -> 1078.333333 | AY127: ='Animal Balances'!AY123 -> 888.3333333 | AZ127: ='Animal Balances'!AZ123 -> 1458.333333 | BA127: ='Animal Balances'!BA123 -> 1268.333333 | BB127: ='Animal Balances'!BB123 -> 1078.333333 | BC127: ='Animal Balances'!BC123 -> 888.3333333 | BD127: ='Animal Balances'!BD123 -> 1458.333333 | BE127: ='Animal Balances'!BE123 -> 1268.333333 | BF127: ='Animal Balances'!BF123 -> 1078.333333 | BG127: ='Animal Balances'!BG123 -> 888.3333333 | BH127: ='Animal Balances'!BH123 -> 1458.333333 | BI127: ='Animal Balances'!BI123 -> 1268.333333 | BJ127: ='Animal Balances'!BJ123 -> 1078.333333 | BK127: ='Animal Balances'!BK123 -> 888.3333333 | BL127: ='Animal Balances'!BL123 -> 1458.333333 | BM127: ='Animal Balances'!BM123 -> 1268.333333 | BN127: ='Animal Balances'!BN123 -> 1078.333333 | BO127: ='Animal Balances'!BO123 -> 888.3333333 | BP127: ='Animal Balances'!BP123 -> 1458.333333 | BQ127: ='Animal Balances'!BQ123 -> 1268.333333 | BR127: ='Animal Balances'!BR123 -> 1078.333333 | BS127: ='Animal Balances'!BS123 -> 888.3333333 | BT127: ='Animal Balances'!BT123 -> 1458.333333 | BU127: ='Animal Balances'!BU123 -> 1268.333333 | BV127: ='Animal Balances'!BV123 -> 1078.333333 | BW127: ='Animal Balances'!BW123 -> 888.3333333 | BX127: ='Animal Balances'!BX123 -> 1458.333333 | BY127: ='Animal Balances'!BY123 -> 1268.333333 | BZ127: ='Animal Balances'!BZ123 -> 1078.333333 | CA127: ='Animal Balances'!CA123 -> 888.3333333 | CB127: ='Animal Balances'!CB123 -> 1458.333333 | CC127: ='Animal Balances'!CC123 -> 1268.333333 | CD127: ='Animal Balances'!CD123 -> 1078.333333 | CE127: ='Animal Balances'!CE123 -> 888.3333333 | CF127: ='Animal Balances'!CF123 -> 1458.333333 | CG127: ='Animal Balances'!CG123 -> 1268.333333 | CH127: ='Animal Balances'!CH123 -> 1078.333333 | CI127: ='Animal Balances'!CI123 -> 888.3333333 | CJ127: ='Animal Balances'!CJ123 -> 1458.333333 | CK127: ='Animal Balances'!CK123 -> 1268.333333 | CL127: ='Animal Balances'!CL123 -> 1078.333333 | CM127: ='Animal Balances'!CM123 -> 888.3333333 | CN127: ='Animal Balances'!CN123 -> 1458.333333 | CO127: ='Animal Balances'!CO123 -> 1268.333333 | CP127: ='Animal Balances'!CP123 -> 1078.333333 | CQ127: ='Animal Balances'!CQ123 -> 888.3333333 | CR127: ='Animal Balances'!CR123 -> 1458.333333 | CS127: ='Animal Balances'!CS123 -> 1268.333333 | CT127: ='Animal Balances'!CT123 -> 1078.333333 | CU127: ='Animal Balances'!CU123 -> 888.3333333 | CV127: ='Animal Balances'!CV123 -> 1458.333333 | CW127: ='Animal Balances'!CW123 -> 1268.333333 | CX127: ='Animal Balances'!CX123 -> 1078.333333 | CY127: ='Animal Balances'!CY123 -> 888.3333333 | CZ127: ='Animal Balances'!CZ123 -> 1458.333333 | DA127: ='Animal Balances'!DA123 -> 1268.333333 | DB127: ='Animal Balances'!DB123 -> 1078.333333 | DC127: ='Animal Balances'!DC123 -> 888.3333333 | DD127: ='Animal Balances'!DD123 -> 1458.333333 | DE127: ='Animal Balances'!DE123 -> 1268.333333 | DF127: ='Animal Balances'!DF123 -> 1078.333333 | DG127: ='Animal Balances'!DG123 -> 888.3333333 | DH127: ='Animal Balances'!DH123 -> 1458.333333 | DI127: ='Animal Balances'!DI123 -> 1268.333333 | DJ127: ='Animal Balances'!DJ123 -> 1078.333333 | DK127: ='Animal Balances'!DK123 -> 888.3333333 | DL127: ='Animal Balances'!DL123 -> 1458.333333 | DM127: ='Animal Balances'!DM123 -> 1268.333333 | DN127: ='Animal Balances'!DN123 -> 1078.333333 | DO127: ='Animal Balances'!DO123 -> 888.3333333 | DP127: ='Animal Balances'!DP123 -> 1458.333333 | DQ127: ='Animal Balances'!DQ123 -> 1268.333333 | DR127: ='Animal Balances'!DR123 -> 1078.333333 | DS127: ='Animal Balances'!DS123 -> 888.3333333 | DT127: ='Animal Balances'!DT123 -> 1458.333333 | DU127: ='Animal Balances'!DU123 -> 1268.333333 | DV127: ='Animal Balances'!DV123 -> 1078.333333 | DW127: ='Animal Balances'!DW123 -> 888.3333333 | DX127: ='Animal Balances'!DX123 -> 1458.333333 | DY127: ='Animal Balances'!DY123 -> 1268.333333 | DZ127: ='Animal Balances'!DZ123 -> 1078.333333 | EA127: ='Animal Balances'!EA123 -> 888.3333333 | EB127: ='Animal Balances'!EB123 -> 1458.333333 | EC127: ='Animal Balances'!EC123 -> 1268.333333 | ED127: ='Animal Balances'!ED123 -> 1078.333333 | EE127: ='Animal Balances'!EE123 -> 888.3333333 | EF127: ='Animal Balances'!EF123 -> 1458.333333 | EG127: ='Animal Balances'!EG123 -> 1268.333333 | EH127: ='Animal Balances'!EH123 -> 1078.333333 | EI127: ='Animal Balances'!EI123 -> 888.3333333 | EJ127: ='Animal Balances'!EJ123 -> 1458.333333 | EK127: ='Animal Balances'!EK123 -> 1268.333333 | EL127: ='Animal Balances'!EL123 -> 1078.333333 | EM127: ='Animal Balances'!EM123 -> 888.3333333 | EN127: ='Animal Balances'!EN123 -> 1458.333333 | EO127: ='Animal Balances'!EO123 -> 1268.333333 | EP127: ='Animal Balances'!EP123 -> 1078.333333 | EQ127: ='Animal Balances'!EQ123 -> 888.3333333 | ER127: ='Animal Balances'!ER123 -> 1458.333333 | ES127: ='Animal Balances'!ES123 -> 1268.333333 | ET127: ='Animal Balances'!ET123 -> 1078.333333 | EU127: ='Animal Balances'!EU123 -> 888.3333333 | EV127: ='Animal Balances'!EV123 -> 1458.333333 | EW127: ='Animal Balances'!EW123 -> 1268.333333 | EX127: ='Animal Balances'!EX123 -> 1078.333333 | EY127: ='Animal Balances'!EY123 -> 888.3333333 | EZ127: ='Animal Balances'!EZ123 -> 1458.333333 | FA127: ='Animal Balances'!FA123 -> 1268.333333 | FB127: ='Animal Balances'!FB123 -> 1078.333333 | FC127: ='Animal Balances'!FC123 -> 888.3333333 | FD127: ='Animal Balances'!FD123 -> 1458.333333 | FE127: ='Animal Balances'!FE123 -> 1268.333333 | FF127: ='Animal Balances'!FF123 -> 1078.333333 | FG127: ='Animal Balances'!FG123 -> 888.3333333 | FH127: ='Animal Balances'!FH123 -> 1458.333333 | FI127: ='Animal Balances'!FI123 -> 1268.333333 | FJ127: ='Animal Balances'!FJ123 -> 1078.333333 | FK127: ='Animal Balances'!FK123 -> 888.3333333 | FL127: ='Animal Balances'!FL123 -> 1458.333333 | FM127: ='Animal Balances'!FM123 -> 1268.333333 | FN127: ='Animal Balances'!FN123 -> 1078.333333 | FO127: ='Animal Balances'!FO123 -> 888.3333333 | FP127: ='Animal Balances'!FP123 -> 1458.333333 | FQ127: ='Animal Balances'!FQ123 -> 1268.333333 | FR127: ='Animal Balances'!FR123 -> 1078.333333 | FS127: ='Animal Balances'!FS123 -> 888.3333333 | FT127: ='Animal Balances'!FT123 -> 1458.333333 | FU127: ='Animal Balances'!FU123 -> 1268.333333 | FV127: ='Animal Balances'!FV123 -> 1078.333333 | FW127: ='Animal Balances'!FW123 -> 888.3333333 | FX127: ='Animal Balances'!FX123 -> 1458.333333 | FY127: ='Animal Balances'!FY123 -> 1268.333333 | FZ127: ='Animal Balances'!FZ123 -> 1078.333333 | GA127: ='Animal Balances'!GA123 -> 888.3333333 | GB127: ='Animal Balances'!GB123 -> 1458.333333 | GC127: ='Animal Balances'!GC123 -> 1268.333333 | GD127: ='Animal Balances'!GD123 -> 1078.333333 | GE127: ='Animal Balances'!GE123 -> 888.3333333 | GF127: ='Animal Balances'!GF123 -> 1458.333333 | GG127: ='Animal Balances'!GG123 -> 1268.333333 | GH127: ='Animal Balances'!GH123 -> 1078.333333 | GI127: ='Animal Balances'!GI123 -> 888.3333333 | GJ127: ='Animal Balances'!GJ123 -> 1458.333333 | GK127: ='Animal Balances'!GK123 -> 1268.333333 | GL127: ='Animal Balances'!GL123 -> 1078.333333 | GM127: ='Animal Balances'!GM123 -> 888.3333333 | GN127: ='Animal Balances'!GN123 -> 1458.333333 | GO127: ='Animal Balances'!GO123 -> 1268.333333 | GP127: ='Animal Balances'!GP123 -> 1078.333333 | GQ127: ='Animal Balances'!GQ123 -> 888.3333333 | GR127: ='Animal Balances'!GR123 -> 1458.333333 | GS127: ='Animal Balances'!GS123 -> 1268.333333 | GT127: =GT123 -> 1078.333333 | GU127: 888.3333333 | GV127: 1458.333333 | GW127: 1268.333333 | GX127: 1078.333333 | GY127: 888.3333333 | GZ127: 1458.333333 | HA127: 1268.333333 | HB127: 1078.333333 | HC127: 888.3333333 | HD127: 1458.333333 | HE127: 1268.333333 | HF127: 1078.333333 | HG127: 888.3333333 | HH127: 1458.333333 | HI127: 1268.333333 | HJ127: 1078.333333 | HK127: 888.3333333 | HL127: 1458.333333 | HM127: 1268.333333 | HN127: 1078.333333 | HO127: 888.3333333 | HP127: 1458.333333 | HQ127: 1268.333333 | HR127: 1078.333333 | HS127: 888.3333333 | HT127: 1458.333333 | HU127: 1268.333333 | HV127: 1078.333333 | HW127: 888.3333333 | HX127: 1458.333333 | HY127: 1268.333333 | HZ127: 1078.333333 | IA127: 888.3333333 | IB127: 1458.333333 | IC127: 1268.333333 | ID127: 1078.333333 | IE127: 888.3333333 | IF127: 1458.333333 | IG127: 1268.333333 | IH127: 1078.333333 | II127: 888.3333333 | IJ127: 1458.333333 | IK127: 1268.333333 | IL127: 1078.333333 | IM127: 888.3333333 | IN127: 1458.333333 | IO127: 1268.333333 | IP127: 1078.333333 | IQ127: 888.3333333 | IR127: 1458.333333 | IS127: 1268.333333 | IT127: 1078.333333 | IU127: 888.3333333 | IV127: 1458.333333 | IW127: 1268.333333 | IX127: 1078.333333 | IY127: 888.3333333 | IZ127: 1458.333333 | JA127: 1268.333333 | JB127: 1078.333333 | JC127: 888.3333333 | JD127: 1458.333333 | JE127: 1268.333333 | JF127: =JF123 -> 1078.333333 | JG127: 888.3333333 | JH127: 1458.333333 | JI127: 1268.333333 | JJ127: 1078.333333 | JK127: 888.3333333 | JL127: 1458.333333 | JM127: 1268.333333 | JN127: 1078.333333 | JO127: 888.3333333 | JP127: 1458.333333 | JQ127: 1268.333333 | JR127: 1078.333333 | JS127: 888.3333333 | JT127: 1458.333333 | JU127: 1268.333333 | JV127: 1078.333333 | JW127: 888.3333333 | JX127: 1458.333333 | JY127: 1268.333333 | JZ127: 1078.333333 | KA127: 888.3333333 | KB127: 1458.333333 | KC127: 1268.333333 | KD127: 1078.333333 | KE127: 888.3333333 | KF127: 1458.333333 | KG127: 1268.333333 | KH127: 1078.333333 | KI127: 888.3333333 | KJ127: 1458.333333 | KK127: 1268.333333 | KL127: 1078.333333 | KM127: 888.3333333 | KN127: 1458.333333 | KO127: 1268.333333 | KP127: 1078.333333 | KQ127: 888.3333333 | KR127: 1458.333333 | KS127: 1268.333333
D128: Final Lamb Slaughtered | I128: =I109-I121+I122 -> 68.33333333 | J128: =J109-J121+J122 -> 68.33333333 | K128: 68.33333333 | L128: 68.33333333 | M128: 68.33333333 | N128: 68.33333333 | O128: 68.33333333 | P128: 68.33333333 | Q128: 68.33333333 | R128: 68.33333333 | S128: 68.33333333 | T128: 190 | U128: 190 | V128: 190 | W128: 190 | X128: 190 | Y128: 190 | Z128: 190 | AA128: 190 | AB128: 190 | AC128: 190 | AD128: 190 | AE128: 190 | AF128: 190 | AG128: 190 | AH128: 190 | AI128: 190 | AJ128: 190 | AK128: 190 | AL128: 190 | AM128: 190 | AN128: 190 | AO128: 190 | AP128: 190 | AQ128: 190 | AR128: 190 | AS128: 190 | AT128: 190 | AU128: 190 | AV128: 190 | AW128: 190 | AX128: 190 | AY128: 190 | AZ128: 190 | BA128: 190 | BB128: 190 | BC128: 190 | BD128: 190 | BE128: 190 | BF128: 190 | BG128: 190 | BH128: 190 | BI128: 190 | BJ128: 190 | BK128: 190 | BL128: 190 | BM128: 190 | BN128: 190 | BO128: 190 | BP128: 190 | BQ128: 190 | BR128: 190 | BS128: 190 | BT128: 190 | BU128: 190 | BV128: =BV109-BV121+BV122 -> 190 | BW128: 190 | BX128: 190 | BY128: 190 | BZ128: 190 | CA128: 190 | CB128: 190 | CC128: 190 | CD128: 190 | CE128: 190 | CF128: 190 | CG128: 190 | CH128: 190 | CI128: 190 | CJ128: 190 | CK128: 190 | CL128: 190 | CM128: 190 | CN128: 190 | CO128: 190 | CP128: 190 | CQ128: 190 | CR128: 190 | CS128: 190 | CT128: 190 | CU128: 190 | CV128: 190 | CW128: 190 | CX128: 190 | CY128: 190 | CZ128: 190 | DA128: 190 | DB128: 190 | DC128: 190 | DD128: 190 | DE128: 190 | DF128: 190 | DG128: 190 | DH128: 190 | DI128: 190 | DJ128: 190 | DK128: 190 | DL128: 190 | DM128: 190 | DN128: 190 | DO128: 190 | DP128: 190 | DQ128: 190 | DR128: 190 | DS128: 190 | DT128: 190 | DU128: 190 | DV128: 190 | DW128: 190 | DX128: 190 | DY128: 190 | DZ128: 190 | EA128: 190 | EB128: 190 | EC128: 190 | ED128: 190 | EE128: 190 | EF128: 190 | EG128: 190 | EH128: =EH109-EH121+EH122 -> 190 | EI128: 190 | EJ128: 190 | EK128: 190 | EL128: 190 | EM128: 190 | EN128: 190 | EO128: 190 | EP128: 190 | EQ128: 190 | ER128: 190 | ES128: 190 | ET128: 190 | EU128: 190 | EV128: 190 | EW128: 190 | EX128: 190 | EY128: 190 | EZ128: 190 | FA128: 190 | FB128: 190 | FC128: 190 | FD128: 190 | FE128: 190 | FF128: 190 | FG128: 190 | FH128: 190 | FI128: 190 | FJ128: 190 | FK128: 190 | FL128: 190 | FM128: 190 | FN128: 190 | FO128: 190 | FP128: 190 | FQ128: 190 | FR128: 190 | FS128: 190 | FT128: 190 | FU128: 190 | FV128: 190 | FW128: 190 | FX128: 190 | FY128: 190 | FZ128: 190 | GA128: 190 | GB128: 190 | GC128: 190 | GD128: 190 | GE128: 190 | GF128: 190 | GG128: 190 | GH128: 190 | GI128: 190 | GJ128: 190 | GK128: 190 | GL128: 190 | GM128: 190 | GN128: 190 | GO128: 190 | GP128: 190 | GQ128: 190 | GR128: 190 | GS128: 190 | GT128: =GT109-GT121+GT122 -> 190 | GU128: 190 | GV128: 190 | GW128: 190 | GX128: 190 | GY128: 190 | GZ128: 190 | HA128: 190 | HB128: 190 | HC128: 190 | HD128: 190 | HE128: 190 | HF128: 190 | HG128: 190 | HH128: 190 | HI128: 190 | HJ128: 190 | HK128: 190 | HL128: 190 | HM128: 190 | HN128: 190 | HO128: 190 | HP128: 190 | HQ128: 190 | HR128: 190 | HS128: 190 | HT128: 190 | HU128: 190 | HV128: 190 | HW128: 190 | HX128: 190 | HY128: 190 | HZ128: 190 | IA128: 190 | IB128: 190 | IC128: 190 | ID128: 190 | IE128: 190 | IF128: 190 | IG128: 190 | IH128: 190 | II128: 190 | IJ128: 190 | IK128: 190 | IL128: 190 | IM128: 190 | IN128: 190 | IO128: 190 | IP128: 190 | IQ128: 190 | IR128: 190 | IS128: 190 | IT128: 190 | IU128: 190 | IV128: 190 | IW128: 190 | IX128: 190 | IY128: 190 | IZ128: 190 | JA128: 190 | JB128: 190 | JC128: 190 | JD128: 190 | JE128: 190 | JF128: =JF109-JF121+JF122 -> 190 | JG128: 190 | JH128: 190 | JI128: 190 | JJ128: 190 | JK128: 190 | JL128: 190 | JM128: 190 | JN128: 190 | JO128: 190 | JP128: 190 | JQ128: 190 | JR128: 190 | JS128: 190 | JT128: 190 | JU128: 190 | JV128: 190 | JW128: 190 | JX128: 190 | JY128: 190 | JZ128: 190 | KA128: 190 | KB128: 190 | KC128: 190 | KD128: 190 | KE128: 190 | KF128: 190 | KG128: 190 | KH128: 190 | KI128: 190 | KJ128: 190 | KK128: 190 | KL128: 190 | KM128: 190 | KN128: 190 | KO128: 190 | KP128: 190 | KQ128: 190 | KR128: 190 | KS128: 190
A130: Goats
C131: Insemination Month 1 | E131: Month | F131: 1
C132: Insemination Month 2 | E132: Month | F132: 5
C133: Insemination Month 3 | E133: Month | F133: 9
C134: Insemination Month 4
D135: Total Months of Insemination | E135: Count | F135: =COUNT(F131:F134) -> 3
C137: Number of Goats per Insemination | E137: Number | F137: 1
C138: Percent of Impregnations in Insemiation Month | E138: % | F138: 1
C140: Pregancy Period | E140: Month | F140: =Assumptions!F26 -> 3
C141: Birth until Slaughter for Termination Goat | E141: Month | F141: =Assumptions!F34 -> 6
C142: Births per Goat per Year | E142: Number | F142: =Assumptions!F41 -> 3
C144: Capacity of Abbitoir - Goats | E144: Number/Year | F144: =Assumptions!H48 -> 4560
C145: Required Maternal Goats | E145: Number | F145: =F144/F142 -> 1520
C147: Total Number of Existing Goats | E147: Number | F147: =Assumptions!F12 -> 900
C148: Existing Goats for Maternal Breeding | E148: Number | F148: ='Animal Balances'!F147 -> 900
C149: Existing Goats for Termination | E149: Number | F149: =F147-F148 -> 0
C150: Timing of Existing Goats for Termination | E150: Month | F150: 24
C152: Total Goats Purchased | E152: Number | F152: =Assumptions!F19 -> 4000
C153: Maternal Goats Purchased | E153: Number | F153: =F145-F147 -> 620
C154: Goats Purchased for Termination | E154: Number | F154: =F152-F153 -> 3380
C156: Maternal Breed Balance
D157: Opening Balance | I157: ='Animal Balances'!H162 -> 0 | J157: ='Animal Balances'!I162 -> 1520 | K157: ='Animal Balances'!J162 -> 1520 | L157: ='Animal Balances'!K162 -> 1520 | M157: ='Animal Balances'!L162 -> 1520 | N157: ='Animal Balances'!M162 -> 1520 | O157: ='Animal Balances'!N162 -> 1520 | P157: ='Animal Balances'!O162 -> 1520 | Q157: ='Animal Balances'!P162 -> 1520 | R157: ='Animal Balances'!Q162 -> 1520 | S157: ='Animal Balances'!R162 -> 1520 | T157: ='Animal Balances'!S162 -> 1520 | U157: ='Animal Balances'!T162 -> 1520 | V157: ='Animal Balances'!U162 -> 1520 | W157: ='Animal Balances'!V162 -> 1520 | X157: ='Animal Balances'!W162 -> 1520 | Y157: ='Animal Balances'!X162 -> 1520 | Z157: ='Animal Balances'!Y162 -> 1520 | AA157: ='Animal Balances'!Z162 -> 1520 | AB157: ='Animal Balances'!AA162 -> 1520 | AC157: ='Animal Balances'!AB162 -> 1520 | AD157: ='Animal Balances'!AC162 -> 1520 | AE157: ='Animal Balances'!AD162 -> 1520 | AF157: ='Animal Balances'!AE162 -> 1520 | AG157: ='Animal Balances'!AF162 -> 1520 | AH157: ='Animal Balances'!AG162 -> 1520 | AI157: ='Animal Balances'!AH162 -> 1520 | AJ157: ='Animal Balances'!AI162 -> 1520 | AK157: ='Animal Balances'!AJ162 -> 1520 | AL157: ='Animal Balances'!AK162 -> 1520 | AM157: ='Animal Balances'!AL162 -> 1520 | AN157: ='Animal Balances'!AM162 -> 1520 | AO157: ='Animal Balances'!AN162 -> 1520 | AP157: ='Animal Balances'!AO162 -> 1520 | AQ157: ='Animal Balances'!AP162 -> 1520 | AR157: ='Animal Balances'!AQ162 -> 1520 | AS157: ='Animal Balances'!AR162 -> 1520 | AT157: ='Animal Balances'!AS162 -> 1520 | AU157: ='Animal Balances'!AT162 -> 1520 | AV157: ='Animal Balances'!AU162 -> 1520 | AW157: ='Animal Balances'!AV162 -> 1520 | AX157: ='Animal Balances'!AW162 -> 1520 | AY157: ='Animal Balances'!AX162 -> 1520 | AZ157: ='Animal Balances'!AY162 -> 1520 | BA157: ='Animal Balances'!AZ162 -> 1520 | BB157: ='Animal Balances'!BA162 -> 1520 | BC157: ='Animal Balances'!BB162 -> 1520 | BD157: ='Animal Balances'!BC162 -> 1520 | BE157: ='Animal Balances'!BD162 -> 1520 | BF157: ='Animal Balances'!BE162 -> 1520 | BG157: ='Animal Balances'!BF162 -> 1520 | BH157: ='Animal Balances'!BG162 -> 1520 | BI157: ='Animal Balances'!BH162 -> 1520 | BJ157: ='Animal Balances'!BI162 -> 1520 | BK157: ='Animal Balances'!BJ162 -> 1520 | BL157: ='Animal Balances'!BK162 -> 1520 | BM157: ='Animal Balances'!BL162 -> 1520 | BN157: ='Animal Balances'!BM162 -> 1520 | BO157: ='Animal Balances'!BN162 -> 1520 | BP157: ='Animal Balances'!BO162 -> 1520 | BQ157: ='Animal Balances'!BP162 -> 1520 | BR157: ='Animal Balances'!BQ162 -> 1520 | BS157: ='Animal Balances'!BR162 -> 1520 | BT157: ='Animal Balances'!BS162 -> 1520 | BU157: ='Animal Balances'!BT162 -> 1520 | BV157: ='Animal Balances'!BU162 -> 1520 | BW157: ='Animal Balances'!BV162 -> 1520 | BX157: ='Animal Balances'!BW162 -> 1520 | BY157: ='Animal Balances'!BX162 -> 1520 | BZ157: ='Animal Balances'!BY162 -> 1520 | CA157: ='Animal Balances'!BZ162 -> 1520 | CB157: ='Animal Balances'!CA162 -> 1520 | CC157: ='Animal Balances'!CB162 -> 1520 | CD157: ='Animal Balances'!CC162 -> 1520 | CE157: ='Animal Balances'!CD162 -> 1520 | CF157: ='Animal Balances'!CE162 -> 1520 | CG157: ='Animal Balances'!CF162 -> 1520 | CH157: ='Animal Balances'!CG162 -> 1520 | CI157: ='Animal Balances'!CH162 -> 1520 | CJ157: ='Animal Balances'!CI162 -> 1520 | CK157: ='Animal Balances'!CJ162 -> 1520 | CL157: ='Animal Balances'!CK162 -> 1520 | CM157: ='Animal Balances'!CL162 -> 1520 | CN157: ='Animal Balances'!CM162 -> 1520 | CO157: ='Animal Balances'!CN162 -> 1520 | CP157: ='Animal Balances'!CO162 -> 1520 | CQ157: ='Animal Balances'!CP162 -> 1520 | CR157: ='Animal Balances'!CQ162 -> 1520 | CS157: ='Animal Balances'!CR162 -> 1520 | CT157: ='Animal Balances'!CS162 -> 1520 | CU157: ='Animal Balances'!CT162 -> 1520 | CV157: ='Animal Balances'!CU162 -> 1520 | CW157: ='Animal Balances'!CV162 -> 1520 | CX157: ='Animal Balances'!CW162 -> 1520 | CY157: ='Animal Balances'!CX162 -> 1520 | CZ157: ='Animal Balances'!CY162 -> 1520 | DA157: ='Animal Balances'!CZ162 -> 1520 | DB157: ='Animal Balances'!DA162 -> 1520 | DC157: ='Animal Balances'!DB162 -> 1520 | DD157: ='Animal Balances'!DC162 -> 1520 | DE157: ='Animal Balances'!DD162 -> 1520 | DF157: ='Animal Balances'!DE162 -> 1520 | DG157: ='Animal Balances'!DF162 -> 1520 | DH157: ='Animal Balances'!DG162 -> 1520 | DI157: ='Animal Balances'!DH162 -> 1520 | DJ157: ='Animal Balances'!DI162 -> 1520 | DK157: ='Animal Balances'!DJ162 -> 1520 | DL157: ='Animal Balances'!DK162 -> 1520 | DM157: ='Animal Balances'!DL162 -> 1520 | DN157: ='Animal Balances'!DM162 -> 1520 | DO157: ='Animal Balances'!DN162 -> 1520 | DP157: ='Animal Balances'!DO162 -> 1520 | DQ157: ='Animal Balances'!DP162 -> 1520 | DR157: ='Animal Balances'!DQ162 -> 1520 | DS157: ='Animal Balances'!DR162 -> 1520 | DT157: ='Animal Balances'!DS162 -> 1520 | DU157: ='Animal Balances'!DT162 -> 1520 | DV157: ='Animal Balances'!DU162 -> 1520 | DW157: ='Animal Balances'!DV162 -> 1520 | DX157: ='Animal Balances'!DW162 -> 1520 | DY157: ='Animal Balances'!DX162 -> 1520 | DZ157: ='Animal Balances'!DY162 -> 1520 | EA157: ='Animal Balances'!DZ162 -> 1520 | EB157: ='Animal Balances'!EA162 -> 1520 | EC157: ='Animal Balances'!EB162 -> 1520 | ED157: ='Animal Balances'!EC162 -> 1520 | EE157: ='Animal Balances'!ED162 -> 1520 | EF157: ='Animal Balances'!EE162 -> 1520 | EG157: ='Animal Balances'!EF162 -> 1520 | EH157: ='Animal Balances'!EG162 -> 1520 | EI157: ='Animal Balances'!EH162 -> 1520 | EJ157: ='Animal Balances'!EI162 -> 1520 | EK157: ='Animal Balances'!EJ162 -> 1520 | EL157: ='Animal Balances'!EK162 -> 1520 | EM157: ='Animal Balances'!EL162 -> 1520 | EN157: ='Animal Balances'!EM162 -> 1520 | EO157: ='Animal Balances'!EN162 -> 1520 | EP157: ='Animal Balances'!EO162 -> 1520 | EQ157: ='Animal Balances'!EP162 -> 1520 | ER157: ='Animal Balances'!EQ162 -> 1520 | ES157: ='Animal Balances'!ER162 -> 1520 | ET157: ='Animal Balances'!ES162 -> 1520 | EU157: ='Animal Balances'!ET162 -> 1520 | EV157: ='Animal Balances'!EU162 -> 1520 | EW157: ='Animal Balances'!EV162 -> 1520 | EX157: ='Animal Balances'!EW162 -> 1520 | EY157: ='Animal Balances'!EX162 -> 1520 | EZ157: ='Animal Balances'!EY162 -> 1520 | FA157: ='Animal Balances'!EZ162 -> 1520 | FB157: ='Animal Balances'!FA162 -> 1520 | FC157: ='Animal Balances'!FB162 -> 1520 | FD157: ='Animal Balances'!FC162 -> 1520 | FE157: ='Animal Balances'!FD162 -> 1520 | FF157: ='Animal Balances'!FE162 -> 1520 | FG157: ='Animal Balances'!FF162 -> 1520 | FH157: ='Animal Balances'!FG162 -> 1520 | FI157: ='Animal Balances'!FH162 -> 1520 | FJ157: ='Animal Balances'!FI162 -> 1520 | FK157: ='Animal Balances'!FJ162 -> 1520 | FL157: ='Animal Balances'!FK162 -> 1520 | FM157: ='Animal Balances'!FL162 -> 1520 | FN157: ='Animal Balances'!FM162 -> 1520 | FO157: ='Animal Balances'!FN162 -> 1520 | FP157: ='Animal Balances'!FO162 -> 1520 | FQ157: ='Animal Balances'!FP162 -> 1520 | FR157: ='Animal Balances'!FQ162 -> 1520 | FS157: ='Animal Balances'!FR162 -> 1520 | FT157: ='Animal Balances'!FS162 -> 1520 | FU157: ='Animal Balances'!FT162 -> 1520 | FV157: ='Animal Balances'!FU162 -> 1520 | FW157: ='Animal Balances'!FV162 -> 1520 | FX157: ='Animal Balances'!FW162 -> 1520 | FY157: ='Animal Balances'!FX162 -> 1520 | FZ157: ='Animal Balances'!FY162 -> 1520 | GA157: ='Animal Balances'!FZ162 -> 1520 | GB157: ='Animal Balances'!GA162 -> 1520 | GC157: ='Animal Balances'!GB162 -> 1520 | GD157: ='Animal Balances'!GC162 -> 1520 | GE157: ='Animal Balances'!GD162 -> 1520 | GF157: ='Animal Balances'!GE162 -> 1520 | GG157: ='Animal Balances'!GF162 -> 1520 | GH157: ='Animal Balances'!GG162 -> 1520 | GI157: ='Animal Balances'!GH162 -> 1520 | GJ157: ='Animal Balances'!GI162 -> 1520 | GK157: ='Animal Balances'!GJ162 -> 1520 | GL157: ='Animal Balances'!GK162 -> 1520 | GM157: ='Animal Balances'!GL162 -> 1520 | GN157: ='Animal Balances'!GM162 -> 1520 | GO157: ='Animal Balances'!GN162 -> 1520 | GP157: ='Animal Balances'!GO162 -> 1520 | GQ157: ='Animal Balances'!GP162 -> 1520 | GR157: ='Animal Balances'!GQ162 -> 1520 | GS157: ='Animal Balances'!GR162 -> 1520 | GT157: =GS162 -> 1520 | GU157: 1520 | GV157: 1520 | GW157: 1520 | GX157: 1520 | GY157: 1520 | GZ157: 1520 | HA157: 1520 | HB157: 1520 | HC157: 1520 | HD157: 1520 | HE157: 1520 | HF157: 1520 | HG157: 1520 | HH157: 1520 | HI157: 1520 | HJ157: 1520 | HK157: 1520 | HL157: 1520 | HM157: 1520 | HN157: 1520 | HO157: 1520 | HP157: 1520 | HQ157: 1520 | HR157: 1520 | HS157: 1520 | HT157: 1520 | HU157: 1520 | HV157: 1520 | HW157: 1520 | HX157: 1520 | HY157: 1520 | HZ157: 1520 | IA157: 1520 | IB157: 1520 | IC157: 1520 | ID157: 1520 | IE157: 1520 | IF157: 1520 | IG157: 1520 | IH157: 1520 | II157: 1520 | IJ157: 1520 | IK157: 1520 | IL157: 1520 | IM157: 1520 | IN157: 1520 | IO157: 1520 | IP157: 1520 | IQ157: 1520 | IR157: 1520 | IS157: 1520 | IT157: 1520 | IU157: 1520 | IV157: 1520 | IW157: 1520 | IX157: 1520 | IY157: 1520 | IZ157: 1520 | JA157: 1520 | JB157: 1520 | JC157: 1520 | JD157: 1520 | JE157: 1520 | JF157: =JE162 -> 1520 | JG157: 1520 | JH157: 1520 | JI157: 1520 | JJ157: 1520 | JK157: 1520 | JL157: 1520 | JM157: 1520 | JN157: 1520 | JO157: 1520 | JP157: 1520 | JQ157: 1520 | JR157: 1520 | JS157: 1520 | JT157: 1520 | JU157: 1520 | JV157: 1520 | JW157: 1520 | JX157: 1520 | JY157: 1520 | JZ157: 1520 | KA157: 1520 | KB157: 1520 | KC157: 1520 | KD157: 1520 | KE157: 1520 | KF157: 1520 | KG157: 1520 | KH157: 1520 | KI157: 1520 | KJ157: 1520 | KK157: 1520 | KL157: 1520 | KM157: 1520 | KN157: 1520 | KO157: 1520 | KP157: 1520 | KQ157: 1520 | KR157: 1520 | KS157: 1520
D158: Add: Maternal Cows from Existing Herd | F158: ='Animal Balances'!F148 -> 900 | I158: ='Animal Balances'!F158 -> 900
D159: Add: Maternal Cows from Acquisitions | F159: ='Animal Balances'!F153 -> 620 | I159: ='Animal Balances'!F159 -> 620
D160: Add: Cows Replaced from New Calfs
D161: Less: Maternal Cows Slaughtered
D162: Closing Balance for Feeding | I162: =I157+I158+I159+I160-I161 -> 1520 | J162: =J157+J158+J159+J160-J161 -> 1520 | K162: 1520 | L162: 1520 | M162: 1520 | N162: 1520 | O162: 1520 | P162: 1520 | Q162: 1520 | R162: 1520 | S162: 1520 | T162: 1520 | U162: 1520 | V162: 1520 | W162: 1520 | X162: 1520 | Y162: 1520 | Z162: 1520 | AA162: 1520 | AB162: 1520 | AC162: 1520 | AD162: 1520 | AE162: 1520 | AF162: 1520 | AG162: 1520 | AH162: 1520 | AI162: 1520 | AJ162: 1520 | AK162: 1520 | AL162: 1520 | AM162: 1520 | AN162: 1520 | AO162: 1520 | AP162: 1520 | AQ162: 1520 | AR162: 1520 | AS162: 1520 | AT162: 1520 | AU162: 1520 | AV162: 1520 | AW162: 1520 | AX162: 1520 | AY162: 1520 | AZ162: 1520 | BA162: 1520 | BB162: 1520 | BC162: 1520 | BD162: 1520 | BE162: 1520 | BF162: 1520 | BG162: 1520 | BH162: 1520 | BI162: 1520 | BJ162: 1520 | BK162: 1520 | BL162: 1520 | BM162: 1520 | BN162: 1520 | BO162: 1520 | BP162: 1520 | BQ162: 1520 | BR162: 1520 | BS162: 1520 | BT162: 1520 | BU162: 1520 | BV162: =BV157+BV158+BV159+BV160-BV161 -> 1520 | BW162: 1520 | BX162: 1520 | BY162: 1520 | BZ162: 1520 | CA162: 1520 | CB162: 1520 | CC162: 1520 | CD162: 1520 | CE162: 1520 | CF162: 1520 | CG162: 1520 | CH162: 1520 | CI162: 1520 | CJ162: 1520 | CK162: 1520 | CL162: 1520 | CM162: 1520 | CN162: 1520 | CO162: 1520 | CP162: 1520 | CQ162: 1520 | CR162: 1520 | CS162: 1520 | CT162: 1520 | CU162: 1520 | CV162: 1520 | CW162: 1520 | CX162: 1520 | CY162: 1520 | CZ162: 1520 | DA162: 1520 | DB162: 1520 | DC162: 1520 | DD162: 1520 | DE162: 1520 | DF162: 1520 | DG162: 1520 | DH162: 1520 | DI162: 1520 | DJ162: 1520 | DK162: 1520 | DL162: 1520 | DM162: 1520 | DN162: 1520 | DO162: 1520 | DP162: 1520 | DQ162: 1520 | DR162: 1520 | DS162: 1520 | DT162: 1520 | DU162: 1520 | DV162: 1520 | DW162: 1520 | DX162: 1520 | DY162: 1520 | DZ162: 1520 | EA162: 1520 | EB162: 1520 | EC162: 1520 | ED162: 1520 | EE162: 1520 | EF162: 1520 | EG162: 1520 | EH162: =EH157+EH158+EH159+EH160-EH161 -> 1520 | EI162: 1520 | EJ162: 1520 | EK162: 1520 | EL162: 1520 | EM162: 1520 | EN162: 1520 | EO162: 1520 | EP162: 1520 | EQ162: 1520 | ER162: 1520 | ES162: 1520 | ET162: 1520 | EU162: 1520 | EV162: 1520 | EW162: 1520 | EX162: 1520 | EY162: 1520 | EZ162: 1520 | FA162: 1520 | FB162: 1520 | FC162: 1520 | FD162: 1520 | FE162: 1520 | FF162: 1520 | FG162: 1520 | FH162: 1520 | FI162: 1520 | FJ162: 1520 | FK162: 1520 | FL162: 1520 | FM162: 1520 | FN162: 1520 | FO162: 1520 | FP162: 1520 | FQ162: 1520 | FR162: 1520 | FS162: 1520 | FT162: 1520 | FU162: 1520 | FV162: 1520 | FW162: 1520 | FX162: 1520 | FY162: 1520 | FZ162: 1520 | GA162: 1520 | GB162: 1520 | GC162: 1520 | GD162: 1520 | GE162: 1520 | GF162: 1520 | GG162: 1520 | GH162: 1520 | GI162: 1520 | GJ162: 1520 | GK162: 1520 | GL162: 1520 | GM162: 1520 | GN162: 1520 | GO162: 1520 | GP162: 1520 | GQ162: 1520 | GR162: 1520 | GS162: 1520 | GT162: =GT157+GT158+GT159+GT160-GT161 -> 1520 | GU162: 1520 | GV162: 1520 | GW162: 1520 | GX162: 1520 | GY162: 1520 | GZ162: 1520 | HA162: 1520 | HB162: 1520 | HC162: 1520 | HD162: 1520 | HE162: 1520 | HF162: 1520 | HG162: 1520 | HH162: 1520 | HI162: 1520 | HJ162: 1520 | HK162: 1520 | HL162: 1520 | HM162: 1520 | HN162: 1520 | HO162: 1520 | HP162: 1520 | HQ162: 1520 | HR162: 1520 | HS162: 1520 | HT162: 1520 | HU162: 1520 | HV162: 1520 | HW162: 1520 | HX162: 1520 | HY162: 1520 | HZ162: 1520 | IA162: 1520 | IB162: 1520 | IC162: 1520 | ID162: 1520 | IE162: 1520 | IF162: 1520 | IG162: 1520 | IH162: 1520 | II162: 1520 | IJ162: 1520 | IK162: 1520 | IL162: 1520 | IM162: 1520 | IN162: 1520 | IO162: 1520 | IP162: 1520 | IQ162: 1520 | IR162: 1520 | IS162: 1520 | IT162: 1520 | IU162: 1520 | IV162: 1520 | IW162: 1520 | IX162: 1520 | IY162: 1520 | IZ162: 1520 | JA162: 1520 | JB162: 1520 | JC162: 1520 | JD162: 1520 | JE162: 1520 | JF162: =JF157+JF158+JF159+JF160-JF161 -> 1520 | JG162: 1520 | JH162: 1520 | JI162: 1520 | JJ162: 1520 | JK162: 1520 | JL162: 1520 | JM162: 1520 | JN162: 1520 | JO162: 1520 | JP162: 1520 | JQ162: 1520 | JR162: 1520 | JS162: 1520 | JT162: 1520 | JU162: 1520 | JV162: 1520 | JW162: 1520 | JX162: 1520 | JY162: 1520 | JZ162: 1520 | KA162: 1520 | KB162: 1520 | KC162: 1520 | KD162: 1520 | KE162: 1520 | KF162: 1520 | KG162: 1520 | KH162: 1520 | KI162: 1520 | KJ162: 1520 | KK162: 1520 | KL162: 1520 | KM162: 1520 | KN162: 1520 | KO162: 1520 | KP162: 1520 | KQ162: 1520 | KR162: 1520 | KS162: 1520
D164: Goats Inseminated Flag | E164: ='Animal Balances'!F131 -> 1 | F164: ='Animal Balances'!F132 -> 5 | G164: ='Animal Balances'!F133 -> 9 | I164: =OR(I4=$E$164,I4=$F$164,I4=$G$164) -> TRUE | J164: FALSE | K164: FALSE | L164: FALSE | M164: TRUE | N164: FALSE | O164: FALSE | P164: FALSE | Q164: TRUE | R164: FALSE | S164: FALSE | T164: FALSE | U164: TRUE | V164: FALSE | W164: FALSE | X164: FALSE | Y164: TRUE | Z164: FALSE | AA164: FALSE | AB164: FALSE | AC164: TRUE | AD164: FALSE | AE164: FALSE | AF164: FALSE | AG164: TRUE | AH164: FALSE | AI164: FALSE | AJ164: FALSE | AK164: TRUE | AL164: FALSE | AM164: FALSE | AN164: FALSE | AO164: TRUE | AP164: FALSE | AQ164: FALSE | AR164: FALSE | AS164: TRUE | AT164: FALSE | AU164: FALSE | AV164: FALSE | AW164: TRUE | AX164: FALSE | AY164: FALSE | AZ164: FALSE | BA164: TRUE | BB164: FALSE | BC164: FALSE | BD164: FALSE | BE164: TRUE | BF164: FALSE | BG164: FALSE | BH164: FALSE | BI164: TRUE | BJ164: FALSE | BK164: FALSE | BL164: FALSE | BM164: TRUE | BN164: FALSE | BO164: FALSE | BP164: FALSE | BQ164: TRUE | BR164: FALSE | BS164: FALSE | BT164: FALSE | BU164: =OR(BU4=$E$164,BU4=$F$164,BU4=$G$164) -> TRUE | BV164: FALSE | BW164: FALSE | BX164: FALSE | BY164: TRUE | BZ164: FALSE | CA164: FALSE | CB164: FALSE | CC164: TRUE | CD164: FALSE | CE164: FALSE | CF164: FALSE | CG164: TRUE | CH164: FALSE | CI164: FALSE | CJ164: FALSE | CK164: TRUE | CL164: FALSE | CM164: FALSE | CN164: FALSE | CO164: TRUE | CP164: FALSE | CQ164: FALSE | CR164: FALSE | CS164: TRUE | CT164: FALSE | CU164: FALSE | CV164: FALSE | CW164: TRUE | CX164: FALSE | CY164: FALSE | CZ164: FALSE | DA164: TRUE | DB164: FALSE | DC164: FALSE | DD164: FALSE | DE164: TRUE | DF164: FALSE | DG164: FALSE | DH164: FALSE | DI164: TRUE | DJ164: FALSE | DK164: FALSE | DL164: FALSE | DM164: TRUE | DN164: FALSE | DO164: FALSE | DP164: FALSE | DQ164: TRUE | DR164: FALSE | DS164: FALSE | DT164: FALSE | DU164: TRUE | DV164: FALSE | DW164: FALSE | DX164: FALSE | DY164: TRUE | DZ164: FALSE | EA164: FALSE | EB164: FALSE | EC164: TRUE | ED164: FALSE | EE164: FALSE | EF164: FALSE | EG164: =OR(EG4=$E$164,EG4=$F$164,EG4=$G$164) -> TRUE | EH164: FALSE | EI164: FALSE | EJ164: FALSE | EK164: TRUE | EL164: FALSE | EM164: FALSE | EN164: FALSE | EO164: TRUE | EP164: FALSE | EQ164: FALSE | ER164: FALSE | ES164: TRUE | ET164: FALSE | EU164: FALSE | EV164: FALSE | EW164: TRUE | EX164: FALSE | EY164: FALSE | EZ164: FALSE | FA164: TRUE | FB164: FALSE | FC164: FALSE | FD164: FALSE | FE164: TRUE | FF164: FALSE | FG164: FALSE | FH164: FALSE | FI164: TRUE | FJ164: FALSE | FK164: FALSE | FL164: FALSE | FM164: TRUE | FN164: FALSE | FO164: FALSE | FP164: FALSE | FQ164: TRUE | FR164: FALSE | FS164: FALSE | FT164: FALSE | FU164: TRUE | FV164: FALSE | FW164: FALSE | FX164: FALSE | FY164: TRUE | FZ164: FALSE | GA164: FALSE | GB164: FALSE | GC164: TRUE | GD164: FALSE | GE164: FALSE | GF164: FALSE | GG164: TRUE | GH164: FALSE | GI164: FALSE | GJ164: FALSE | GK164: TRUE | GL164: FALSE | GM164: FALSE | GN164: FALSE | GO164: TRUE | GP164: FALSE | GQ164: FALSE | GR164: FALSE | GS164: =OR(GS4=$E$164,GS4=$F$164,GS4=$G$164) -> TRUE | GT164: FALSE | GU164: FALSE | GV164: FALSE | GW164: TRUE | GX164: FALSE | GY164: FALSE | GZ164: FALSE | HA164: TRUE | HB164: FALSE | HC164: FALSE | HD164: FALSE | HE164: TRUE | HF164: FALSE | HG164: FALSE | HH164: FALSE | HI164: TRUE | HJ164: FALSE | HK164: FALSE | HL164: FALSE | HM164: TRUE | HN164: FALSE | HO164: FALSE | HP164: FALSE | HQ164: TRUE | HR164: FALSE | HS164: FALSE | HT164: FALSE | HU164: TRUE | HV164: FALSE | HW164: FALSE | HX164: FALSE | HY164: TRUE | HZ164: FALSE | IA164: FALSE | IB164: FALSE | IC164: TRUE | ID164: FALSE | IE164: FALSE | IF164: FALSE | IG164: TRUE | IH164: FALSE | II164: FALSE | IJ164: FALSE | IK164: TRUE | IL164: FALSE | IM164: FALSE | IN164: FALSE | IO164: TRUE | IP164: FALSE | IQ164: FALSE | IR164: FALSE | IS164: TRUE | IT164: FALSE | IU164: FALSE | IV164: FALSE | IW164: TRUE | IX164: FALSE | IY164: FALSE | IZ164: FALSE | JA164: TRUE | JB164: FALSE | JC164: FALSE | JD164: FALSE | JE164: =OR(JE4=$E$164,JE4=$F$164,JE4=$G$164) -> TRUE | JF164: FALSE | JG164: FALSE | JH164: FALSE | JI164: TRUE | JJ164: FALSE | JK164: FALSE | JL164: FALSE | JM164: TRUE | JN164: FALSE | JO164: FALSE | JP164: FALSE | JQ164: TRUE | JR164: FALSE | JS164: FALSE | JT164: FALSE | JU164: TRUE | JV164: FALSE | JW164: FALSE | JX164: FALSE | JY164: TRUE | JZ164: FALSE | KA164: FALSE | KB164: FALSE | KC164: TRUE | KD164: FALSE | KE164: FALSE | KF164: FALSE | KG164: TRUE | KH164: FALSE | KI164: FALSE | KJ164: FALSE | KK164: TRUE | KL164: FALSE | KM164: FALSE | KN164: FALSE | KO164: TRUE | KP164: FALSE | KQ164: FALSE | KR164: FALSE | KS164: TRUE
D165: Goats Made Pregnant | I165: =I164*I162 -> 1520 | J165: =J164*J162 -> 0 | K165: 0 | L165: 0 | M165: 1520 | N165: 0 | O165: 0 | P165: 0 | Q165: 1520 | R165: 0 | S165: 0 | T165: 0 | U165: 1520 | V165: 0 | W165: 0 | X165: 0 | Y165: 1520 | Z165: 0 | AA165: 0 | AB165: 0 | AC165: 1520 | AD165: 0 | AE165: 0 | AF165: 0 | AG165: 1520 | AH165: 0 | AI165: 0 | AJ165: 0 | AK165: 1520 | AL165: 0 | AM165: 0 | AN165: 0 | AO165: 1520 | AP165: 0 | AQ165: 0 | AR165: 0 | AS165: 1520 | AT165: 0 | AU165: 0 | AV165: 0 | AW165: 1520 | AX165: 0 | AY165: 0 | AZ165: 0 | BA165: 1520 | BB165: 0 | BC165: 0 | BD165: 0 | BE165: 1520 | BF165: 0 | BG165: 0 | BH165: 0 | BI165: 1520 | BJ165: 0 | BK165: 0 | BL165: 0 | BM165: 1520 | BN165: 0 | BO165: 0 | BP165: 0 | BQ165: 1520 | BR165: 0 | BS165: 0 | BT165: 0 | BU165: 1520 | BV165: =BV164*BV162 -> 0 | BW165: 0 | BX165: 0 | BY165: 1520 | BZ165: 0 | CA165: 0 | CB165: 0 | CC165: 1520 | CD165: 0 | CE165: 0 | CF165: 0 | CG165: 1520 | CH165: 0 | CI165: 0 | CJ165: 0 | CK165: 1520 | CL165: 0 | CM165: 0 | CN165: 0 | CO165: 1520 | CP165: 0 | CQ165: 0 | CR165: 0 | CS165: 1520 | CT165: 0 | CU165: 0 | CV165: 0 | CW165: 1520 | CX165: 0 | CY165: 0 | CZ165: 0 | DA165: 1520 | DB165: 0 | DC165: 0 | DD165: 0 | DE165: 1520 | DF165: 0 | DG165: 0 | DH165: 0 | DI165: 1520 | DJ165: 0 | DK165: 0 | DL165: 0 | DM165: 1520 | DN165: 0 | DO165: 0 | DP165: 0 | DQ165: 1520 | DR165: 0 | DS165: 0 | DT165: 0 | DU165: 1520 | DV165: 0 | DW165: 0 | DX165: 0 | DY165: 1520 | DZ165: 0 | EA165: 0 | EB165: 0 | EC165: 1520 | ED165: 0 | EE165: 0 | EF165: 0 | EG165: 1520 | EH165: =EH164*EH162 -> 0 | EI165: 0 | EJ165: 0 | EK165: 1520 | EL165: 0 | EM165: 0 | EN165: 0 | EO165: 1520 | EP165: 0 | EQ165: 0 | ER165: 0 | ES165: 1520 | ET165: 0 | EU165: 0 | EV165: 0 | EW165: 1520 | EX165: 0 | EY165: 0 | EZ165: 0 | FA165: 1520 | FB165: 0 | FC165: 0 | FD165: 0 | FE165: 1520 | FF165: 0 | FG165: 0 | FH165: 0 | FI165: 1520 | FJ165: 0 | FK165: 0 | FL165: 0 | FM165: 1520 | FN165: 0 | FO165: 0 | FP165: 0 | FQ165: 1520 | FR165: 0 | FS165: 0 | FT165: 0 | FU165: 1520 | FV165: 0 | FW165: 0 | FX165: 0 | FY165: 1520 | FZ165: 0 | GA165: 0 | GB165: 0 | GC165: 1520 | GD165: 0 | GE165: 0 | GF165: 0 | GG165: 1520 | GH165: 0 | GI165: 0 | GJ165: 0 | GK165: 1520 | GL165: 0 | GM165: 0 | GN165: 0 | GO165: 1520 | GP165: 0 | GQ165: 0 | GR165: 0 | GS165: 1520 | GT165: =GT164*GT162 -> 0 | GU165: 0 | GV165: 0 | GW165: 1520 | GX165: 0 | GY165: 0 | GZ165: 0 | HA165: 1520 | HB165: 0 | HC165: 0 | HD165: 0 | HE165: 1520 | HF165: 0 | HG165: 0 | HH165: 0 | HI165: 1520 | HJ165: 0 | HK165: 0 | HL165: 0 | HM165: 1520 | HN165: 0 | HO165: 0 | HP165: 0 | HQ165: 1520 | HR165: 0 | HS165: 0 | HT165: 0 | HU165: 1520 | HV165: 0 | HW165: 0 | HX165: 0 | HY165: 1520 | HZ165: 0 | IA165: 0 | IB165: 0 | IC165: 1520 | ID165: 0 | IE165: 0 | IF165: 0 | IG165: 1520 | IH165: 0 | II165: 0 | IJ165: 0 | IK165: 1520 | IL165: 0 | IM165: 0 | IN165: 0 | IO165: 1520 | IP165: 0 | IQ165: 0 | IR165: 0 | IS165: 1520 | IT165: 0 | IU165: 0 | IV165: 0 | IW165: 1520 | IX165: 0 | IY165: 0 | IZ165: 0 | JA165: 1520 | JB165: 0 | JC165: 0 | JD165: 0 | JE165: 1520 | JF165: =JF164*JF162 -> 0 | JG165: 0 | JH165: 0 | JI165: 1520 | JJ165: 0 | JK165: 0 | JL165: 0 | JM165: 1520 | JN165: 0 | JO165: 0 | JP165: 0 | JQ165: 1520 | JR165: 0 | JS165: 0 | JT165: 0 | JU165: 1520 | JV165: 0 | JW165: 0 | JX165: 0 | JY165: 1520 | JZ165: 0 | KA165: 0 | KB165: 0 | KC165: 1520 | KD165: 0 | KE165: 0 | KF165: 0 | KG165: 1520 | KH165: 0 | KI165: 0 | KJ165: 0 | KK165: 1520 | KL165: 0 | KM165: 0 | KN165: 0 | KO165: 1520 | KP165: 0 | KQ165: 0 | KR165: 0 | KS165: 1520
C167: Terminal Breeds Balance
D168: Opening Balance | I168: ='Animal Balances'!H174 -> 0 | J168: ='Animal Balances'!I174 -> 0 | K168: ='Animal Balances'!J174 -> 0 | L168: ='Animal Balances'!K174 -> 0 | M168: ='Animal Balances'!L174 -> 1520 | N168: ='Animal Balances'!M174 -> 1520 | O168: ='Animal Balances'!N174 -> 1520 | P168: ='Animal Balances'!O174 -> 1520 | Q168: ='Animal Balances'!P174 -> 3040 | R168: ='Animal Balances'!Q174 -> 3040 | S168: ='Animal Balances'!R174 -> 3040 | T168: ='Animal Balances'!S174 -> 1520 | U168: ='Animal Balances'!T174 -> 3040 | V168: ='Animal Balances'!U174 -> 3040 | W168: ='Animal Balances'!V174 -> 3040 | X168: ='Animal Balances'!W174 -> 1520 | Y168: ='Animal Balances'!X174 -> 3040 | Z168: ='Animal Balances'!Y174 -> 3040 | AA168: ='Animal Balances'!Z174 -> 3040 | AB168: ='Animal Balances'!AA174 -> 1520 | AC168: ='Animal Balances'!AB174 -> 3040 | AD168: ='Animal Balances'!AC174 -> 3040 | AE168: ='Animal Balances'!AD174 -> 3040 | AF168: ='Animal Balances'!AE174 -> 1520 | AG168: ='Animal Balances'!AF174 -> 3040 | AH168: ='Animal Balances'!AG174 -> 3040 | AI168: ='Animal Balances'!AH174 -> 3040 | AJ168: ='Animal Balances'!AI174 -> 1520 | AK168: ='Animal Balances'!AJ174 -> 3040 | AL168: ='Animal Balances'!AK174 -> 3040 | AM168: ='Animal Balances'!AL174 -> 3040 | AN168: ='Animal Balances'!AM174 -> 1520 | AO168: ='Animal Balances'!AN174 -> 3040 | AP168: ='Animal Balances'!AO174 -> 3040 | AQ168: ='Animal Balances'!AP174 -> 3040 | AR168: ='Animal Balances'!AQ174 -> 1520 | AS168: ='Animal Balances'!AR174 -> 3040 | AT168: ='Animal Balances'!AS174 -> 3040 | AU168: ='Animal Balances'!AT174 -> 3040 | AV168: ='Animal Balances'!AU174 -> 1520 | AW168: ='Animal Balances'!AV174 -> 3040 | AX168: ='Animal Balances'!AW174 -> 3040 | AY168: ='Animal Balances'!AX174 -> 3040 | AZ168: ='Animal Balances'!AY174 -> 1520 | BA168: ='Animal Balances'!AZ174 -> 3040 | BB168: ='Animal Balances'!BA174 -> 3040 | BC168: ='Animal Balances'!BB174 -> 3040 | BD168: ='Animal Balances'!BC174 -> 1520 | BE168: ='Animal Balances'!BD174 -> 3040 | BF168: ='Animal Balances'!BE174 -> 3040 | BG168: ='Animal Balances'!BF174 -> 3040 | BH168: ='Animal Balances'!BG174 -> 1520 | BI168: ='Animal Balances'!BH174 -> 3040 | BJ168: ='Animal Balances'!BI174 -> 3040 | BK168: ='Animal Balances'!BJ174 -> 3040 | BL168: ='Animal Balances'!BK174 -> 1520 | BM168: ='Animal Balances'!BL174 -> 3040 | BN168: ='Animal Balances'!BM174 -> 3040 | BO168: ='Animal Balances'!BN174 -> 3040 | BP168: ='Animal Balances'!BO174 -> 1520 | BQ168: ='Animal Balances'!BP174 -> 3040 | BR168: ='Animal Balances'!BQ174 -> 3040 | BS168: ='Animal Balances'!BR174 -> 3040 | BT168: ='Animal Balances'!BS174 -> 1520 | BU168: ='Animal Balances'!BT174 -> 3040 | BV168: ='Animal Balances'!BU174 -> 3040 | BW168: ='Animal Balances'!BV174 -> 3040 | BX168: ='Animal Balances'!BW174 -> 1520 | BY168: ='Animal Balances'!BX174 -> 3040 | BZ168: ='Animal Balances'!BY174 -> 3040 | CA168: ='Animal Balances'!BZ174 -> 3040 | CB168: ='Animal Balances'!CA174 -> 1520 | CC168: ='Animal Balances'!CB174 -> 3040 | CD168: ='Animal Balances'!CC174 -> 3040 | CE168: ='Animal Balances'!CD174 -> 3040 | CF168: ='Animal Balances'!CE174 -> 1520 | CG168: ='Animal Balances'!CF174 -> 3040 | CH168: ='Animal Balances'!CG174 -> 3040 | CI168: ='Animal Balances'!CH174 -> 3040 | CJ168: ='Animal Balances'!CI174 -> 1520 | CK168: ='Animal Balances'!CJ174 -> 3040 | CL168: ='Animal Balances'!CK174 -> 3040 | CM168: ='Animal Balances'!CL174 -> 3040 | CN168: ='Animal Balances'!CM174 -> 1520 | CO168: ='Animal Balances'!CN174 -> 3040 | CP168: ='Animal Balances'!CO174 -> 3040 | CQ168: ='Animal Balances'!CP174 -> 3040 | CR168: ='Animal Balances'!CQ174 -> 1520 | CS168: ='Animal Balances'!CR174 -> 3040 | CT168: ='Animal Balances'!CS174 -> 3040 | CU168: ='Animal Balances'!CT174 -> 3040 | CV168: ='Animal Balances'!CU174 -> 1520 | CW168: ='Animal Balances'!CV174 -> 3040 | CX168: ='Animal Balances'!CW174 -> 3040 | CY168: ='Animal Balances'!CX174 -> 3040 | CZ168: ='Animal Balances'!CY174 -> 1520 | DA168: ='Animal Balances'!CZ174 -> 3040 | DB168: ='Animal Balances'!DA174 -> 3040 | DC168: ='Animal Balances'!DB174 -> 3040 | DD168: ='Animal Balances'!DC174 -> 1520 | DE168: ='Animal Balances'!DD174 -> 3040 | DF168: ='Animal Balances'!DE174 -> 3040 | DG168: ='Animal Balances'!DF174 -> 3040 | DH168: ='Animal Balances'!DG174 -> 1520 | DI168: ='Animal Balances'!DH174 -> 3040 | DJ168: ='Animal Balances'!DI174 -> 3040 | DK168: ='Animal Balances'!DJ174 -> 3040 | DL168: ='Animal Balances'!DK174 -> 1520 | DM168: ='Animal Balances'!DL174 -> 3040 | DN168: ='Animal Balances'!DM174 -> 3040 | DO168: ='Animal Balances'!DN174 -> 3040 | DP168: ='Animal Balances'!DO174 -> 1520 | DQ168: ='Animal Balances'!DP174 -> 3040 | DR168: ='Animal Balances'!DQ174 -> 3040 | DS168: ='Animal Balances'!DR174 -> 3040 | DT168: ='Animal Balances'!DS174 -> 1520 | DU168: ='Animal Balances'!DT174 -> 3040 | DV168: ='Animal Balances'!DU174 -> 3040 | DW168: ='Animal Balances'!DV174 -> 3040 | DX168: ='Animal Balances'!DW174 -> 1520 | DY168: ='Animal Balances'!DX174 -> 3040 | DZ168: ='Animal Balances'!DY174 -> 3040 | EA168: ='Animal Balances'!DZ174 -> 3040 | EB168: ='Animal Balances'!EA174 -> 1520 | EC168: ='Animal Balances'!EB174 -> 3040 | ED168: ='Animal Balances'!EC174 -> 3040 | EE168: ='Animal Balances'!ED174 -> 3040 | EF168: ='Animal Balances'!EE174 -> 1520 | EG168: ='Animal Balances'!EF174 -> 3040 | EH168: ='Animal Balances'!EG174 -> 3040 | EI168: ='Animal Balances'!EH174 -> 3040 | EJ168: ='Animal Balances'!EI174 -> 1520 | EK168: ='Animal Balances'!EJ174 -> 3040 | EL168: ='Animal Balances'!EK174 -> 3040 | EM168: ='Animal Balances'!EL174 -> 3040 | EN168: ='Animal Balances'!EM174 -> 1520 | EO168: ='Animal Balances'!EN174 -> 3040 | EP168: ='Animal Balances'!EO174 -> 3040 | EQ168: ='Animal Balances'!EP174 -> 3040 | ER168: ='Animal Balances'!EQ174 -> 1520 | ES168: ='Animal Balances'!ER174 -> 3040 | ET168: ='Animal Balances'!ES174 -> 3040 | EU168: ='Animal Balances'!ET174 -> 3040 | EV168: ='Animal Balances'!EU174 -> 1520 | EW168: ='Animal Balances'!EV174 -> 3040 | EX168: ='Animal Balances'!EW174 -> 3040 | EY168: ='Animal Balances'!EX174 -> 3040 | EZ168: ='Animal Balances'!EY174 -> 1520 | FA168: ='Animal Balances'!EZ174 -> 3040 | FB168: ='Animal Balances'!FA174 -> 3040 | FC168: ='Animal Balances'!FB174 -> 3040 | FD168: ='Animal Balances'!FC174 -> 1520 | FE168: ='Animal Balances'!FD174 -> 3040 | FF168: ='Animal Balances'!FE174 -> 3040 | FG168: ='Animal Balances'!FF174 -> 3040 | FH168: ='Animal Balances'!FG174 -> 1520 | FI168: ='Animal Balances'!FH174 -> 3040 | FJ168: ='Animal Balances'!FI174 -> 3040 | FK168: ='Animal Balances'!FJ174 -> 3040 | FL168: ='Animal Balances'!FK174 -> 1520 | FM168: ='Animal Balances'!FL174 -> 3040 | FN168: ='Animal Balances'!FM174 -> 3040 | FO168: ='Animal Balances'!FN174 -> 3040 | FP168: ='Animal Balances'!FO174 -> 1520 | FQ168: ='Animal Balances'!FP174 -> 3040 | FR168: ='Animal Balances'!FQ174 -> 3040 | FS168: ='Animal Balances'!FR174 -> 3040 | FT168: ='Animal Balances'!FS174 -> 1520 | FU168: ='Animal Balances'!FT174 -> 3040 | FV168: ='Animal Balances'!FU174 -> 3040 | FW168: ='Animal Balances'!FV174 -> 3040 | FX168: ='Animal Balances'!FW174 -> 1520 | FY168: ='Animal Balances'!FX174 -> 3040 | FZ168: ='Animal Balances'!FY174 -> 3040 | GA168: ='Animal Balances'!FZ174 -> 3040 | GB168: ='Animal Balances'!GA174 -> 1520 | GC168: ='Animal Balances'!GB174 -> 3040 | GD168: ='Animal Balances'!GC174 -> 3040 | GE168: ='Animal Balances'!GD174 -> 3040 | GF168: ='Animal Balances'!GE174 -> 1520 | GG168: ='Animal Balances'!GF174 -> 3040 | GH168: ='Animal Balances'!GG174 -> 3040 | GI168: ='Animal Balances'!GH174 -> 3040 | GJ168: ='Animal Balances'!GI174 -> 1520 | GK168: ='Animal Balances'!GJ174 -> 3040 | GL168: ='Animal Balances'!GK174 -> 3040 | GM168: ='Animal Balances'!GL174 -> 3040 | GN168: ='Animal Balances'!GM174 -> 1520 | GO168: ='Animal Balances'!GN174 -> 3040 | GP168: ='Animal Balances'!GO174 -> 3040 | GQ168: ='Animal Balances'!GP174 -> 3040 | GR168: ='Animal Balances'!GQ174 -> 1520 | GS168: ='Animal Balances'!GR174 -> 3040 | GT168: =GS174 -> 3040 | GU168: 3040 | GV168: 1520 | GW168: 3040 | GX168: 3040 | GY168: 3040 | GZ168: 1520 | HA168: 3040 | HB168: 3040 | HC168: 3040 | HD168: 1520 | HE168: 3040 | HF168: 3040 | HG168: 3040 | HH168: 1520 | HI168: 3040 | HJ168: 3040 | HK168: 3040 | HL168: 1520 | HM168: 3040 | HN168: 3040 | HO168: 3040 | HP168: 1520 | HQ168: 3040 | HR168: 3040 | HS168: 3040 | HT168: 1520 | HU168: 3040 | HV168: 3040 | HW168: 3040 | HX168: 1520 | HY168: 3040 | HZ168: 3040 | IA168: 3040 | IB168: 1520 | IC168: 3040 | ID168: 3040 | IE168: 3040 | IF168: 1520 | IG168: 3040 | IH168: 3040 | II168: 3040 | IJ168: 1520 | IK168: 3040 | IL168: 3040 | IM168: 3040 | IN168: 1520 | IO168: 3040 | IP168: 3040 | IQ168: 3040 | IR168: 1520 | IS168: 3040 | IT168: 3040 | IU168: 3040 | IV168: 1520 | IW168: 3040 | IX168: 3040 | IY168: 3040 | IZ168: 1520 | JA168: 3040 | JB168: 3040 | JC168: 3040 | JD168: 1520 | JE168: 3040 | JF168: =JE174 -> 3040 | JG168: 3040 | JH168: 1520 | JI168: 3040 | JJ168: 3040 | JK168: 3040 | JL168: 1520 | JM168: 3040 | JN168: 3040 | JO168: 3040 | JP168: 1520 | JQ168: 3040 | JR168: 3040 | JS168: 3040 | JT168: 1520 | JU168: 3040 | JV168: 3040 | JW168: 3040 | JX168: 1520 | JY168: 3040 | JZ168: 3040 | KA168: 3040 | KB168: 1520 | KC168: 3040 | KD168: 3040 | KE168: 3040 | KF168: 1520 | KG168: 3040 | KH168: 3040 | KI168: 3040 | KJ168: 1520 | KK168: 3040 | KL168: 3040 | KM168: 3040 | KN168: 1520 | KO168: 3040 | KP168: 3040 | KQ168: 3040 | KR168: 1520 | KS168: 3040
